Workbook

Sheet Data
A1: Notation & Variables: | M1: GLM Bootstrap (Framework): | Y1: ODP Bootstrap (Simplified GLM):
A3: Cumulative Data | M3: Cumulative Data | Y3: Fitted Cumulative Data
B4: 1 | C4: 2 | D4: 3 | E4: 4 | F4: 5 | G4: 6 | N4: 1 | O4: 2 | P4: 3 | Q4: 4 | R4: 5 | S4: 6 | Z4: 1 | AA4: 2 | AB4: 3 | AC4: 4 | AD4: 5 | AE4: 6
A5: 1 | B5: ="c("&$A5&","&B$4&")" -> c(1,1) | C5: c(1,2) | D5: c(1,3) | E5: c(1,4) | F5: c(1,5) | G5: c(1,6) | M5: 1 | N5: 95 | O5: 150 | P5: 170 | Q5: 200 | R5: 215 | S5: 220 | Y5: 1 | Z5: =AA5/O$11 -> 109.1664813 | AA5: =AB5/P$11 -> 155.9521162 | AB5: =AC5/Q$11 -> 178.23099 | AC5: =AD5/R$11 -> 204.8823529 | AD5: =AE5/S$11 -> 215 | AE5: =S5 -> 220
A6: 2 | B6: ="c("&$A6&","&B$4&")" -> c(2,1) | C6: c(2,2) | D6: c(2,3) | E6: c(2,4) | F6: c(2,5) | M6: 2 | N6: 110 | O6: 160 | P6: 175 | Q6: 205 | R6: 210 | Y6: 2 | Z6: =AA6/O$11 -> 106.627726 | AA6: =AB6/P$11 -> 152.3253228 | AB6: =AC6/Q$11 -> 174.0860832 | AC6: =AD6/R$11 -> 200.1176471 | AD6: =R6 -> 210
A7: 3 | B7: c(3,1) | C7: c(3,2) | D7: c(3,3) | E7: c(3,4) | M7: 3 | N7: 105 | O7: 165 | P7: 190 | Q7: 210 | Y7: 3 | Z7: =AA7/O$11 -> 111.8932927 | AA7: =AB7/P$11 -> 159.847561 | AB7: =AC7/Q$11 -> 182.6829268 | AC7: =Q7 -> 210
A8: 4 | B8: c(4,1) | C8: c(4,2) | D8: c(4,3) | M8: 4 | N8: 120 | O8: 155 | P8: 185 | Y8: 4 | Z8: =AA8/O$11 -> 113.3125 | AA8: =AB8/P$11 -> 161.875 | AB8: =P8 -> 185
A9: 5 | B9: c(5,1) | C9: c(5,2) | M9: 5 | N9: 130 | O9: 170 | Y9: 5 | Z9: =AA9/O$11 -> 119 | AA9: =O9 -> 170
A10: 6 | B10: c(6,1) | M10: 6 | N10: 125 | Y10: 6 | Z10: =N10 -> 125
N11: Factors: | O11: =SUM(O5:O9)/SUM(N5:N9) -> 1.428571429 | P11: =SUM(P5:P8)/SUM(O5:O8) -> 1.142857143 | Q11: =SUM(Q5:Q7)/SUM(P5:P7) -> 1.14953271 | R11: =SUM(R5:R6)/SUM(Q5:Q6) -> 1.049382716 | S11: =S5/R5 -> 1.023255814
A12: Incremental Data | M12: Incremental Data | Y12: Fitted Incremental Data
B13: 1 | C13: 2 | D13: 3 | E13: 4 | F13: 5 | G13: 6 | N13: 1 | O13: 2 | P13: 3 | Q13: 4 | R13: 5 | S13: 6 | Z13: 1 | AA13: 2 | AB13: 3 | AC13: 4 | AD13: 5 | AE13: 6
A14: 1 | B14: ="q("&$A14&","&B$4&")" -> q(1,1) | C14: ="q("&$A14&","&C$4&")" -> q(1,2) | D14: q(1,3) | E14: q(1,4) | F14: q(1,5) | G14: ="q("&$A14&","&G$4&")" -> q(1,6) | M14: 1 | N14: =N5 -> 95 | O14: =O5-N5 -> 55 | P14: =P5-O5 -> 20 | Q14: =Q5-P5 -> 30 | R14: =R5-Q5 -> 15 | S14: =S5-R5 -> 5 | Y14: 1 | Z14: =Z5 -> 109.1664813 | AA14: =AA5-Z5 -> 46.78563486 | AB14: =AB5-AA5 -> 22.27887374 | AC14: =AC5-AB5 -> 26.65136298 | AD14: =AD5-AC5 -> 10.11764706 | AE14: =AE5-AD5 -> 5
A15: 2 | B15: q(2,1) | C15: q(2,2) | D15: q(2,3) | E15: q(2,4) | F15: q(2,5) | M15: 2 | N15: 110 | O15: =O6-N6 -> 50 | P15: =P6-O6 -> 15 | Q15: =Q6-P6 -> 30 | R15: =R6-Q6 -> 5 | Y15: 2 | Z15: 106.627726 | AA15: =AA6-Z6 -> 45.69759684 | AB15: =AB6-AA6 -> 21.7607604 | AC15: =AC6-AB6 -> 26.03156385 | AD15: =AD6-AC6 -> 9.882352941
A16: 3 | B16: q(3,1) | C16: q(3,2) | D16: q(3,3) | E16: q(3,4) | M16: 3 | N16: 105 | O16: =O7-N7 -> 60 | P16: =P7-O7 -> 25 | Q16: =Q7-P7 -> 20 | Y16: 3 | Z16: 111.8932927 | AA16: =AA7-Z7 -> 47.95426829 | AB16: =AB7-AA7 -> 22.83536585 | AC16: =AC7-AB7 -> 27.31707317
A17: 4 | B17: q(4,1) | C17: q(4,2) | D17: q(4,3) | M17: 4 | N17: 120 | O17: =O8-N8 -> 35 | P17: =P8-O8 -> 30 | Y17: 4 | Z17: 113.3125 | AA17: =AA8-Z8 -> 48.5625 | AB17: =AB8-AA8 -> 23.125
A18: 5 | B18: q(5,1) | C18: q(5,2) | M18: 5 | N18: 130 | O18: =O9-N9 -> 40 | Y18: 5 | Z18: 119 | AA18: =AA9-Z9 -> 51
A19: 6 | B19: q(6,1) | M19: 6 | N19: 125 | Y19: 6 | Z19: 125
A21: Log-Link of Incremental Data | M21: Log-Link of Incremental Data
B22: 1 | C22: 2 | D22: 3 | E22: 4 | F22: 5 | G22: 6 | N22: 1 | O22: 2 | P22: 3 | Q22: 4 | R22: 5 | S22: 6
A23: 1 | B23: ="ln[q("&$A23&","&B$4&")]" -> ln[q(1,1)] | C23: ="ln[q("&$A23&","&C$4&")]" -> ln[q(1,2)] | D23: ln[q(1,3)] | E23: ="ln[q("&$A23&","&E$4&")]" -> ln[q(1,4)] | F23: ="ln[q("&$A23&","&F$4&")]" -> ln[q(1,5)] | G23: ="ln[q("&$A23&","&G$4&")]" -> ln[q(1,6)] | M23: 1 | N23: =LN(N14) -> 4.553876892 | O23: =LN(O14) -> 4.007333185 | P23: 2.995732274 | Q23: =LN(Q14) -> 3.401197382 | R23: =LN(R14) -> 2.708050201 | S23: =LN(S14) -> 1.609437912
A24: 2 | B24: ln[q(2,1)] | C24: ln[q(2,2)] | D24: ln[q(2,3)] | E24: ln[q(2,4)] | F24: ln[q(2,5)] | M24: 2 | N24: 4.700480366 | O24: 3.912023005 | P24: 2.708050201 | Q24: =LN(Q15) -> 3.401197382 | R24: 1.609437912
A25: 3 | B25: ln[q(3,1)] | C25: ln[q(3,2)] | D25: ln[q(3,3)] | E25: ln[q(3,4)] | M25: 3 | N25: 4.65396035 | O25: 4.094344562 | P25: =LN(P16) -> 3.218875825 | Q25: =LN(Q16) -> 2.995732274
A26: 4 | B26: ln[q(4,1)] | C26: ln[q(4,2)] | D26: ln[q(4,3)] | M26: 4 | N26: 4.787491743 | O26: =LN(O17) -> 3.555348061 | P26: =LN(P17) -> 3.401197382
A27: 5 | B27: ln[q(5,1)] | C27: ln[q(5,2)] | M27: 5 | N27: 4.86753445 | O27: =LN(O18) -> 3.688879454
A28: 6 | B28: ln[q(6,1)] | M28: 6 | N28: 4.828313737
AC29: Model Parameters from Maximum Likelihood
A30: Design Matrix | O30: c | P30: α2 | Q30: α3 | R30: α4 | S30: α5 | T30: α6 | U30: β2 | V30: β3 | W30: β4 | X30: β5 | Y30: β6 | AA30: X x A | AD30: Actual | AF30: Estimate | AG30: Loglikelihood | AJ30: Maximum Likelihood Steps:
A31: X | B31: 1 | C31: 0 | D31: 0 | E31: 0 | F31: 0 | G31: 0 | H31: 0 | I31: 0 | J31: 0 | K31: 0 | L31: 0 | N31: A | O31: 4.692855259 | P31: -0.02351412054 | Q31: 0.02468709118 | R31: 0.03728996106 | S31: 0.08626729585 | T31: 0.1354712127 | U31: -0.8472895981 | V31: -0.7419363141 | W31: 0.1792055939 | X31: -0.9685823754 | Y31: -0.704824372 | AA31: =SUMPRODUCT(B31:L31,$O$31:$Y$31) -> 4.692855259 | AC31: q(1,1) | AD31: =N14 -> 95 | AE31: m1,1 | AF31: =EXP(AA31) -> 109.164428 | AG31: =IF($F$55=0,-(((AD31-AF31)^2)/2)-0.5*LN(2*PI()),IF($F$55=1,-AF31+LN(AF31)*AD31-GAMMALN(AD31+1),IF($F$55=2,-LN(AF31)-AD31/AF31,-0.5*(LN(2*PI())+3*LN(AD31))-(AD31-AF31)^2/(2*AF31^2*AD31)))) -> -4.158237232 | AI31: 1) | AJ31: Enter Starting Values for vector A (Row 31)
B32: 1 | C32: 1 | D32: 0 | E32: 0 | F32: 0 | G32: 0 | H32: 0 | I32: 0 | J32: 0 | K32: 0 | L32: 0 | AA32: =SUMPRODUCT(B32:L32,$O$31:$Y$31) -> 4.669341139 | AC32: q(2,1) | AD32: =N15 -> 110 | AE32: m2,1 | AF32: =EXP(AA32) -> 106.6274666 | AG32: =IF($F$55=0,-(((AD32-AF32)^2)/2)-0.5*LN(2*PI()),IF($F$55=1,-AF32+LN(AF32)*AD32-GAMMALN(AD32+1),IF($F$55=2,-LN(AF32)-AD32/AF32,-0.5*(LN(2*PI())+3*LN(AD32))-(AD32-AF32)^2/(2*AF32^2*AD32)))) -> -3.322717843 | AI32: 2) | AJ32: Use Solver to Maximize Total Loglikelihood
B33: 1 | C33: 0 | D33: 1 | E33: 0 | F33: 0 | G33: 0 | H33: 0 | I33: 0 | J33: 0 | K33: 0 | L33: 0 | AA33: 4.71754235 | AC33: q(3,1) | AD33: 105 | AE33: m3,1 | AF33: 111.8929209 | AG33: -3.46352321
B34: 1 | C34: 0 | D34: 0 | E34: 1 | F34: 0 | G34: 0 | H34: 0 | I34: 0 | J34: 0 | K34: 0 | L34: 0 | AA34: 4.73014522 | AC34: q(4,1) | AD34: 120 | AE34: m4,1 | AF34: 113.3120163 | AG34: -3.506977905
B35: 1 | C35: 0 | D35: 0 | E35: 0 | F35: 1 | G35: 0 | H35: 0 | I35: 0 | J35: 0 | K35: 0 | L35: 0 | AA35: 4.779122555 | AC35: q(5,1) | AD35: 130 | AE35: m5,1 | AF35: 118.9998884 | AG35: -3.846781557
B36: 1 | C36: 0 | D36: 0 | E36: 0 | F36: 0 | G36: 1 | H36: 0 | I36: 0 | J36: 0 | K36: 0 | L36: 0 | AA36: 4.828326472 | AC36: q(6,1) | AD36: 125 | AE36: m6,1 | AF36: 125.0015918 | AG36: -3.333762077
B37: 1 | C37: 0 | D37: 0 | E37: 0 | F37: 0 | G37: 0 | H37: 1 | I37: 0 | J37: 0 | K37: 0 | L37: 0 | AA37: 3.845565661 | AC37: q(1,2) | AD37: =O14 -> 55 | AE37: m1,2 | AF37: 46.7851414 | AG37: -3.60647549
B38: 1 | C38: 1 | D38: 0 | E38: 0 | F38: 0 | G38: 0 | H38: 1 | I38: 0 | J38: 0 | K38: 0 | L38: 0 | AA38: 3.82205154 | AC38: q(2,2) | AD38: =O15 -> 50 | AE38: m2,2 | AF38: 45.69786324 | AG38: -3.073053164
B39: 1 | C39: 0 | D39: 1 | E39: 0 | F39: 0 | G39: 0 | H39: 1 | I39: 0 | J39: 0 | K39: 0 | L39: 0 | AA39: 3.870252752 | AC39: q(3,2) | AD39: 60 | AE39: m3,2 | AF39: 47.95450516 | AG39: -4.367513447
B40: 1 | C40: 0 | D40: 0 | E40: 1 | F40: 0 | G40: 0 | H40: 1 | I40: 0 | J40: 0 | K40: 0 | L40: 0 | AA40: 3.882855622 | AC40: q(4,2) | AD40: 35 | AE40: m4,2 | AF40: 48.56269396 | AG40: -4.798922788
B41: 1 | C41: 0 | D41: 0 | E41: 0 | F41: 1 | G41: 0 | H41: 1 | I41: 0 | J41: 0 | K41: 0 | L41: 0 | AA41: 3.931832957 | AC41: q(5,2) | AD41: 40 | AE41: m5,2 | AF41: 51.00037353 | AG41: -4.047694973
B42: 1 | C42: 0 | D42: 0 | E42: 0 | F42: 0 | G42: 0 | H42: 1 | I42: 1 | J42: 0 | K42: 0 | L42: 0 | AA42: 3.103629347 | AC42: q(1,3) | AD42: =P14 -> 20 | AE42: m1,3 | AF42: 22.27866172 | AG42: -2.541691244
B43: 1 | C43: 1 | D43: 0 | E43: 0 | F43: 0 | G43: 0 | H43: 1 | I43: 1 | J43: 0 | K43: 0 | L43: 0 | AA43: 3.080115226 | AC43: q(2,3) | AD43: =P15 -> 15 | AE43: m2,3 | AF43: 21.76090968 | AG43: -3.458452671
B44: 1 | C44: 0 | D44: 1 | E44: 0 | F44: 0 | G44: 0 | H44: 1 | I44: 1 | J44: 0 | K44: 0 | L44: 0 | AA44: 3.128316438 | AC44: q(3,3) | AD44: 25 | AE44: m3,3 | AF44: 22.83550218 | AG44: -2.631196451
B45: 1 | C45: 0 | D45: 0 | E45: 1 | F45: 0 | G45: 0 | H45: 1 | I45: 1 | J45: 0 | K45: 0 | L45: 0 | AA45: 3.140919308 | AC45: q(4,3) | AD45: 30 | AE45: m4,3 | AF45: 23.12511619 | AG45: -3.555773303
B46: 1 | C46: 0 | D46: 0 | E46: 0 | F46: 0 | G46: 0 | H46: 1 | I46: 1 | J46: 1 | K46: 0 | L46: 0 | AA46: 3.282834941 | AC46: q(1,4) | AD46: =Q14 -> 30 | AE46: m1,4 | AF46: 26.65122034 | AG46: -2.824408461
B47: 1 | C47: 1 | D47: 0 | E47: 0 | F47: 0 | G47: 0 | H47: 1 | I47: 1 | J47: 1 | K47: 0 | L47: 0 | AA47: 3.25932082 | AC47: q(2,4) | AD47: =Q15 -> 30 | AE47: m2,4 | AF47: 26.03185083 | AG47: -2.910462572
B48: 1 | C48: 0 | D48: 1 | E48: 0 | F48: 0 | G48: 0 | H48: 1 | I48: 1 | J48: 1 | K48: 0 | L48: 0 | AA48: 3.307522032 | AC48: q(3,4) | AD48: 20 | AE48: m3,4 | AF48: 27.31735001 | AG48: -3.502525835
B49: 1 | C49: 0 | D49: 0 | E49: 0 | F49: 0 | G49: 0 | H49: 1 | I49: 1 | J49: 1 | K49: 1 | L49: 0 | AA49: 2.314252565 | AC49: q(1,5) | AD49: =R14 -> 15 | AE49: m1,5 | AF49: 10.11735803 | AG49: -3.302840931
B50: 1 | C50: 1 | D50: 0 | E50: 0 | F50: 0 | G50: 0 | H50: 1 | I50: 1 | J50: 1 | K50: 1 | L50: 0 | AA50: 2.290738445 | AC50: q(2,5) | AD50: =R15 -> 5 | AE50: m2,5 | AF50: 9.882232472 | AG50: -3.21603199
B51: 1 | C51: 0 | D51: 0 | E51: 0 | F51: 0 | G51: 0 | H51: 1 | I51: 1 | J51: 1 | K51: 1 | L51: 1 | AA51: 1.609428193 | AC51: q(1,6) | AD51: =S14 -> 5 | AE51: m1,6 | AF51: 4.999951405 | AG51: -1.740302181
A53: Model Parameters from Iteratively Weighted Least Squares | AD53: =COUNTIF(AD31:AD51,"<>0") -> 21 | AF53: Total | AG53: =SUM(AG31:AG51) -> -71.20934533
B54: Values | C54: t-Stat | D54: p-Value | F54: Error Distribution
A55: c | B55: =GLM!CB130 -> 4.692874069 | C55: =B55/SQRT(ScaleParameter*GLM!AR130) -> 37.57637134 | D55: =_xlfn.T.DIST.2T(ABS(C55),$T$113) -> 4.245256977e-12 | E55: z = | F55: 1 | AJ55: 0 | AK55: Normal
A56: α2 | B56: =GLM!CB131 -> -0.02353049741 | C56: =B56/SQRT(ScaleParameter*SUM(GLM!AR130:AS131)) -> -0.1866211368 | D56: =_xlfn.T.DIST.2T(ABS(C56),$T$113) -> 0.8556893524 | F56: =VLOOKUP(F55,ErrorTable,2) -> Poisson | AJ56: 1 | AK56: Poisson
A57: α3 | B57: =GLM!CB132 -> 0.02467160441 | C57: =B57/SQRT(ScaleParameter*SUM(GLM!AR130,GLM!AR132,GLM!AT130,GLM!AT132)) -> 0.1976421366 | D57: 0.8472847334 | AJ57: 2 | AK57: Gamma
A58: α4 | B58: =GLM!CB133 -> 0.03727541968 | C58: =B58/SQRT(ScaleParameter*SUM(GLM!AR130,GLM!AR133,GLM!AU130,GLM!AU133)) -> 0.2887099499 | D58: 0.7786995114 | AJ58: 3 | AK58: Inverse Gaussian
A59: α5 | B59: =GLM!CB134 -> 0.08624942428 | C59: =B59/SQRT(ScaleParameter*SUM(GLM!AR130,GLM!AR134,GLM!AV130,GLM!AV134)) -> 0.6533726197 | D59: 0.5282522647
A60: α6 | B60: =GLM!CB135 -> 0.1354396685 | C60: =B60/SQRT(ScaleParameter*SUM(GLM!AR130,GLM!AR135,GLM!AW130,GLM!AW135)) -> 0.9189835671 | D60: 0.3797371407
A61: β2 | B61: =GLM!CB136 -> -0.8472978604 | C61: =B61/SQRT(ScaleParameter*GLM!AX136) -> -6.664960925 | D61: 5.603743027e-05
A62: β3 | B62: =GLM!CB137 -> -0.7419373447 | C62: =B62/SQRT(ScaleParameter*GLM!AY137) -> -3.603313017 | D62: 0.004821316438
A63: β4 | B63: =GLM!CB138 -> 0.1792014295 | C63: =B63/SQRT(ScaleParameter*GLM!AZ138) -> 0.7006763804 | D63: 0.4994830701
A64: β5 | B64: =GLM!CB139 -> -0.9685591604 | C64: =B64/SQRT(ScaleParameter*GLM!BA139) -> -2.335518362 | D64: 0.04165658851
A65: β6 | B65: =GLM!CB140 -> -0.7048432203 | C65: =B65/SQRT(ScaleParameter*GLM!BB140) -> -0.8516130132 | D65: 0.4143574886
A67: Log-Link of Fitted Values | M67: Log-Link of Fitted Values
B68: 1 | C68: 2 | D68: 3 | E68: 4 | F68: 5 | G68: 6 | N68: 1 | O68: 2 | P68: 3 | Q68: 4 | R68: 5 | S68: 6
A69: 1 | B69: ln[m1,1] | C69: ln[m1,2] | D69: ln[m1,3] | E69: ln[m1,4] | F69: ln[m1,5] | G69: ln[m1,6] | M69: 1 | N69: =B55 -> 4.692874069 | O69: =$B$55+B$61 -> 3.845576208 | P69: =$B$55+B$61+B$62 -> 3.103638864 | Q69: =$B$55+B$61+B$62+B$63 -> 3.282840293 | R69: =$B$55+B$61+B$62+B$63+B$64 -> 2.314281133 | S69: =$B$55+B$61+B$62+B$63+B$64+B$65 -> 1.609437912
A70: 2 | B70: ln[m2,1] | C70: ln[m2,2] | D70: ln[m2,3] | E70: ln[m2,4] | F70: ln[m2,5] | M70: 2 | N70: =$B$55+B56 -> 4.669343571 | O70: =$B$55+B56+B$61 -> 3.822045711 | P70: =$B$55+B56+B$61+B$62 -> 3.080108366 | Q70: =$B$55+B56+B$61+B$62+B$63 -> 3.259309796 | R70: =$B$55+B56+B$61+B$62+B$63+B$64 -> 2.290750635
A71: 3 | B71: ln[m3,1] | C71: ln[m3,2] | D71: ln[m3,3] | E71: ln[m3,4] | M71: 3 | N71: =$B$55+B57 -> 4.717545673 | O71: =$B$55+B57+B$61 -> 3.870247813 | P71: =$B$55+B57+B$61+B$62 -> 3.128310468 | Q71: =$B$55+B57+B$61+B$62+B$63 -> 3.307511898
A72: 4 | B72: ln[m4,1] | C72: ln[m4,2] | D72: ln[m4,3] | M72: 4 | N72: =$B$55+B58 -> 4.730149489 | O72: =$B$55+B58+B$61 -> 3.882851628 | P72: 3.140914283
A73: 5 | B73: ln[m5,1] | C73: ln[m5,2] | M73: 5 | N73: =$B$55+B59 -> 4.779123493 | O73: =$B$55+B59+B$61 -> 3.931825633
A74: 6 | B74: ln[m6,1] | M74: 6 | N74: =$B$55+B60 -> 4.828313737
A76: Fitted Incremental Values | M76: Fitted Incremental Values | AI76: Difference
B77: 1 | C77: 2 | D77: 3 | E77: 4 | F77: 5 | G77: 6 | N77: 1 | O77: 2 | P77: 3 | Q77: 4 | R77: 5 | S77: 6 | AJ77: 1 | AK77: 2 | AL77: 3 | AM77: 4 | AN77: 5 | AO77: 6
A78: 1 | B78: m1,1 | C78: m1,2 | D78: m1,3 | E78: m1,4 | F78: m1,5 | G78: m1,6 | M78: 1 | N78: =EXP(N69) -> 109.1664813 | O78: =EXP(O69) -> 46.78563486 | P78: 22.27887374 | Q78: =EXP(Q69) -> 26.65136298 | R78: =EXP(R69) -> 10.11764706 | S78: =EXP(S69) -> 5 | AI78: 1 | AJ78: =N78-Z14 -> 0 | AK78: -1.278976924e-13 | AL78: 2.842170943e-14 | AM78: 4.618527782e-14 | AN78: -1.953992523e-14 | AO78: 1.421085472e-14
A79: 2 | B79: m2,1 | C79: m2,2 | D79: m2,3 | E79: m2,4 | F79: m2,5 | M79: 2 | N79: 106.627726 | O79: 45.69759684 | P79: 21.7607604 | Q79: =EXP(Q70) -> 26.03156385 | R79: 9.882352941 | AI79: 2 | AJ79: =N79-Z15 -> 7.247535905e-13 | AK79: =O79-AA15 -> 1.563194019e-13 | AL79: =P79-AB15 -> 1.776356839e-13 | AM79: =Q79-AC15 -> 2.167155344e-13 | AN79: =R79-AD15 -> 5.684341886e-14
A80: 3 | B80: m3,1 | C80: m3,2 | D80: m3,3 | E80: m3,4 | M80: 3 | N80: 111.8932927 | O80: 47.95426829 | P80: =EXP(P71) -> 22.83536585 | Q80: =EXP(Q71) -> 27.31707317 | AI80: 3 | AJ80: =N80-Z16 -> 1.421085472e-13 | AK80: =O80-AA16 -> -1.065814104e-13 | AL80: =P80-AB16 -> 7.105427358e-14 | AM80: =Q80-AC16 -> 8.171241461e-14
A81: 4 | B81: m4,1 | C81: m4,2 | D81: m4,3 | M81: 4 | N81: 113.3125 | O81: =EXP(O72) -> 48.5625 | P81: =EXP(P72) -> 23.125 | AI81: 4 | AJ81: =N81-Z17 -> 4.405364962e-13 | AK81: =O81-AA17 -> 0 | AL81: =P81-AB17 -> 1.065814104e-13
A82: 5 | B82: m5,1 | C82: m5,2 | M82: 5 | N82: 119 | O82: =EXP(O73) -> 51 | AI82: 5 | AJ82: =N82-Z18 -> 0 | AK82: =O82-AA18 -> -2.060573934e-13
A83: 6 | B83: m6,1 | M83: 6 | N83: 125 | AI83: 6 | AJ83: =N83-Z19 -> 4.97379915e-13
A85: Unscaled Pearson Residuals | M85: Unscaled Pearson Residuals | Y85: Unscaled Pearson Residuals | AI85: Difference
B86: 1 | C86: 2 | D86: 3 | E86: 4 | F86: 5 | G86: 6 | N86: 1 | O86: 2 | P86: 3 | Q86: 4 | R86: 5 | S86: 6 | Z86: 1 | AA86: 2 | AB86: 3 | AC86: 4 | AD86: 5 | AE86: 6 | AJ86: 1 | AK86: 2 | AL86: 3 | AM86: 4 | AN86: 5 | AO86: 6
A87: 1 | B87: r1,1 | C87: r1,2 | D87: r1,3 | E87: r1,4 | F87: r1,5 | G87: r1,6 | M87: 1 | N87: =(N14-N78)/SQRT(N78^$F$55) -> -1.355867772 | O87: 1.200930128 | P87: -0.4828071007 | Q87: 0.6486469218 | R87: 1.534932947 | S87: -6.355287432e-15 | Y87: 1 | Z87: =(N14-Z14)/SQRT(Z14) -> -1.355867772 | AA87: 1.200930128 | AB87: -0.4828071007 | AC87: 0.6486469218 | AD87: 1.534932947 | AE87: 0 | AI87: 1 | AJ87: =N87-Z87 -> -6.439293543e-15 | AK87: 2.042810365e-14 | AL87: -5.773159728e-15 | AM87: -9.436895709e-15 | AN87: 7.771561172e-15 | AO87: -6.355287432e-15
A88: 2 | B88: r2,1 | C88: r2,2 | D88: r2,3 | E88: r2,4 | F88: r2,5 | M88: 2 | N88: =(N15-N79)/SQRT(N79^$F$55) -> 0.3265786464 | O88: =(O15-O79)/SQRT(O79^$F$55) -> 0.636450193 | P88: =(P15-P79)/SQRT(P79^$F$55) -> -1.449300732 | Q88: =(Q15-Q79)/SQRT(Q79^$F$55) -> 0.7778023807 | R88: =(R15-R79)/SQRT(R79^$F$55) -> -1.553098466 | Y88: 2 | Z88: =(N15-Z15)/SQRT(Z15) -> 0.3265786464 | AA88: =(O15-AA15)/SQRT(AA15) -> 0.636450193 | AB88: =(P15-AB15)/SQRT(AB15) -> -1.449300732 | AC88: =(Q15-AC15)/SQRT(AC15) -> 0.7778023807 | AD88: =(R15-AD15)/SQRT(AD15) -> -1.553098466 | AI88: 2 | AJ88: =N88-Z88 -> -7.133182933e-14 | AK88: =O88-AA88 -> -2.420286194e-14 | AL88: =P88-AB88 -> -3.197442311e-14 | AM88: =Q88-AC88 -> -4.574118861e-14 | AN88: =R88-AD88 -> -1.35447209e-14
A89: 3 | B89: r3,1 | C89: r3,2 | D89: r3,3 | E89: r3,4 | M89: 3 | N89: =(N16-N80)/SQRT(N80^$F$55) -> -0.6516654432 | O89: =(O16-O80)/SQRT(O80^$F$55) -> 1.739480448 | P89: =(P16-P80)/SQRT(P80^$F$55) -> 0.4529815547 | Q89: =(Q16-Q80)/SQRT(Q80^$F$55) -> -1.399975112 | Y89: 3 | Z89: =(N16-Z16)/SQRT(Z16) -> -0.6516654432 | AA89: =(O16-AA16)/SQRT(AA16) -> 1.739480448 | AB89: =(P16-AB16)/SQRT(AB16) -> 0.4529815547 | AC89: =(Q16-AC16)/SQRT(AC16) -> -1.399975112 | AI89: 3 | AJ89: =N89-Z89 -> -1.298960939e-14 | AK89: =O89-AA89 -> 1.754152379e-14 | AL89: =P89-AB89 -> -1.554312234e-14 | AM89: =Q89-AC89 -> -1.35447209e-14
A90: 4 | B90: r4,1 | C90: r4,2 | D90: r4,3 | M90: 4 | N90: =(N17-N81)/SQRT(N81^$F$55) -> 0.6282389872 | O90: =(O17-O81)/SQRT(O81^$F$55) -> -1.946207909 | P90: =(P17-P81)/SQRT(P81^$F$55) -> 1.429656924 | Y90: 4 | Z90: =(N17-Z17)/SQRT(Z17) -> 0.6282389872 | AA90: =(O17-AA17)/SQRT(AA17) -> -1.946207909 | AB90: =(P17-AB17)/SQRT(AB17) -> 1.429656924 | AI90: 4 | AJ90: =N90-Z90 -> -4.263256415e-14 | AK90: =O90-AA90 -> -2.664535259e-15 | AL90: =P90-AB90 -> -2.553512957e-14
A91: 5 | B91: r5,1 | C91: r5,2 | M91: 5 | N91: =(N18-N82)/SQRT(N82^$F$55) -> 1.008368347 | O91: =(O18-O82)/SQRT(O82^$F$55) -> -1.540308092 | Y91: 5 | Z91: =(N18-Z18)/SQRT(Z18) -> 1.008368347 | AA91: =(O18-AA18)/SQRT(AA18) -> -1.540308092 | AI91: 5 | AJ91: =N91-Z91 -> 6.661338148e-15 | AK91: =O91-AA91 -> 2.575717417e-14
A92: 6 | B92: r6,1 | M92: 6 | N92: =(N19-N83)/SQRT(N83^$F$55) -> -4.448701203e-14 | Y92: 6 | Z92: =(N19-Z19)/SQRT(Z19) -> 0 | AI92: 6 | AJ92: =N92-Z92 -> -4.448701203e-14
A94: Hat Matrix Factors | M94: Hat Matrix Factors
B95: 1 | C95: 2 | D95: 3 | E95: 4 | F95: 5 | G95: 6 | N95: 1 | O95: 2 | P95: 3 | Q95: 4 | R95: 5 | S95: 6
A96: 1 | B96: fH1,1 | C96: fH1,2 | D96: fH1,3 | E96: fH1,4 | F96: fH1,5 | G96: fH1,6 | M96: 1 | N96: ='Hat Matrix'!A49 -> 1.637630331 | O96: ='Hat Matrix'!G55 -> 1.270165573 | P96: ='Hat Matrix'!L60 -> 1.220082504 | Q96: ='Hat Matrix'!P64 -> 1.309527803 | R96: ='Hat Matrix'!S67 -> 1.457309416 | S96: ='Hat Matrix'!U69 -> 0
A97: 2 | B97: fH2,1 | C97: fH2,2 | D97: fH2,3 | E97: fH2,4 | F97: fH2,5 | M97: 2 | N97: ='Hat Matrix'!B50 -> 1.631568185 | O97: ='Hat Matrix'!H56 -> 1.266309938 | P97: ='Hat Matrix'!M61 -> 1.215366584 | Q97: ='Hat Matrix'!Q65 -> 1.301945776 | R97: ='Hat Matrix'!T68 -> 1.440264275
A98: 3 | B98: fH3,1 | C98: fH3,2 | D98: fH3,3 | E98: fH3,4 | M98: 3 | N98: ='Hat Matrix'!C51 -> 1.671724591 | O98: ='Hat Matrix'!I57 -> 1.279734058 | P98: ='Hat Matrix'!N62 -> 1.227481452 | Q98: ='Hat Matrix'!R66 -> 1.321206535
A99: 4 | B99: fH4,1 | C99: fH4,2 | D99: fH4,3 | M99: 4 | N99: ='Hat Matrix'!D52 -> 1.812753971 | O99: ='Hat Matrix'!J58 -> 1.306075306 | P99: ='Hat Matrix'!O63 -> 1.240181734
A100: 5 | B100: fH5,1 | C100: fH5,2 | M100: 5 | N100: ='Hat Matrix'!E53 -> 2.057377999 | O100: ='Hat Matrix'!K59 -> 1.346870059
A101: 6 | B101: fH6,1 | M101: 6 | N101: ='Hat Matrix'!F54 -> 0
A103: Standardized Pearson Residuals | M103: Standardized Pearson Residuals
B104: 1 | C104: 2 | D104: 3 | E104: 4 | F104: 5 | G104: 6 | N104: 1 | O104: 2 | P104: 3 | Q104: 4 | R104: 5 | S104: 6
A105: 1 | B105: rH1,1 | C105: rH1,2 | D105: rH1,3 | E105: rH1,4 | F105: rH1,5 | G105: rH1,6 | M105: 1 | N105: =N87*N96 -> -2.220410188 | O105: =O87*O96 -> 1.525380105 | P105: -0.5890644963 | Q105: 0.8494211784 | R105: 2.236872237 | S105: =S87*S96 -> 0
A106: 2 | B106: rH2,1 | C106: rH2,2 | D106: rH2,3 | E106: rH2,4 | F106: rH2,5 | M106: 2 | N106: 0.5328353295 | O106: 0.8059432042 | P106: -1.761431679 | Q106: 1.012656524 | R106: -2.236872237
A107: 3 | B107: rH3,1 | C107: rH3,2 | D107: rH3,3 | E107: rH3,4 | M107: 3 | N107: -1.089405146 | O107: 2.226072373 | P107: 0.5560264565 | Q107: -1.849656267
A108: 4 | B108: rH4,1 | C108: rH4,2 | D108: rH4,3 | M108: 4 | N108: 1.138842719 | O108: -2.54189409 | P108: 1.773034403
A109: 5 | B109: rH5,1 | C109: rH5,2 | M109: 5 | N109: 2.074594852 | O109: -2.074594852
A110: 6 | B110: rH6,1 | M110: 6 | N110: 0
M112: Pearson chi-squared statistic | T112: =SUMSQ(N87:S92) -> 27.15102852
M113: Degrees of freedom | P113: =COUNT(N14:S19) -> 21 | Q113: - | R113: =COUNT(B55:B65) -> 11 | S113: = | T113: =P113-R113 -> 10
M114: Scale Parameter | T114: =T112/T113 -> 2.715102852
M115: Degrees of Freedom Adjustment Factor | T115: =SQRT(P113/T113) -> 1.449137675
M116: Number of Non-Zero Residuals | T116: =COUNTIF(N105:N110,"<>0")+COUNTIF(O105:O109,"<>0")+COUNTIF(P105:P108,"<>0")+COUNTIF(Q105:Q107,"<>0")+COUNTIF(R105:R106,"<>0")+COUNTIF(S105,"<>0") -> 19
M118: Random Selections
N119: 1 | O119: 2 | P119: 3 | Q119: 4 | R119: 5 | S119: 6 | Y119: Residual Lookup Table
M120: 1 | N120: =RANDBETWEEN(1,NonZeroCount) -> 14 | O120: 14 | P120: 3 | Q120: 9 | R120: 4 | S120: 7 | U120: Recalc will change all values | Y120: 1 | Z120: =N105 -> -2.220410188 | AA120: =Z120 -> -2.220410188
M121: 2 | N121: =RANDBETWEEN(1,NonZeroCount) -> 4 | O121: =RANDBETWEEN(1,NonZeroCount) -> 9 | P121: =RANDBETWEEN(1,NonZeroCount) -> 17 | Q121: =RANDBETWEEN(1,NonZeroCount) -> 6 | R121: =RANDBETWEEN(1,NonZeroCount) -> 14 | U121: from this step forward | Y121: 2 | Z121: 0.5328353295 | AA121: =Z121 -> 0.5328353295
M122: 3 | N122: =RANDBETWEEN(1,NonZeroCount) -> 7 | O122: =RANDBETWEEN(1,NonZeroCount) -> 9 | P122: =RANDBETWEEN(1,NonZeroCount) -> 19 | Q122: =RANDBETWEEN(1,NonZeroCount) -> 6 | Y122: 3 | Z122: -1.089405146 | AA122: =Z122 -> -1.089405146
M123: 4 | N123: =RANDBETWEEN(1,NonZeroCount) -> 17 | O123: =RANDBETWEEN(1,NonZeroCount) -> 3 | P123: =RANDBETWEEN(1,NonZeroCount) -> 4 | Y123: 4 | Z123: 1.138842719 | AA123: =Z123 -> 1.138842719
M124: 5 | N124: =RANDBETWEEN(1,NonZeroCount) -> 5 | O124: =RANDBETWEEN(1,NonZeroCount) -> 18 | Y124: 5 | Z124: 2.074594852 | AA124: =Z124 -> 2.074594852
M125: 6 | N125: =RANDBETWEEN(1,NonZeroCount) -> 10 | Y125: 6 | Z125: 0 | AA125: =Z126 -> 1.525380105
Y126: 7 | Z126: =O105 -> 1.525380105 | AA126: =Z127 -> 0.8059432042
M127: Random Residuals | Y127: 8 | Z127: =O106 -> 0.8059432042 | AA127: 2.226072373
N128: 1 | O128: 2 | P128: 3 | Q128: 4 | R128: 5 | S128: 6 | Y128: 9 | Z128: =O107 -> 2.226072373 | AA128: -2.54189409
M129: 1 | N129: =VLOOKUP(N120,$Y$120:$AA$140,3) -> 1.773034403 | O129: =VLOOKUP(O120,$Y$120:$AA$140,3) -> 1.773034403 | P129: -1.089405146 | Q129: -2.54189409 | R129: 1.138842719 | S129: =VLOOKUP(S120,$Y$120:$AA$140,3) -> 0.8059432042 | Y129: 10 | Z129: =O108 -> -2.54189409 | AA129: -2.074594852
M130: 2 | N130: 1.138842719 | O130: -2.54189409 | P130: -1.849656267 | Q130: 1.525380105 | R130: 1.773034403 | Y130: 11 | Z130: =O109 -> -2.074594852 | AA130: -0.5890644963
M131: 3 | N131: 0.8059432042 | O131: -2.54189409 | P131: -2.236872237 | Q131: 1.525380105 | Y131: 12 | Z131: =P105 -> -0.5890644963 | AA131: -1.761431679
M132: 4 | N132: -1.849656267 | O132: -1.089405146 | P132: 1.138842719 | Y132: 13 | Z132: =P106 -> -1.761431679 | AA132: 0.5560264565
M133: 5 | N133: 2.074594852 | O133: 2.236872237 | Y133: 14 | Z133: =P107 -> 0.5560264565 | AA133: 1.773034403
M134: 6 | N134: -2.074594852 | Y134: 15 | Z134: =P108 -> 1.773034403 | AA134: 0.8494211784
Y135: 16 | Z135: =Q105 -> 0.8494211784 | AA135: 1.012656524
A136: Sample Incremental Triangle | M136: Sample Incremental Triangle | Y136: 17 | Z136: =Q106 -> 1.012656524 | AA136: -1.849656267
B137: 1 | C137: 2 | D137: 3 | E137: 4 | F137: 5 | G137: 6 | N137: 1 | O137: 2 | P137: 3 | Q137: 4 | R137: 5 | S137: 6 | Y137: 18 | Z137: =Q107 -> -1.849656267 | AA137: 2.236872237
A138: 1 | B138: ="q'("&$A138&","&B$4&")" -> q'(1,1) | C138: ="q'("&$A138&","&C$4&")" -> q'(1,2) | D138: q'(1,3) | E138: ="q'("&$A138&","&E$4&")" -> q'(1,4) | F138: ="q'("&$A138&","&F$4&")" -> q'(1,5) | G138: ="q'("&$A138&","&G$4&")" -> q'(1,6) | M138: 1 | N138: =N78+N129*SQRT(N78^$F$55) -> 127.691635 | O138: 58.9131947 | P138: 17.13682678 | Q138: 13.5288454 | R138: 13.74010634 | S138: 6.802143791 | Y138: 19 | Z138: =R105 -> 2.236872237 | AA138: -2.236872237
A139: 2 | B139: q'(2,1) | C139: q'(2,2) | D139: q'(2,3) | E139: q'(2,4) | F139: q'(2,5) | M139: 2 | N139: =N79+N130*SQRT(N79^$F$55) -> 118.3874958 | O139: =O79+O130*SQRT(O79^$F$55) -> 28.51439339 | P139: =P79+P130*SQRT(P79^$F$55) -> 13.13240428 | Q139: =Q79+Q130*SQRT(Q79^$F$55) -> 33.81422652 | R139: =R79+R130*SQRT(R79^$F$55) -> 15.45610111 | Y139: 20 | Z139: =R106 -> -2.236872237
A140: 3 | B140: q'(3,1) | C140: q'(3,2) | D140: q'(3,3) | E140: q'(3,4) | M140: 3 | N140: =N80+N131*SQRT(N80^$F$55) -> 120.4185298 | O140: =O80+O131*SQRT(O80^$F$55) -> 30.35190072 | P140: =P80+P131*SQRT(P80^$F$55) -> 12.14616676 | Q140: =Q80+Q131*SQRT(Q80^$F$55) -> 35.28958479 | Y140: 21 | Z140: =S105 -> 0
A141: 4 | B141: q'(4,1) | C141: q'(4,2) | D141: q'(4,3) | M141: 4 | N141: =N81+N132*SQRT(N81^$F$55) -> 93.62321529 | O141: =O81+O132*SQRT(O81^$F$55) -> 40.97078422 | P141: =P81+P132*SQRT(P81^$F$55) -> 28.60151927
A142: 5 | B142: q'(5,1) | C142: q'(5,2) | M142: 5 | N142: =N82+N133*SQRT(N82^$F$55) -> 141.631158 | O142: =O82+O133*SQRT(O82^$F$55) -> 66.97446299
A143: 6 | B143: q'(6,1) | M143: 6 | N143: =N83+N134*SQRT(N83^$F$55) -> 101.8053244
A145: Sample Cumulative Triangle | M145: Sample Triangle Fitted Values | Y145: Sample Cumulative Triangle
B146: 1 | C146: 2 | D146: 3 | E146: 4 | F146: 5 | G146: 6 | N146: 1 | O146: 2 | P146: 3 | Q146: 4 | R146: 5 | S146: 6 | Z146: 1 | AA146: 2 | AB146: 3 | AC146: 4 | AD146: 5 | AE146: 6
A147: 1 | B147: ="c'("&$A147&","&B$4&")" -> c'(1,1) | C147: ="c'("&$A147&","&C$4&")" -> c'(1,2) | D147: c'(1,3) | E147: ="c'("&$A147&","&E$4&")" -> c'(1,4) | F147: ="c'("&$A147&","&F$4&")" -> c'(1,5) | G147: ="c'("&$A147&","&G$4&")" -> c'(1,6) | M147: 1 | N147: =EXP($B$155) -> 121.6262116 | O147: =EXP($B$155+B$161) -> 45.62351759 | P147: =EXP($B$155+B$161+B$162) -> 19.19229903 | Q147: =EXP($B$155+B$161+B$162+B$163) -> 29.2508413 | R147: =EXP($B$155+B$161+B$162+B$163+B$164) -> 15.31773873 | S147: =EXP($B$155+B$161+B$162+B$163+B$164+B$165) -> 6.802143791 | Y147: 1 | Z147: =N138 -> 127.691635 | AA147: =O138+Z147 -> 186.6048297 | AB147: =P138+AA147 -> 203.7416565 | AC147: =Q138+AB147 -> 217.2705019 | AD147: =R138+AC147 -> 231.0106082 | AE147: =S138+AD147 -> 237.812752
A148: 2 | B148: c'(2,1) | C148: c'(2,2) | D148: c'(2,3) | E148: c'(2,4) | F148: c'(2,5) | M148: 2 | N148: =EXP($B$155+B156) -> 110.1980915 | O148: =EXP($B$155+B156+B$161) -> 41.33668639 | P148: =EXP($B$155+B156+B$161+B$162) -> 17.38897147 | Q148: =EXP($B$155+B156+B$161+B$162+B$163) -> 26.50240308 | R148: =EXP($B$155+B156+B$161+B$162+B$163+B$164) -> 13.87846872 | Y148: 2 | Z148: 118.3874958 | AA148: =O139+Z148 -> 146.9018892 | AB148: =P139+AA148 -> 160.0342935 | AC148: =Q139+AB148 -> 193.84852 | AD148: =R139+AC148 -> 209.3046211
A149: 3 | B149: c'(3,1) | C149: c'(3,2) | D149: c'(3,3) | E149: c'(3,4) | M149: 3 | N149: =EXP($B$155+B157) -> 111.7657115 | O149: =EXP($B$155+B157+B$161) -> 41.92472033 | P149: =EXP($B$155+B157+B$161+B$162) -> 17.63633783 | Q149: =EXP($B$155+B157+B$161+B$162+B$163) -> 26.87941232 | Y149: 3 | Z149: 120.4185298 | AA149: =O140+Z149 -> 150.7704305 | AB149: =P140+AA149 -> 162.9165972 | AC149: =Q140+AB149 -> 198.206182
A150: 4 | B150: c'(4,1) | C150: c'(4,2) | D150: c'(4,3) | M150: 4 | N150: =EXP($B$155+B158) -> 106.4612571 | O150: =EXP($B$155+B158+B$161) -> 39.93495294 | P150: =EXP($B$155+B158+B$161+B$162) -> 16.79930875 | Y150: 4 | Z150: 93.62321529 | AA150: =O141+Z150 -> 134.5939995 | AB150: =P141+AA150 -> 163.1955188
A151: 5 | B151: c'(5,1) | C151: c'(5,2) | M151: 5 | N151: =EXP($B$155+B159) -> 151.7007622 | O151: =EXP($B$155+B159+B$161) -> 56.90485877 | Y151: 5 | Z151: 141.631158 | AA151: =O142+Z151 -> 208.605621
A152: 6 | B152: c'(6,1) | M152: 6 | N152: =EXP($B$155+B160) -> 101.8053244 | Y152: 6 | Z152: 101.8053244
Z153: Factors: | AA153: =SUM(AA147:AA151)/SUM(Z147:Z151) -> 1.375112544 | AB153: =SUM(AB147:AB150)/SUM(AA147:AA150) -> 1.114752347 | AC153: =SUM(AC147:AC149)/SUM(AB147:AB149) -> 1.15688974 | AD153: =SUM(AD147:AD148)/SUM(AC147:AC148) -> 1.071016435 | AE153: =AE147/AD147 -> 1.029445158
A154: Sample Data Parameters | AA154: =AA153*AB154 -> 1.955275503 | AB154: =AB153*AC154 -> 1.421902165 | AC154: =AC153*AD154 -> 1.275531887 | AD154: =AD153*AE154 -> 1.102552683 | AE154: =AE153 -> 1.029445158
A155: c | B155: ='GLM 2'!CB130 -> 4.800952502
A156: α2 | B156: ='GLM 2'!CB131 -> -0.09867292423 | Y156: Projected Cumulative Data
A157: α3 | B157: ='GLM 2'!CB132 -> -0.0845476831 | Z157: 1 | AA157: 2 | AB157: 3 | AC157: 4 | AD157: 5 | AE157: 6
A158: α4 | B158: ='GLM 2'!CB133 -> -0.1331713662 | Y158: 1 | Z158: =Z147 -> 127.691635 | AA158: =AA147 -> 186.6048297 | AB158: 203.7416565 | AC158: 217.2705019 | AD158: 231.0106082 | AE158: =AE147 -> 237.812752
A159: α5 | B159: ='GLM 2'!CB134 -> 0.2209574088 | Y159: 2 | Z159: 118.3874958 | AA159: 146.9018892 | AB159: 160.0342935 | AC159: 193.84852 | AD159: 209.3046211 | AE159: =AD159*AE$153 -> 215.4676287
A160: α6 | B160: ='GLM 2'!CB135 -> -0.1778900965 | Y160: 3 | Z160: 120.4185298 | AA160: 150.7704305 | AB160: 162.9165972 | AC160: 198.206182 | AD160: =AC160*AD$153 -> 212.2820785 | AE160: =AD160*AE$153 -> 218.5327578
A161: β2 | B161: ='GLM 2'!CB136 -> -0.9805291819 | Y161: 4 | Z161: 93.62321529 | AA161: 134.5939995 | AB161: 163.1955188 | AC161: =AB161*AC$153 -> 188.7992213 | AD161: =AC161*AD$153 -> 202.207069 | AE161: =AD161*AE$153 -> 208.161088
A162: β3 | B162: ='GLM 2'!CB137 -> -0.8659142139 | Y162: 5 | Z162: 141.631158 | AA162: 208.605621 | AB162: =AA162*AB$153 -> 232.5436057 | AC162: =AB162*AC$153 -> 269.0273115 | AD162: =AC162*AD$153 -> 288.1326721 | AE162: =AD162*AE$153 -> 296.6167841
A163: β4 | B163: ='GLM 2'!CB138 -> 0.4213992293 | Y163: 6 | Z163: 101.8053244 | AA163: =Z163*AA$153 -> 139.9937786 | AB163: =AA163*AB$153 -> 156.0583933 | AC163: =AB163*AC$153 -> 180.5423541 | AD163: =AC163*AD$153 -> 193.3638285 | AE163: =AD163*AE$153 -> 199.0574569
A164: β5 | B164: ='GLM 2'!CB139 -> -0.6468967849
A165: β6 | B165: ='GLM 2'!CB140 -> -0.8117737248 | M165: Projected Incremental Data | U165: Point | Y165: Projected Incremental Data | AG165: Point | AI165: Difference
N166: 1 | O166: 2 | P166: 3 | Q166: 4 | R166: 5 | S166: 6 | U166: Estimate | Z166: 1 | AA166: 2 | AB166: 3 | AC166: 4 | AD166: 5 | AE166: 6 | AG166: Estimate | AJ166: 1 | AK166: 2 | AL166: 3 | AM166: 4 | AN166: 5 | AO166: 6
M167: 1 | Y167: 1 | AI167: 1
M168: 2 | S168: =EXP($B$155+B156+B$161+B$162+B$163+B$164+B$165) -> 6.163007578 | U168: =SUM(N168:S168) -> 6.163007578 | Y168: 2 | AE168: =AE159-AD159 -> 6.163007578 | AG168: =SUM(Z168:AE168) -> 6.163007578 | AI168: 2 | AO168: =S168-AE168 -> -3.463895837e-14
M169: 3 | R169: =EXP($B$155+B157+B$161+B$162+B$163+B$164) -> 14.07589652 | S169: =EXP($B$155+B157+B$161+B$162+B$163+B$164+B$165) -> 6.250679281 | U169: =SUM(N169:S169) -> 20.3265758 | Y169: 3 | AD169: 14.07589652 | AE169: 6.250679281 | AG169: =SUM(Z169:AE169) -> 20.3265758 | AI169: 3 | AN169: =R169-AD169 -> -1.598721155e-14 | AO169: =S169-AE169 -> -2.930988785e-14
M170: 4 | Q170: =EXP($B$155+B158+B$161+B$162+B$163) -> 25.60370248 | R170: =EXP($B$155+B158+B$161+B$162+B$163+B$164) -> 13.4078477 | S170: 5.954019035 | U170: =SUM(N170:S170) -> 44.96556921 | Y170: 4 | AC170: 25.60370248 | AD170: 13.4078477 | AE170: 5.954019035 | AG170: =SUM(Z170:AE170) -> 44.96556921 | AI170: 4 | AM170: =Q170-AC170 -> -4.618527782e-14 | AN170: =R170-AD170 -> 2.131628207e-14 | AO170: =S170-AE170 -> -2.309263891e-14
M171: 5 | P171: =EXP($B$155+B159+B$161+B$162) -> 23.93798469 | Q171: =EXP($B$155+B159+B$161+B$162+B$163) -> 36.48370579 | R171: =EXP($B$155+B159+B$161+B$162+B$163+B$164) -> 19.10536068 | S171: 8.484111972 | U171: =SUM(N171:S171) -> 88.01116313 | Y171: 5 | AB171: 23.93798469 | AC171: 36.48370579 | AD171: 19.10536068 | AE171: 8.484111972 | AG171: =SUM(Z171:AE171) -> 88.01116313 | AI171: 5 | AL171: =P171-AB171 -> -2.522426712e-13 | AM171: =Q171-AC171 -> -1.634248292e-13 | AN171: =R171-AD171 -> 0 | AO171: =S171-AE171 -> -4.440892099e-14
M172: 6 | O172: =EXP($B$155+B160+B$161) -> 38.18845419 | P172: =EXP($B$155+B160+B$161+B$162) -> 16.06461472 | Q172: =EXP($B$155+B160+B$161+B$162+B$163) -> 24.48396073 | R172: =EXP($B$155+B160+B$161+B$162+B$163+B$164) -> 12.82147442 | S172: 5.693628425 | U172: =SUM(N172:S172) -> 97.25213249 | Y172: 6 | AA172: =AA163-Z163 -> 38.18845419 | AB172: 16.06461472 | AC172: 24.48396073 | AD172: 12.82147442 | AE172: 5.693628425 | AG172: =SUM(Z172:AE172) -> 97.25213249 | AI172: 6 | AK172: =O172-AA172 -> 2.629008122e-13 | AL172: =P172-AB172 -> -4.618527782e-14 | AM172: =Q172-AC172 -> 9.592326933e-14 | AN172: =R172-AD172 -> 7.993605777e-14 | AO172: =S172-AE172 -> 3.286260153e-14
U173: =SUM(U168:U172) -> 256.7184482 | AG173: =SUM(AG168:AG172) -> 256.7184482
M174: Random Values
N175: 1 | O175: 2 | P175: 3 | Q175: 4 | R175: 5 | S175: 6
M176: 1
M177: 2 | S177: =RAND() -> 0.5977212074
M178: 3 | R178: 0.7295128285 | S178: 0.1968508764
M179: 4 | Q179: 0.9588593252 | R179: 0.1082213924 | S179: 0.09754710418
M180: 5 | P180: 0.8834520842 | Q180: 0.5153065706 | R180: 0.4727281849 | S180: 0.6630373938
M181: 6 | O181: =RAND() -> 0.3659296796 | P181: 0.2466872144 | Q181: 0.8743249551 | R181: 0.4985092676 | S181: 0.8289663187
M183: Incremental Data w/ Process Variance | U183: Possible | Y183: Incremental Data w/ Process Variance | AG183: Possible | AI183: Difference
N184: 1 | O184: 2 | P184: 3 | Q184: 4 | R184: 5 | S184: 6 | U184: Outcome | Z184: 1 | AA184: 2 | AB184: 3 | AC184: 4 | AD184: 5 | AE184: 6 | AG184: Outcome | AJ184: 1 | AK184: 2 | AL184: 3 | AM184: 4 | AN184: 5 | AO184: 6
M185: 1 | Y185: 1 | AI185: 1
M186: 2 | S186: =GAMMAINV(S177,S168/ScaleParameter,ScaleParameter) -> 6.264436014 | U186: =SUM(N186:S186) -> 6.264436014 | Y186: 2 | AE186: =GAMMAINV(S177,AE168/ScaleParameter,ScaleParameter) -> 6.264436014 | AG186: =SUM(Z186:AE186) -> 6.264436014 | AI186: 2 | AO186: =S186-AE186 -> -4.440892099e-14
M187: 3 | R187: =GAMMAINV(R178,R169/ScaleParameter,ScaleParameter) -> 17.16203531 | S187: =GAMMAINV(S178,S169/ScaleParameter,ScaleParameter) -> 2.774148496 | U187: =SUM(N187:S187) -> 19.9361838 | Y187: 3 | AD187: =GAMMAINV(R178,AD169/ScaleParameter,ScaleParameter) -> 17.16203531 | AE187: =GAMMAINV(S178,AE169/ScaleParameter,ScaleParameter) -> 2.774148496 | AG187: =SUM(Z187:AE187) -> 19.9361838 | AI187: 3 | AN187: =R187-AD187 -> 0 | AO187: =S187-AE187 -> -1.998401444e-14
M188: 4 | Q188: =GAMMAINV(Q179,Q170/ScaleParameter,ScaleParameter) -> 41.73869736 | R188: =GAMMAINV(R179,R170/ScaleParameter,ScaleParameter) -> 6.655746025 | S188: =GAMMAINV(S179,S170/ScaleParameter,ScaleParameter) -> 1.697466842 | U188: =SUM(N188:S188) -> 50.09191022 | Y188: 4 | AC188: =GAMMAINV(Q179,AC170/ScaleParameter,ScaleParameter) -> 41.73869736 | AD188: =GAMMAINV(R179,AD170/ScaleParameter,ScaleParameter) -> 6.655746025 | AE188: =GAMMAINV(S179,AE170/ScaleParameter,ScaleParameter) -> 1.697466842 | AG188: =SUM(Z188:AE188) -> 50.09191022 | AI188: 4 | AM188: =Q188-AC188 -> -5.684341886e-14 | AN188: =R188-AD188 -> 1.509903313e-14 | AO188: =S188-AE188 -> -1.265654248e-14
M189: 5 | P189: =GAMMAINV(P180,P171/ScaleParameter,ScaleParameter) -> 33.76385998 | Q189: =GAMMAINV(Q180,Q171/ScaleParameter,ScaleParameter) -> 35.96051218 | R189: =GAMMAINV(R180,R171/ScaleParameter,ScaleParameter) -> 17.73354522 | S189: =GAMMAINV(S180,S171/ScaleParameter,ScaleParameter) -> 9.651921743 | U189: =SUM(N189:S189) -> 97.10983912 | Y189: 5 | AB189: =GAMMAINV(P180,AB171/ScaleParameter,ScaleParameter) -> 33.76385998 | AC189: =GAMMAINV(Q180,AC171/ScaleParameter,ScaleParameter) -> 35.96051218 | AD189: =GAMMAINV(R180,AD171/ScaleParameter,ScaleParameter) -> 17.73354522 | AE189: =GAMMAINV(S180,AE171/ScaleParameter,ScaleParameter) -> 9.651921743 | AG189: =SUM(Z189:AE189) -> 97.10983912 | AI189: 5 | AL189: =P189-AB189 -> -2.98427949e-13 | AM189: =Q189-AC189 -> -1.563194019e-13 | AN189: =R189-AD189 -> 0 | AO189: =S189-AE189 -> -6.039613254e-14
M190: 6 | O190: =GAMMAINV(O181,O172/ScaleParameter,ScaleParameter) -> 33.95188147 | P190: =GAMMAINV(P181,P172/ScaleParameter,ScaleParameter) -> 11.20740287 | Q190: =GAMMAINV(Q181,Q172/ScaleParameter,ScaleParameter) -> 33.95885291 | R190: =GAMMAINV(R181,R172/ScaleParameter,ScaleParameter) -> 11.90756876 | S190: =GAMMAINV(S181,S172/ScaleParameter,ScaleParameter) -> 9.049365826 | U190: =SUM(N190:S190) -> 100.0750718 | Y190: 6 | AA190: =GAMMAINV(O181,AA172/ScaleParameter,ScaleParameter) -> 33.95188147 | AB190: =GAMMAINV(P181,AB172/ScaleParameter,ScaleParameter) -> 11.20740287 | AC190: =GAMMAINV(Q181,AC172/ScaleParameter,ScaleParameter) -> 33.95885291 | AD190: =GAMMAINV(R181,AD172/ScaleParameter,ScaleParameter) -> 11.90756876 | AE190: =GAMMAINV(S181,AE172/ScaleParameter,ScaleParameter) -> 9.049365826 | AG190: =SUM(Z190:AE190) -> 100.0750718 | AI190: 6 | AK190: =O190-AA190 -> 2.486899575e-13 | AL190: =P190-AB190 -> -4.085620731e-14 | AM190: =Q190-AC190 -> 1.207922651e-13 | AN190: =R190-AD190 -> 8.526512829e-14 | AO190: =S190-AE190 -> 4.618527782e-14
U191: =SUM(U186:U190) -> 273.477441 | AG191: =SUM(AG186:AG190) -> 273.477441

Sheet GLM
A1: GLM Estimation of Model Parameters | G1: rho = | H1: =Data!F55 -> 1 | J1: parameters = | K1: =2*6-1 -> 11
A2: Newton-Raphson Interation Sequence -- Iteration 1
B3: y(i) | D3: xb(i) | F3: W(i,i) | AB3: XWX | AN3: zz(i) | AP3: factor | AR3: xwx-1 | BD3: aa1(i,j) | BZ3: aa2(j) | CB3: beta(j) | CD3: beta_diff = | CE3: =SUM(CD5:CD15) -> 0.1742689859 | CF3: beta_old = | CG3: =SUM(CB5:CB15) -> 1.916958845
B4: 1 | D4: 1 | F4: 1 | G4: 2 | H4: 3 | I4: 4 | J4: 5 | K4: 6 | L4: 7 | M4: 8 | N4: 9 | O4: 10 | P4: 11 | Q4: 12 | R4: 13 | S4: 14 | T4: 15 | U4: 16 | V4: 17 | W4: 18 | X4: 19 | Y4: 20 | Z4: 21 | AB4: 1 | AC4: 2 | AD4: 3 | AE4: 4 | AF4: 5 | AG4: 6 | AH4: 7 | AI4: 8 | AJ4: 9 | AK4: 10 | AL4: 11 | AN4: 1 | AR4: 1 | AS4: 2 | AT4: 3 | AU4: 4 | AV4: 5 | AW4: 6 | AX4: 7 | AY4: 8 | AZ4: 9 | BA4: 10 | BB4: 11 | BD4: 1 | BE4: 2 | BF4: 3 | BG4: 4 | BH4: 5 | BI4: 6 | BJ4: 7 | BK4: 8 | BL4: 9 | BM4: 10 | BN4: 11 | BO4: 12 | BP4: 13 | BQ4: 14 | BR4: 15 | BS4: 16 | BT4: 17 | BU4: 18 | BV4: 19 | BW4: 20 | BX4: 21
A5: 1 | B5: =Data!N14 -> 95 | D5: =IF(B5<0,-LN(-B5),LN(B5)) -> 4.553876892 | F5: =IF($A5=F$4,IF($B5<0,-(EXP(-$D5)^(2-$H$1)),IF($B5=0,0,EXP($D5)^(2-$H$1))),0) -> 95 | G5: 0 | H5: 0 | I5: 0 | J5: 0 | K5: 0 | L5: 0 | M5: 0 | N5: 0 | O5: 0 | P5: =IF($A5=P$4,IF($B5<0,-(EXP(-$D5)^(2-$H$1)),IF($B5=0,0,EXP($D5)^(2-$H$1))),0) -> 0 | Q5: 0 | R5: 0 | S5: 0 | T5: 0 | U5: 0 | V5: 0 | W5: 0 | X5: 0 | Y5: 0 | Z5: 0 | AB5: =MMULT(TRANSPOSE(DesignMatrix),MMULT(F5:Z25,DesignMatrix)) -> 1120 | AC5: 210 | AD5: 210 | AE5: 185 | AF5: 170 | AG5: 125 | AH5: 435 | AI5: 195 | AJ5: 105 | AK5: 25 | AL5: 5 | AN5: =IF(B5<0,D5+(B5+EXP(-D5))/-EXP(-D5),IF(B5=0,0,D5+(B5-EXP(D5))/EXP(D5))) -> 4.553876892 | AP5: =OFFSET(AA4,A5,A5) -> 1120 | AR5: =MINVERSE(AB5:AL15) -> 0.006174788893 | AS5: -0.004952511908 | AT5: -0.005010904012 | AU5: -0.005418103687 | AV5: -0.005667600818 | AW5: -0.006174788893 | AX5: -0.002155549318 | AY5: 4.131420232e-06 | AZ5: -0.0009134530261 | BA5: -0.001871789991 | BB5: -0.001238127977 | BD5: =MMULT(AR5:BB15,TRANSPOSE(DesignMatrix)) -> 0.006174788893 | BE5: 0.001222276984 | BF5: 0.001163884881 | BG5: 0.0007566852058 | BH5: 0.0005071880749 | BI5: 0 | BJ5: 0.004019239574 | BK5: -0.000933272334 | BL5: -0.0009916644371 | BM5: -0.001398864112 | BN5: -0.001648361243 | BO5: 0.004023370995 | BP5: -0.0009291409138 | BQ5: -0.0009875330169 | BR5: -0.001394732692 | BS5: 0.003109917969 | BT5: -0.00184259394 | BU5: -0.001900986043 | BV5: 0.001238127977 | BW5: -0.003714383931 | BX5: 2.168404345e-19 | BZ5: =MMULT(F5:Z25,AN5:AN25) -> 432.6183047 | CB5: =MMULT(BD5:BX15,BZ5:BZ25) -> 4.687463064 | CD5: =CB5/$K$1 -> 0.4261330058
A6: 2 | B6: =Data!N15 -> 110 | D6: =IF(B6<0,-LN(-B6),LN(B6)) -> 4.700480366 | F6: 0 | G6: 110 | H6: 0 | I6: 0 | J6: 0 | K6: 0 | L6: 0 | M6: 0 | N6: 0 | O6: 0 | P6: 0 | Q6: 0 | R6: 0 | S6: 0 | T6: 0 | U6: 0 | V6: 0 | W6: 0 | X6: 0 | Y6: 0 | Z6: 0 | AB6: 210 | AC6: 210 | AD6: 0 | AE6: 0 | AF6: 0 | AG6: 0 | AH6: 100 | AI6: 50 | AJ6: 35 | AK6: 5 | AL6: 0 | AN6: =IF(B6<0,D6+(B6+EXP(-D6))/-EXP(-D6),IF(B6=0,0,D6+(B6-EXP(D6))/EXP(D6))) -> 4.700480366 | AP6: =OFFSET(AA4,A6,A6) -> 210 | AR6: -0.004952511908 | AS6: 0.009543504889 | AT6: 0.004819961045 | AU6: 0.004841273281 | AV6: 0.00489671098 | AW6: 0.004952511908 | AX6: 0.000237153945 | AY6: 0.0001721379867 | AZ6: -0.000240584618 | BA6: 0.002397928372 | BB6: 0.002385876222 | BD6: -0.004952511908 | BE6: 0.004590992981 | BF6: -0.0001325508632 | BG6: -0.0001112386272 | BH6: -5.580092824e-05 | BI6: 0 | BJ6: -0.004715357963 | BK6: 0.004828146926 | BL6: 0.0001046030818 | BM6: 0.0001259153178 | BN6: 0.0001813530168 | BO6: -0.004543219977 | BP6: 0.005000284912 | BQ6: 0.0002767410685 | BR6: 0.0002980533045 | BS6: -0.004783804595 | BT6: 0.004759700294 | BU6: 3.615645054e-05 | BV6: -0.002385876222 | BW6: 0.007157628667 | BX6: -1.734723476e-18 | BZ6: 517.0528402 | CB6: -0.01553363365 | CD6: -0.001412148513
A7: 3 | B7: =Data!N16 -> 105 | D7: 4.65396035 | F7: 0 | G7: 0 | H7: 105 | I7: 0 | J7: 0 | K7: 0 | L7: 0 | M7: 0 | N7: 0 | O7: 0 | P7: 0 | Q7: 0 | R7: 0 | S7: 0 | T7: 0 | U7: 0 | V7: 0 | W7: 0 | X7: 0 | Y7: 0 | Z7: 0 | AB7: 210 | AC7: 0 | AD7: 210 | AE7: 0 | AF7: 0 | AG7: 0 | AH7: 105 | AI7: 45 | AJ7: 20 | AK7: 0 | AL7: 0 | AN7: 4.65396035 | AP7: =OFFSET(AA4,A7,A7) -> 210 | AR7: -0.005010904012 | AS7: 0.004819961045 | AT7: 0.00971708786 | AU7: 0.005037046919 | AV7: 0.005009005199 | AW7: 0.005010904012 | AX7: 8.069953177e-06 | AY7: -0.0001786994945 | AZ7: 0.0009447761958 | BA7: 0.003031767096 | BB7: 0.001204990261 | BD7: -0.005010904012 | BE7: -0.0001909429663 | BF7: 0.004706183849 | BG7: 2.614290745e-05 | BH7: -1.898812512e-06 | BI7: 0 | BJ7: -0.005002834058 | BK7: -0.0001828730131 | BL7: 0.004714253802 | BM7: 3.421286063e-05 | BN7: 6.171140665e-06 | BO7: -0.005181533553 | BP7: -0.0003615725076 | BQ7: 0.004535554308 | BR7: -0.0001444866339 | BS7: -0.004236757357 | BT7: 0.0005832036882 | BU7: 0.005480330503 | BV7: -0.001204990261 | BW7: 0.003614970784 | BX7: -2.168404345e-18 | BZ7: 488.6658368 | CB7: 0.03270149907 | CD7: 0.002972863552
A8: 4 | B8: =Data!N17 -> 120 | D8: 4.787491743 | F8: 0 | G8: 0 | H8: 0 | I8: 120 | J8: 0 | K8: 0 | L8: 0 | M8: 0 | N8: 0 | O8: 0 | P8: 0 | Q8: 0 | R8: 0 | S8: 0 | T8: 0 | U8: 0 | V8: 0 | W8: 0 | X8: 0 | Y8: 0 | Z8: 0 | AB8: 185 | AC8: 0 | AD8: 0 | AE8: 185 | AF8: 0 | AG8: 0 | AH8: 65 | AI8: 30 | AJ8: 0 | AK8: 0 | AL8: 0 | AN8: 4.787491743 | AP8: =OFFSET(AA4,A8,A8) -> 185 | AR8: -0.005418103687 | AS8: 0.004841273281 | AT8: 0.005037046919 | AU8: 0.01074990552 | AV8: 0.005251687804 | AW8: 0.005418103687 | AX8: 0.0007072675008 | AY8: -0.001078524235 | AZ8: 0.00271462121 | BA8: 0.00186442089 | BB8: 0.00121031832 | BD8: -0.005418103687 | BE8: -0.0005768304055 | BF8: -0.0003810567678 | BG8: 0.005331801835 | BH8: -0.0001664158825 | BI8: 0 | BJ8: -0.004710836186 | BK8: 0.0001304370953 | BL8: 0.000326210733 | BM8: 0.006039069336 | BN8: 0.0005408516183 | BO8: -0.005789360421 | BP8: -0.0009480871393 | BQ8: -0.0007523135015 | BR8: 0.004960545101 | BS8: -0.00307473921 | BT8: 0.001766534071 | BU8: 0.001962307709 | BV8: -0.00121031832 | BW8: 0.003630954961 | BX8: -1.301042607e-18 | BZ8: 574.4990091 | CB8: 0.0524115239 | CD8: 0.004764683991
A9: 5 | B9: =Data!N18 -> 130 | D9: 4.86753445 | F9: 0 | G9: 0 | H9: 0 | I9: 0 | J9: 130 | K9: 0 | L9: 0 | M9: 0 | N9: 0 | O9: 0 | P9: 0 | Q9: 0 | R9: 0 | S9: 0 | T9: 0 | U9: 0 | V9: 0 | W9: 0 | X9: 0 | Y9: 0 | Z9: 0 | AB9: 170 | AC9: 0 | AD9: 0 | AE9: 0 | AF9: 170 | AG9: 0 | AH9: 40 | AI9: 0 | AJ9: 0 | AK9: 0 | AL9: 0 | AN9: 4.86753445 | AP9: =OFFSET(AA4,A9,A9) -> 170 | AR9: -0.005667600818 | AS9: 0.00489671098 | AT9: 0.005009005199 | AU9: 0.005251687804 | AV9: 0.01137746283 | AW9: 0.005667600818 | AX9: 0.0007330864542 | AY9: 0.0009764429323 | AZ9: 0.0008695535139 | BA9: 0.001864340172 | BB9: 0.001224177745 | BD9: -0.005667600818 | BE9: -0.0007708898376 | BF9: -0.0006585956187 | BG9: -0.0004159130135 | BH9: 0.005709862011 | BI9: 0 | BJ9: -0.004934514364 | BK9: -3.780338331e-05 | BL9: 7.449083554e-05 | BM9: 0.0003171734408 | BN9: 0.006442948465 | BO9: -0.003958071431 | BP9: 0.000938639549 | BQ9: 0.001050933768 | BR9: 0.001293616373 | BS9: -0.003088517917 | BT9: 0.001808193063 | BU9: 0.001920487282 | BV9: -0.001224177745 | BW9: 0.003672533235 | BX9: -2.602085214e-18 | BZ9: 632.7794786 | CB9: 0.09709087008 | CD9: 0.008826442735
A10: 6 | B10: =Data!N19 -> 125 | D10: 4.828313737 | F10: 0 | G10: 0 | H10: 0 | I10: 0 | J10: 0 | K10: 125 | L10: 0 | M10: 0 | N10: 0 | O10: 0 | P10: 0 | Q10: 0 | R10: 0 | S10: 0 | T10: 0 | U10: 0 | V10: 0 | W10: 0 | X10: 0 | Y10: 0 | Z10: 0 | AB10: 125 | AC10: 0 | AD10: 0 | AE10: 0 | AF10: 0 | AG10: 125 | AH10: 0 | AI10: 0 | AJ10: 0 | AK10: 0 | AL10: 0 | AN10: 4.828313737 | AP10: =OFFSET(AA4,A10,A10) -> 125 | AR10: -0.006174788893 | AS10: 0.004952511908 | AT10: 0.005010904012 | AU10: 0.005418103687 | AV10: 0.005667600818 | AW10: 0.01417478889 | AX10: 0.002155549318 | AY10: -4.131420232e-06 | AZ10: 0.0009134530261 | BA10: 0.001871789991 | BB10: 0.001238127977 | BD10: -0.006174788893 | BE10: -0.001222276984 | BF10: -0.001163884881 | BG10: -0.0007566852058 | BH10: -0.0005071880749 | BI10: 0.008 | BJ10: -0.004019239574 | BK10: 0.000933272334 | BL10: 0.0009916644371 | BM10: 0.001398864112 | BN10: 0.001648361243 | BO10: -0.004023370995 | BP10: 0.0009291409138 | BQ10: 0.0009875330169 | BR10: 0.001394732692 | BS10: -0.003109917969 | BT10: 0.00184259394 | BU10: 0.001900986043 | BV10: -0.001238127977 | BW10: 0.003714383931 | BX10: -1.517883041e-18 | BZ10: 603.5392172 | CB10: 0.1408506735 | CD10: 0.01280460668
A11: 7 | B11: =Data!O14 -> 55 | D11: 4.007333185 | F11: 0 | G11: 0 | H11: 0 | I11: 0 | J11: 0 | K11: 0 | L11: 55 | M11: 0 | N11: 0 | O11: 0 | P11: 0 | Q11: 0 | R11: 0 | S11: 0 | T11: 0 | U11: 0 | V11: 0 | W11: 0 | X11: 0 | Y11: 0 | Z11: 0 | AB11: 435 | AC11: 100 | AD11: 105 | AE11: 65 | AF11: 40 | AG11: 0 | AH11: 435 | AI11: 195 | AJ11: 105 | AK11: 25 | AL11: 5 | AN11: 4.007333185 | AP11: =OFFSET(AA4,A11,A11) -> 435 | AR11: -0.002155549318 | AS11: 0.000237153945 | AT11: 8.069953177e-06 | AU11: 0.0007072675008 | AV11: 0.0007330864542 | AW11: 0.002155549318 | AX11: 0.006045467172 | AY11: -0.004167440998 | AZ11: 0.0001865729271 | BA11: 3.166173142e-05 | BB11: 5.928848626e-05 | BD11: -0.002155549318 | BE11: -0.001918395373 | BF11: -0.002147479365 | BG11: -0.001448281817 | BH11: -0.001422462864 | BI11: 4.33680869e-19 | BJ11: 0.003889917854 | BK11: 0.004127071799 | BL11: 0.003897987807 | BM11: 0.004597185354 | BN11: 0.004623004308 | BO11: -0.0002775231448 | BP11: -4.036919975e-05 | BQ11: -0.0002694531916 | BR11: 0.000429744356 | BS11: -9.095021768e-05 | BT11: 0.0001462037273 | BU11: -8.28802645e-05 | BV11: -5.928848626e-05 | BW11: 0.0001778654588 | BX11: 2.371692252e-18 | BZ11: 220.4033252 | CB11: -0.8259878008 | CD11: -0.07508980008
A12: 8 | B12: =Data!O15 -> 50 | D12: 3.912023005 | F12: 0 | G12: 0 | H12: 0 | I12: 0 | J12: 0 | K12: 0 | L12: 0 | M12: 50 | N12: 0 | O12: 0 | P12: 0 | Q12: 0 | R12: 0 | S12: 0 | T12: 0 | U12: 0 | V12: 0 | W12: 0 | X12: 0 | Y12: 0 | Z12: 0 | AB12: 195 | AC12: 50 | AD12: 45 | AE12: 30 | AF12: 0 | AG12: 0 | AH12: 195 | AI12: 195 | AJ12: 105 | AK12: 25 | AL12: 5 | AN12: 3.912023005 | AP12: =OFFSET(AA4,A12,A12) -> 195 | AR12: 4.131420232e-06 | AS12: 0.0001721379867 | AT12: -0.0001786994945 | AU12: -0.001078524235 | AV12: 0.0009764429323 | AW12: -4.131420232e-06 | AX12: -0.004167440998 | AY12: 0.01565487785 | AZ12: -0.01151144514 | BA12: -2.315762529e-05 | BB12: 4.303449667e-05 | BD12: 4.131420232e-06 | BE12: 0.0001762694069 | BF12: -0.0001745680743 | BG12: -0.001074392814 | BH12: 0.0009805743526 | BI12: -2.532628512e-19 | BJ12: -0.004163309578 | BK12: -0.003991171591 | BL12: -0.004342009073 | BM12: -0.005241833813 | BN12: -0.003186866646 | BO12: 0.01149156827 | BP12: 0.01166370626 | BQ12: 0.01131286878 | BR12: 0.01041304404 | BS12: -1.987687139e-05 | BT12: 0.0001522611153 | BU12: -0.0001985763659 | BV12: -4.303449667e-05 | BW12: 0.00012910349 | BX12: -7.128629284e-18 | BZ12: 195.6011503 | CB12: -0.7405159644 | CD12: -0.06731963313
A13: 9 | B13: =Data!O16 -> 60 | D13: 4.094344562 | F13: 0 | G13: 0 | H13: 0 | I13: 0 | J13: 0 | K13: 0 | L13: 0 | M13: 0 | N13: 60 | O13: 0 | P13: 0 | Q13: 0 | R13: 0 | S13: 0 | T13: 0 | U13: 0 | V13: 0 | W13: 0 | X13: 0 | Y13: 0 | Z13: 0 | AB13: 105 | AC13: 35 | AD13: 20 | AE13: 0 | AF13: 0 | AG13: 0 | AH13: 105 | AI13: 105 | AJ13: 105 | AK13: 25 | AL13: 5 | AN13: 4.094344562 | AP13: =OFFSET(AA4,A13,A13) -> 105 | AR13: -0.0009134530261 | AS13: -0.000240584618 | AT13: 0.0009447761958 | AU13: 0.00271462121 | AV13: 0.0008695535139 | AW13: 0.0009134530261 | AX13: 0.0001865729271 | AY13: -0.01151144514 | AZ13: 0.02459235043 | BA13: -0.01229387903 | BB13: -6.01461545e-05 | BD13: -0.0009134530261 | BE13: -0.001154037644 | BF13: 3.13231697e-05 | BG13: 0.001801168184 | BH13: -4.389951226e-05 | BI13: 0 | BJ13: -0.000726880099 | BK13: -0.000967464717 | BL13: 0.0002178960968 | BM13: 0.001987741111 | BN13: 0.0001426734148 | BO13: -0.01223832524 | BP13: -0.01247890986 | BQ13: -0.01129354905 | BR13: -0.009523704033 | BS13: 0.01235402518 | BT13: 0.01211344056 | BU13: 0.01329880138 | BV13: 6.01461545e-05 | BW13: -0.0001804384635 | BX13: 3.232277727e-18 | BZ13: 245.6606737 | CB13: 0.1765215439 | CD13: 0.01604741308
A14: 10 | B14: =Data!O17 -> 35 | D14: 3.555348061 | F14: 0 | G14: 0 | H14: 0 | I14: 0 | J14: 0 | K14: 0 | L14: 0 | M14: 0 | N14: 0 | O14: 35 | P14: 0 | Q14: 0 | R14: 0 | S14: 0 | T14: 0 | U14: 0 | V14: 0 | W14: 0 | X14: 0 | Y14: 0 | Z14: 0 | AB14: 25 | AC14: 5 | AD14: 0 | AE14: 0 | AF14: 0 | AG14: 0 | AH14: 25 | AI14: 25 | AJ14: 25 | AK14: 25 | AL14: 5 | AN14: 3.555348061 | AP14: =OFFSET(AA4,A14,A14) -> 25 | AR14: -0.001871789991 | AS14: 0.002397928372 | AT14: 0.003031767096 | AU14: 0.00186442089 | AV14: 0.001864340172 | AW14: 0.001871789991 | AX14: 3.166173142e-05 | AY14: -2.315762529e-05 | AZ14: -0.01229387903 | BA14: 0.06355768282 | BB14: -0.04940051791 | BD14: -0.001871789991 | BE14: 0.000526138381 | BF14: 0.001159977104 | BG14: -7.369101534e-06 | BH14: -7.449819158e-06 | BI14: 0 | BJ14: -0.00184012826 | BK14: 0.0005578001124 | BL14: 0.001191638836 | BM14: 2.429262989e-05 | BN14: 2.421191226e-05 | BO14: -0.001863285885 | BP14: 0.0005346424871 | BQ14: 0.00116848121 | BR14: 1.135004602e-06 | BS14: -0.01415716491 | BT14: -0.01175923654 | BU14: -0.01112539782 | BV14: 0.04940051791 | BW14: 0.05179844628 | BX14: 1.387778781e-17 | BZ14: 124.4371822 | CB14: -0.8602003051 | CD14: -0.07820002774
A15: 11 | B15: =Data!O18 -> 40 | D15: 3.688879454 | F15: =IF($A15=F$4,IF($B15<0,-(EXP(-$D15)^(2-$H$1)),IF($B15=0,0,EXP($D15)^(2-$H$1))),0) -> 0 | G15: 0 | H15: 0 | I15: 0 | J15: 0 | K15: 0 | L15: 0 | M15: 0 | N15: 0 | O15: 0 | P15: =IF($A15=P$4,IF($B15<0,-(EXP(-$D15)^(2-$H$1)),IF($B15=0,0,EXP($D15)^(2-$H$1))),0) -> 40 | Q15: 0 | R15: 0 | S15: 0 | T15: 0 | U15: 0 | V15: 0 | W15: 0 | X15: 0 | Y15: 0 | Z15: 0 | AB15: 5 | AC15: 0 | AD15: 0 | AE15: 0 | AF15: 0 | AG15: 0 | AH15: 5 | AI15: 5 | AJ15: 5 | AK15: 5 | AL15: 5 | AN15: 3.688879454 | AP15: =OFFSET(AA4,A15,A15) -> 5 | AR15: -0.001238127977 | AS15: 0.002385876222 | AT15: 0.001204990261 | AU15: 0.00121031832 | AV15: 0.001224177745 | AW15: 0.001238127977 | AX15: 5.928848626e-05 | AY15: 4.303449667e-05 | AZ15: -6.01461545e-05 | BA15: -0.04940051791 | BB15: 0.2505964691 | BD15: -0.001238127977 | BE15: 0.001147748245 | BF15: -3.31377158e-05 | BG15: -2.780965679e-05 | BH15: -1.395023206e-05 | BI15: -4.33680869e-19 | BJ15: -0.001178839491 | BK15: 0.001207036731 | BL15: 2.615077046e-05 | BM15: 3.147882946e-05 | BN15: 4.53382542e-05 | BO15: -0.001135804994 | BP15: 0.001250071228 | BQ15: 6.918526713e-05 | BR15: 7.451332614e-05 | BS15: -0.001195951149 | BT15: 0.001189925074 | BU15: 9.039112636e-06 | BV15: -0.05059646906 | BW15: -0.04821059283 | BX15: 0.2 | BZ15: 147.5551782 | CB15: -0.8278426249 | CD15: -0.07525842045
A16: 12 | B16: =Data!P14 -> 20 | D16: 2.995732274 | F16: 0 | G16: 0 | H16: 0 | I16: 0 | J16: 0 | K16: 0 | L16: 0 | M16: 0 | N16: 0 | O16: 0 | P16: 0 | Q16: 20 | R16: 0 | S16: 0 | T16: 0 | U16: 0 | V16: 0 | W16: 0 | X16: 0 | Y16: 0 | Z16: 0 | AN16: 2.995732274 | BZ16: 59.91464547
A17: 13 | B17: =Data!P15 -> 15 | D17: 2.708050201 | F17: 0 | G17: 0 | H17: 0 | I17: 0 | J17: 0 | K17: 0 | L17: 0 | M17: 0 | N17: 0 | O17: 0 | P17: 0 | Q17: 0 | R17: 15 | S17: 0 | T17: 0 | U17: 0 | V17: 0 | W17: 0 | X17: 0 | Y17: 0 | Z17: 0 | AN17: 2.708050201 | BZ17: 40.62075302
A18: 14 | B18: =Data!P16 -> 25 | D18: 3.218875825 | F18: 0 | G18: 0 | H18: 0 | I18: 0 | J18: 0 | K18: 0 | L18: 0 | M18: 0 | N18: 0 | O18: 0 | P18: 0 | Q18: 0 | R18: 0 | S18: 25 | T18: 0 | U18: 0 | V18: 0 | W18: 0 | X18: 0 | Y18: 0 | Z18: 0 | AN18: 3.218875825 | BZ18: 80.47189562
A19: 15 | B19: =Data!P17 -> 30 | D19: 3.401197382 | F19: 0 | G19: 0 | H19: 0 | I19: 0 | J19: 0 | K19: 0 | L19: 0 | M19: 0 | N19: 0 | O19: 0 | P19: 0 | Q19: 0 | R19: 0 | S19: 0 | T19: 30 | U19: 0 | V19: 0 | W19: 0 | X19: 0 | Y19: 0 | Z19: 0 | AN19: 3.401197382 | BZ19: 102.0359214
A20: 16 | B20: =Data!Q14 -> 30 | D20: 3.401197382 | F20: 0 | G20: 0 | H20: 0 | I20: 0 | J20: 0 | K20: 0 | L20: 0 | M20: 0 | N20: 0 | O20: 0 | P20: 0 | Q20: 0 | R20: 0 | S20: 0 | T20: 0 | U20: 30 | V20: 0 | W20: 0 | X20: 0 | Y20: 0 | Z20: 0 | AN20: 3.401197382 | BZ20: 102.0359214
A21: 17 | B21: =Data!Q15 -> 30 | D21: 3.401197382 | F21: 0 | G21: 0 | H21: 0 | I21: 0 | J21: 0 | K21: 0 | L21: 0 | M21: 0 | N21: 0 | O21: 0 | P21: 0 | Q21: 0 | R21: 0 | S21: 0 | T21: 0 | U21: 0 | V21: 30 | W21: 0 | X21: 0 | Y21: 0 | Z21: 0 | AN21: 3.401197382 | BZ21: 102.0359214
A22: 18 | B22: =Data!Q16 -> 20 | D22: 2.995732274 | F22: 0 | G22: 0 | H22: 0 | I22: 0 | J22: 0 | K22: 0 | L22: 0 | M22: 0 | N22: 0 | O22: 0 | P22: 0 | Q22: 0 | R22: 0 | S22: 0 | T22: 0 | U22: 0 | V22: 0 | W22: 20 | X22: 0 | Y22: 0 | Z22: 0 | AN22: 2.995732274 | BZ22: 59.91464547
A23: 19 | B23: =Data!R14 -> 15 | D23: 2.708050201 | F23: 0 | G23: 0 | H23: 0 | I23: 0 | J23: 0 | K23: 0 | L23: 0 | M23: 0 | N23: 0 | O23: 0 | P23: 0 | Q23: 0 | R23: 0 | S23: 0 | T23: 0 | U23: 0 | V23: 0 | W23: 0 | X23: 15 | Y23: 0 | Z23: 0 | AN23: 2.708050201 | BZ23: 40.62075302
A24: 20 | B24: =Data!R15 -> 5 | D24: 1.609437912 | F24: 0 | G24: 0 | H24: 0 | I24: 0 | J24: 0 | K24: 0 | L24: 0 | M24: 0 | N24: 0 | O24: 0 | P24: 0 | Q24: 0 | R24: 0 | S24: 0 | T24: 0 | U24: 0 | V24: 0 | W24: 0 | X24: 0 | Y24: 5 | Z24: 0 | AN24: 1.609437912 | BZ24: 8.047189562
A25: 21 | B25: =Data!S14 -> 5 | D25: 1.609437912 | F25: 0 | G25: 0 | H25: 0 | I25: 0 | J25: 0 | K25: 0 | L25: 0 | M25: 0 | N25: 0 | O25: 0 | P25: 0 | Q25: 0 | R25: 0 | S25: 0 | T25: 0 | U25: 0 | V25: 0 | W25: 0 | X25: 0 | Y25: 0 | Z25: 5 | AN25: 1.609437912 | BZ25: 8.047189562
A27: Newton-Raphson Interation Sequence -- Iteration 2
B28: y(i) | D28: xb(i) | F28: W(i,i) | AB28: XWX | AN28: zz(i) | AP28: factor | AR28: xwx-1 | BD28: aa1(i,j) | BZ28: aa2(j) | CB28: beta(j) | CD28: beta_diff = | CE28: =SUM(CD30:CD40) -> -0.04681293292 | CF28: beta_old = | CG28: =SUM(CB30:CB40) -> 1.870145912
B29: 1 | D29: 1 | F29: 1 | G29: 2 | H29: 3 | I29: 4 | J29: 5 | K29: 6 | L29: 7 | M29: 8 | N29: 9 | O29: 10 | P29: 11 | Q29: 12 | R29: 13 | S29: 14 | T29: 15 | U29: 16 | V29: 17 | W29: 18 | X29: 19 | Y29: 20 | Z29: 21 | AB29: 1 | AC29: 2 | AD29: 3 | AE29: 4 | AF29: 5 | AG29: 6 | AH29: 7 | AI29: 8 | AJ29: 9 | AK29: 10 | AL29: 11 | AN29: 1 | AR29: 1 | AS29: 2 | AT29: 3 | AU29: 4 | AV29: 5 | AW29: 6 | AX29: 7 | AY29: 8 | AZ29: 9 | BA29: 10 | BB29: 11 | BD29: 1 | BE29: 2 | BF29: 3 | BG29: 4 | BH29: 5 | BI29: 6 | BJ29: 7 | BK29: 8 | BL29: 9 | BM29: 10 | BN29: 11 | BO29: 12 | BP29: 13 | BQ29: 14 | BR29: 15 | BS29: 16 | BT29: 17 | BU29: 18 | BV29: 19 | BW29: 20 | BX29: 21
A30: 1 | B30: =B5 -> 95 | D30: =MMULT(DesignMatrix,CB5:CB15) -> 4.687463064 | F30: =IF($A30=F$4,IF($B30<0,-(EXP(-$D30)^(2-$H$1)),IF($B30=0,0,EXP($D30)^(2-$H$1))),0) -> 108.5773762 | G30: 0 | H30: 0 | I30: 0 | J30: 0 | K30: 0 | L30: 0 | M30: 0 | N30: 0 | O30: 0 | P30: =IF($A30=P$4,IF($B30<0,-(EXP(-$D30)^(2-$H$1)),IF($B30=0,0,EXP($D30)^(2-$H$1))),0) -> 0 | Q30: 0 | R30: 0 | S30: 0 | T30: 0 | U30: 0 | V30: 0 | W30: 0 | X30: 0 | Y30: 0 | Z30: 0 | AB30: =MMULT(TRANSPOSE(DesignMatrix),MMULT(F30:Z50,DesignMatrix)) -> 1134.28412 | AC30: 213.9183523 | AD30: 212.667402 | AE30: 188.4009977 | AF30: 172.0301433 | AG30: 125 | AH30: 447.5483921 | AI30: 201.6191889 | AJ30: 109.3228366 | AK30: 27.70740454 | AL30: 5 | AN30: =IF(B30<0,D30+(B30+EXP(-D30))/-EXP(-D30),IF(B30=0,0,D30+(B30-EXP(D30))/EXP(D30))) -> 4.562415133 | AP30: =OFFSET(AA29,A30,A30) -> 1134.28412 | AR30: =MINVERSE(AB30:AL40) -> 0.005716620697 | AS30: -0.004602627032 | AT30: -0.004731551224 | AU30: -0.004975087228 | AV30: -0.005174561359 | AW30: -0.005716620697 | AX30: -0.001780196543 | AY30: -0.0003350932406 | AZ30: -0.0004797082499 | BA30: -0.0008381826687 | BB30: -0.002283439995 | BD30: =MMULT(AR30:BB40,TRANSPOSE(DesignMatrix)) -> 0.005716620697 | BE30: 0.001113993665 | BF30: 0.0009850694727 | BG30: 0.0007415334684 | BH30: 0.0005420593375 | BI30: -8.67361738e-19 | BJ30: 0.003936424154 | BK30: -0.0006662028779 | BL30: -0.0007951270698 | BM30: -0.001038663074 | BN30: -0.001238137205 | BO30: 0.003601330914 | BP30: -0.001001296119 | BQ30: -0.00113022031 | BR30: -0.001373756315 | BS30: 0.003121622664 | BT30: -0.001481004369 | BU30: -0.00160992856 | BV30: 0.002283439995 | BW30: -0.002319187037 | BX30: 2.168404345e-18 | BZ30: =MMULT(F30:Z50,AN30:AN50) -> 495.3750644 | CB30: =MMULT(BD30:BX40,BZ30:BZ50) -> 4.692786844 | CD30: =CB30-CG3/$K$1 -> 4.518517858
A31: 2 | B31: =B6 -> 110 | D31: 4.67192943 | F31: 0 | G31: 106.903807 | H31: 0 | I31: 0 | J31: 0 | K31: 0 | L31: 0 | M31: 0 | N31: 0 | O31: 0 | P31: 0 | Q31: 0 | R31: 0 | S31: 0 | T31: 0 | U31: 0 | V31: 0 | W31: 0 | X31: 0 | Y31: 0 | Z31: 0 | AB31: 213.9183523 | AC31: 213.9183523 | AD31: 0 | AE31: 0 | AF31: 0 | AG31: 0 | AH31: 107.0145453 | AI31: 60.21181086 | AJ31: 37.89309361 | AK31: 11.26552192 | AL31: 0 | AN31: =IF(B31<0,D31+(B31+EXP(-D31))/-EXP(-D31),IF(B31=0,0,D31+(B31-EXP(D31))/EXP(D31))) -> 4.700891851 | AP31: =OFFSET(AA29,A31,A31) -> 213.9183523 | AR31: -0.004602627032 | AS31: 0.009277307766 | AT31: 0.004602627032 | AU31: 0.004602627032 | AV31: 0.004602627032 | AW31: 0.004602627032 | AX31: 8.6180223e-19 | AY31: 2.826441408e-18 | AZ31: -3.001064014e-18 | BA31: 1.838914042e-18 | BB31: 0.004602627032 | BD31: -0.004602627032 | BE31: 0.004674680733 | BF31: 0 | BG31: -8.67361738e-19 | BH31: 8.67361738e-19 | BI31: 8.67361738e-19 | BJ31: -0.004602627032 | BK31: 0.004674680733 | BL31: 8.6180223e-19 | BM31: -5.559508034e-21 | BN31: 1.729163968e-18 | BO31: -0.004602627032 | BP31: 0.004674680733 | BQ31: 3.688243638e-18 | BR31: 2.8208819e-18 | BS31: -0.004602627032 | BT31: 0.004674680733 | BU31: 6.871796239e-19 | BV31: -0.004602627032 | BW31: 0.004674680733 | BX31: 8.67361738e-19 | BZ31: 502.5432351 | CB31: -0.02341549156 | CD31: =CB31-CG3/$K$1 -> -0.1976844775
A32: 3 | B32: 105 | D32: 4.720164563 | F32: 0 | G32: 0 | H32: 112.1867129 | I32: 0 | J32: 0 | K32: 0 | L32: 0 | M32: 0 | N32: 0 | O32: 0 | P32: 0 | Q32: 0 | R32: 0 | S32: 0 | T32: 0 | U32: 0 | V32: 0 | W32: 0 | X32: 0 | Y32: 0 | Z32: 0 | AB32: 212.667402 | AC32: 0 | AD32: 212.667402 | AE32: 0 | AF32: 0 | AG32: 0 | AH32: 100.4806891 | AI32: 51.36508624 | AJ32: 27.94343649 | AK32: 0 | AL32: 0 | AN32: 4.656104277 | AP32: =OFFSET(AA29,A32,A32) -> 212.667402 | AR32: -0.004731551224 | AS32: 0.004602627032 | AT32: 0.009433729322 | AU32: 0.004731551224 | AV32: 0.004731551224 | AW32: 0.004731551224 | AX32: 4.507429251e-19 | AY32: 2.831255813e-18 | AZ32: -3.516051227e-18 | BA32: 0.002448111229 | BB32: 0.002283439995 | BD32: -0.004731551224 | BE32: -0.0001289241919 | BF32: 0.004702178098 | BG32: 0 | BH32: 8.67361738e-19 | BI32: 1.734723476e-18 | BJ32: -0.004731551224 | BK32: -0.0001289241919 | BL32: 0.004702178098 | BM32: 4.507429251e-19 | BN32: 1.318104663e-18 | BO32: -0.004731551224 | BP32: -0.0001289241919 | BQ32: 0.004702178098 | BR32: 3.281998738e-18 | BS32: -0.004731551224 | BT32: -0.0001289241919 | BU32: 0.004702178098 | BV32: -0.002283439995 | BW32: 0.002319187037 | BX32: 0 | BZ32: 522.3530338 | CB32: 0.02476353072 | CD32: =CB32-CG3/$K$1 -> -0.1495054552
A33: 4 | B33: 120 | D33: 4.739874588 | F33: 0 | G33: 0 | H33: 0 | I33: 114.4198511 | J33: 0 | K33: 0 | L33: 0 | M33: 0 | N33: 0 | O33: 0 | P33: 0 | Q33: 0 | R33: 0 | S33: 0 | T33: 0 | U33: 0 | V33: 0 | W33: 0 | X33: 0 | Y33: 0 | Z33: 0 | AB33: 188.4009977 | AC33: 0 | AD33: 0 | AE33: 188.4009977 | AF33: 0 | AG33: 0 | AH33: 73.98114653 | AI33: 23.88787057 | AJ33: 0 | AK33: 0 | AL33: 0 | AN33: 4.78864365 | AP33: =OFFSET(AA29,A33,A33) -> 188.4009977 | AR33: -0.004975087228 | AS33: 0.004602627032 | AT33: 0.004731551224 | AU33: 0.01028291475 | AV33: 0.004975087228 | AW33: 0.004975087228 | AX33: 1.245012587e-20 | AY33: 4.057229331e-18 | AZ33: 0.001853464565 | BA33: 0.0008381826687 | BB33: 0.002283439995 | BD33: -0.004975087228 | BE33: -0.0003724601963 | BF33: -0.0002435360044 | BG33: 0.005307827519 | BH33: 0 | BI33: 8.67361738e-19 | BJ33: -0.004975087228 | BK33: -0.0003724601963 | BL33: -0.0002435360044 | BM33: 0.005307827519 | BN33: 1.245012587e-20 | BO33: -0.004975087228 | BP33: -0.0003724601963 | BQ33: -0.0002435360044 | BR33: 0.005307827519 | BS33: -0.003121622664 | BT33: 0.001481004369 | BU33: 0.00160992856 | BV33: -0.002283439995 | BW33: 0.002319187037 | BX33: -4.33680869e-19 | BZ33: 547.9158935 | CB33: 0.03746676854 | CD33: =CB33-CG3/$K$1 -> -0.1368022174
A34: 5 | B34: 130 | D34: 4.784553934 | F34: 0 | G34: 0 | H34: 0 | I34: 0 | J34: 119.6479803 | K34: 0 | L34: 0 | M34: 0 | N34: 0 | O34: 0 | P34: 0 | Q34: 0 | R34: 0 | S34: 0 | T34: 0 | U34: 0 | V34: 0 | W34: 0 | X34: 0 | Y34: 0 | Z34: 0 | AB34: 172.0301433 | AC34: 0 | AD34: 0 | AE34: 0 | AF34: 172.0301433 | AG34: 0 | AH34: 52.38216302 | AI34: 0 | AJ34: 0 | AK34: 0 | AL34: 0 | AN34: 4.871074573 | AP34: =OFFSET(AA29,A34,A34) -> 172.0301433 | AR34: -0.005174561359 | AS34: 0.004602627032 | AT34: 0.004731551224 | AU34: 0.004975087228 | AV34: 0.01098749612 | AW34: 0.005174561359 | AX34: 8.892782129e-19 | AY34: 0.001573230446 | AZ34: 0.0004797082499 | BA34: 0.0008381826687 | BB34: 0.002283439995 | BD34: -0.005174561359 | BE34: -0.0005719343271 | BF34: -0.0004430101352 | BG34: -0.0001994741309 | BH34: 0.005812934762 | BI34: 8.67361738e-19 | BJ34: -0.005174561359 | BK34: -0.0005719343271 | BL34: -0.0004430101352 | BM34: -0.0001994741309 | BN34: 0.005812934762 | BO34: -0.003601330914 | BP34: 0.001001296119 | BQ34: 0.00113022031 | BR34: 0.001373756315 | BS34: -0.003121622664 | BT34: 0.001481004369 | BU34: 0.00160992856 | BV34: -0.002283439995 | BW34: 0.002319187037 | BX34: 4.33680869e-19 | BZ34: 582.8142344 | CB34: 0.08636629908 | CD34: =CB34-CG3/$K$1 -> -0.08790268686
A35: 6 | B35: 125 | D35: 4.828313737 | F35: 0 | G35: 0 | H35: 0 | I35: 0 | J35: 0 | K35: 125 | L35: 0 | M35: 0 | N35: 0 | O35: 0 | P35: 0 | Q35: 0 | R35: 0 | S35: 0 | T35: 0 | U35: 0 | V35: 0 | W35: 0 | X35: 0 | Y35: 0 | Z35: 0 | AB35: 125 | AC35: 0 | AD35: 0 | AE35: 0 | AF35: 0 | AG35: 125 | AH35: 0 | AI35: 0 | AJ35: 0 | AK35: 0 | AL35: 0 | AN35: 4.828313737 | AP35: =OFFSET(AA29,A35,A35) -> 125 | AR35: -0.005716620697 | AS35: 0.004602627032 | AT35: 0.004731551224 | AU35: 0.004975087228 | AV35: 0.005174561359 | AW35: 0.0137166207 | AX35: 0.001780196543 | AY35: 0.0003350932406 | AZ35: 0.0004797082499 | BA35: 0.0008381826687 | BB35: 0.002283439995 | BD35: -0.005716620697 | BE35: -0.001113993665 | BF35: -0.0009850694727 | BG35: -0.0007415334684 | BH35: -0.0005420593375 | BI35: 0.008 | BJ35: -0.003936424154 | BK35: 0.0006662028779 | BL35: 0.0007951270698 | BM35: 0.001038663074 | BN35: 0.001238137205 | BO35: -0.003601330914 | BP35: 0.001001296119 | BQ35: 0.00113022031 | BR35: 0.001373756315 | BS35: -0.003121622664 | BT35: 0.001481004369 | BU35: 0.00160992856 | BV35: -0.002283439995 | BW35: 0.002319187037 | BX35: 8.67361738e-19 | BZ35: 603.5392172 | CB35: 0.1355268932 | CD35: =CB35-CG3/$K$1 -> -0.03874209273
A36: 7 | B36: 55 | D36: 3.861475263 | F36: 0 | G36: 0 | H36: 0 | I36: 0 | J36: 0 | K36: 0 | L36: 47.53542692 | M36: 0 | N36: 0 | O36: 0 | P36: 0 | Q36: 0 | R36: 0 | S36: 0 | T36: 0 | U36: 0 | V36: 0 | W36: 0 | X36: 0 | Y36: 0 | Z36: 0 | AB36: 447.5483921 | AC36: 107.0145453 | AD36: 100.4806891 | AE36: 73.98114653 | AF36: 52.38216302 | AG36: 0 | AH36: 447.5483921 | AI36: 201.6191889 | AJ36: 109.3228366 | AK36: 27.70740454 | AL36: 5 | AN36: 4.018507051 | AP36: =OFFSET(AA29,A36,A36) -> 447.5483921 | AR36: -0.001780196543 | AS36: 9.265728012e-19 | AT36: 4.13394019e-19 | AU36: 5.630711638e-19 | AV36: 4.419039514e-19 | AW36: 0.001780196543 | AX36: 0.005846407415 | AY36: -0.004066210872 | AZ36: 6.156274642e-19 | BA36: -1.083377429e-18 | BB36: 4.561589175e-19 | BD36: -0.001780196543 | BE36: -0.001780196543 | BF36: -0.001780196543 | BG36: -0.001780196543 | BH36: -0.001780196543 | BI36: 4.33680869e-19 | BJ36: 0.004066210872 | BK36: 0.004066210872 | BL36: 0.004066210872 | BM36: 0.004066210872 | BN36: 0.004066210872 | BO36: -8.67361738e-19 | BP36: 0 | BQ36: 0 | BR36: 0 | BS36: -2.517342738e-19 | BT36: 6.156274642e-19 | BU36: 6.156274642e-19 | BV36: -1.335111703e-18 | BW36: -4.677499649e-19 | BX36: -8.789527854e-19 | BZ36: 191.0214482 | CB36: -0.8470072553 | CD36: =CB36-CG3/$K$1 -> -1.021276241
A37: 8 | B37: 50 | D37: 3.845941629 | F37: 0 | G37: 0 | H37: 0 | I37: 0 | J37: 0 | K37: 0 | L37: 0 | M37: 46.80273443 | N37: 0 | O37: 0 | P37: 0 | Q37: 0 | R37: 0 | S37: 0 | T37: 0 | U37: 0 | V37: 0 | W37: 0 | X37: 0 | Y37: 0 | Z37: 0 | AB37: 201.6191889 | AC37: 60.21181086 | AD37: 51.36508624 | AE37: 23.88787057 | AF37: 0 | AG37: 0 | AH37: 201.6191889 | AI37: 201.6191889 | AJ37: 109.3228366 | AK37: 27.70740454 | AL37: 5 | AN37: 3.914255278 | AP37: =OFFSET(AA29,A37,A37) -> 201.6191889 | AR37: -0.0003350932406 | AS37: 2.607918694e-18 | AT37: 3.01231115e-18 | AU37: 3.507485585e-18 | AV37: 0.001573230446 | AW37: 0.0003350932406 | AX37: -0.004066210872 | AY37: 0.01523596849 | AZ37: -0.01083466438 | BA37: 5.281860646e-18 | BB37: 0 | BD37: -0.0003350932406 | BE37: -0.0003350932406 | BF37: -0.0003350932406 | BG37: -0.0003350932406 | BH37: 0.001238137205 | BI37: -4.878909776e-19 | BJ37: -0.004401304113 | BK37: -0.004401304113 | BL37: -0.004401304113 | BM37: -0.004401304113 | BN37: -0.002828073667 | BO37: 0.01083466438 | BP37: 0.01083466438 | BQ37: 0.01083466438 | BR37: 0.01083466438 | BS37: -3.469446952e-18 | BT37: -1.734723476e-18 | BU37: 0 | BV37: 1.812413694e-18 | BW37: 3.54713717e-18 | BX37: 1.812413694e-18 | BZ37: 183.1978503 | CB37: -0.7419121967 | CD37: =CB37-CG3/$K$1 -> -0.9161811826
A38: 9 | B38: 60 | D38: 3.894176762 | F38: 0 | G38: 0 | H38: 0 | I38: 0 | J38: 0 | K38: 0 | L38: 0 | M38: 0 | N38: 49.11560289 | O38: 0 | P38: 0 | Q38: 0 | R38: 0 | S38: 0 | T38: 0 | U38: 0 | V38: 0 | W38: 0 | X38: 0 | Y38: 0 | Z38: 0 | AB38: 109.3228366 | AC38: 37.89309361 | AD38: 27.94343649 | AE38: 0 | AF38: 0 | AG38: 0 | AH38: 109.3228366 | AI38: 109.3228366 | AJ38: 109.3228366 | AK38: 27.70740454 | AL38: 5 | AN38: 4.115784489 | AP38: =OFFSET(AA29,A38,A38) -> 109.3228366 | AR38: -0.0004797082499 | AS38: -2.883189395e-18 | AT38: -3.345923496e-18 | AU38: 0.001853464565 | AV38: 0.0004797082499 | AW38: 0.0004797082499 | AX38: -4.840756965e-19 | AY38: -0.01083466438 | AZ38: 0.0235669574 | BA38: -0.01225258477 | BB38: 4.556151143e-18 | BD38: -0.0004797082499 | BE38: -0.0004797082499 | BF38: -0.0004797082499 | BG38: 0.001373756315 | BH38: 1.57209315e-18 | BI38: 8.67361738e-19 | BJ38: -0.0004797082499 | BK38: -0.0004797082499 | BL38: -0.0004797082499 | BM38: 0.001373756315 | BN38: 1.088017454e-18 | BO38: -0.01131437263 | BP38: -0.01131437263 | BQ38: -0.01131437263 | BR38: -0.009460908061 | BS38: 0.01225258477 | BT38: 0.01225258477 | BU38: 0.01225258477 | BV38: -5.204170428e-18 | BW38: -8.67361738e-18 | BX38: -6.480192845e-19 | BZ38: 202.1492365 | CB38: 0.1791095364 | CD38: =CB38-CG3/$K$1 -> 0.00484055048
A39: 10 | B39: 35 | D39: 3.913886787 | F39: 0 | G39: 0 | H39: 0 | I39: 0 | J39: 0 | K39: 0 | L39: 0 | M39: 0 | N39: 0 | O39: 50.09327597 | P39: 0 | Q39: 0 | R39: 0 | S39: 0 | T39: 0 | U39: 0 | V39: 0 | W39: 0 | X39: 0 | Y39: 0 | Z39: 0 | AB39: 27.70740454 | AC39: 11.26552192 | AD39: 0 | AE39: 0 | AF39: 0 | AG39: 0 | AH39: 27.70740454 | AI39: 27.70740454 | AJ39: 27.70740454 | AK39: 27.70740454 | AL39: 5 | AN39: 3.612583355 | AP39: =OFFSET(AA29,A39,A39) -> 27.70740454 | AR39: -0.0008381826687 | AS39: 3.417812785e-19 | AT39: 0.002448111229 | AU39: 0.0008381826687 | AV39: 0.0008381826687 | AW39: 0.0008381826687 | AX39: -3.763556696e-19 | AY39: 1.432866425e-18 | AZ39: -0.01225258477 | BA39: 0.05712926591 | BB39: -0.04403849847 | BD39: -0.0008381826687 | BE39: -0.0008381826687 | BF39: 0.00160992856 | BG39: 1.084202172e-19 | BH39: -4.33680869e-19 | BI39: -4.33680869e-19 | BJ39: -0.0008381826687 | BK39: -0.0008381826687 | BL39: 0.00160992856 | BM39: -2.679354523e-19 | BN39: -8.100365386e-19 | BO39: -0.0008381826687 | BP39: -0.0008381826687 | BQ39: 0.00160992856 | BR39: 1.164930973e-18 | BS39: -0.01309076744 | BT39: -0.01309076744 | BU39: -0.01064265621 | BV39: 0.04403849847 | BW39: 0.04403849847 | BX39: 6.938893904e-18 | BZ39: 180.966135 | CB39: -0.9610161008 | CD39: =CB39-CG3/$K$1 -> -1.135285087
A40: 11 | B40: 40 | D40: 3.958566133 | F40: =IF($A40=F$4,IF($B40<0,-(EXP(-$D40)^(2-$H$1)),IF($B40=0,0,EXP($D40)^(2-$H$1))),0) -> 0 | G40: 0 | H40: 0 | I40: 0 | J40: 0 | K40: 0 | L40: 0 | M40: 0 | N40: 0 | O40: 0 | P40: =IF($A40=P$4,IF($B40<0,-(EXP(-$D40)^(2-$H$1)),IF($B40=0,0,EXP($D40)^(2-$H$1))),0) -> 52.38216302 | Q40: 0 | R40: 0 | S40: 0 | T40: 0 | U40: 0 | V40: 0 | W40: 0 | X40: 0 | Y40: 0 | Z40: 0 | AB40: 5 | AC40: 0 | AD40: 0 | AE40: 0 | AF40: 0 | AG40: 0 | AH40: 5 | AI40: 5 | AJ40: 5 | AK40: 5 | AL40: 5 | AN40: 3.722184848 | AP40: =OFFSET(AA29,A40,A40) -> 5 | AR40: -0.002283439995 | AS40: 0.004602627032 | AT40: 0.002283439995 | AU40: 0.002283439995 | AV40: 0.002283439995 | AW40: 0.002283439995 | AX40: 1.838564878e-19 | AY40: -3.677129756e-19 | AZ40: 6.836807189e-18 | BA40: -0.04403849847 | BB40: 0.2463219385 | BD40: -0.002283439995 | BE40: 0.002319187037 | BF40: -3.035766083e-18 | BG40: -4.33680869e-19 | BH40: 1.734723476e-18 | BI40: 8.67361738e-19 | BJ40: -0.002283439995 | BK40: 0.002319187037 | BL40: -2.851909595e-18 | BM40: -2.498243812e-19 | BN40: 1.918579964e-18 | BO40: -0.002283439995 | BP40: 0.002319187037 | BQ40: -3.219622571e-18 | BR40: -6.175373568e-19 | BS40: -0.002283439995 | BT40: 0.002319187037 | BU40: 3.617184618e-18 | BV40: -0.04632193846 | BW40: -0.04171931143 | BX40: 0.2 | BZ40: 194.9760935 | CB40: -0.7125229153 | CD40: =CB40-CG3/$K$1 -> -0.8867919013
A41: 12 | B41: 20 | D41: 3.120959299 | F41: 0 | G41: 0 | H41: 0 | I41: 0 | J41: 0 | K41: 0 | L41: 0 | M41: 0 | N41: 0 | O41: 0 | P41: 0 | Q41: 22.66811471 | R41: 0 | S41: 0 | T41: 0 | U41: 0 | V41: 0 | W41: 0 | X41: 0 | Y41: 0 | Z41: 0 | AN41: 3.003255875 | BZ41: 68.07814867
A42: 13 | B42: 15 | D42: 3.105425665 | F42: 0 | G42: 0 | H42: 0 | I42: 0 | J42: 0 | K42: 0 | L42: 0 | M42: 0 | N42: 0 | O42: 0 | P42: 0 | Q42: 0 | R42: 22.31871725 | S42: 0 | T42: 0 | U42: 0 | V42: 0 | W42: 0 | X42: 0 | Y42: 0 | Z42: 0 | AN42: 2.777507301 | BZ42: 61.9904001
A43: 14 | B43: 25 | D43: 3.153660798 | F43: 0 | G43: 0 | H43: 0 | I43: 0 | J43: 0 | K43: 0 | L43: 0 | M43: 0 | N43: 0 | O43: 0 | P43: 0 | Q43: 0 | R43: 0 | S43: 23.42164975 | T43: 0 | U43: 0 | V43: 0 | W43: 0 | X43: 0 | Y43: 0 | Z43: 0 | AN43: 3.221049315 | BZ43: 75.44228888
A44: 15 | B44: 30 | D44: 3.173370822 | F44: 0 | G44: 0 | H44: 0 | I44: 0 | J44: 0 | K44: 0 | L44: 0 | M44: 0 | N44: 0 | O44: 0 | P44: 0 | Q44: 0 | R44: 0 | S44: 0 | T44: 23.88787057 | U44: 0 | V44: 0 | W44: 0 | X44: 0 | Y44: 0 | Z44: 0 | AN44: 3.42923831 | BZ44: 81.9172009
A45: 16 | B45: 30 | D45: 3.297480842 | F45: 0 | G45: 0 | H45: 0 | I45: 0 | J45: 0 | K45: 0 | L45: 0 | M45: 0 | N45: 0 | O45: 0 | P45: 0 | Q45: 0 | R45: 0 | S45: 0 | T45: 0 | U45: 27.04442387 | V45: 0 | W45: 0 | X45: 0 | Y45: 0 | Z45: 0 | AN45: 3.406766814 | BZ45: 92.13404574
A46: 17 | B46: 30 | D46: 3.281947209 | F46: 0 | G46: 0 | H46: 0 | I46: 0 | J46: 0 | K46: 0 | L46: 0 | M46: 0 | N46: 0 | O46: 0 | P46: 0 | Q46: 0 | R46: 0 | S46: 0 | T46: 0 | U46: 0 | V46: 26.62757169 | W46: 0 | X46: 0 | Y46: 0 | Z46: 0 | AN46: 3.40859895 | BZ46: 90.76271291
A47: 18 | B47: 20 | D47: 3.330182342 | F47: 0 | G47: 0 | H47: 0 | I47: 0 | J47: 0 | K47: 0 | L47: 0 | M47: 0 | N47: 0 | O47: 0 | P47: 0 | Q47: 0 | R47: 0 | S47: 0 | T47: 0 | U47: 0 | V47: 0 | W47: 27.94343649 | X47: 0 | Y47: 0 | Z47: 0 | AN47: 3.045913923 | BZ47: 85.11330227
A48: 19 | B48: 15 | D48: 2.437280537 | F48: 0 | G48: 0 | H48: 0 | I48: 0 | J48: 0 | K48: 0 | L48: 0 | M48: 0 | N48: 0 | O48: 0 | P48: 0 | Q48: 0 | R48: 0 | S48: 0 | T48: 0 | U48: 0 | V48: 0 | W48: 0 | X48: 11.44188262 | Y48: 0 | Z48: 0 | AN48: 2.748253608 | BZ48: 31.4451952
A49: 20 | B49: 5 | D49: 2.421746904 | F49: 0 | G49: 0 | H49: 0 | I49: 0 | J49: 0 | K49: 0 | L49: 0 | M49: 0 | N49: 0 | O49: 0 | P49: 0 | Q49: 0 | R49: 0 | S49: 0 | T49: 0 | U49: 0 | V49: 0 | W49: 0 | X49: 0 | Y49: 11.26552192 | Z49: 0 | AN49: 1.865578981 | BZ49: 21.0167209
A50: 21 | B50: 5 | D50: 1.609437912 | F50: 0 | G50: 0 | H50: 0 | I50: 0 | J50: 0 | K50: 0 | L50: 0 | M50: 0 | N50: 0 | O50: 0 | P50: 0 | Q50: 0 | R50: 0 | S50: 0 | T50: 0 | U50: 0 | V50: 0 | W50: 0 | X50: 0 | Y50: 0 | Z50: 5 | AN50: 1.609437912 | BZ50: 8.047189562
A52: Newton-Raphson Interation Sequence -- Iteration 3
B53: y(i) | D53: xb(i) | F53: W(i,i) | AB53: XWX | AN53: zz(i) | AP53: factor | AR53: xwx-1 | BD53: aa1(i,j) | BZ53: aa2(j) | CB53: beta(j) | CD53: beta_diff = | CE53: =SUM(CD55:CD65) -> -0.000602193019 | CF53: beta_old = | CG53: =SUM(CB55:CB65) -> 1.869543719
B54: 1 | D54: 1 | F54: 1 | G54: 2 | H54: 3 | I54: 4 | J54: 5 | K54: 6 | L54: 7 | M54: 8 | N54: 9 | O54: 10 | P54: 11 | Q54: 12 | R54: 13 | S54: 14 | T54: 15 | U54: 16 | V54: 17 | W54: 18 | X54: 19 | Y54: 20 | Z54: 21 | AB54: 1 | AC54: 2 | AD54: 3 | AE54: 4 | AF54: 5 | AG54: 6 | AH54: 7 | AI54: 8 | AJ54: 9 | AK54: 10 | AL54: 11 | AN54: 1 | AR54: 1 | AS54: 2 | AT54: 3 | AU54: 4 | AV54: 5 | AW54: 6 | AX54: 7 | AY54: 8 | AZ54: 9 | BA54: 10 | BB54: 11 | BD54: 1 | BE54: 2 | BF54: 3 | BG54: 4 | BH54: 5 | BI54: 6 | BJ54: 7 | BK54: 8 | BL54: 9 | BM54: 10 | BN54: 11 | BO54: 12 | BP54: 13 | BQ54: 14 | BR54: 15 | BS54: 16 | BT54: 17 | BU54: 18 | BV54: 19 | BW54: 20 | BX54: 21
A55: 1 | B55: =B30 -> 95 | D55: =MMULT(DesignMatrix,CB30:CB40) -> 4.692786844 | F55: =IF($A55=F$4,IF($B55<0,-(EXP(-$D55)^(2-$H$1)),IF($B55=0,0,EXP($D55)^(2-$H$1))),0) -> 109.1569597 | G55: 0 | H55: 0 | I55: 0 | J55: 0 | K55: 0 | L55: 0 | M55: 0 | N55: 0 | O55: 0 | P55: =IF($A55=P$4,IF($B55<0,-(EXP(-$D55)^(2-$H$1)),IF($B55=0,0,EXP($D55)^(2-$H$1))),0) -> 0 | Q55: 0 | R55: 0 | S55: 0 | T55: 0 | U55: 0 | V55: 0 | W55: 0 | X55: 0 | Y55: 0 | Z55: 0 | AB55: =MMULT(TRANSPOSE(DesignMatrix),MMULT(F55:Z75,DesignMatrix)) -> 1120.284402 | AC55: 210.1088733 | AD55: 210.0282526 | AE55: 185.0406837 | AF55: 170.019864 | AG55: 125 | AH55: 435.2751073 | AI55: 195.2013675 | AJ55: 105.1717681 | AK55: 25.15533055 | AL55: 5 | AN55: =IF(B55<0,D55+(B55+EXP(-D55))/-EXP(-D55),IF(B55=0,0,D55+(B55-EXP(D55))/EXP(D55))) -> 4.563093238 | AP55: =OFFSET(AA54,A55,A55) -> 1120.284402 | AR55: =MINVERSE(AB55:AL65) -> 0.005743707559 | AS55: -0.004649287335 | AT55: -0.004766318885 | AU55: -0.005009460697 | AV55: -0.005207893183 | AW55: -0.005743707559 | AX55: -0.001785684649 | AY55: -0.0003372721719 | AZ55: -0.0004802669628 | BA55: -0.0008430552016 | BB55: -0.002297428574 | BD55: =MMULT(AR55:BB65,TRANSPOSE(DesignMatrix)) -> 0.005743707559 | BE55: 0.001094420224 | BF55: 0.0009773886738 | BG55: 0.000734246862 | BH55: 0.000535814376 | BI55: 2.602085214e-18 | BJ55: 0.00395802291 | BK55: -0.0006912644248 | BL55: -0.0008082959748 | BM55: -0.001051437787 | BN55: -0.001249870273 | BO55: 0.003620750738 | BP55: -0.001028536597 | BQ55: -0.001145568147 | BR55: -0.001388709959 | BS55: 0.003140483775 | BT55: -0.001508803559 | BU55: -0.00162583511 | BV55: 0.002297428574 | BW55: -0.002351858761 | BX55: 2.168404345e-18 | BZ55: =MMULT(F55:Z75,AN55:AN75) -> 498.0933849 | CB55: =MMULT(BD55:BX65,BZ55:BZ75) -> 4.692874039 | CD55: =CB55-CG28/$K$1 -> 4.522860774
A56: 2 | B56: =B31 -> 110 | D56: 4.669371353 | F56: 0 | G56: 106.6306882 | H56: 0 | I56: 0 | J56: 0 | K56: 0 | L56: 0 | M56: 0 | N56: 0 | O56: 0 | P56: 0 | Q56: 0 | R56: 0 | S56: 0 | T56: 0 | U56: 0 | V56: 0 | W56: 0 | X56: 0 | Y56: 0 | Z56: 0 | AB56: 210.1088733 | AC56: 210.1088733 | AD56: 0 | AE56: 0 | AF56: 0 | AG56: 0 | AH56: 103.4781851 | AI56: 57.76603646 | AJ56: 35.9977992 | AK56: 9.95968392 | AL56: 0 | AN56: =IF(B56<0,D56+(B56+EXP(-D56))/-EXP(-D56),IF(B56=0,0,D56+(B56-EXP(D56))/EXP(D56))) -> 4.700969308 | AP56: =OFFSET(AA54,A56,A56) -> 210.1088733 | AR56: -0.004649287335 | AS56: 0.009408724593 | AT56: 0.004649287335 | AU56: 0.004649287335 | AV56: 0.004649287335 | AW56: 0.004649287335 | AX56: 4.327165397e-19 | AY56: -6.157090078e-20 | AZ56: -2.276339396e-18 | BA56: 6.503826847e-19 | BB56: 0.004649287335 | BD56: -0.004649287335 | BE56: 0.004759437258 | BF56: 0 | BG56: 0 | BH56: 8.67361738e-19 | BI56: -1.734723476e-18 | BJ56: -0.004649287335 | BK56: 0.004759437258 | BL56: 4.327165397e-19 | BM56: 4.327165397e-19 | BN56: 1.300078278e-18 | BO56: -0.004649287335 | BP56: 0.004759437258 | BQ56: 3.71145639e-19 | BR56: 3.71145639e-19 | BS56: -0.004649287335 | BT56: 0.004759437258 | BU56: -1.905193757e-18 | BV56: -0.004649287335 | BW56: 0.004759437258 | BX56: -1.734723476e-18 | BZ56: 501.2675927 | CB56: -0.02353044443 | CD56: =CB56-CG28/$K$1 -> -0.1935437092
A57: 3 | B57: 105 | D57: 4.717550375 | F57: 0 | G57: 0 | H57: 111.8938188 | I57: 0 | J57: 0 | K57: 0 | L57: 0 | M57: 0 | N57: 0 | O57: 0 | P57: 0 | Q57: 0 | R57: 0 | S57: 0 | T57: 0 | U57: 0 | V57: 0 | W57: 0 | X57: 0 | Y57: 0 | Z57: 0 | AB57: 210.0282526 | AC57: 0 | AD57: 210.0282526 | AE57: 0 | AF57: 0 | AG57: 0 | AH57: 98.13443384 | AI57: 50.16600225 | AJ57: 27.32331752 | AK57: 0 | AL57: 0 | AN57: 4.655940012 | AP57: =OFFSET(AA54,A57,A57) -> 210.0282526 | AR57: -0.004766318885 | AS57: 0.004649287335 | AT57: 0.009527583085 | AU57: 0.004766318885 | AV57: 0.004766318885 | AW57: 0.004766318885 | AX57: 9.906010663e-19 | AY57: -4.657313521e-19 | AZ57: -1.846786686e-18 | BA57: 0.002468890311 | BB57: 0.002297428574 | BD57: -0.004766318885 | BE57: -0.0001170315501 | BF57: 0.0047612642 | BG57: 0 | BH57: 8.67361738e-19 | BI57: -8.67361738e-19 | BJ57: -0.004766318885 | BK57: -0.0001170315501 | BL57: 0.0047612642 | BM57: 9.906010663e-19 | BN57: 1.857962804e-18 | BO57: -0.004766318885 | BP57: -0.0001170315501 | BQ57: 0.0047612642 | BR57: 5.248697142e-19 | BS57: -0.004766318885 | BT57: -0.0001170315501 | BU57: 0.0047612642 | BV57: -0.002297428574 | BW57: 0.002351858761 | BX57: -8.67361738e-19 | BZ57: 520.9709079 | CB57: 0.02467163304 | CD57: =CB57-CG28/$K$1 -> -0.1453416317
A58: 4 | B58: 120 | D58: 4.730253613 | F58: 0 | G58: 0 | H58: 0 | I58: 113.3242992 | J58: 0 | K58: 0 | L58: 0 | M58: 0 | N58: 0 | O58: 0 | P58: 0 | Q58: 0 | R58: 0 | S58: 0 | T58: 0 | U58: 0 | V58: 0 | W58: 0 | X58: 0 | Y58: 0 | Z58: 0 | AB58: 185.0406837 | AC58: 0 | AD58: 0 | AE58: 185.0406837 | AF58: 0 | AG58: 0 | AH58: 71.71638452 | AI58: 23.1347117 | AJ58: 0 | AK58: 0 | AL58: 0 | AN58: 4.789161551 | AP58: =OFFSET(AA54,A58,A58) -> 185.0406837 | AR58: -0.005009460697 | AS58: 0.004649287335 | AT58: 0.004766318885 | AU58: 0.01041367765 | AV58: 0.005009460697 | AW58: 0.005009460697 | AX58: 1.412528683e-18 | AY58: -3.445316271e-20 | AZ58: 0.001868976921 | BA58: 0.0008430552016 | BB58: 0.002297428574 | BD58: -0.005009460697 | BE58: -0.0003601733618 | BF58: -0.0002431418118 | BG58: 0.005404216954 | BH58: 8.67361738e-19 | BI58: -1.734723476e-18 | BJ58: -0.005009460697 | BK58: -0.0003601733618 | BL58: -0.0002431418118 | BM58: 0.005404216954 | BN58: 2.279890421e-18 | BO58: -0.005009460697 | BP58: -0.0003601733618 | BQ58: -0.0002431418118 | BR58: 0.005404216954 | BS58: -0.003140483775 | BT58: 0.001508803559 | BU58: 0.00162583511 | BV58: -0.002297428574 | BW58: 0.002351858761 | BX58: -8.67361738e-19 | BZ58: 542.7283764 | CB58: 0.03727546491 | CD58: =CB58-CG28/$K$1 -> -0.1327377999
A59: 5 | B59: 130 | D59: 4.779153143 | F59: 0 | G59: 0 | H59: 0 | I59: 0 | J59: 119.0035284 | K59: 0 | L59: 0 | M59: 0 | N59: 0 | O59: 0 | P59: 0 | Q59: 0 | R59: 0 | S59: 0 | T59: 0 | U59: 0 | V59: 0 | W59: 0 | X59: 0 | Y59: 0 | Z59: 0 | AB59: 170.019864 | AC59: 0 | AD59: 0 | AE59: 0 | AF59: 170.019864 | AG59: 0 | AH59: 51.01633563 | AI59: 0 | AJ59: 0 | AK59: 0 | AL59: 0 | AN59: 4.871557728 | AP59: =OFFSET(AA54,A59,A59) -> 170.019864 | AR59: -0.005207893183 | AS59: 0.004649287335 | AT59: 0.004766318885 | AU59: 0.005009460697 | AV59: 0.01108955887 | AW59: 0.005207893183 | AX59: 1.04678983e-18 | AY59: 0.001587142445 | AZ59: 0.0004802669628 | BA59: 0.0008430552016 | BB59: 0.002297428574 | BD59: -0.005207893183 | BE59: -0.0005586058479 | BF59: -0.0004415742978 | BG59: -0.000198432486 | BH59: 0.005881665685 | BI59: -1.734723476e-18 | BJ59: -0.005207893183 | BK59: -0.0005586058479 | BL59: -0.0004415742978 | BM59: -0.000198432486 | BN59: 0.005881665685 | BO59: -0.003620750738 | BP59: 0.001028536597 | BQ59: 0.001145568147 | BR59: 0.001388709959 | BS59: -0.003140483775 | BT59: 0.001508803559 | BU59: 0.00162583511 | BV59: -0.002297428574 | BW59: 0.002351858761 | BX59: -8.67361738e-19 | BZ59: 579.7325584 | CB59: 0.08624945543 | CD59: =CB59-CG28/$K$1 -> -0.08376380934
A60: 6 | B60: 125 | D60: 4.828313737 | F60: 0 | G60: 0 | H60: 0 | I60: 0 | J60: 0 | K60: 125 | L60: 0 | M60: 0 | N60: 0 | O60: 0 | P60: 0 | Q60: 0 | R60: 0 | S60: 0 | T60: 0 | U60: 0 | V60: 0 | W60: 0 | X60: 0 | Y60: 0 | Z60: 0 | AB60: 125 | AC60: 0 | AD60: 0 | AE60: 0 | AF60: 0 | AG60: 125 | AH60: 0 | AI60: 0 | AJ60: 0 | AK60: 0 | AL60: 0 | AN60: 4.828313737 | AP60: =OFFSET(AA54,A60,A60) -> 125 | AR60: -0.005743707559 | AS60: 0.004649287335 | AT60: 0.004766318885 | AU60: 0.005009460697 | AV60: 0.005207893183 | AW60: 0.01374370756 | AX60: 0.001785684649 | AY60: 0.0003372721719 | AZ60: 0.0004802669628 | BA60: 0.0008430552016 | BB60: 0.002297428574 | BD60: -0.005743707559 | BE60: -0.001094420224 | BF60: -0.0009773886738 | BG60: -0.000734246862 | BH60: -0.000535814376 | BI60: 0.008 | BJ60: -0.00395802291 | BK60: 0.0006912644248 | BL60: 0.0008082959748 | BM60: 0.001051437787 | BN60: 0.001249870273 | BO60: -0.003620750738 | BP60: 0.001028536597 | BQ60: 0.001145568147 | BR60: 0.001388709959 | BS60: -0.003140483775 | BT60: 0.001508803559 | BU60: 0.00162583511 | BV60: -0.002297428574 | BW60: 0.002351858761 | BX60: -1.301042607e-18 | BZ60: 603.5392172 | CB60: 0.135439698 | CD60: =CB60-CG28/$K$1 -> -0.03457356673
A61: 7 | B61: 55 | D61: 3.845779589 | F61: 0 | G61: 0 | H61: 0 | I61: 0 | J61: 0 | K61: 0 | L61: 46.79515111 | M61: 0 | N61: 0 | O61: 0 | P61: 0 | Q61: 0 | R61: 0 | S61: 0 | T61: 0 | U61: 0 | V61: 0 | W61: 0 | X61: 0 | Y61: 0 | Z61: 0 | AB61: 435.2751073 | AC61: 103.4781851 | AD61: 98.13443384 | AE61: 71.71638452 | AF61: 51.01633563 | AG61: 0 | AH61: 435.2751073 | AI61: 195.2013675 | AJ61: 105.1717681 | AK61: 25.15533055 | AL61: 5 | AN61: 4.021115039 | AP61: =OFFSET(AA54,A61,A61) -> 435.2751073 | AR61: -0.001785684649 | AS61: -8.838626606e-19 | AT61: -8.802402726e-19 | AU61: -5.868268484e-19 | AV61: -7.027432629e-19 | AW61: 0.001785684649 | AX61: 0.005951071504 | AY61: -0.004165386855 | AZ61: 4.63665658e-19 | BA61: -1.912620839e-18 | BB61: -9.27331316e-19 | BD61: -0.001785684649 | BE61: -0.001785684649 | BF61: -0.001785684649 | BG61: -0.001785684649 | BH61: -0.001785684649 | BI61: -8.67361738e-19 | BJ61: 0.004165386855 | BK61: 0.004165386855 | BL61: 0.004165386855 | BM61: 0.004165386855 | BN61: 0.004165386855 | BO61: 0 | BP61: -8.67361738e-19 | BQ61: -8.67361738e-19 | BR61: 0 | BS61: 4.63665658e-19 | BT61: -4.0369608e-19 | BU61: -4.0369608e-19 | BV61: -1.448955181e-18 | BW61: -2.316316919e-18 | BX61: -2.376286497e-18 | BZ61: 188.1686859 | CB61: -0.8472978133 | CD61: =CB61-CG28/$K$1 -> -1.017311078
A62: 8 | B62: 50 | D62: 3.822364097 | F62: 0 | G62: 0 | H62: 0 | I62: 0 | J62: 0 | K62: 0 | L62: 0 | M62: 45.71214864 | N62: 0 | O62: 0 | P62: 0 | Q62: 0 | R62: 0 | S62: 0 | T62: 0 | U62: 0 | V62: 0 | W62: 0 | X62: 0 | Y62: 0 | Z62: 0 | AB62: 195.2013675 | AC62: 57.76603646 | AD62: 50.16600225 | AE62: 23.1347117 | AF62: 0 | AG62: 0 | AH62: 195.2013675 | AI62: 195.2013675 | AJ62: 105.1717681 | AK62: 25.15533055 | AL62: 5 | AN62: 3.916165231 | AP62: =OFFSET(AA54,A62,A62) -> 195.2013675 | AR62: -0.0003372721719 | AS62: 1.475451149e-18 | AT62: 1.246501832e-18 | AU62: 1.568726796e-18 | AV62: 0.001587142445 | AW62: 0.0003372721719 | AX62: -0.004165386855 | AY62: 0.0156101171 | AZ62: -0.01110745807 | BA62: 3.934536396e-18 | BB62: 2.170778701e-18 | BD62: -0.0003372721719 | BE62: -0.0003372721719 | BF62: -0.0003372721719 | BG62: -0.0003372721719 | BH62: 0.001249870273 | BI62: 9.757819552e-19 | BJ62: -0.004502659027 | BK62: -0.004502659027 | BL62: -0.004502659027 | BM62: -0.004502659027 | BN62: -0.002915516582 | BO62: 0.01110745807 | BP62: 0.01110745807 | BQ62: 0.01110745807 | BR62: 0.01110745807 | BS62: -1.734723476e-18 | BT62: -1.734723476e-18 | BU62: -1.734723476e-18 | BV62: 2.19981292e-18 | BW62: 2.19981292e-18 | BX62: 4.370591622e-18 | BZ62: 179.0163271 | CB62: -0.7419373375 | CD62: =CB62-CG28/$K$1 -> -0.9119506023
A63: 9 | B63: 60 | D63: 3.870543119 | F63: 0 | G63: 0 | H63: 0 | I63: 0 | J63: 0 | K63: 0 | L63: 0 | M63: 0 | N63: 47.9684316 | O63: 0 | P63: 0 | Q63: 0 | R63: 0 | S63: 0 | T63: 0 | U63: 0 | V63: 0 | W63: 0 | X63: 0 | Y63: 0 | Z63: 0 | AB63: 105.1717681 | AC63: 35.9977992 | AD63: 27.32331752 | AE63: 0 | AF63: 0 | AG63: 0 | AH63: 105.1717681 | AI63: 105.1717681 | AJ63: 105.1717681 | AK63: 25.15533055 | AL63: 5 | AN63: 4.121365754 | AP63: =OFFSET(AA54,A63,A63) -> 105.1717681 | AR63: -0.0004802669628 | AS63: -2.127826222e-18 | AT63: -1.83433295e-18 | AU63: 0.001868976921 | AV63: 0.0004802669628 | AW63: 0.0004802669628 | AX63: 5.817790458e-19 | AY63: -0.01110745807 | AZ63: 0.02408515719 | BA63: -0.01249743216 | BB63: 0 | BD63: -0.0004802669628 | BE63: -0.0004802669628 | BF63: -0.0004802669628 | BG63: 0.001388709959 | BH63: -1.084202172e-19 | BI63: -1.029992064e-18 | BJ63: -0.0004802669628 | BK63: -0.0004802669628 | BL63: -0.0004802669628 | BM63: 0.001388709959 | BN63: 4.733588286e-19 | BO63: -0.01158772503 | BP63: -0.01158772503 | BQ63: -0.01158772503 | BR63: -0.009718748112 | BS63: 0.01249743216 | BT63: 0.01249743216 | BU63: 0.01249743216 | BV63: 0 | BW63: -1.734723476e-18 | BX63: 0 | BZ63: 197.6954513 | CB63: 0.1792014001 | CD63: =CB63-CG28/$K$1 -> 0.009188135296
A64: 10 | B64: 35 | D64: 3.883246357 | F64: 0 | G64: 0 | H64: 0 | I64: 0 | J64: 0 | K64: 0 | L64: 0 | M64: 0 | N64: 0 | O64: 48.58167282 | P64: 0 | Q64: 0 | R64: 0 | S64: 0 | T64: 0 | U64: 0 | V64: 0 | W64: 0 | X64: 0 | Y64: 0 | Z64: 0 | AB64: 25.15533055 | AC64: 9.95968392 | AD64: 0 | AE64: 0 | AF64: 0 | AG64: 0 | AH64: 25.15533055 | AI64: 25.15533055 | AJ64: 25.15533055 | AK64: 25.15533055 | AL64: 5 | AN64: 3.603682645 | AP64: =OFFSET(AA54,A64,A64) -> 25.15533055 | AR64: -0.0008430552016 | AS64: 0 | AT64: 0.002468890311 | AU64: 0.0008430552016 | AV64: 0.0008430552016 | AW64: 0.0008430552016 | AX64: 3.897982479e-21 | AY64: 2.104628435e-18 | AZ64: -0.01249743216 | BA64: 0.0629551537 | BB64: -0.04961466634 | BD64: -0.0008430552016 | BE64: -0.0008430552016 | BF64: 0.00162583511 | BG64: 0 | BH64: -9.757819552e-19 | BI64: 7.589415207e-19 | BJ64: -0.0008430552016 | BK64: -0.0008430552016 | BL64: 0.00162583511 | BM64: 3.897982479e-21 | BN64: -9.718839728e-19 | BO64: -0.0008430552016 | BP64: -0.0008430552016 | BQ64: 0.00162583511 | BR64: 2.108526417e-18 | BS64: -0.01334048736 | BT64: -0.01334048736 | BU64: -0.01087159705 | BV64: 0.04961466634 | BW64: 0.04961466634 | BX64: -6.938893904e-18 | BZ64: 175.0729312 | CB64: -0.9685293304 | CD64: =CB64-CG28/$K$1 -> -1.138542595
A65: 11 | B65: 40 | D65: 3.932145888 | F65: =IF($A65=F$4,IF($B65<0,-(EXP(-$D65)^(2-$H$1)),IF($B65=0,0,EXP($D65)^(2-$H$1))),0) -> 0 | G65: 0 | H65: 0 | I65: 0 | J65: 0 | K65: 0 | L65: 0 | M65: 0 | N65: 0 | O65: 0 | P65: =IF($A65=P$4,IF($B65<0,-(EXP(-$D65)^(2-$H$1)),IF($B65=0,0,EXP($D65)^(2-$H$1))),0) -> 51.01633563 | Q65: 0 | R65: 0 | S65: 0 | T65: 0 | U65: 0 | V65: 0 | W65: 0 | X65: 0 | Y65: 0 | Z65: 0 | AB65: 5 | AC65: 0 | AD65: 0 | AE65: 0 | AF65: 0 | AG65: 0 | AH65: 5 | AI65: 5 | AJ65: 5 | AK65: 5 | AL65: 5 | AN65: 3.716208473 | AP65: =OFFSET(AA54,A65,A65) -> 5 | AR65: -0.002297428574 | AS65: 0.004649287335 | AT65: 0.002297428574 | AU65: 0.002297428574 | AV65: 0.002297428574 | AW65: 0.002297428574 | AX65: 9.272691912e-20 | AY65: 5.563615147e-19 | AZ65: 0 | BA65: -0.04961466634 | BB65: 0.2519120949 | BD65: -0.002297428574 | BE65: 0.002351858761 | BF65: 8.67361738e-19 | BG65: 0 | BH65: 2.168404345e-18 | BI65: -8.67361738e-19 | BJ65: -0.002297428574 | BK65: 0.002351858761 | BL65: 9.600886571e-19 | BM65: 9.272691912e-20 | BN65: 2.261131264e-18 | BO65: -0.002297428574 | BP65: 0.002351858761 | BQ65: 1.516450172e-18 | BR65: 6.490884338e-19 | BS65: -0.002297428574 | BT65: 0.002351858761 | BU65: 1.516450172e-18 | BV65: -0.05191209491 | BW65: -0.04726280758 | BX65: 0.2 | BZ65: 189.5873387 | CB65: -0.7048730457 | CD65: =CB65-CG28/$K$1 -> -0.8748863104
A66: 12 | B66: 20 | D66: 3.103867392 | F66: 0 | G66: 0 | H66: 0 | I66: 0 | J66: 0 | K66: 0 | L66: 0 | M66: 0 | N66: 0 | O66: 0 | P66: 0 | Q66: 22.28396568 | R66: 0 | S66: 0 | T66: 0 | U66: 0 | V66: 0 | W66: 0 | X66: 0 | Y66: 0 | Z66: 0 | AN66: 3.001373711 | BZ66: 66.88250877
A67: 13 | B67: 15 | D67: 3.080451901 | F67: 0 | G67: 0 | H67: 0 | I67: 0 | J67: 0 | K67: 0 | L67: 0 | M67: 0 | N67: 0 | O67: 0 | P67: 0 | Q67: 0 | R67: 21.76823725 | S67: 0 | T67: 0 | U67: 0 | V67: 0 | W67: 0 | X67: 0 | Y67: 0 | Z67: 0 | AN67: 2.769529285 | BZ67: 60.28777056
A68: 14 | B68: 25 | D68: 3.128630923 | F68: 0 | G68: 0 | H68: 0 | I68: 0 | J68: 0 | K68: 0 | L68: 0 | M68: 0 | N68: 0 | O68: 0 | P68: 0 | Q68: 0 | R68: 0 | S68: 22.84268473 | T68: 0 | U68: 0 | V68: 0 | W68: 0 | X68: 0 | Y68: 0 | Z68: 0 | AN68: 3.223073205 | BZ68: 73.62364507
A69: 15 | B69: 30 | D69: 3.141334161 | F69: 0 | G69: 0 | H69: 0 | I69: 0 | J69: 0 | K69: 0 | L69: 0 | M69: 0 | N69: 0 | O69: 0 | P69: 0 | Q69: 0 | R69: 0 | S69: 0 | T69: 23.1347117 | U69: 0 | V69: 0 | W69: 0 | X69: 0 | Y69: 0 | Z69: 0 | AN69: 3.438086867 | BZ69: 79.53914846
A70: 16 | B70: 30 | D70: 3.282976929 | F70: 0 | G70: 0 | H70: 0 | I70: 0 | J70: 0 | K70: 0 | L70: 0 | M70: 0 | N70: 0 | O70: 0 | P70: 0 | Q70: 0 | R70: 0 | S70: 0 | T70: 0 | U70: 26.65500475 | V70: 0 | W70: 0 | X70: 0 | Y70: 0 | Z70: 0 | AN70: 3.408469131 | BZ70: 90.85276088
A71: 17 | B71: 30 | D71: 3.259561437 | F71: 0 | G71: 0 | H71: 0 | I71: 0 | J71: 0 | K71: 0 | L71: 0 | M71: 0 | N71: 0 | O71: 0 | P71: 0 | Q71: 0 | R71: 0 | S71: 0 | T71: 0 | U71: 0 | V71: 26.03811528 | W71: 0 | X71: 0 | Y71: 0 | Z71: 0 | AN71: 3.41171856 | BZ71: 88.83472119
A72: 18 | B72: 20 | D72: 3.307740459 | F72: 0 | G72: 0 | H72: 0 | I72: 0 | J72: 0 | K72: 0 | L72: 0 | M72: 0 | N72: 0 | O72: 0 | P72: 0 | Q72: 0 | R72: 0 | S72: 0 | T72: 0 | U72: 0 | V72: 0 | W72: 27.32331752 | X72: 0 | Y72: 0 | Z72: 0 | AN72: 3.039715996 | BZ72: 83.05512532
A73: 19 | B73: 15 | D73: 2.321960828 | F73: 0 | G73: 0 | H73: 0 | I73: 0 | J73: 0 | K73: 0 | L73: 0 | M73: 0 | N73: 0 | O73: 0 | P73: 0 | Q73: 0 | R73: 0 | S73: 0 | T73: 0 | U73: 0 | V73: 0 | W73: 0 | X73: 10.19564663 | Y73: 0 | Z73: 0 | AN73: 2.79317698 | BZ73: 28.47824545
A74: 20 | B74: 5 | D74: 2.298545336 | F74: 0 | G74: 0 | H74: 0 | I74: 0 | J74: 0 | K74: 0 | L74: 0 | M74: 0 | N74: 0 | O74: 0 | P74: 0 | Q74: 0 | R74: 0 | S74: 0 | T74: 0 | U74: 0 | V74: 0 | W74: 0 | X74: 0 | Y74: 9.95968392 | Z74: 0 | AN74: 1.8005693 | BZ74: 17.9331011
A75: 21 | B75: 5 | D75: 1.609437912 | F75: 0 | G75: 0 | H75: 0 | I75: 0 | J75: 0 | K75: 0 | L75: 0 | M75: 0 | N75: 0 | O75: 0 | P75: 0 | Q75: 0 | R75: 0 | S75: 0 | T75: 0 | U75: 0 | V75: 0 | W75: 0 | X75: 0 | Y75: 0 | Z75: 5 | AN75: 1.609437912 | BZ75: 8.047189562
A77: Newton-Raphson Interation Sequence -- Iteration 4
B78: y(i) | D78: xb(i) | F78: W(i,i) | AB78: XWX | AN78: zz(i) | AP78: factor | AR78: xwx-1 | BD78: aa1(i,j) | BZ78: aa2(j) | CB78: beta(j) | CD78: beta_diff = | CE78: =SUM(CD80:CD90) -> -1.875697037e-07 | CF78: beta_old = | CG78: =SUM(CB80:CB90) -> 1.869543532
B79: 1 | D79: 1 | F79: 1 | G79: 2 | H79: 3 | I79: 4 | J79: 5 | K79: 6 | L79: 7 | M79: 8 | N79: 9 | O79: 10 | P79: 11 | Q79: 12 | R79: 13 | S79: 14 | T79: 15 | U79: 16 | V79: 17 | W79: 18 | X79: 19 | Y79: 20 | Z79: 21 | AB79: 1 | AC79: 2 | AD79: 3 | AE79: 4 | AF79: 5 | AG79: 6 | AH79: 7 | AI79: 8 | AJ79: 9 | AK79: 10 | AL79: 11 | AN79: 1 | AR79: 1 | AS79: 2 | AT79: 3 | AU79: 4 | AV79: 5 | AW79: 6 | AX79: 7 | AY79: 8 | AZ79: 9 | BA79: 10 | BB79: 11 | BD79: 1 | BE79: 2 | BF79: 3 | BG79: 4 | BH79: 5 | BI79: 6 | BJ79: 7 | BK79: 8 | BL79: 9 | BM79: 10 | BN79: 11 | BO79: 12 | BP79: 13 | BQ79: 14 | BR79: 15 | BS79: 16 | BT79: 17 | BU79: 18 | BV79: 19 | BW79: 20 | BX79: 21
A80: 1 | B80: =B55 -> 95 | D80: =MMULT(DesignMatrix,CB55:CB65) -> 4.692874039 | F80: =IF($A80=F$4,IF($B80<0,-(EXP(-$D80)^(2-$H$1)),IF($B80=0,0,EXP($D80)^(2-$H$1))),0) -> 109.1664781 | G80: 0 | H80: 0 | I80: 0 | J80: 0 | K80: 0 | L80: 0 | M80: 0 | N80: 0 | O80: 0 | P80: =IF($A80=P$4,IF($B80<0,-(EXP(-$D80)^(2-$H$1)),IF($B80=0,0,EXP($D80)^(2-$H$1))),0) -> 0 | Q80: 0 | R80: 0 | S80: 0 | T80: 0 | U80: 0 | V80: 0 | W80: 0 | X80: 0 | Y80: 0 | Z80: 0 | AB80: =MMULT(TRANSPOSE(DesignMatrix),MMULT(F80:Z100,DesignMatrix)) -> 1120.000617 | AC80: 210.0003039 | AD80: 210.000004 | AE80: 185.0000064 | AF80: 170.0000027 | AG80: 125 | AH80: 435.0006157 | AI80: 195.0006039 | AJ80: 105.0005988 | AK80: 25.00059704 | AL80: 5 | AN80: =IF(B80<0,D80+(B80+EXP(-D80))/-EXP(-D80),IF(B80=0,0,D80+(B80-EXP(D80))/EXP(D80))) -> 4.56310455 | AP80: =OFFSET(AA79,A80,A80) -> 1120.000617 | AR80: =MINVERSE(AB80:AL90) -> 0.005744623853 | AS80: -0.004651156305 | AT80: -0.004767354233 | AU80: -0.005010496849 | AV80: -0.005208909551 | AW80: -0.005744623853 | AX80: -0.001785714282 | AY80: -0.0003373015817 | AZ80: -0.0004802699882 | BA80: -0.0008431195298 | BB80: -0.002298218471 | BD80: =MMULT(AR80:BB90,TRANSPOSE(DesignMatrix)) -> 0.005744623853 | BE80: 0.001093467548 | BF80: 0.00097726962 | BG80: 0.0007341270044 | BH80: 0.0005357143023 | BI80: 1.734723476e-18 | BJ80: 0.003958909571 | BK80: -0.0006922467345 | BL80: -0.0008084446622 | BM80: -0.001051587278 | BN80: -0.00124999998 | BO80: 0.003621607989 | BP80: -0.001029548316 | BQ80: -0.001145746244 | BR80: -0.001388888859 | BS80: 0.003141338001 | BT80: -0.001509818304 | BU80: -0.001626016232 | BV80: 0.002298218471 | BW80: -0.002352937834 | BX80: 4.33680869e-19 | BZ80: =MMULT(F80:Z100,AN80:AN100) -> 498.138053 | CB80: =MMULT(BD80:BX90,BZ80:BZ100) -> 4.692874069 | CD80: =CB80-CG53/$K$1 -> 4.522915549
A81: 2 | B81: =B56 -> 110 | D81: 4.669343595 | F81: 0 | G81: 106.6277285 | H81: 0 | I81: 0 | J81: 0 | K81: 0 | L81: 0 | M81: 0 | N81: 0 | O81: 0 | P81: 0 | Q81: 0 | R81: 0 | S81: 0 | T81: 0 | U81: 0 | V81: 0 | W81: 0 | X81: 0 | Y81: 0 | Z81: 0 | AB81: 210.0003039 | AC81: 210.0003039 | AD81: 0 | AE81: 0 | AF81: 0 | AG81: 0 | AH81: 103.3725755 | AI81: 57.67497541 | AJ81: 35.91421332 | AK81: 9.882648214 | AL81: 0 | AN81: =IF(B81<0,D81+(B81+EXP(-D81))/-EXP(-D81),IF(B81=0,0,D81+(B81-EXP(D81))/EXP(D81))) -> 4.700970186 | AP81: =OFFSET(AA79,A81,A81) -> 210.0003039 | AR81: -0.004651156305 | AS81: 0.009413054175 | AT81: 0.004651156305 | AU81: 0.004651156305 | AV81: 0.004651156305 | AW81: 0.004651156305 | AX81: -1.212849616e-18 | AY81: 1.009083891e-19 | AZ81: -1.220023788e-18 | BA81: 5.28676975e-19 | BB81: 0.004651156305 | BD81: -0.004651156305 | BE81: 0.00476189787 | BF81: -8.67361738e-19 | BG81: 0 | BH81: -8.67361738e-19 | BI81: -1.734723476e-18 | BJ81: -0.004651156305 | BK81: 0.00476189787 | BL81: -2.080211354e-18 | BM81: -1.212849616e-18 | BN81: -2.080211354e-18 | BO81: -0.004651156305 | BP81: 0.00476189787 | BQ81: -1.979302965e-18 | BR81: -1.111941227e-18 | BS81: -0.004651156305 | BT81: 0.00476189787 | BU81: -3.199326753e-18 | BV81: -0.004651156305 | BW81: 0.00476189787 | BX81: 0 | BZ81: 501.2537725 | CB81: -0.02353049741 | CD81: =CB81-CG53/$K$1 -> -0.1934890174
A82: 3 | B82: 105 | D82: 4.717545672 | F82: 0 | G82: 0 | H82: 111.8932926 | I82: 0 | J82: 0 | K82: 0 | L82: 0 | M82: 0 | N82: 0 | O82: 0 | P82: 0 | Q82: 0 | R82: 0 | S82: 0 | T82: 0 | U82: 0 | V82: 0 | W82: 0 | X82: 0 | Y82: 0 | Z82: 0 | AB82: 210.000004 | AC82: 0 | AD82: 210.000004 | AE82: 0 | AF82: 0 | AG82: 0 | AH82: 98.1067114 | AI82: 50.1524409 | AJ82: 27.31707382 | AK82: 0 | AL82: 0 | AN82: 4.655939722 | AP82: =OFFSET(AA79,A82,A82) -> 210.000004 | AR82: -0.004767354233 | AS82: 0.004651156305 | AT82: 0.009529258905 | AU82: 0.004767354233 | AV82: 0.004767354233 | AW82: 0.004767354233 | AX82: -1.272458988e-18 | AY82: -5.700407883e-19 | AZ82: -9.45011155e-19 | BA82: 0.002469135762 | BB82: 0.002298218471 | BD82: -0.004767354233 | BE82: -0.0001161979277 | BF82: 0.004761904672 | BG82: 1.734723476e-18 | BH82: 8.67361738e-19 | BI82: -1.734723476e-18 | BJ82: -0.004767354233 | BK82: -0.0001161979277 | BL82: 0.004761904672 | BM82: 4.622644875e-19 | BN82: -4.050972505e-19 | BO82: -0.004767354233 | BP82: -0.0001161979277 | BQ82: 0.004761904672 | BR82: -1.077763007e-19 | BS82: -0.004767354233 | BT82: -0.0001161979277 | BU82: 0.004761904672 | BV82: -0.002298218471 | BW82: 0.002352937834 | BX82: 8.67361738e-19 | BZ82: 520.9684256 | CB82: 0.02467160441 | CD82: =CB82-CG53/$K$1 -> -0.1452869155
A83: 4 | B83: 120 | D83: 4.730149504 | F83: 0 | G83: 0 | H83: 0 | I83: 113.3125018 | J83: 0 | K83: 0 | L83: 0 | M83: 0 | N83: 0 | O83: 0 | P83: 0 | Q83: 0 | R83: 0 | S83: 0 | T83: 0 | U83: 0 | V83: 0 | W83: 0 | X83: 0 | Y83: 0 | Z83: 0 | AB83: 185.0000064 | AC83: 0 | AD83: 0 | AE83: 185.0000064 | AF83: 0 | AG83: 0 | AH83: 71.68750466 | AI83: 23.12500162 | AJ83: 0 | AK83: 0 | AL83: 0 | AN83: 4.789167689 | AP83: =OFFSET(AA79,A83,A83) -> 185.0000064 | AR83: -0.005010496849 | AS83: 0.004651156305 | AT83: 0.004767354233 | AU83: 0.01041590207 | AV83: 0.005010496849 | AW83: 0.005010496849 | AX83: -1.982066211e-18 | AY83: -2.484934595e-19 | AZ83: 0.001869158848 | BA83: 0.0008431195298 | BB83: 0.002298218471 | BD83: -0.005010496849 | BE83: -0.0003593405432 | BF83: -0.0002431426155 | BG83: 0.005405405217 | BH83: 0 | BI83: -8.67361738e-19 | BJ83: -0.005010496849 | BK83: -0.0003593405432 | BL83: -0.0002431426155 | BM83: 0.005405405217 | BN83: -1.982066211e-18 | BO83: -0.005010496849 | BP83: -0.0003593405432 | BQ83: -0.0002431426155 | BR83: 0.005405405217 | BS83: -0.003141338001 | BT83: 0.001509818304 | BU83: 0.001626016232 | BV83: -0.002298218471 | BW83: 0.002352937834 | BX83: 4.33680869e-19 | BZ83: 542.6725723 | CB83: 0.03727541968 | CD83: =CB83-CG53/$K$1 -> -0.1326831003
A84: 5 | B84: 130 | D84: 4.779123495 | F84: 0 | G84: 0 | H84: 0 | I84: 0 | J84: 119.0000002 | K84: 0 | L84: 0 | M84: 0 | N84: 0 | O84: 0 | P84: 0 | Q84: 0 | R84: 0 | S84: 0 | T84: 0 | U84: 0 | V84: 0 | W84: 0 | X84: 0 | Y84: 0 | Z84: 0 | AB84: 170.0000027 | AC84: 0 | AD84: 0 | AE84: 0 | AF84: 170.0000027 | AG84: 0 | AH84: 51.00000248 | AI84: 0 | AJ84: 0 | AK84: 0 | AL84: 0 | AN84: 4.871560468 | AP84: =OFFSET(AA79,A84,A84) -> 170.0000027 | AR84: -0.005208909551 | AS84: 0.004651156305 | AT84: 0.004767354233 | AU84: 0.005010496849 | AV84: 0.0110912624 | AW84: 0.005208909551 | AX84: -1.920812253e-18 | AY84: 0.001587301562 | AZ84: 0.0004802699882 | BA84: 0.0008431195298 | BB84: 0.002298218471 | BD84: -0.005208909551 | BE84: -0.0005577532454 | BF84: -0.0004415553177 | BG84: -0.0001984127022 | BH84: 0.005882352849 | BI84: -1.734723476e-18 | BJ84: -0.005208909551 | BK84: -0.0005577532454 | BL84: -0.0004415553177 | BM84: -0.0001984127022 | BN84: 0.005882352849 | BO84: -0.003621607989 | BP84: 0.001029548316 | BQ84: 0.001145746244 | BR84: 0.001388888859 | BS84: -0.003141338001 | BT84: 0.001509818304 | BU84: 0.001626016232 | BV84: -0.002298218471 | BW84: 0.002352937834 | BX84: 0 | BZ84: 579.7156966 | CB84: 0.08624942428 | CD84: =CB84-CG53/$K$1 -> -0.08370909567
A85: 6 | B85: 125 | D85: 4.828313737 | F85: 0 | G85: 0 | H85: 0 | I85: 0 | J85: 0 | K85: 125 | L85: 0 | M85: 0 | N85: 0 | O85: 0 | P85: 0 | Q85: 0 | R85: 0 | S85: 0 | T85: 0 | U85: 0 | V85: 0 | W85: 0 | X85: 0 | Y85: 0 | Z85: 0 | AB85: 125 | AC85: 0 | AD85: 0 | AE85: 0 | AF85: 0 | AG85: 125 | AH85: 0 | AI85: 0 | AJ85: 0 | AK85: 0 | AL85: 0 | AN85: 4.828313737 | AP85: =OFFSET(AA79,A85,A85) -> 125 | AR85: -0.005744623853 | AS85: 0.004651156305 | AT85: 0.004767354233 | AU85: 0.005010496849 | AV85: 0.005208909551 | AW85: 0.01374462385 | AX85: 0.001785714282 | AY85: 0.0003373015817 | AZ85: 0.0004802699882 | BA85: 0.0008431195298 | BB85: 0.002298218471 | BD85: -0.005744623853 | BE85: -0.001093467548 | BF85: -0.00097726962 | BG85: -0.0007341270044 | BH85: -0.0005357143023 | BI85: 0.008 | BJ85: -0.003958909571 | BK85: 0.0006922467345 | BL85: 0.0008084446622 | BM85: 0.001051587278 | BN85: 0.00124999998 | BO85: -0.003621607989 | BP85: 0.001029548316 | BQ85: 0.001145746244 | BR85: 0.001388888859 | BS85: -0.003141338001 | BT85: 0.001509818304 | BU85: 0.001626016232 | BV85: -0.002298218471 | BW85: 0.002352937834 | BX85: -4.33680869e-19 | BZ85: 603.5392172 | CB85: 0.1354396685 | CD85: =CB85-CG53/$K$1 -> -0.03451885148
A86: 7 | B86: 55 | D86: 3.845576226 | F86: 0 | G86: 0 | H86: 0 | I86: 0 | J86: 0 | K86: 0 | L86: 46.78563568 | M86: 0 | N86: 0 | O86: 0 | P86: 0 | Q86: 0 | R86: 0 | S86: 0 | T86: 0 | U86: 0 | V86: 0 | W86: 0 | X86: 0 | Y86: 0 | Z86: 0 | AB86: 435.0006157 | AC86: 103.3725755 | AD86: 98.1067114 | AE86: 71.68750466 | AF86: 51.00000248 | AG86: 0 | AH86: 435.0006157 | AI86: 195.0006039 | AJ86: 105.0005988 | AK86: 25.00059704 | AL86: 5 | AN86: 4.02115072 | AP86: =OFFSET(AA79,A86,A86) -> 435.0006157 | AR86: -0.001785714282 | AS86: -7.319609189e-19 | AT86: -9.602457599e-19 | AU86: -1.000105018e-18 | AV86: -1.395074029e-18 | AW86: 0.001785714282 | AX86: 0.005952380744 | AY86: -0.004166666462 | AZ86: 4.754122404e-18 | BA86: -1.217519152e-18 | BB86: -9.276336397e-19 | BD86: -0.001785714282 | BE86: -0.001785714282 | BF86: -0.001785714282 | BG86: -0.001785714282 | BH86: -0.001785714282 | BI86: -8.67361738e-19 | BJ86: 0.004166666462 | BK86: 0.004166666462 | BL86: 0.004166666462 | BM86: 0.004166666462 | BN86: 0.004166666462 | BO86: -3.469446952e-18 | BP86: -3.469446952e-18 | BQ86: -4.33680869e-18 | BR86: -4.33680869e-18 | BS86: 1.284675452e-18 | BT86: 1.284675452e-18 | BU86: 4.173137137e-19 | BV86: 6.715629954e-20 | BW86: 6.715629954e-20 | BX86: -8.604773402e-19 | BZ86: 188.1320926 | CB86: -0.8472978604 | CD86: =CB86-CG53/$K$1 -> -1.01725638
A87: 8 | B87: 50 | D87: 3.822045781 | F87: 0 | G87: 0 | H87: 0 | I87: 0 | J87: 0 | K87: 0 | L87: 0 | M87: 45.69760006 | N87: 0 | O87: 0 | P87: 0 | Q87: 0 | R87: 0 | S87: 0 | T87: 0 | U87: 0 | V87: 0 | W87: 0 | X87: 0 | Y87: 0 | Z87: 0 | AB87: 195.0006039 | AC87: 57.67497541 | AD87: 50.1524409 | AE87: 23.12500162 | AF87: 0 | AG87: 0 | AH87: 195.0006039 | AI87: 195.0006039 | AJ87: 105.0005988 | AK87: 25.00059704 | AL87: 5 | AN87: 3.916195144 | AP87: =OFFSET(AA79,A87,A87) -> 195.0006039 | AR87: -0.0003373015817 | AS87: -5.769844227e-19 | AT87: -6.024396179e-19 | AU87: -6.618350731e-19 | AV87: 0.001587301562 | AW87: 0.0003373015817 | AX87: -0.004166666462 | AY87: 0.01561507853 | AZ87: -0.01111111048 | BA87: 5.294680585e-18 | BB87: -3.258264975e-18 | BD87: -0.0003373015817 | BE87: -0.0003373015817 | BF87: -0.0003373015817 | BG87: -0.0003373015817 | BH87: 0.00124999998 | BI87: -2.710505431e-19 | BJ87: -0.004503968044 | BK87: -0.004503968044 | BL87: -0.004503968044 | BM87: -0.004503968044 | BN87: -0.002916666482 | BO87: 0.01111111048 | BP87: 0.01111111048 | BQ87: 0.01111111048 | BR87: 0.01111111048 | BS87: -3.469446952e-18 | BT87: -3.469446952e-18 | BU87: -3.469446952e-18 | BV87: 1.825233633e-18 | BW87: 1.825233633e-18 | BX87: -1.433031342e-18 | BZ87: 178.9607195 | CB87: -0.7419373447 | CD87: =CB87-CG53/$K$1 -> -0.9118958647
A88: 9 | B88: 60 | D88: 3.870247859 | F88: 0 | G88: 0 | H88: 0 | I88: 0 | J88: 0 | K88: 0 | L88: 0 | M88: 0 | N88: 47.9542705 | O88: 0 | P88: 0 | Q88: 0 | R88: 0 | S88: 0 | T88: 0 | U88: 0 | V88: 0 | W88: 0 | X88: 0 | Y88: 0 | Z88: 0 | AB88: 105.0005988 | AC88: 35.91421332 | AD88: 27.31707382 | AE88: 0 | AF88: 0 | AG88: 0 | AH88: 105.0005988 | AI88: 105.0005988 | AJ88: 105.0005988 | AK88: 25.00059704 | AL88: 5 | AN88: 4.121439867 | AP88: =OFFSET(AA79,A88,A88) -> 105.0005988 | AR88: -0.0004802699882 | AS88: -7.711029649e-19 | AT88: -5.507878321e-19 | AU88: 0.001869158848 | AV88: 0.0004802699882 | AW88: 0.0004802699882 | AX88: 4.012020748e-18 | AY88: -0.01111111048 | AZ88: 0.02409138019 | BA88: -0.01249999972 | BB88: 0 | BD88: -0.0004802699882 | BE88: -0.0004802699882 | BF88: -0.0004802699882 | BG88: 0.001388888859 | BH88: -1.246832498e-18 | BI88: -8.131516294e-19 | BJ88: -0.0004802699882 | BK88: -0.0004802699882 | BL88: -0.0004802699882 | BM88: 0.001388888859 | BN88: 2.76518825e-18 | BO88: -0.01159138047 | BP88: -0.01159138047 | BQ88: -0.01159138047 | BR88: -0.009722221625 | BS88: 0.01249999972 | BT88: 0.01249999972 | BU88: 0.01249999972 | BV88: -1.734723476e-18 | BW88: -1.734723476e-18 | BX88: -1.734723476e-18 | BZ88: 197.6406422 | CB88: 0.1792014295 | CD88: =CB88-CG53/$K$1 -> 0.00924290951
A89: 10 | B89: 35 | D89: 3.882851691 | F89: 0 | G89: 0 | H89: 0 | I89: 0 | J89: 0 | K89: 0 | L89: 0 | M89: 0 | N89: 0 | O89: 48.56250304 | P89: 0 | Q89: 0 | R89: 0 | S89: 0 | T89: 0 | U89: 0 | V89: 0 | W89: 0 | X89: 0 | Y89: 0 | Z89: 0 | AB89: 25.00059704 | AC89: 9.882648214 | AD89: 0 | AE89: 0 | AF89: 0 | AG89: 0 | AH89: 25.00059704 | AI89: 25.00059704 | AJ89: 25.00059704 | AK89: 25.00059704 | AL89: 5 | AN89: 3.603572366 | AP89: =OFFSET(AA79,A89,A89) -> 25.00059704 | AR89: -0.0008431195298 | AS89: 3.707676596e-19 | AT89: 0.002469135762 | AU89: 0.0008431195298 | AV89: 0.0008431195298 | AW89: 0.0008431195298 | AX89: -2.081668125e-18 | AY89: 6.685398899e-18 | AZ89: -0.01249999972 | BA89: 0.0633416267 | BB89: -0.04999850745 | BD89: -0.0008431195298 | BE89: -0.0008431195298 | BF89: 0.001626016232 | BG89: 0 | BH89: 1.084202172e-18 | BI89: 1.084202172e-18 | BJ89: -0.0008431195298 | BK89: -0.0008431195298 | BL89: 0.001626016232 | BM89: -2.081668125e-18 | BN89: -9.974659522e-19 | BO89: -0.0008431195298 | BP89: -0.0008431195298 | BQ89: 0.001626016232 | BR89: 4.603730774e-18 | BS89: -0.01334311925 | BT89: -0.01334311925 | BU89: -0.01087398349 | BV89: 0.04999850745 | BW89: 0.04999850745 | BX89: 2.081668171e-17 | BZ89: 174.998494 | CB89: -0.96855916 | CD89: =CB89-CG53/$K$1 -> -1.13851768
A90: 11 | B90: 40 | D90: 3.931825681 | F90: =IF($A90=F$4,IF($B90<0,-(EXP(-$D90)^(2-$H$1)),IF($B90=0,0,EXP($D90)^(2-$H$1))),0) -> 0 | G90: 0 | H90: 0 | I90: 0 | J90: 0 | K90: 0 | L90: 0 | M90: 0 | N90: 0 | O90: 0 | P90: =IF($A90=P$4,IF($B90<0,-(EXP(-$D90)^(2-$H$1)),IF($B90=0,0,EXP($D90)^(2-$H$1))),0) -> 51.00000248 | Q90: 0 | R90: 0 | S90: 0 | T90: 0 | U90: 0 | V90: 0 | W90: 0 | X90: 0 | Y90: 0 | Z90: 0 | AB90: 5 | AC90: 0 | AD90: 0 | AE90: 0 | AF90: 0 | AG90: 0 | AH90: 5 | AI90: 5 | AJ90: 5 | AK90: 5 | AL90: 5 | AN90: 3.716139369 | AP90: =OFFSET(AA79,A90,A90) -> 5 | AR90: -0.002298218471 | AS90: 0.004651156305 | AT90: 0.002298218471 | AU90: 0.002298218471 | AV90: 0.002298218471 | AW90: 0.002298218471 | AX90: 3.887246555e-34 | AY90: -3.800289203e-18 | AZ90: 0 | BA90: -0.04999850745 | BB90: 0.2522967259 | BD90: -0.002298218471 | BE90: 0.002352937834 | BF90: 4.33680869e-19 | BG90: 8.67361738e-19 | BH90: 0 | BI90: -8.67361738e-19 | BJ90: -0.002298218471 | BK90: 0.002352937834 | BL90: 4.33680869e-19 | BM90: 8.67361738e-19 | BN90: 3.887246555e-34 | BO90: -0.002298218471 | BP90: 0.002352937834 | BQ90: -3.366608334e-18 | BR90: -2.932927465e-18 | BS90: -0.002298218471 | BT90: 0.002352937834 | BU90: -3.366608334e-18 | BV90: -0.05229672592 | BW90: -0.04764556961 | BX90: 0.2 | BZ90: 189.523117 | CB90: -0.7048432208 | CD90: =CB90-CG53/$K$1 -> -0.8748017407
A91: 12 | B91: 20 | D91: 3.103638888 | F91: 0 | G91: 0 | H91: 0 | I91: 0 | J91: 0 | K91: 0 | L91: 0 | M91: 0 | N91: 0 | O91: 0 | P91: 0 | Q91: 22.2788743 | R91: 0 | S91: 0 | T91: 0 | U91: 0 | V91: 0 | W91: 0 | X91: 0 | Y91: 0 | Z91: 0 | AN91: 3.001350314 | BZ91: 66.86670636
A92: 13 | B92: 15 | D92: 3.080108444 | F92: 0 | G92: 0 | H92: 0 | I92: 0 | J92: 0 | K92: 0 | L92: 0 | M92: 0 | N92: 0 | O92: 0 | P92: 0 | Q92: 0 | R92: 21.76076209 | S92: 0 | T92: 0 | U92: 0 | V92: 0 | W92: 0 | X92: 0 | Y92: 0 | Z92: 0 | AN92: 2.769422538 | BZ92: 60.26474498
A93: 14 | B93: 25 | D93: 3.128310521 | F93: 0 | G93: 0 | H93: 0 | I93: 0 | J93: 0 | K93: 0 | L93: 0 | M93: 0 | N93: 0 | O93: 0 | P93: 0 | Q93: 0 | R93: 0 | S93: 22.83536707 | T93: 0 | U93: 0 | V93: 0 | W93: 0 | X93: 0 | Y93: 0 | Z93: 0 | AN93: 3.22310352 | BZ93: 73.600752
A94: 15 | B94: 30 | D94: 3.140914353 | F94: 0 | G94: 0 | H94: 0 | I94: 0 | J94: 0 | K94: 0 | L94: 0 | M94: 0 | N94: 0 | O94: 0 | P94: 0 | Q94: 0 | R94: 0 | S94: 0 | T94: 23.12500162 | U94: 0 | V94: 0 | W94: 0 | X94: 0 | Y94: 0 | Z94: 0 | AN94: 3.43821156 | BZ94: 79.50864788
A95: 16 | B95: 30 | D95: 3.282840288 | F95: 0 | G95: 0 | H95: 0 | I95: 0 | J95: 0 | K95: 0 | L95: 0 | M95: 0 | N95: 0 | O95: 0 | P95: 0 | Q95: 0 | R95: 0 | S95: 0 | T95: 0 | U95: 26.65136286 | V95: 0 | W95: 0 | X95: 0 | Y95: 0 | Z95: 0 | AN95: 3.408486289 | BZ95: 90.84080488
A96: 17 | B96: 30 | D96: 3.259309844 | F96: 0 | G96: 0 | H96: 0 | I96: 0 | J96: 0 | K96: 0 | L96: 0 | M96: 0 | N96: 0 | O96: 0 | P96: 0 | Q96: 0 | R96: 0 | S96: 0 | T96: 0 | U96: 0 | V96: 26.0315651 | W96: 0 | X96: 0 | Y96: 0 | Z96: 0 | AN96: 3.411756878 | BZ96: 88.81337129
A97: 18 | B97: 20 | D97: 3.307511922 | F97: 0 | G97: 0 | H97: 0 | I97: 0 | J97: 0 | K97: 0 | L97: 0 | M97: 0 | N97: 0 | O97: 0 | P97: 0 | Q97: 0 | R97: 0 | S97: 0 | T97: 0 | U97: 0 | V97: 0 | W97: 27.31707382 | X97: 0 | Y97: 0 | Z97: 0 | AN97: 3.039654761 | BZ97: 83.03447351
A98: 19 | B98: 15 | D98: 2.314310958 | F98: 0 | G98: 0 | H98: 0 | I98: 0 | J98: 0 | K98: 0 | L98: 0 | M98: 0 | N98: 0 | O98: 0 | P98: 0 | Q98: 0 | R98: 0 | S98: 0 | T98: 0 | U98: 0 | V98: 0 | W98: 0 | X98: 10.11794883 | Y98: 0 | Z98: 0 | AN98: 2.79682488 | BZ98: 28.29813101
A99: 20 | B99: 5 | D99: 2.290780514 | F99: 0 | G99: 0 | H99: 0 | I99: 0 | J99: 0 | K99: 0 | L99: 0 | M99: 0 | N99: 0 | O99: 0 | P99: 0 | Q99: 0 | R99: 0 | S99: 0 | T99: 0 | U99: 0 | V99: 0 | W99: 0 | X99: 0 | Y99: 9.882648214 | Z99: 0 | AN99: 1.796717778 | BZ99: 17.75632974
A100: 21 | B100: 5 | D100: 1.609437912 | F100: 0 | G100: 0 | H100: 0 | I100: 0 | J100: 0 | K100: 0 | L100: 0 | M100: 0 | N100: 0 | O100: 0 | P100: 0 | Q100: 0 | R100: 0 | S100: 0 | T100: 0 | U100: 0 | V100: 0 | W100: 0 | X100: 0 | Y100: 0 | Z100: 5 | AN100: 1.609437912 | BZ100: 8.047189562
A102: Newton-Raphson Interation Sequence -- Iteration 5
B103: y(i) | D103: xb(i) | F103: W(i,i) | AB103: XWX | AN103: zz(i) | AP103: factor | AR103: xwx-1 | BD103: aa1(i,j) | BZ103: aa2(j) | CB103: beta(j) | CD103: beta_diff = | CE103: =SUM(CD105:CD115) -> -2.122746423e-13 | CF103: beta_old = | CG103: =SUM(CB105:CB115) -> 1.869543532
B104: 1 | D104: 1 | F104: 1 | G104: 2 | H104: 3 | I104: 4 | J104: 5 | K104: 6 | L104: 7 | M104: 8 | N104: 9 | O104: 10 | P104: 11 | Q104: 12 | R104: 13 | S104: 14 | T104: 15 | U104: 16 | V104: 17 | W104: 18 | X104: 19 | Y104: 20 | Z104: 21 | AB104: 1 | AC104: 2 | AD104: 3 | AE104: 4 | AF104: 5 | AG104: 6 | AH104: 7 | AI104: 8 | AJ104: 9 | AK104: 10 | AL104: 11 | AN104: 1 | AR104: 1 | AS104: 2 | AT104: 3 | AU104: 4 | AV104: 5 | AW104: 6 | AX104: 7 | AY104: 8 | AZ104: 9 | BA104: 10 | BB104: 11 | BD104: 1 | BE104: 2 | BF104: 3 | BG104: 4 | BH104: 5 | BI104: 6 | BJ104: 7 | BK104: 8 | BL104: 9 | BM104: 10 | BN104: 11 | BO104: 12 | BP104: 13 | BQ104: 14 | BR104: 15 | BS104: 16 | BT104: 17 | BU104: 18 | BV104: 19 | BW104: 20 | BX104: 21
A105: 1 | B105: =B80 -> 95 | D105: =MMULT(DesignMatrix,CB80:CB90) -> 4.692874069 | F105: =IF($A105=F$4,IF($B105<0,-(EXP(-$D105)^(2-$H$1)),IF($B105=0,0,EXP($D105)^(2-$H$1))),0) -> 109.1664813 | G105: 0 | H105: 0 | I105: 0 | J105: 0 | K105: 0 | L105: 0 | M105: 0 | N105: 0 | O105: 0 | P105: =IF($A105=P$4,IF($B105<0,-(EXP(-$D105)^(2-$H$1)),IF($B105=0,0,EXP($D105)^(2-$H$1))),0) -> 0 | Q105: 0 | R105: 0 | S105: 0 | T105: 0 | U105: 0 | V105: 0 | W105: 0 | X105: 0 | Y105: 0 | Z105: 0 | AB105: =MMULT(TRANSPOSE(DesignMatrix),MMULT(F105:Z125,DesignMatrix)) -> 1120 | AC105: 210 | AD105: 210 | AE105: 185 | AF105: 170 | AG105: 125 | AH105: 435 | AI105: 195 | AJ105: 105 | AK105: 25.00000001 | AL105: 5 | AN105: =IF(B105<0,D105+(B105+EXP(-D105))/-EXP(-D105),IF(B105=0,0,D105+(B105-EXP(D105))/EXP(D105))) -> 4.563104554 | AP105: =OFFSET(AA104,A105,A105) -> 1120 | AR105: =MINVERSE(AB105:AL115) -> 0.005744627019 | AS105: -0.004651162791 | AT105: -0.004767357417 | AU105: -0.005010500035 | AV105: -0.005208912733 | AW105: -0.005744627019 | AX105: -0.001785714286 | AY105: -0.0003373015873 | AZ105: -0.0004802699896 | BA105: -0.0008431195423 | BB105: -0.002298221614 | BD105: =MMULT(AR105:BB115,TRANSPOSE(DesignMatrix)) -> 0.005744627019 | BE105: 0.001093464229 | BF105: 0.0009772696025 | BG105: 0.0007341269841 | BH105: 0.0005357142857 | BI105: 8.67361738e-19 | BJ105: 0.003958912733 | BK105: -0.0006922500572 | BL105: -0.0008084446832 | BM105: -0.001051587302 | BN105: -0.00125 | BO105: 0.003621611146 | BP105: -0.001029551644 | BQ105: -0.001145746271 | BR105: -0.001388888889 | BS105: 0.003141341156 | BT105: -0.001509821634 | BU105: -0.00162601626 | BV105: 0.002298221614 | BW105: -0.002352941176 | BX105: 8.67361738e-19 | BZ105: =MMULT(F105:Z125,AN105:AN125) -> 498.1380682 | CB105: =MMULT(BD105:BX115,BZ105:BZ125) -> 4.692874069 | CD105: =CB105-CG78/$K$1 -> 4.522915566
A106: 2 | B106: =B81 -> 110 | D106: 4.669343571 | F106: 0 | G106: 106.627726 | H106: 0 | I106: 0 | J106: 0 | K106: 0 | L106: 0 | M106: 0 | N106: 0 | O106: 0 | P106: 0 | Q106: 0 | R106: 0 | S106: 0 | T106: 0 | U106: 0 | V106: 0 | W106: 0 | X106: 0 | Y106: 0 | Z106: 0 | AB106: 210 | AC106: 210 | AD106: 0 | AE106: 0 | AF106: 0 | AG106: 0 | AH106: 103.372274 | AI106: 57.67467719 | AJ106: 35.91391679 | AK106: 9.882352946 | AL106: 0 | AN106: =IF(B106<0,D106+(B106+EXP(-D106))/-EXP(-D106),IF(B106=0,0,D106+(B106-EXP(D106))/EXP(D106))) -> 4.700970186 | AP106: =OFFSET(AA104,A106,A106) -> 210 | AR106: -0.004651162791 | AS106: 0.009413067552 | AT106: 0.004651162791 | AU106: 0.004651162791 | AV106: 0.004651162791 | AW106: 0.004651162791 | AX106: -5.519164199e-19 | AY106: -4.452333442e-18 | AZ106: 2.349096514e-18 | BA106: -1.301360322e-18 | BB106: 0.004651162791 | BD106: -0.004651162791 | BE106: 0.004761904762 | BF106: 1.734723476e-18 | BG106: 8.67361738e-19 | BH106: 1.734723476e-18 | BI106: -8.67361738e-19 | BJ106: -0.004651162791 | BK106: 0.004761904762 | BL106: 1.182807056e-18 | BM106: 3.154453181e-19 | BN106: 1.182807056e-18 | BO106: -0.004651162791 | BP106: 0.004761904762 | BQ106: -3.269526386e-18 | BR106: -4.136888124e-18 | BS106: -0.004651162791 | BT106: 0.004761904762 | BU106: -9.204298717e-19 | BV106: -0.004651162791 | BW106: 0.004761904762 | BX106: -1.734723476e-18 | BZ106: 501.2537608 | CB106: -0.02353049741 | CD106: =CB106-CG78/$K$1 -> -0.1934890003
A107: 3 | B107: 105 | D107: 4.717545673 | F107: 0 | G107: 0 | H107: 111.8932927 | I107: 0 | J107: 0 | K107: 0 | L107: 0 | M107: 0 | N107: 0 | O107: 0 | P107: 0 | Q107: 0 | R107: 0 | S107: 0 | T107: 0 | U107: 0 | V107: 0 | W107: 0 | X107: 0 | Y107: 0 | Z107: 0 | AB107: 210 | AC107: 0 | AD107: 210 | AE107: 0 | AF107: 0 | AG107: 0 | AH107: 98.10670732 | AI107: 50.15243902 | AJ107: 27.31707317 | AK107: 0 | AL107: 0 | AN107: 4.655939722 | AP107: =OFFSET(AA104,A107,A107) -> 210 | AR107: -0.004767357417 | AS107: 0.004651162791 | AT107: 0.009529262179 | AU107: 0.004767357417 | AV107: 0.004767357417 | AW107: 0.004767357417 | AX107: -4.443441513e-19 | AY107: -4.767908142e-18 | AZ107: 2.56479866e-18 | BA107: 0.002469135802 | BB107: 0.002298221614 | BD107: -0.004767357417 | BE107: -0.000116194626 | BF107: 0.004761904762 | BG107: 8.67361738e-19 | BH107: 1.734723476e-18 | BI107: -8.67361738e-19 | BJ107: -0.004767357417 | BK107: -0.000116194626 | BL107: 0.004761904762 | BM107: 4.230175867e-19 | BN107: 1.290379325e-18 | BO107: -0.004767357417 | BP107: -0.000116194626 | BQ107: 0.004761904762 | BR107: -4.344890555e-18 | BS107: -0.004767357417 | BT107: -0.000116194626 | BU107: 0.004761904762 | BV107: -0.002298221614 | BW107: 0.002352941176 | BX107: -8.67361738e-19 | BZ107: 520.9684261 | CB107: 0.02467160441 | CD107: =CB107-CG78/$K$1 -> -0.1452868985
A108: 4 | B108: 120 | D108: 4.730149489 | F108: 0 | G108: 0 | H108: 0 | I108: 113.3125 | J108: 0 | K108: 0 | L108: 0 | M108: 0 | N108: 0 | O108: 0 | P108: 0 | Q108: 0 | R108: 0 | S108: 0 | T108: 0 | U108: 0 | V108: 0 | W108: 0 | X108: 0 | Y108: 0 | Z108: 0 | AB108: 185 | AC108: 0 | AD108: 0 | AE108: 185 | AF108: 0 | AG108: 0 | AH108: 71.6875 | AI108: 23.125 | AJ108: 0 | AK108: 0 | AL108: 0 | AN108: 4.78916769 | AP108: =OFFSET(AA104,A108,A108) -> 185 | AR108: -0.005010500035 | AS108: 0.004651162791 | AT108: 0.004767357417 | AU108: 0.01041590544 | AV108: 0.005010500035 | AW108: 0.005010500035 | AX108: 3.133190151e-19 | AY108: -5.375089949e-18 | AZ108: 0.001869158879 | BA108: 0.0008431195423 | BB108: 0.002298221614 | BD108: -0.005010500035 | BE108: -0.0003593372444 | BF108: -0.0002431426183 | BG108: 0.005405405405 | BH108: 8.67361738e-19 | BI108: -8.67361738e-19 | BJ108: -0.005010500035 | BK108: -0.0003593372444 | BL108: -0.0002431426183 | BM108: 0.005405405405 | BN108: 1.180680753e-18 | BO108: -0.005010500035 | BP108: -0.0003593372444 | BQ108: -0.0002431426183 | BR108: 0.005405405405 | BS108: -0.003141341156 | BT108: 0.001509821634 | BU108: 0.00162601626 | BV108: -0.002298221614 | BW108: 0.002352941176 | BX108: -1.301042607e-18 | BZ108: 542.6725639 | CB108: 0.03727541968 | CD108: =CB108-CG78/$K$1 -> -0.1326830832
A109: 5 | B109: 130 | D109: 4.779123493 | F109: 0 | G109: 0 | H109: 0 | I109: 0 | J109: 119 | K109: 0 | L109: 0 | M109: 0 | N109: 0 | O109: 0 | P109: 0 | Q109: 0 | R109: 0 | S109: 0 | T109: 0 | U109: 0 | V109: 0 | W109: 0 | X109: 0 | Y109: 0 | Z109: 0 | AB109: 170 | AC109: 0 | AD109: 0 | AE109: 0 | AF109: 170 | AG109: 0 | AH109: 51 | AI109: 0 | AJ109: 0 | AK109: 0 | AL109: 0 | AN109: 4.871560468 | AP109: =OFFSET(AA104,A109,A109) -> 170 | AR109: -0.005208912733 | AS109: 0.004651162791 | AT109: 0.004767357417 | AU109: 0.005010500035 | AV109: 0.01109126567 | AW109: 0.005208912733 | AX109: 1.627045696e-19 | AY109: 0.001587301587 | AZ109: 0.0004802699896 | BA109: 0.0008431195423 | BB109: 0.002298221614 | BD109: -0.005208912733 | BE109: -0.0005577499428 | BF109: -0.0004415553168 | BG109: -0.0001984126984 | BH109: 0.005882352941 | BI109: -8.67361738e-19 | BJ109: -0.005208912733 | BK109: -0.0005577499428 | BL109: -0.0004415553168 | BM109: -0.0001984126984 | BN109: 0.005882352941 | BO109: -0.003621611146 | BP109: 0.001029551644 | BQ109: 0.001145746271 | BR109: 0.001388888889 | BS109: -0.003141341156 | BT109: 0.001509821634 | BU109: 0.00162601626 | BV109: -0.002298221614 | BW109: 0.002352941176 | BX109: -1.301042607e-18 | BZ109: 579.7156957 | CB109: 0.08624942428 | CD109: =CB109-CG78/$K$1 -> -0.08370907862
A110: 6 | B110: 125 | D110: 4.828313737 | F110: 0 | G110: 0 | H110: 0 | I110: 0 | J110: 0 | K110: 125 | L110: 0 | M110: 0 | N110: 0 | O110: 0 | P110: 0 | Q110: 0 | R110: 0 | S110: 0 | T110: 0 | U110: 0 | V110: 0 | W110: 0 | X110: 0 | Y110: 0 | Z110: 0 | AB110: 125 | AC110: 0 | AD110: 0 | AE110: 0 | AF110: 0 | AG110: 125 | AH110: 0 | AI110: 0 | AJ110: 0 | AK110: 0 | AL110: 0 | AN110: 4.828313737 | AP110: =OFFSET(AA104,A110,A110) -> 125 | AR110: -0.005744627019 | AS110: 0.004651162791 | AT110: 0.004767357417 | AU110: 0.005010500035 | AV110: 0.005208912733 | AW110: 0.01374462702 | AX110: 0.001785714286 | AY110: 0.0003373015873 | AZ110: 0.0004802699896 | BA110: 0.0008431195423 | BB110: 0.002298221614 | BD110: -0.005744627019 | BE110: -0.001093464229 | BF110: -0.0009772696025 | BG110: -0.0007341269841 | BH110: -0.0005357142857 | BI110: 0.008 | BJ110: -0.003958912733 | BK110: 0.0006922500572 | BL110: 0.0008084446832 | BM110: 0.001051587302 | BN110: 0.00125 | BO110: -0.003621611146 | BP110: 0.001029551644 | BQ110: 0.001145746271 | BR110: 0.001388888889 | BS110: -0.003141341156 | BT110: 0.001509821634 | BU110: 0.00162601626 | BV110: -0.002298221614 | BW110: 0.002352941176 | BX110: -4.33680869e-19 | BZ110: 603.5392172 | CB110: 0.1354396685 | CD110: =CB110-CG78/$K$1 -> -0.03451883443
A111: 7 | B111: 55 | D111: 3.845576208 | F111: 0 | G111: 0 | H111: 0 | I111: 0 | J111: 0 | K111: 0 | L111: 46.78563486 | M111: 0 | N111: 0 | O111: 0 | P111: 0 | Q111: 0 | R111: 0 | S111: 0 | T111: 0 | U111: 0 | V111: 0 | W111: 0 | X111: 0 | Y111: 0 | Z111: 0 | AB111: 435 | AC111: 103.372274 | AD111: 98.10670732 | AE111: 71.6875 | AF111: 51 | AG111: 0 | AH111: 435 | AI111: 195 | AJ111: 105 | AK111: 25.00000001 | AL111: 5 | AN111: 4.021150723 | AP111: =OFFSET(AA104,A111,A111) -> 435 | AR111: -0.001785714286 | AS111: -9.78364244e-19 | AT111: -7.174671123e-19 | AU111: -1.739314212e-19 | AV111: 3.623571274e-21 | AW111: 0.001785714286 | AX111: 0.005952380952 | AY111: -0.004166666667 | AZ111: -1.489259787e-18 | BA111: 1.739314212e-18 | BB111: 4.638171231e-19 | BD111: -0.001785714286 | BE111: -0.001785714286 | BF111: -0.001785714286 | BG111: -0.001785714286 | BH111: -0.001785714286 | BI111: -4.33680869e-19 | BJ111: 0.004166666667 | BK111: 0.004166666667 | BL111: 0.004166666667 | BM111: 0.004166666667 | BN111: 0.004166666667 | BO111: 0 | BP111: -8.67361738e-19 | BQ111: 0 | BR111: 0 | BS111: -1.489259787e-18 | BT111: -2.356621525e-18 | BU111: -1.489259787e-18 | BV111: 2.500544242e-19 | BW111: -6.173073138e-19 | BX111: 7.138715473e-19 | BZ111: 188.1320895 | CB111: -0.8472978604 | CD111: =CB111-CG78/$K$1 -> -1.017256363
A112: 8 | B112: 50 | D112: 3.822045711 | F112: 0 | G112: 0 | H112: 0 | I112: 0 | J112: 0 | K112: 0 | L112: 0 | M112: 45.69759684 | N112: 0 | O112: 0 | P112: 0 | Q112: 0 | R112: 0 | S112: 0 | T112: 0 | U112: 0 | V112: 0 | W112: 0 | X112: 0 | Y112: 0 | Z112: 0 | AB112: 195 | AC112: 57.67467719 | AD112: 50.15243902 | AE112: 23.125 | AF112: 0 | AG112: 0 | AH112: 195 | AI112: 195 | AJ112: 105 | AK112: 25.00000001 | AL112: 5 | AN112: 3.916195151 | AP112: =OFFSET(AA104,A112,A112) -> 195 | AR112: -0.0003373015873 | AS112: -3.173419148e-18 | AT112: -4.115262799e-18 | AU112: -3.419486409e-18 | AV112: 0.001587301587 | AW112: 0.0003373015873 | AX112: -0.004166666667 | AY112: 0.01561507937 | AZ112: -0.01111111111 | BA112: -9.231764795e-18 | BB112: 0 | BD112: -0.0003373015873 | BE112: -0.0003373015873 | BF112: -0.0003373015873 | BG112: -0.0003373015873 | BH112: 0.00125 | BI112: 0 | BJ112: -0.004503968254 | BK112: -0.004503968254 | BL112: -0.004503968254 | BM112: -0.004503968254 | BN112: -0.002916666667 | BO112: 0.01111111111 | BP112: 0.01111111111 | BQ112: 0.01111111111 | BR112: 0.01111111111 | BS112: 8.67361738e-18 | BT112: 5.204170428e-18 | BU112: 3.469446952e-18 | BV112: -5.581474155e-19 | BW112: -4.027594367e-18 | BX112: -5.581474155e-19 | BZ112: 178.9607072 | CB112: -0.7419373447 | CD112: =CB112-CG78/$K$1 -> -0.9118958476
A113: 9 | B113: 60 | D113: 3.870247813 | F113: 0 | G113: 0 | H113: 0 | I113: 0 | J113: 0 | K113: 0 | L113: 0 | M113: 0 | N113: 47.95426829 | O113: 0 | P113: 0 | Q113: 0 | R113: 0 | S113: 0 | T113: 0 | U113: 0 | V113: 0 | W113: 0 | X113: 0 | Y113: 0 | Z113: 0 | AB113: 105 | AC113: 35.91391679 | AD113: 27.31707317 | AE113: 0 | AF113: 0 | AG113: 0 | AH113: 105 | AI113: 105 | AJ113: 105 | AK113: 25.00000001 | AL113: 5 | AN113: 4.121439878 | AP113: =OFFSET(AA104,A113,A113) -> 105 | AR113: -0.0004802699896 | AS113: 2.092999033e-18 | AT113: 3.102779269e-18 | AU113: 0.001869158879 | AV113: 0.0004802699896 | AW113: 0.0004802699896 | AX113: 7.301870831e-19 | AY113: -0.01111111111 | AZ113: 0.0240913811 | BA113: -0.0125 | BB113: -2.350034002e-18 | BD113: -0.0004802699896 | BE113: -0.0004802699896 | BF113: -0.0004802699896 | BG113: 0.001388888889 | BH113: -7.047314121e-19 | BI113: -2.168404345e-19 | BJ113: -0.0004802699896 | BK113: -0.0004802699896 | BL113: -0.0004802699896 | BM113: 0.001388888889 | BN113: 2.545567094e-20 | BO113: -0.0115913811 | BP113: -0.0115913811 | BQ113: -0.0115913811 | BR113: -0.009722222222 | BS113: 0.0125 | BT113: 0.0125 | BU113: 0.0125 | BV113: -1.734723476e-18 | BW113: 0 | BX113: -4.084757478e-18 | BZ113: 197.6406337 | CB113: 0.1792014295 | CD113: =CB113-CG78/$K$1 -> 0.009242926562
A114: 10 | B114: 35 | D114: 3.882851628 | F114: 0 | G114: 0 | H114: 0 | I114: 0 | J114: 0 | K114: 0 | L114: 0 | M114: 0 | N114: 0 | O114: 48.5625 | P114: 0 | Q114: 0 | R114: 0 | S114: 0 | T114: 0 | U114: 0 | V114: 0 | W114: 0 | X114: 0 | Y114: 0 | Z114: 0 | AB114: 25.00000001 | AC114: 9.882352946 | AD114: 0 | AE114: 0 | AF114: 0 | AG114: 0 | AH114: 25.00000001 | AI114: 25.00000001 | AJ114: 25.00000001 | AK114: 25.00000001 | AL114: 5 | AN114: 3.603572349 | AP114: =OFFSET(AA104,A114,A114) -> 25.00000001 | AR114: -0.0008431195423 | AS114: -9.269358024e-19 | AT114: 0.002469135802 | AU114: 0.0008431195423 | AV114: 0.0008431195423 | AW114: 0.0008431195423 | AX114: 2.209356563e-18 | AY114: -7.738088999e-18 | AZ114: -0.0125 | BA114: 0.06334311952 | BB114: -0.04999999998 | BD114: -0.0008431195423 | BE114: -0.0008431195423 | BF114: 0.00162601626 | BG114: 1.084202172e-18 | BH114: 5.421010862e-19 | BI114: 1.084202172e-18 | BJ114: -0.0008431195423 | BK114: -0.0008431195423 | BL114: 0.00162601626 | BM114: 3.293558736e-18 | BN114: 2.75145765e-18 | BO114: -0.0008431195423 | BP114: -0.0008431195423 | BQ114: 0.00162601626 | BR114: -4.444530263e-18 | BS114: -0.01334311954 | BT114: -0.01334311954 | BU114: -0.01087398374 | BV114: 0.04999999998 | BW114: 0.04999999998 | BX114: 1.387778781e-17 | BZ114: 174.9984822 | CB114: -0.9685591604 | CD114: =CB114-CG78/$K$1 -> -1.138517663
A115: 11 | B115: 40 | D115: 3.931825633 | F115: =IF($A115=F$4,IF($B115<0,-(EXP(-$D115)^(2-$H$1)),IF($B115=0,0,EXP($D115)^(2-$H$1))),0) -> 0 | G115: 0 | H115: 0 | I115: 0 | J115: 0 | K115: 0 | L115: 0 | M115: 0 | N115: 0 | O115: 0 | P115: =IF($A115=P$4,IF($B115<0,-(EXP(-$D115)^(2-$H$1)),IF($B115=0,0,EXP($D115)^(2-$H$1))),0) -> 51 | Q115: 0 | R115: 0 | S115: 0 | T115: 0 | U115: 0 | V115: 0 | W115: 0 | X115: 0 | Y115: 0 | Z115: 0 | AB115: 5 | AC115: 0 | AD115: 0 | AE115: 0 | AF115: 0 | AG115: 0 | AH115: 5 | AI115: 5 | AJ115: 5 | AK115: 5 | AL115: 5 | AN115: 3.716139358 | AP115: =OFFSET(AA104,A115,A115) -> 5 | AR115: -0.002298221614 | AS115: 0.004651162791 | AT115: 0.002298221614 | AU115: 0.002298221614 | AV115: 0.002298221614 | AW115: 0.002298221614 | AX115: -1.553277569e-18 | AY115: 5.369669215e-18 | AZ115: -1.750670592e-18 | BA115: -0.04999999998 | BB115: 0.2522982216 | BD115: -0.002298221614 | BE115: 0.002352941176 | BF115: -1.734723476e-18 | BG115: -4.33680869e-19 | BH115: -8.67361738e-19 | BI115: -1.734723476e-18 | BJ115: -0.002298221614 | BK115: 0.002352941176 | BL115: -3.288001045e-18 | BM115: -1.986958438e-18 | BN115: -2.420639307e-18 | BO115: -0.002298221614 | BP115: 0.002352941176 | BQ115: 2.081668169e-18 | BR115: 3.382710776e-18 | BS115: -0.002298221614 | BT115: 0.002352941176 | BU115: 3.309975777e-19 | BV115: -0.05229822159 | BW115: -0.0476470588 | BX115: 0.2 | BZ115: 189.5231073 | CB115: -0.7048432203 | CD115: =CB115-CG78/$K$1 -> -0.8748017232
A116: 12 | B116: 20 | D116: 3.103638864 | F116: 0 | G116: 0 | H116: 0 | I116: 0 | J116: 0 | K116: 0 | L116: 0 | M116: 0 | N116: 0 | O116: 0 | P116: 0 | Q116: 22.27887374 | R116: 0 | S116: 0 | T116: 0 | U116: 0 | V116: 0 | W116: 0 | X116: 0 | Y116: 0 | Z116: 0 | AN116: 3.001350311 | BZ116: 66.86670465
A117: 13 | B117: 15 | D117: 3.080108366 | F117: 0 | G117: 0 | H117: 0 | I117: 0 | J117: 0 | K117: 0 | L117: 0 | M117: 0 | N117: 0 | O117: 0 | P117: 0 | Q117: 0 | R117: 21.7607604 | S117: 0 | T117: 0 | U117: 0 | V117: 0 | W117: 0 | X117: 0 | Y117: 0 | Z117: 0 | AN117: 2.769422514 | BZ117: 60.26473977
A118: 14 | B118: 25 | D118: 3.128310468 | F118: 0 | G118: 0 | H118: 0 | I118: 0 | J118: 0 | K118: 0 | L118: 0 | M118: 0 | N118: 0 | O118: 0 | P118: 0 | Q118: 0 | R118: 0 | S118: 22.83536585 | T118: 0 | U118: 0 | V118: 0 | W118: 0 | X118: 0 | Y118: 0 | Z118: 0 | AN118: 3.223103526 | BZ118: 73.60074819
A119: 15 | B119: 30 | D119: 3.140914283 | F119: 0 | G119: 0 | H119: 0 | I119: 0 | J119: 0 | K119: 0 | L119: 0 | M119: 0 | N119: 0 | O119: 0 | P119: 0 | Q119: 0 | R119: 0 | S119: 0 | T119: 23.125 | U119: 0 | V119: 0 | W119: 0 | X119: 0 | Y119: 0 | Z119: 0 | AN119: 3.438211581 | BZ119: 79.5086428
A120: 16 | B120: 30 | D120: 3.282840293 | F120: 0 | G120: 0 | H120: 0 | I120: 0 | J120: 0 | K120: 0 | L120: 0 | M120: 0 | N120: 0 | O120: 0 | P120: 0 | Q120: 0 | R120: 0 | S120: 0 | T120: 0 | U120: 26.65136298 | V120: 0 | W120: 0 | X120: 0 | Y120: 0 | Z120: 0 | AN120: 3.408486288 | BZ120: 90.84080529
A121: 17 | B121: 30 | D121: 3.259309796 | F121: 0 | G121: 0 | H121: 0 | I121: 0 | J121: 0 | K121: 0 | L121: 0 | M121: 0 | N121: 0 | O121: 0 | P121: 0 | Q121: 0 | R121: 0 | S121: 0 | T121: 0 | U121: 0 | V121: 26.03156385 | W121: 0 | X121: 0 | Y121: 0 | Z121: 0 | AN121: 3.411756886 | BZ121: 88.81336719
A122: 18 | B122: 20 | D122: 3.307511898 | F122: 0 | G122: 0 | H122: 0 | I122: 0 | J122: 0 | K122: 0 | L122: 0 | M122: 0 | N122: 0 | O122: 0 | P122: 0 | Q122: 0 | R122: 0 | S122: 0 | T122: 0 | U122: 0 | V122: 0 | W122: 27.31707317 | X122: 0 | Y122: 0 | Z122: 0 | AN122: 3.039654755 | BZ122: 83.03447135
A123: 19 | B123: 15 | D123: 2.314281133 | F123: 0 | G123: 0 | H123: 0 | I123: 0 | J123: 0 | K123: 0 | L123: 0 | M123: 0 | N123: 0 | O123: 0 | P123: 0 | Q123: 0 | R123: 0 | S123: 0 | T123: 0 | U123: 0 | V123: 0 | W123: 0 | X123: 10.11764706 | Y123: 0 | Z123: 0 | AN123: 2.796839272 | BZ123: 28.29743265
A124: 20 | B124: 5 | D124: 2.290750636 | F124: 0 | G124: 0 | H124: 0 | I124: 0 | J124: 0 | K124: 0 | L124: 0 | M124: 0 | N124: 0 | O124: 0 | P124: 0 | Q124: 0 | R124: 0 | S124: 0 | T124: 0 | U124: 0 | V124: 0 | W124: 0 | X124: 0 | Y124: 9.882352946 | Z124: 0 | AN124: 1.796703017 | BZ124: 17.75565335
A125: 21 | B125: 5 | D125: 1.609437912 | F125: 0 | G125: 0 | H125: 0 | I125: 0 | J125: 0 | K125: 0 | L125: 0 | M125: 0 | N125: 0 | O125: 0 | P125: 0 | Q125: 0 | R125: 0 | S125: 0 | T125: 0 | U125: 0 | V125: 0 | W125: 0 | X125: 0 | Y125: 0 | Z125: 5 | AN125: 1.609437912 | BZ125: 8.047189562
A127: Newton-Raphson Interation Sequence -- Iteration 6
B128: y(i) | D128: xb(i) | F128: W(i,i) | AB128: XWX | AN128: zz(i) | AP128: factor | AR128: xwx-1 | BD128: aa1(i,j) | BZ128: aa2(j) | CB128: beta(j) | CD128: beta_diff = | CE128: =SUM(CD130:CD140) -> -3.330669074e-15 | CF128: beta_old = | CG128: =SUM(CB130:CB140) -> 1.869543532
B129: 1 | D129: 1 | F129: 1 | G129: 2 | H129: 3 | I129: 4 | J129: 5 | K129: 6 | L129: 7 | M129: 8 | N129: 9 | O129: 10 | P129: 11 | Q129: 12 | R129: 13 | S129: 14 | T129: 15 | U129: 16 | V129: 17 | W129: 18 | X129: 19 | Y129: 20 | Z129: 21 | AB129: 1 | AC129: 2 | AD129: 3 | AE129: 4 | AF129: 5 | AG129: 6 | AH129: 7 | AI129: 8 | AJ129: 9 | AK129: 10 | AL129: 11 | AN129: 1 | AR129: 1 | AS129: 2 | AT129: 3 | AU129: 4 | AV129: 5 | AW129: 6 | AX129: 7 | AY129: 8 | AZ129: 9 | BA129: 10 | BB129: 11 | BD129: 1 | BE129: 2 | BF129: 3 | BG129: 4 | BH129: 5 | BI129: 6 | BJ129: 7 | BK129: 8 | BL129: 9 | BM129: 10 | BN129: 11 | BO129: 12 | BP129: 13 | BQ129: 14 | BR129: 15 | BS129: 16 | BT129: 17 | BU129: 18 | BV129: 19 | BW129: 20 | BX129: 21
A130: 1 | B130: =B105 -> 95 | D130: =MMULT(DesignMatrix,CB105:CB115) -> 4.692874069 | F130: =IF($A130=F$4,IF($B130<0,-(EXP(-$D130)^(2-$H$1)),IF($B130=0,0,EXP($D130)^(2-$H$1))),0) -> 109.1664813 | G130: 0 | H130: 0 | I130: 0 | J130: 0 | K130: 0 | L130: 0 | M130: 0 | N130: 0 | O130: 0 | P130: =IF($A130=P$4,IF($B130<0,-(EXP(-$D130)^(2-$H$1)),IF($B130=0,0,EXP($D130)^(2-$H$1))),0) -> 0 | Q130: 0 | R130: 0 | S130: 0 | T130: 0 | U130: 0 | V130: 0 | W130: 0 | X130: 0 | Y130: 0 | Z130: 0 | AB130: =MMULT(TRANSPOSE(DesignMatrix),MMULT(F130:Z150,DesignMatrix)) -> 1120 | AC130: 210 | AD130: 210 | AE130: 185 | AF130: 170 | AG130: 125 | AH130: 435 | AI130: 195 | AJ130: 105 | AK130: 25 | AL130: 5 | AN130: =IF(B130<0,D130+(B130+EXP(-D130))/-EXP(-D130),IF(B130=0,0,D130+(B130-EXP(D130))/EXP(D130))) -> 4.563104554 | AP130: =OFFSET(AA129,A130,A130) -> 1120 | AR130: =MINVERSE(AB130:AL140) -> 0.005744627019 | AS130: -0.004651162791 | AT130: -0.004767357417 | AU130: -0.005010500035 | AV130: -0.005208912733 | AW130: -0.005744627019 | AX130: -0.001785714286 | AY130: -0.0003373015873 | AZ130: -0.0004802699896 | BA130: -0.0008431195423 | BB130: -0.002298221614 | BD130: =MMULT(AR130:BB140,TRANSPOSE(DesignMatrix)) -> 0.005744627019 | BE130: 0.001093464228 | BF130: 0.0009772696025 | BG130: 0.0007341269841 | BH130: 0.0005357142857 | BI130: 0 | BJ130: 0.003958912733 | BK130: -0.0006922500572 | BL130: -0.0008084446832 | BM130: -0.001051587302 | BN130: -0.00125 | BO130: 0.003621611146 | BP130: -0.001029551645 | BQ130: -0.001145746271 | BR130: -0.001388888889 | BS130: 0.003141341157 | BT130: -0.001509821634 | BU130: -0.00162601626 | BV130: 0.002298221614 | BW130: -0.002352941176 | BX130: -4.33680869e-19 | BZ130: =MMULT(F130:Z150,AN130:AN150) -> 498.1380682 | CB130: =MMULT(BD130:BX140,BZ130:BZ150) -> 4.692874069 | CD130: =CB130-CG103/$K$1 -> 4.522915566
A131: 2 | B131: =B106 -> 110 | D131: 4.669343571 | F131: 0 | G131: 106.627726 | H131: 0 | I131: 0 | J131: 0 | K131: 0 | L131: 0 | M131: 0 | N131: 0 | O131: 0 | P131: 0 | Q131: 0 | R131: 0 | S131: 0 | T131: 0 | U131: 0 | V131: 0 | W131: 0 | X131: 0 | Y131: 0 | Z131: 0 | AB131: 210 | AC131: 210 | AD131: 0 | AE131: 0 | AF131: 0 | AG131: 0 | AH131: 103.372274 | AI131: 57.67467719 | AJ131: 35.91391679 | AK131: 9.882352941 | AL131: 0 | AN131: =IF(B131<0,D131+(B131+EXP(-D131))/-EXP(-D131),IF(B131=0,0,D131+(B131-EXP(D131))/EXP(D131))) -> 4.700970186 | AP131: =OFFSET(AA129,A131,A131) -> 210 | AR131: -0.004651162791 | AS131: 0.009413067553 | AT131: 0.004651162791 | AU131: 0.004651162791 | AV131: 0.004651162791 | AW131: 0.004651162791 | AX131: 1.61457389e-18 | AY131: -2.704541323e-18 | AZ131: 1.913564206e-18 | BA131: -1.220025302e-19 | BB131: 0.004651162791 | BD131: -0.004651162791 | BE131: 0.004761904762 | BF131: 8.67361738e-19 | BG131: 0 | BH131: 0 | BI131: 8.67361738e-19 | BJ131: -0.004651162791 | BK131: 0.004761904762 | BL131: 2.481935628e-18 | BM131: 1.61457389e-18 | BN131: 1.61457389e-18 | BO131: -0.004651162791 | BP131: 0.004761904762 | BQ131: -2.226056944e-19 | BR131: -1.089967432e-18 | BS131: -0.004651162791 | BT131: 0.004761904762 | BU131: 1.690958512e-18 | BV131: -0.004651162791 | BW131: 0.004761904762 | BX131: 8.67361738e-19 | BZ131: 501.2537608 | CB131: -0.02353049741 | CD131: =CB131-CG103/$K$1 -> -0.1934890003
A132: 3 | B132: 105 | D132: 4.717545673 | F132: 0 | G132: 0 | H132: 111.8932927 | I132: 0 | J132: 0 | K132: 0 | L132: 0 | M132: 0 | N132: 0 | O132: 0 | P132: 0 | Q132: 0 | R132: 0 | S132: 0 | T132: 0 | U132: 0 | V132: 0 | W132: 0 | X132: 0 | Y132: 0 | Z132: 0 | AB132: 210 | AC132: 0 | AD132: 210 | AE132: 0 | AF132: 0 | AG132: 0 | AH132: 98.10670732 | AI132: 50.15243902 | AJ132: 27.31707317 | AK132: 0 | AL132: 0 | AN132: 4.655939722 | AP132: =OFFSET(AA129,A132,A132) -> 210 | AR132: -0.004767357417 | AS132: 0.004651162791 | AT132: 0.009529262179 | AU132: 0.004767357417 | AV132: 0.004767357417 | AW132: 0.004767357417 | AX132: 1.752030087e-18 | AY132: -3.740465717e-18 | AZ132: 2.441374175e-18 | BA132: 0.002469135802 | BB132: 0.002298221614 | BD132: -0.004767357417 | BE132: -0.000116194626 | BF132: 0.004761904762 | BG132: 0 | BH132: -1.734723476e-18 | BI132: 0 | BJ132: -0.004767357417 | BK132: -0.000116194626 | BL132: 0.004761904762 | BM132: 1.752030087e-18 | BN132: 1.7306611e-20 | BO132: -0.004767357417 | BP132: -0.000116194626 | BQ132: 0.004761904762 | BR132: -1.98843563e-18 | BS132: -0.004767357417 | BT132: -0.000116194626 | BU132: 0.004761904762 | BV132: -0.002298221614 | BW132: 0.002352941176 | BX132: 8.67361738e-19 | BZ132: 520.9684261 | CB132: 0.02467160441 | CD132: =CB132-CG103/$K$1 -> -0.1452868985
A133: 4 | B133: 120 | D133: 4.730149489 | F133: 0 | G133: 0 | H133: 0 | I133: 113.3125 | J133: 0 | K133: 0 | L133: 0 | M133: 0 | N133: 0 | O133: 0 | P133: 0 | Q133: 0 | R133: 0 | S133: 0 | T133: 0 | U133: 0 | V133: 0 | W133: 0 | X133: 0 | Y133: 0 | Z133: 0 | AB133: 185 | AC133: 0 | AD133: 0 | AE133: 185 | AF133: 0 | AG133: 0 | AH133: 71.6875 | AI133: 23.125 | AJ133: 0 | AK133: 0 | AL133: 0 | AN133: 4.78916769 | AP133: =OFFSET(AA129,A133,A133) -> 185 | AR133: -0.005010500035 | AS133: 0.004651162791 | AT133: 0.004767357417 | AU133: 0.01041590544 | AV133: 0.005010500035 | AW133: 0.005010500035 | AX133: 1.861110268e-18 | AY133: -3.922729805e-18 | AZ133: 0.001869158879 | BA133: 0.0008431195423 | BB133: 0.002298221614 | BD133: -0.005010500035 | BE133: -0.0003593372443 | BF133: -0.0002431426183 | BG133: 0.005405405405 | BH133: -8.67361738e-19 | BI133: 0 | BJ133: -0.005010500035 | BK133: -0.0003593372443 | BL133: -0.0002431426183 | BM133: 0.005405405405 | BN133: 9.937485297e-19 | BO133: -0.005010500035 | BP133: -0.0003593372443 | BQ133: -0.0002431426183 | BR133: 0.005405405405 | BS133: -0.003141341157 | BT133: 0.001509821634 | BU133: 0.00162601626 | BV133: -0.002298221614 | BW133: 0.002352941176 | BX133: 0 | BZ133: 542.6725639 | CB133: 0.03727541968 | CD133: =CB133-CG103/$K$1 -> -0.1326830832
A134: 5 | B134: 130 | D134: 4.779123493 | F134: 0 | G134: 0 | H134: 0 | I134: 0 | J134: 119 | K134: 0 | L134: 0 | M134: 0 | N134: 0 | O134: 0 | P134: 0 | Q134: 0 | R134: 0 | S134: 0 | T134: 0 | U134: 0 | V134: 0 | W134: 0 | X134: 0 | Y134: 0 | Z134: 0 | AB134: 170 | AC134: 0 | AD134: 0 | AE134: 0 | AF134: 170 | AG134: 0 | AH134: 51 | AI134: 0 | AJ134: 0 | AK134: 0 | AL134: 0 | AN134: 4.871560468 | AP134: =OFFSET(AA129,A134,A134) -> 170 | AR134: -0.005208912733 | AS134: 0.004651162791 | AT134: 0.004767357417 | AU134: 0.005010500035 | AV134: 0.01109126567 | AW134: 0.005208912733 | AX134: 1.980567422e-18 | AY134: 0.001587301587 | AZ134: 0.0004802699896 | BA134: 0.0008431195423 | BB134: 0.002298221614 | BD134: -0.005208912733 | BE134: -0.0005577499428 | BF134: -0.0004415553168 | BG134: -0.0001984126984 | BH134: 0.005882352941 | BI134: 0 | BJ134: -0.005208912733 | BK134: -0.0005577499428 | BL134: -0.0004415553168 | BM134: -0.0001984126984 | BN134: 0.005882352941 | BO134: -0.003621611146 | BP134: 0.001029551645 | BQ134: 0.001145746271 | BR134: 0.001388888889 | BS134: -0.003141341157 | BT134: 0.001509821634 | BU134: 0.00162601626 | BV134: -0.002298221614 | BW134: 0.002352941176 | BX134: -4.33680869e-19 | BZ134: 579.7156957 | CB134: 0.08624942428 | CD134: =CB134-CG103/$K$1 -> -0.08370907862
A135: 6 | B135: 125 | D135: 4.828313737 | F135: 0 | G135: 0 | H135: 0 | I135: 0 | J135: 0 | K135: 125 | L135: 0 | M135: 0 | N135: 0 | O135: 0 | P135: 0 | Q135: 0 | R135: 0 | S135: 0 | T135: 0 | U135: 0 | V135: 0 | W135: 0 | X135: 0 | Y135: 0 | Z135: 0 | AB135: 125 | AC135: 0 | AD135: 0 | AE135: 0 | AF135: 0 | AG135: 125 | AH135: 0 | AI135: 0 | AJ135: 0 | AK135: 0 | AL135: 0 | AN135: 4.828313737 | AP135: =OFFSET(AA129,A135,A135) -> 125 | AR135: -0.005744627019 | AS135: 0.004651162791 | AT135: 0.004767357417 | AU135: 0.005010500035 | AV135: 0.005208912733 | AW135: 0.01374462702 | AX135: 0.001785714286 | AY135: 0.0003373015873 | AZ135: 0.0004802699896 | BA135: 0.0008431195423 | BB135: 0.002298221614 | BD135: -0.005744627019 | BE135: -0.001093464228 | BF135: -0.0009772696025 | BG135: -0.0007341269841 | BH135: -0.0005357142857 | BI135: 0.008 | BJ135: -0.003958912733 | BK135: 0.0006922500572 | BL135: 0.0008084446832 | BM135: 0.001051587302 | BN135: 0.00125 | BO135: -0.003621611146 | BP135: 0.001029551645 | BQ135: 0.001145746271 | BR135: 0.001388888889 | BS135: -0.003141341157 | BT135: 0.001509821634 | BU135: 0.00162601626 | BV135: -0.002298221614 | BW135: 0.002352941176 | BX135: 4.33680869e-19 | BZ135: 603.5392172 | CB135: 0.1354396685 | CD135: =CB135-CG103/$K$1 -> -0.03451883443
A136: 7 | B136: 55 | D136: 3.845576208 | F136: 0 | G136: 0 | H136: 0 | I136: 0 | J136: 0 | K136: 0 | L136: 46.78563486 | M136: 0 | N136: 0 | O136: 0 | P136: 0 | Q136: 0 | R136: 0 | S136: 0 | T136: 0 | U136: 0 | V136: 0 | W136: 0 | X136: 0 | Y136: 0 | Z136: 0 | AB136: 435 | AC136: 103.372274 | AD136: 98.10670732 | AE136: 71.6875 | AF136: 51 | AG136: 0 | AH136: 435 | AI136: 195 | AJ136: 105 | AK136: 25 | AL136: 5 | AN136: 4.021150723 | AP136: =OFFSET(AA129,A136,A136) -> 435 | AR136: -0.001785714286 | AS136: 1.558135648e-18 | AT136: 1.746561354e-18 | AU136: 1.569006362e-18 | AV136: 1.858892064e-18 | AW136: 0.001785714286 | AX136: 0.005952380952 | AY136: -0.004166666667 | AZ136: 1.000217697e-18 | BA136: -5.797714039e-19 | BB136: 1.391451369e-18 | BD136: -0.001785714286 | BE136: -0.001785714286 | BF136: -0.001785714286 | BG136: -0.001785714286 | BH136: -0.001785714286 | BI136: -4.33680869e-19 | BJ136: 0.004166666667 | BK136: 0.004166666667 | BL136: 0.004166666667 | BM136: 0.004166666667 | BN136: 0.004166666667 | BO136: -1.734723476e-18 | BP136: -8.67361738e-19 | BQ136: 0 | BR136: -8.67361738e-19 | BS136: -7.34505779e-19 | BT136: 1.32855959e-19 | BU136: 1.000217697e-18 | BV136: -1.314277183e-18 | BW136: -4.469154449e-19 | BX136: 7.717418642e-20 | BZ136: 188.1320895 | CB136: -0.8472978604 | CD136: =CB136-CG103/$K$1 -> -1.017256363
A137: 8 | B137: 50 | D137: 3.822045711 | F137: 0 | G137: 0 | H137: 0 | I137: 0 | J137: 0 | K137: 0 | L137: 0 | M137: 45.69759684 | N137: 0 | O137: 0 | P137: 0 | Q137: 0 | R137: 0 | S137: 0 | T137: 0 | U137: 0 | V137: 0 | W137: 0 | X137: 0 | Y137: 0 | Z137: 0 | AB137: 195 | AC137: 57.67467719 | AD137: 50.15243902 | AE137: 23.125 | AF137: 0 | AG137: 0 | AH137: 195 | AI137: 195 | AJ137: 105 | AK137: 25 | AL137: 5 | AN137: 3.916195151 | AP137: =OFFSET(AA129,A137,A137) -> 195 | AR137: -0.0003373015873 | AS137: -2.613404005e-18 | AT137: -2.486127836e-18 | AU137: -2.596433849e-18 | AV137: 0.001587301587 | AW137: 0.0003373015873 | AX137: -0.004166666667 | AY137: 0.01561507937 | AZ137: -0.01111111111 | BA137: -2.307941199e-18 | BB137: 3.258269928e-18 | BD137: -0.0003373015873 | BE137: -0.0003373015873 | BF137: -0.0003373015873 | BG137: -0.0003373015873 | BH137: 0.00125 | BI137: 4.33680869e-19 | BJ137: -0.004503968254 | BK137: -0.004503968254 | BL137: -0.004503968254 | BM137: -0.004503968254 | BN137: -0.002916666667 | BO137: 0.01111111111 | BP137: 0.01111111111 | BQ137: 0.01111111111 | BR137: 0.01111111111 | BS137: 1.734723476e-18 | BT137: -1.734723476e-18 | BU137: -1.734723476e-18 | BV137: -5.732177229e-19 | BW137: -4.042664675e-18 | BX137: 2.685052205e-18 | BZ137: 178.9607072 | CB137: -0.7419373447 | CD137: =CB137-CG103/$K$1 -> -0.9118958476
A138: 9 | B138: 60 | D138: 3.870247813 | F138: 0 | G138: 0 | H138: 0 | I138: 0 | J138: 0 | K138: 0 | L138: 0 | M138: 0 | N138: 47.95426829 | O138: 0 | P138: 0 | Q138: 0 | R138: 0 | S138: 0 | T138: 0 | U138: 0 | V138: 0 | W138: 0 | X138: 0 | Y138: 0 | Z138: 0 | AB138: 105 | AC138: 35.91391679 | AD138: 27.31707317 | AE138: 0 | AF138: 0 | AG138: 0 | AH138: 105 | AI138: 105 | AJ138: 105 | AK138: 25 | AL138: 5 | AN138: 4.121439878 | AP138: =OFFSET(AA129,A138,A138) -> 105 | AR138: -0.0004802699896 | AS138: 1.542209814e-18 | AT138: 1.009780235e-18 | AU138: 0.001869158879 | AV138: 0.0004802699896 | AW138: 0.0004802699896 | AX138: 2.761416773e-18 | AY138: -0.01111111111 | AZ138: 0.0240913811 | BA138: -0.0125 | BB138: -1.410020401e-17 | BD138: -0.0004802699896 | BE138: -0.0004802699896 | BF138: -0.0004802699896 | BG138: 0.001388888889 | BH138: -1.029992064e-18 | BI138: 1.084202172e-19 | BJ138: -0.0004802699896 | BK138: -0.0004802699896 | BL138: -0.0004802699896 | BM138: 0.001388888889 | BN138: 1.731424709e-18 | BO138: -0.0115913811 | BP138: -0.0115913811 | BQ138: -0.0115913811 | BR138: -0.009722222222 | BS138: 0.0125 | BT138: 0.0125 | BU138: 0.0125 | BV138: 5.204170428e-18 | BW138: 6.938893904e-18 | BX138: -8.896033587e-18 | BZ138: 197.6406337 | CB138: 0.1792014295 | CD138: =CB138-CG103/$K$1 -> 0.009242926562
A139: 10 | B139: 35 | D139: 3.882851628 | F139: 0 | G139: 0 | H139: 0 | I139: 0 | J139: 0 | K139: 0 | L139: 0 | M139: 0 | N139: 0 | O139: 48.5625 | P139: 0 | Q139: 0 | R139: 0 | S139: 0 | T139: 0 | U139: 0 | V139: 0 | W139: 0 | X139: 0 | Y139: 0 | Z139: 0 | AB139: 25 | AC139: 9.882352941 | AD139: 0 | AE139: 0 | AF139: 0 | AG139: 0 | AH139: 25 | AI139: 25 | AJ139: 25 | AK139: 25 | AL139: 5 | AN139: 3.603572349 | AP139: =OFFSET(AA129,A139,A139) -> 25 | AR139: -0.0008431195423 | AS139: -1.853871605e-19 | AT139: 0.002469135802 | AU139: 0.0008431195423 | AV139: 0.0008431195423 | AW139: 0.0008431195423 | AX139: -2.34772701e-18 | AY139: 2.810659464e-18 | AZ139: -0.0125 | BA139: 0.06334311954 | BB139: -0.05 | BD139: -0.0008431195423 | BE139: -0.0008431195423 | BF139: 0.00162601626 | BG139: 7.589415207e-19 | BH139: 2.168404345e-19 | BI139: -1.084202172e-18 | BJ139: -0.0008431195423 | BK139: -0.0008431195423 | BL139: 0.00162601626 | BM139: -1.588785489e-18 | BN139: -2.130886575e-18 | BO139: -0.0008431195423 | BP139: -0.0008431195423 | BQ139: 0.00162601626 | BR139: 1.221873975e-18 | BS139: -0.01334311954 | BT139: -0.01334311954 | BU139: -0.01087398374 | BV139: 0.05 | BW139: 0.05 | BX139: 1.387778781e-17 | BZ139: 174.9984822 | CB139: -0.9685591604 | CD139: =CB139-CG103/$K$1 -> -1.138517663
A140: 11 | B140: 40 | D140: 3.931825633 | F140: =IF($A140=F$4,IF($B140<0,-(EXP(-$D140)^(2-$H$1)),IF($B140=0,0,EXP($D140)^(2-$H$1))),0) -> 0 | G140: 0 | H140: 0 | I140: 0 | J140: 0 | K140: 0 | L140: 0 | M140: 0 | N140: 0 | O140: 0 | P140: =IF($A140=P$4,IF($B140<0,-(EXP(-$D140)^(2-$H$1)),IF($B140=0,0,EXP($D140)^(2-$H$1))),0) -> 51 | Q140: 0 | R140: 0 | S140: 0 | T140: 0 | U140: 0 | V140: 0 | W140: 0 | X140: 0 | Y140: 0 | Z140: 0 | AB140: 5 | AC140: 0 | AD140: 0 | AE140: 0 | AF140: 0 | AG140: 0 | AH140: 5 | AI140: 5 | AJ140: 5 | AK140: 5 | AL140: 5 | AN140: 3.716139358 | AP140: =OFFSET(AA129,A140,A140) -> 5 | AR140: -0.002298221614 | AS140: 0.004651162791 | AT140: 0.002298221614 | AU140: 0.002298221614 | AV140: 0.002298221614 | AW140: 0.002298221614 | AX140: 2.972950583e-18 | AY140: -2.957003467e-18 | AZ140: -7.002682368e-18 | BA140: -0.05 | BB140: 0.2522982216 | BD140: -0.002298221614 | BE140: 0.002352941176 | BF140: 8.67361738e-19 | BG140: -1.301042607e-18 | BH140: 0 | BI140: 1.734723476e-18 | BJ140: -0.002298221614 | BK140: 0.002352941176 | BL140: 3.840312321e-18 | BM140: 1.671907976e-18 | BN140: 2.972950583e-18 | BO140: -0.002298221614 | BP140: 0.002352941176 | BQ140: 8.833088539e-19 | BR140: -1.285095491e-18 | BS140: -0.002298221614 | BT140: 0.002352941176 | BU140: -6.119373514e-18 | BV140: -0.05229822161 | BW140: -0.04764705882 | BX140: 0.2 | BZ140: 189.5231073 | CB140: -0.7048432203 | CD140: =CB140-CG103/$K$1 -> -0.8748017232
A141: 12 | B141: 20 | D141: 3.103638864 | F141: 0 | G141: 0 | H141: 0 | I141: 0 | J141: 0 | K141: 0 | L141: 0 | M141: 0 | N141: 0 | O141: 0 | P141: 0 | Q141: 22.27887374 | R141: 0 | S141: 0 | T141: 0 | U141: 0 | V141: 0 | W141: 0 | X141: 0 | Y141: 0 | Z141: 0 | AN141: 3.001350311 | BZ141: 66.86670465
A142: 13 | B142: 15 | D142: 3.080108366 | F142: 0 | G142: 0 | H142: 0 | I142: 0 | J142: 0 | K142: 0 | L142: 0 | M142: 0 | N142: 0 | O142: 0 | P142: 0 | Q142: 0 | R142: 21.7607604 | S142: 0 | T142: 0 | U142: 0 | V142: 0 | W142: 0 | X142: 0 | Y142: 0 | Z142: 0 | AN142: 2.769422514 | BZ142: 60.26473977
A143: 14 | B143: 25 | D143: 3.128310468 | F143: 0 | G143: 0 | H143: 0 | I143: 0 | J143: 0 | K143: 0 | L143: 0 | M143: 0 | N143: 0 | O143: 0 | P143: 0 | Q143: 0 | R143: 0 | S143: 22.83536585 | T143: 0 | U143: 0 | V143: 0 | W143: 0 | X143: 0 | Y143: 0 | Z143: 0 | AN143: 3.223103526 | BZ143: 73.60074819
A144: 15 | B144: 30 | D144: 3.140914283 | F144: 0 | G144: 0 | H144: 0 | I144: 0 | J144: 0 | K144: 0 | L144: 0 | M144: 0 | N144: 0 | O144: 0 | P144: 0 | Q144: 0 | R144: 0 | S144: 0 | T144: 23.125 | U144: 0 | V144: 0 | W144: 0 | X144: 0 | Y144: 0 | Z144: 0 | AN144: 3.438211581 | BZ144: 79.5086428
A145: 16 | B145: 30 | D145: 3.282840293 | F145: 0 | G145: 0 | H145: 0 | I145: 0 | J145: 0 | K145: 0 | L145: 0 | M145: 0 | N145: 0 | O145: 0 | P145: 0 | Q145: 0 | R145: 0 | S145: 0 | T145: 0 | U145: 26.65136298 | V145: 0 | W145: 0 | X145: 0 | Y145: 0 | Z145: 0 | AN145: 3.408486288 | BZ145: 90.84080529
A146: 17 | B146: 30 | D146: 3.259309796 | F146: 0 | G146: 0 | H146: 0 | I146: 0 | J146: 0 | K146: 0 | L146: 0 | M146: 0 | N146: 0 | O146: 0 | P146: 0 | Q146: 0 | R146: 0 | S146: 0 | T146: 0 | U146: 0 | V146: 26.03156385 | W146: 0 | X146: 0 | Y146: 0 | Z146: 0 | AN146: 3.411756886 | BZ146: 88.81336719
A147: 18 | B147: 20 | D147: 3.307511898 | F147: 0 | G147: 0 | H147: 0 | I147: 0 | J147: 0 | K147: 0 | L147: 0 | M147: 0 | N147: 0 | O147: 0 | P147: 0 | Q147: 0 | R147: 0 | S147: 0 | T147: 0 | U147: 0 | V147: 0 | W147: 27.31707317 | X147: 0 | Y147: 0 | Z147: 0 | AN147: 3.039654755 | BZ147: 83.03447135
A148: 19 | B148: 15 | D148: 2.314281133 | F148: 0 | G148: 0 | H148: 0 | I148: 0 | J148: 0 | K148: 0 | L148: 0 | M148: 0 | N148: 0 | O148: 0 | P148: 0 | Q148: 0 | R148: 0 | S148: 0 | T148: 0 | U148: 0 | V148: 0 | W148: 0 | X148: 10.11764706 | Y148: 0 | Z148: 0 | AN148: 2.796839272 | BZ148: 28.29743264
A149: 20 | B149: 5 | D149: 2.290750635 | F149: 0 | G149: 0 | H149: 0 | I149: 0 | J149: 0 | K149: 0 | L149: 0 | M149: 0 | N149: 0 | O149: 0 | P149: 0 | Q149: 0 | R149: 0 | S149: 0 | T149: 0 | U149: 0 | V149: 0 | W149: 0 | X149: 0 | Y149: 9.882352941 | Z149: 0 | AN149: 1.796703016 | BZ149: 17.75565334
A150: 21 | B150: 5 | D150: 1.609437912 | F150: 0 | G150: 0 | H150: 0 | I150: 0 | J150: 0 | K150: 0 | L150: 0 | M150: 0 | N150: 0 | O150: 0 | P150: 0 | Q150: 0 | R150: 0 | S150: 0 | T150: 0 | U150: 0 | V150: 0 | W150: 0 | X150: 0 | Y150: 0 | Z150: 5 | AN150: 1.609437912 | BZ150: 8.047189562

Sheet Diagnostics
A1: Residual Graphs | AC1: =AVERAGE(AJ5:AJ25) -> 0.01754049648 | AD1: =STDEV(AJ5:AJ25) -> 1.624348301
AC2: Normal RSS Calc | AF2: Normality for Pearson Residuals
W3: Exposure | X3: Develop | Y3: Calendar | Z3: Fitted | AC3: Scaled
W4: Offset | X4: Offset | Y4: Period | Z4: Values | AA4: Residual | AC4: Normal | AD4: Difference | AF4: Rank | AG4: Order | AH4: Percentile | AI4: PhiInv | AJ4: Sort | AK4: R2
V5: 1 | W5: 1 | X5: 0 | Y5: =IF(W5="","",W5+X5-1) -> 0 | Z5: =IF(W5="","",OFFSET(Data!$N$77,W5,X5)) -> 109.1664813 | AA5: =IF(W5="","",OFFSET(Data!$N$104,W5,X5)) -> -2.220410188 | AC5: =IF(AH5="","",NORMINV(AH5,$AC$1,$AD$1)) -> -3.051681798 | AD5: =IF(AC5="","",AJ5-AC5) -> 0.5097877083 | AF5: =IF(AA5="","",RANK(AA5,ResidY1Values,1)) -> 3 | AG5: =IF(W5="","",V5) -> 1 | AH5: =IF(W5="","",(AG5-0.375)/(Data!$P$113+0.25)) -> 0.02941176471 | AI5: =IF(W5="","",NORMINV(AH5,0,1)) -> -1.88950996 | AJ5: =IF(AA5="","",IF(ISERROR(MATCH(AG5,AF$5:AF$25,0)),0,OFFSET(AA$4,MATCH(AG5,AF$5:AF$25,0),0))) -> -2.54189409 | AK5: =CORREL(NormXValues,NormYValues)^2 -> 0.9353695261 | AM5: u | AN5: =LN(Data!$P$113) -> 3.044522438
V6: 2 | W6: 2 | X6: 0 | Y6: =IF(W6="","",W6+X6-1) -> 1 | Z6: =IF(W6="","",OFFSET(Data!$N$77,W6,X6)) -> 106.627726 | AA6: =IF(W6="","",OFFSET(Data!$N$104,W6,X6)) -> 0.5328353295 | AC6: =IF(AH6="","",NORMINV(AH6,$AC$1,$AD$1)) -> -2.304009648 | AD6: =IF(AC6="","",AJ6-AC6) -> 0.06713741051 | AF6: 11 | AG6: =IF(W6="","",V6) -> 2 | AH6: =IF(W6="","",(AG6-0.375)/(Data!$P$113+0.25)) -> 0.07647058824 | AI6: =IF(W6="","",NORMINV(AH6,0,1)) -> -1.429219424 | AJ6: =IF(AA6="","",IF(ISERROR(MATCH(AG6,AF$5:AF$25,0)),0,OFFSET(AA$4,MATCH(AG6,AF$5:AF$25,0),0))) -> -2.236872237 | AM6: v | AN6: =LN(AN5) -> 1.113344054
V7: 3 | W7: 3 | X7: 0 | Y7: 2 | Z7: =IF(W7="","",OFFSET(Data!$N$77,W7,X7)) -> 111.8932927 | AA7: =IF(W7="","",OFFSET(Data!$N$104,W7,X7)) -> -1.089405146 | AC7: -1.862679722 | AD7: -0.3577304662 | AF7: 7 | AG7: 3 | AH7: =IF(W7="","",(AG7-0.375)/(Data!$P$113+0.25)) -> 0.1235294118 | AI7: -1.157522815 | AJ7: -2.220410188 | AM7: Mu | AN7: =-1.2725+1.0521*(AN6-AN5) -> -3.304292778
V8: 4 | W8: 4 | X8: 0 | Y8: 3 | Z8: =IF(W8="","",OFFSET(Data!$N$77,W8,X8)) -> 113.3125 | AA8: =IF(W8="","",OFFSET(Data!$N$104,W8,X8)) -> 1.138842719 | AC8: -1.528584513 | AD8: -0.5460103392 | AF8: 16 | AG8: 4 | AH8: =IF(W8="","",(AG8-0.375)/(Data!$P$113+0.25)) -> 0.1705882353 | AI8: -0.9518432764 | AJ8: -2.074594852 | AM8: Sigma | AN8: =1.0308-0.26758*(AN6+2/AN5) -> 0.5571134194
V9: 5 | W9: 5 | X9: 0 | Y9: 4 | Z9: =IF(W9="","",OFFSET(Data!$N$77,W9,X9)) -> 119 | AA9: =IF(W9="","",OFFSET(Data!$N$104,W9,X9)) -> 2.074594852 | AC9: -1.249718211 | AD9: -0.5999380555 | AF9: 19 | AG9: 5 | AH9: =IF(W9="","",(AG9-0.375)/(Data!$P$113+0.25)) -> 0.2176470588 | AI9: -0.7801643936 | AJ9: -1.849656267 | AM9: z | AN9: =(LN(1-AK5)-AN7)/AN8 -> 1.014557378
V10: 6 | W10: 6 | X10: 0 | Y10: 5 | Z10: =IF(W10="","",OFFSET(Data!$N$77,W10,X10)) -> 125 | AA10: =IF(W10="","",OFFSET(Data!$N$104,W10,X10)) -> 0 | AC10: -1.004019001 | AD10: -0.7574126781 | AF10: 9 | AG10: 6 | AH10: =IF(W10="","",(AG10-0.375)/(Data!$P$113+0.25)) -> 0.2647058824 | AI10: -0.6289042176 | AJ10: -1.761431679 | AM10: p-Value | AN10: =1-NORMSDIST(AN9) -> 0.1551584327
V11: 7 | W11: 1 | X11: 1 | Y11: 1 | Z11: =IF(W11="","",OFFSET(Data!$N$77,W11,X11)) -> 46.78563486 | AA11: =IF(W11="","",OFFSET(Data!$N$104,W11,X11)) -> 1.525380105 | AC11: -0.7797780582 | AD11: -0.3096270882 | AF11: 17 | AG11: 7 | AH11: =IF(W11="","",(AG11-0.375)/(Data!$P$113+0.25)) -> 0.3117647059 | AI11: -0.490854427 | AJ11: -1.089405146
V12: 8 | W12: 2 | X12: 1 | Y12: 2 | Z12: =IF(W12="","",OFFSET(Data!$N$77,W12,X12)) -> 45.69759684 | AA12: =IF(W12="","",OFFSET(Data!$N$104,W12,X12)) -> 0.8059432042 | AC12: -0.5698323381 | AD12: -0.01923215816 | AF12: 13 | AG12: 8 | AH12: =IF(W12="","",(AG12-0.375)/(Data!$P$113+0.25)) -> 0.3588235294 | AI12: -0.361605226 | AJ12: -0.5890644963
V13: 9 | W13: 3 | X13: 1 | Y13: 3 | Z13: =IF(W13="","",OFFSET(Data!$N$77,W13,X13)) -> 47.95426829 | AA13: =IF(W13="","",OFFSET(Data!$N$104,W13,X13)) -> 2.226072373 | AC13: -0.3692981558 | AD13: 0.3692981558 | AF13: 20 | AG13: 9 | AH13: =IF(W13="","",(AG13-0.375)/(Data!$P$113+0.25)) -> 0.4058823529 | AI13: -0.2381500642 | AJ13: 0
V14: 10 | W14: 4 | X14: 1 | Y14: 4 | Z14: =IF(W14="","",OFFSET(Data!$N$77,W14,X14)) -> 48.5625 | AA14: =IF(W14="","",OFFSET(Data!$N$104,W14,X14)) -> -2.54189409 | AC14: -0.1745124911 | AD14: 0.1745124911 | AF14: 1 | AG14: 10 | AH14: =IF(W14="","",(AG14-0.375)/(Data!$P$113+0.25)) -> 0.4529411765 | AI14: -0.1182338711 | AJ14: 0
V15: 11 | W15: 5 | X15: 1 | Y15: 5 | Z15: =IF(W15="","",OFFSET(Data!$N$77,W15,X15)) -> 51 | AA15: =IF(W15="","",OFFSET(Data!$N$104,W15,X15)) -> -2.074594852 | AC15: 0.01754049648 | AD15: 0.515294833 | AF15: 4 | AG15: 11 | AH15: =IF(W15="","",(AG15-0.375)/(Data!$P$113+0.25)) -> 0.5 | AI15: 0 | AJ15: 0.5328353295
V16: 12 | W16: 1 | X16: 2 | Y16: 2 | Z16: =IF(W16="","",OFFSET(Data!$N$77,W16,X16)) -> 22.27887374 | AA16: =IF(W16="","",OFFSET(Data!$N$104,W16,X16)) -> -0.5890644963 | AC16: 0.2095934841 | AD16: 0.3464329724 | AF16: 8 | AG16: 12 | AH16: =IF(W16="","",(AG16-0.375)/(Data!$P$113+0.25)) -> 0.5470588235 | AI16: 0.1182338711 | AJ16: 0.5560264565
V17: 13 | W17: 2 | X17: 2 | Y17: 3 | Z17: =IF(W17="","",OFFSET(Data!$N$77,W17,X17)) -> 21.7607604 | AA17: =IF(W17="","",OFFSET(Data!$N$104,W17,X17)) -> -1.761431679 | AC17: 0.4043791488 | AD17: 0.4015640555 | AF17: 6 | AG17: 13 | AH17: =IF(W17="","",(AG17-0.375)/(Data!$P$113+0.25)) -> 0.5941176471 | AI17: 0.2381500642 | AJ17: 0.8059432042
V18: 14 | W18: 3 | X18: 2 | Y18: 4 | Z18: =IF(W18="","",OFFSET(Data!$N$77,W18,X18)) -> 22.83536585 | AA18: =IF(W18="","",OFFSET(Data!$N$104,W18,X18)) -> 0.5560264565 | AC18: 0.6049133311 | AD18: 0.2445078473 | AF18: 12 | AG18: 14 | AH18: =IF(W18="","",(AG18-0.375)/(Data!$P$113+0.25)) -> 0.6411764706 | AI18: 0.361605226 | AJ18: 0.8494211784
V19: 15 | W19: 4 | X19: 2 | Y19: 5 | Z19: =IF(W19="","",OFFSET(Data!$N$77,W19,X19)) -> 23.125 | AA19: =IF(W19="","",OFFSET(Data!$N$104,W19,X19)) -> 1.773034403 | AC19: 0.8148590512 | AD19: 0.1977974731 | AF19: 18 | AG19: 15 | AH19: =IF(W19="","",(AG19-0.375)/(Data!$P$113+0.25)) -> 0.6882352941 | AI19: 0.490854427 | AJ19: 1.012656524
V20: 16 | W20: 1 | X20: 3 | Y20: 3 | Z20: =IF(W20="","",OFFSET(Data!$N$77,W20,X20)) -> 26.65136298 | AA20: =IF(W20="","",OFFSET(Data!$N$104,W20,X20)) -> 0.8494211784 | AC20: 1.039099994 | AD20: 0.09974272485 | AF20: 14 | AG20: 16 | AH20: =IF(W20="","",(AG20-0.375)/(Data!$P$113+0.25)) -> 0.7352941176 | AI20: 0.6289042176 | AJ20: 1.138842719
V21: 17 | W21: 2 | X21: 3 | Y21: 4 | Z21: =IF(W21="","",OFFSET(Data!$N$77,W21,X21)) -> 26.03156385 | AA21: =IF(W21="","",OFFSET(Data!$N$104,W21,X21)) -> 1.012656524 | AC21: 1.284799204 | AD21: 0.2405809006 | AF21: 15 | AG21: 17 | AH21: =IF(W21="","",(AG21-0.375)/(Data!$P$113+0.25)) -> 0.7823529412 | AI21: 0.7801643936 | AJ21: 1.525380105
V22: 18 | W22: 3 | X22: 3 | Y22: 5 | Z22: =IF(W22="","",OFFSET(Data!$N$77,W22,X22)) -> 27.31707317 | AA22: =IF(W22="","",OFFSET(Data!$N$104,W22,X22)) -> -1.849656267 | AC22: 1.563665506 | AD22: 0.2093688973 | AF22: 5 | AG22: 18 | AH22: =IF(W22="","",(AG22-0.375)/(Data!$P$113+0.25)) -> 0.8294117647 | AI22: 0.9518432764 | AJ22: 1.773034403
V23: 19 | W23: 1 | X23: 4 | Y23: 4 | Z23: =IF(W23="","",OFFSET(Data!$N$77,W23,X23)) -> 10.11764706 | AA23: =IF(W23="","",OFFSET(Data!$N$104,W23,X23)) -> 2.236872237 | AC23: 1.897760715 | AD23: 0.1768341372 | AF23: 21 | AG23: 19 | AH23: =IF(W23="","",(AG23-0.375)/(Data!$P$113+0.25)) -> 0.8764705882 | AI23: 1.157522815 | AJ23: 2.074594852
V24: 20 | W24: 2 | X24: 4 | Y24: 5 | Z24: =IF(W24="","",OFFSET(Data!$N$77,W24,X24)) -> 9.882352941 | AA24: =IF(W24="","",OFFSET(Data!$N$104,W24,X24)) -> -2.236872237 | AC24: 2.339090641 | AD24: -0.1130182677 | AF24: 2 | AG24: 20 | AH24: =IF(W24="","",(AG24-0.375)/(Data!$P$113+0.25)) -> 0.9235294118 | AI24: 1.429219424 | AJ24: 2.226072373
V25: 21 | W25: 1 | X25: 5 | Y25: 5 | Z25: =IF(W25="","",OFFSET(Data!$N$77,W25,X25)) -> 5 | AA25: =IF(W25="","",OFFSET(Data!$N$104,W25,X25)) -> 0 | AC25: 3.086762791 | AD25: -0.8498905539 | AF25: 9 | AG25: 21 | AH25: =IF(W25="","",(AG25-0.375)/(Data!$P$113+0.25)) -> 0.9705882353 | AI25: 1.88950996 | AJ25: 2.236872237
AC27: RSS | AD27: =SUMSQ(AD5:AD25) -> 3.410890197 | AI27: Linear Regression
V28: Mean Residuals | AC28: AIC | AD28: =2*(Data!R113)+Data!P113*(LN(2*PI()*AD27/Data!P113)+1) -> 43.42688676 | AI28: =LINEST(NormYValues,NormXValues,TRUE,TRUE) -> 1.628562527 | AJ28: 0.01754049648
A29: Normality Plot | V29: Exposure | W29: Residual | X29: Develop | Y29: Residual | Z29: Calendar | AA29: Residual | AC29: BIC | AD29: =Data!P113*LN(AD27/Data!P113)+(Data!R113*LN(Data!P113)) -> -4.678784822 | AI29: 0.09820977108 | AJ29: 0.0924541433
V30: 1 | W30: =IF(V30="","",SUMIF(ResidX2Values,V30,ResidY1Values)/COUNTIF(ResidX2Values,V30)) -> 0.3003664726 | X30: 0 | Y30: =IF(X30="","",SUMIF(ResidX1Values,X30,ResidY1Values)/COUNTIF(ResidX1Values,X30)) -> 0.07274292766 | Z30: 0 | AA30: =IF(Z30="","",SUMIF(ResidX3Values,Z30,ResidY1Values)/COUNTIF(ResidX3Values,Z30)) -> -2.220410188 | AI30: 0.9353695261 | AJ30: 0.42367811
V31: 2 | W31: =IF(V31="","",SUMIF(ResidX2Values,V31,ResidY1Values)/COUNTIF(ResidX2Values,V31)) -> -0.3293737717 | X31: 1 | Y31: =IF(X31="","",SUMIF(ResidX1Values,X31,ResidY1Values)/COUNTIF(ResidX1Values,X31)) -> -0.01181865197 | Z31: 1 | AA31: 1.029107717 | AI31: 274.9789678 | AJ31: 19
V32: 3 | W32: =IF(V32="","",SUMIF(ResidX2Values,V32,ResidY1Values)/COUNTIF(ResidX2Values,V32)) -> -0.03924064591 | X32: 2 | Y32: =IF(X32="","",SUMIF(ResidX1Values,X32,ResidY1Values)/COUNTIF(ResidX1Values,X32)) -> -0.005358829025 | Z32: 2 | AA32: -0.2908421462 | AI32: 49.35958841 | AJ32: 3.410559677
V33: 4 | W33: =IF(V33="","",SUMIF(ResidX2Values,V33,ResidY1Values)/COUNTIF(ResidX2Values,V33)) -> 0.1233276774 | X33: 3 | Y33: =IF(X33="","",SUMIF(ResidX1Values,X33,ResidY1Values)/COUNTIF(ResidX1Values,X33)) -> 0.004140478714 | Z33: 3 | AA33: 0.6132261478
V34: 5 | W34: =IF(V34="","",SUMIF(ResidX2Values,V34,ResidY1Values)/COUNTIF(ResidX2Values,V34)) -> 2.597921878e-14 | X34: 4 | Y34: =IF(X34="","",SUMIF(ResidX1Values,X34,ResidY1Values)/COUNTIF(ResidX1Values,X34)) -> -8.659739592e-15 | Z34: 4 | AA34: 0.667651196 | AI34: Line of best fit
Z35: 5 | AA35: -0.7313481588 | AI35: -3 | AJ35: =AI35*AI$28+AJ$28 -> -4.868147084
AI36: 3 | AJ36: =AI36*AI$28+AJ$28 -> 4.903228077
A45: ="N = "&TEXT(Data!$P$113,"0") -> N = 21 | C45: ="p-Value = "&TEXT(AN10,"0.0%") -> p-Value = 15.5% | F45: R2 = | G45: =AK5 -> 0.9353695261
A46: ="Normal: MU = "&TEXT(AC1,"0.00")&", Sigma = "&TEXT(AD1,"0.00") -> Normal: MU = 0.02, Sigma = 1.62 | G46: ="AIC = "&TEXT(AD28,"0.0")&", BIC = "&TEXT(AD29,"0.0") -> AIC = 43.4, BIC = -4.7

Sheet Hat Matrix
A1: Weight Matrix
A2: =Data!N78 -> 109.1664813 | B2: 0 | C2: 0 | D2: 0 | E2: 0 | F2: 0 | G2: 0 | H2: 0 | I2: 0 | J2: 0 | K2: 0 | L2: 0 | M2: 0 | N2: 0 | O2: 0 | P2: 0 | Q2: 0 | R2: 0 | S2: 0 | T2: 0 | U2: 0
A3: 0 | B3: =Data!N79 -> 106.627726 | C3: 0 | D3: 0 | E3: 0 | F3: 0 | G3: 0 | H3: 0 | I3: 0 | J3: 0 | K3: 0 | L3: 0 | M3: 0 | N3: 0 | O3: 0 | P3: 0 | Q3: 0 | R3: 0 | S3: 0 | T3: 0 | U3: 0
A4: 0 | B4: 0 | C4: =Data!N80 -> 111.8932927 | D4: 0 | E4: 0 | F4: 0 | G4: 0 | H4: 0 | I4: 0 | J4: 0 | K4: 0 | L4: 0 | M4: 0 | N4: 0 | O4: 0 | P4: 0 | Q4: 0 | R4: 0 | S4: 0 | T4: 0 | U4: 0
A5: 0 | B5: 0 | C5: 0 | D5: =Data!N81 -> 113.3125 | E5: 0 | F5: 0 | G5: 0 | H5: 0 | I5: 0 | J5: 0 | K5: 0 | L5: 0 | M5: 0 | N5: 0 | O5: 0 | P5: 0 | Q5: 0 | R5: 0 | S5: 0 | T5: 0 | U5: 0
A6: 0 | B6: 0 | C6: 0 | D6: 0 | E6: =Data!N82 -> 119 | F6: 0 | G6: 0 | H6: 0 | I6: 0 | J6: 0 | K6: 0 | L6: 0 | M6: 0 | N6: 0 | O6: 0 | P6: 0 | Q6: 0 | R6: 0 | S6: 0 | T6: 0 | U6: 0
A7: 0 | B7: 0 | C7: 0 | D7: 0 | E7: 0 | F7: =Data!N83 -> 125 | G7: 0 | H7: 0 | I7: 0 | J7: 0 | K7: 0 | L7: 0 | M7: 0 | N7: 0 | O7: 0 | P7: 0 | Q7: 0 | R7: 0 | S7: 0 | T7: 0 | U7: 0
A8: 0 | B8: 0 | C8: 0 | D8: 0 | E8: 0 | F8: 0 | G8: =Data!O78 -> 46.78563486 | H8: 0 | I8: 0 | J8: 0 | K8: 0 | L8: 0 | M8: 0 | N8: 0 | O8: 0 | P8: 0 | Q8: 0 | R8: 0 | S8: 0 | T8: 0 | U8: 0
A9: 0 | B9: 0 | C9: 0 | D9: 0 | E9: 0 | F9: 0 | G9: 0 | H9: =Data!O79 -> 45.69759684 | I9: 0 | J9: 0 | K9: 0 | L9: 0 | M9: 0 | N9: 0 | O9: 0 | P9: 0 | Q9: 0 | R9: 0 | S9: 0 | T9: 0 | U9: 0
A10: 0 | B10: 0 | C10: 0 | D10: 0 | E10: 0 | F10: 0 | G10: 0 | H10: 0 | I10: =Data!O80 -> 47.95426829 | J10: 0 | K10: 0 | L10: 0 | M10: 0 | N10: 0 | O10: 0 | P10: 0 | Q10: 0 | R10: 0 | S10: 0 | T10: 0 | U10: 0
A11: 0 | B11: 0 | C11: 0 | D11: 0 | E11: 0 | F11: 0 | G11: 0 | H11: 0 | I11: 0 | J11: =Data!O81 -> 48.5625 | K11: 0 | L11: 0 | M11: 0 | N11: 0 | O11: 0 | P11: 0 | Q11: 0 | R11: 0 | S11: 0 | T11: 0 | U11: 0
A12: 0 | B12: 0 | C12: 0 | D12: 0 | E12: 0 | F12: 0 | G12: 0 | H12: 0 | I12: 0 | J12: 0 | K12: =Data!O82 -> 51 | L12: 0 | M12: 0 | N12: 0 | O12: 0 | P12: 0 | Q12: 0 | R12: 0 | S12: 0 | T12: 0 | U12: 0
A13: 0 | B13: 0 | C13: 0 | D13: 0 | E13: 0 | F13: 0 | G13: 0 | H13: 0 | I13: 0 | J13: 0 | K13: 0 | L13: =Data!P78 -> 22.27887374 | M13: 0 | N13: 0 | O13: 0 | P13: 0 | Q13: 0 | R13: 0 | S13: 0 | T13: 0 | U13: 0
A14: 0 | B14: 0 | C14: 0 | D14: 0 | E14: 0 | F14: 0 | G14: 0 | H14: 0 | I14: 0 | J14: 0 | K14: 0 | L14: 0 | M14: =Data!P79 -> 21.7607604 | N14: 0 | O14: 0 | P14: 0 | Q14: 0 | R14: 0 | S14: 0 | T14: 0 | U14: 0
A15: 0 | B15: 0 | C15: 0 | D15: 0 | E15: 0 | F15: 0 | G15: 0 | H15: 0 | I15: 0 | J15: 0 | K15: 0 | L15: 0 | M15: 0 | N15: =Data!P80 -> 22.83536585 | O15: 0 | P15: 0 | Q15: 0 | R15: 0 | S15: 0 | T15: 0 | U15: 0
A16: 0 | B16: 0 | C16: 0 | D16: 0 | E16: 0 | F16: 0 | G16: 0 | H16: 0 | I16: 0 | J16: 0 | K16: 0 | L16: 0 | M16: 0 | N16: 0 | O16: =Data!P81 -> 23.125 | P16: 0 | Q16: 0 | R16: 0 | S16: 0 | T16: 0 | U16: 0
A17: 0 | B17: 0 | C17: 0 | D17: 0 | E17: 0 | F17: 0 | G17: 0 | H17: 0 | I17: 0 | J17: 0 | K17: 0 | L17: 0 | M17: 0 | N17: 0 | O17: 0 | P17: =Data!Q78 -> 26.65136298 | Q17: 0 | R17: 0 | S17: 0 | T17: 0 | U17: 0
A18: 0 | B18: 0 | C18: 0 | D18: 0 | E18: 0 | F18: 0 | G18: 0 | H18: 0 | I18: 0 | J18: 0 | K18: 0 | L18: 0 | M18: 0 | N18: 0 | O18: 0 | P18: 0 | Q18: =Data!Q79 -> 26.03156385 | R18: 0 | S18: 0 | T18: 0 | U18: 0
A19: 0 | B19: 0 | C19: 0 | D19: 0 | E19: 0 | F19: 0 | G19: 0 | H19: 0 | I19: 0 | J19: 0 | K19: 0 | L19: 0 | M19: 0 | N19: 0 | O19: 0 | P19: 0 | Q19: 0 | R19: =Data!Q80 -> 27.31707317 | S19: 0 | T19: 0 | U19: 0
A20: 0 | B20: 0 | C20: 0 | D20: 0 | E20: 0 | F20: 0 | G20: 0 | H20: 0 | I20: 0 | J20: 0 | K20: 0 | L20: 0 | M20: 0 | N20: 0 | O20: 0 | P20: 0 | Q20: 0 | R20: 0 | S20: =Data!R78 -> 10.11764706 | T20: 0 | U20: 0
A21: 0 | B21: 0 | C21: 0 | D21: 0 | E21: 0 | F21: 0 | G21: 0 | H21: 0 | I21: 0 | J21: 0 | K21: 0 | L21: 0 | M21: 0 | N21: 0 | O21: 0 | P21: 0 | Q21: 0 | R21: 0 | S21: 0 | T21: =Data!R79 -> 9.882352941 | U21: 0
A22: 0 | B22: 0 | C22: 0 | D22: 0 | E22: 0 | F22: 0 | G22: 0 | H22: 0 | I22: 0 | J22: 0 | K22: 0 | L22: 0 | M22: 0 | N22: 0 | O22: 0 | P22: 0 | Q22: 0 | R22: 0 | S22: 0 | T22: 0 | U22: =Data!S78 -> 5
A24: Hat Matrix
A25: =MMULT(MMULT(MMULT(DesignMatrix,MINVERSE(MMULT(MMULT(TRANSPOSE(DesignMatrix),WeightMatrix),DesignMatrix))),TRANSPOSE(DesignMatrix)),WeightMatrix) -> 0.6271207183 | B25: 0.1165936041 | C25: 0.1093499137 | D25: 0.08318576389 | E25: 0.06375 | F25: 2.168404345e-16 | G25: 0.1852202456 | H25: -0.03163416403 | I25: -0.03876837324 | J25: -0.05106770833 | K25: -0.06375 | L25: 0.08068541748 | M25: -0.02240382666 | N25: -0.02616353526 | O25: -0.03211805556 | P25: 0.08372102342 | Q25: -0.03930301826 | R25: -0.04441800516 | S25: 0.02325259516 | T25: -0.02325259516 | U25: -2.168404345e-18
A26: 0.1193696423 | B26: 0.6243446801 | C26: 0.1093499137 | D26: 0.08318576389 | E26: 0.06375 | F26: 1.084202172e-16 | G26: -0.03238735841 | H26: 0.18597344 | I26: -0.03876837324 | J26: -0.05106770833 | K26: -0.06375 | L26: -0.0229372511 | M26: 0.08121884192 | N26: -0.02616353526 | O26: -0.03211805556 | P26: -0.04023880441 | Q26: 0.08465680957 | R26: -0.04441800516 | S26: -0.02380622837 | T26: 0.02380622837 | U26: -2.168404345e-18
A27: 0.1066850838 | B27: 0.1042040354 | C27: 0.6421751169 | D27: 0.08318576389 | E27: 0.06375 | F27: 0 | G27: -0.03782359776 | H27: -0.03694397921 | I27: 0.1895852853 | J27: -0.05106770833 | K27: -0.06375 | L27: -0.0255259365 | M27: -0.02493231007 | N27: 0.08257630213 | O27: -0.03211805556 | P27: -0.04333554957 | Q27: -0.04232774609 | R27: 0.08566329566 | S27: 2.193914984e-18 | T27: 1.071446853e-17 | U27: 5.421010862e-18
A28: 0.08014205972 | B28: 0.07827829089 | C28: 0.0821438855 | D28: 0.6956857639 | E28: 0.06375 | F28: 1.084202172e-16 | G28: -0.04919917952 | H28: -0.04805501255 | I28: -0.05042809959 | J28: 0.2114322917 | K28: -0.06375 | L28: -0.0309428802 | M28: -0.03022327834 | N28: -0.03171578591 | O28: 0.09288194444 | P28: 3.467455878e-17 | Q28: 5.644695615e-17 | R28: 3.554067609e-17 | S28: 1.316348991e-17 | T28: 2.142893706e-17 | U28: 1.084202172e-17
A29: 0.05848204358 | B29: 0.05712199605 | C29: 0.05994283537 | D29: 0.060703125 | E29: 0.76375 | F29: 1.084202172e-16 | G29: -0.05848204358 | H29: -0.05712199605 | I29: -0.05994283537 | J29: -0.060703125 | K29: 0.23625 | L29: 1.449288199e-17 | M29: 3.303028918e-17 | N29: 1.485489196e-17 | O29: 3.510104533e-17 | P29: 1.444773282e-17 | Q29: 3.66905215e-17 | R29: 1.480861504e-17 | S29: 9.872617429e-18 | T29: 1.82145965e-17 | U29: 2.710505431e-18
A30: 9.468682899e-17 | B30: 2.774544291e-16 | C30: 9.705196081e-17 | D30: 2.948487808e-16 | E30: 2.064320936e-16 | F30: 1 | G30: 8.116013914e-17 | H30: 1.585453881e-16 | I30: 8.318739498e-17 | J30: 1.684850176e-16 | K30: 1.327063459e-16 | L30: 1.449288199e-17 | M30: 5.190474015e-17 | N30: 1.485489196e-17 | O30: 5.515878553e-17 | P30: 4.91222916e-17 | Q30: 9.313747764e-17 | R30: 5.034929113e-17 | S30: 1.42604474e-17 | T30: 3.107195873e-17 | U30: 9.215718466e-18
A31: 0.4321805731 | B31: -0.07381304941 | C31: -0.09045953756 | D31: -0.1191579861 | E31: -0.14875 | F31: 2.168404345e-16 | G31: 0.3801603909 | H31: 0.1587724895 | I31: 0.161041078 | J31: 0.1512760417 | K31: 0.14875 | L31: 0.08068541748 | M31: -0.02240382666 | N31: -0.02616353526 | O31: -0.03211805556 | P31: 0.08372102342 | Q31: -0.03930301826 | R31: -0.04441800516 | S31: 0.02325259516 | T31: -0.02325259516 | U31: -4.33680869e-18
A32: -0.07557050296 | B32: 0.4339380266 | C32: -0.09045953756 | D32: -0.1191579861 | E32: -0.14875 | F32: 1.084202172e-16 | G32: 0.1625527869 | H32: 0.3763800935 | I32: 0.161041078 | J32: 0.1512760417 | K32: 0.14875 | L32: -0.0229372511 | M32: 0.08121884192 | N32: -0.02616353526 | O32: -0.03211805556 | P32: -0.04023880441 | Q32: 0.08465680957 | R32: -0.04441800516 | S32: -0.02380622837 | T32: 0.02380622837 | U32: -6.505213035e-18
A33: -0.08825506143 | B33: -0.08620261815 | C33: 0.4423656657 | D33: -0.1191579861 | E33: -0.14875 | F33: 0 | G33: 0.1571165475 | H33: 0.1534626743 | I33: 0.3893947365 | J33: 0.1512760417 | K33: 0.14875 | L33: -0.0255259365 | M33: -0.02493231007 | N33: 0.08257630213 | O33: -0.03211805556 | P33: -0.04333554957 | Q33: -0.04232774609 | R33: 0.08566329566 | S33: -8.775659937e-18 | T33: -1.285736223e-17 | U33: 2.319085615e-18
A34: -0.1147980855 | B34: -0.1121283626 | C34: -0.1176655657 | D34: 0.4933420139 | E34: -0.14875 | F34: 1.084202172e-16 | G34: 0.1457409657 | H34: 0.142351641 | I34: 0.1493813516 | J34: 0.4137760417 | K34: 0.14875 | L34: -0.0309428802 | M34: -0.03022327834 | N34: -0.03171578591 | O34: 0.09288194444 | P34: 7.512821068e-17 | Q34: 6.209165176e-17 | R34: 2.961723008e-17 | S34: 5.643797283e-18 | T34: 1.226758772e-18 | U34: 9.444980172e-18
A35: -0.1364581017 | B35: -0.1332846575 | C35: -0.1398666159 | D35: -0.141640625 | E35: 0.55125 | F35: 1.084202172e-16 | G35: 0.1364581017 | H35: 0.1332846575 | I35: 0.1398666159 | J35: 0.141640625 | K35: 0.44875 | L35: 1.932384265e-17 | M35: 9.437225481e-18 | N35: -1.980652261e-17 | O35: 0 | P35: 6.155713283e-17 | Q35: 4.883618037e-17 | R35: 1.570716751e-17 | S35: 4.879643993e-18 | T35: 4.803764893e-19 | U35: 2.562133244e-18
A36: 0.3953585456 | B36: -0.1097787506 | C36: -0.1282013228 | D36: -0.1573784722 | E36: 2.580401171e-16 | F36: 2.168404345e-16 | G36: 0.1694393767 | H36: -0.04704803598 | I36: -0.05494342405 | J36: -0.06744791667 | K36: 1.548240702e-16 | L36: 0.3282284591 | M36: 0.2193824 | N36: 0.227562752 | O36: 0.2248263889 | P36: 0.08372102342 | Q36: -0.03930301826 | R36: -0.04441800516 | S36: 0.02325259516 | T36: -0.02325259516 | U36: 4.33680869e-18
A37: -0.1123925304 | B37: 0.3979723254 | C37: -0.1282013228 | D37: -0.1573784722 | E37: 7.741203512e-17 | F37: 1.084202172e-16 | G37: -0.04816822732 | H37: 0.170559568 | I37: -0.05494342405 | J37: -0.06744791667 | K37: -1.105886216e-17 | L37: 0.2246057905 | M37: 0.3230050686 | N37: 0.227562752 | O37: 0.2248263889 | P37: -0.04023880441 | Q37: 0.08465680957 | R37: -0.04441800516 | S37: -0.02380622837 | T37: 0.02380622837 | U37: -8.67361738e-18
A38: -0.1250770889 | B38: -0.1221683194 | C38: 0.4046238805 | D38: -0.1573784722 | E38: 7.741203512e-17 | F38: 0 | G38: -0.05360446666 | H38: -0.05235785116 | I38: 0.1734102345 | J38: -0.06744791667 | K38: -5.52943108e-17 | L38: 0.2220171051 | M38: 0.2168539166 | N38: 0.3363025894 | O38: 0.2248263889 | P38: -0.04333554957 | Q38: -0.04232774609 | R38: 0.08566329566 | S38: 7.678702445e-17 | T38: 5.785813005e-17 | U38: 6.589821184e-18
A39: -0.151620113 | B39: -0.1480940638 | C39: -0.1554073509 | D39: 0.4551215278 | E39: 1.806280819e-16 | F39: 1.084202172e-16 | G39: -0.06498004842 | H39: -0.06346888451 | I39: -0.06660315041 | J39: 0.1950520833 | K39: 3.317658648e-17 | L39: 0.2166001614 | M39: 0.2115629484 | N39: 0.2220105014 | O39: 0.3498263889 | P39: 1.386982351e-16 | Q39: 4.515756492e-17 | R39: 4.738756812e-17 | S39: 1.053240031e-16 | T39: 6.858830837e-17 | U39: 2.069239783e-17
A40: 0.3429291608 | B40: -0.1609888475 | C40: -0.1819403133 | D40: 9.828292694e-17 | E40: 2.064320936e-16 | F40: 1.626303259e-16 | G40: 0.1469696403 | H40: -0.06899522034 | I40: -0.07797441999 | J40: 1.377754302e-16 | K40: 1.889262479e-16 | L40: 0.06998554302 | M40: -0.03285486683 | N40: -0.03713067618 | O40: 2.549186731e-17 | P40: 0.4168630607 | Q40: 0.2860915298 | R40: 0.2970454095 | S40: 0.02325259516 | T40: -0.02325259516 | U40: -1.734723476e-17
A41: -0.1648219153 | B41: 0.3467622286 | C41: -0.1819403133 | D41: 0 | E41: 5.160802341e-17 | F41: 8.131516294e-17 | G41: -0.07063796369 | H41: 0.1486123837 | I41: -0.07797441999 | J41: 1.141166695e-17 | K41: 3.410217764e-17 | L41: -0.03363712556 | M41: 0.07076780175 | N41: -0.03713067618 | O41: -7.479683364e-17 | P41: 0.2929032329 | Q41: 0.4100513576 | R41: 0.2970454095 | S41: -0.02380622837 | T41: 0.02380622837 | U41: -2.168404345e-17
A42: -0.1775064737 | B42: -0.1733784162 | C42: 0.3508848899 | D42: 9.828292694e-17 | E42: 5.160802341e-17 | F42: -2.710505431e-17 | G42: -0.07607420303 | H42: -0.07430503552 | I42: 0.1503792385 | J42: 1.141166695e-17 | K42: -1.0133271e-17 | L42: -0.03622581097 | M42: -0.03538335025 | N42: 0.07160916121 | O42: -3.468135326e-17 | P42: 0.2898064877 | Q42: 0.283066802 | R42: 0.4271267103 | S42: -1.755131987e-17 | T42: -1.714314964e-17 | U42: -4.780362195e-18
A43: 0.250888767 | B43: -0.250888767 | C43: 1.455779412e-16 | D43: 2.457073173e-16 | E43: 2.580401171e-16 | F43: 2.710505431e-16 | G43: 0.1075237573 | H43: -0.1075237573 | I43: 4.730032839e-17 | J43: 9.00215202e-17 | K43: 9.453997489e-17 | L43: 0.05120178918 | M43: -0.05120178918 | N43: 1.19198404e-16 | O43: 1.407680065e-16 | P43: 0.06125073846 | Q43: -0.06125073846 | R43: 4.297789331e-19 | S43: 0.5291349481 | T43: 0.4708650519 | U43: 6.938893904e-17
A44: -0.2568623091 | B44: 0.2568623091 | C44: 4.852598041e-17 | D44: 1.474243904e-16 | E44: 1.032160468e-16 | F44: 1.626303259e-16 | G44: -0.1100838467 | H44: 0.1100838467 | I44: -7.748076408e-17 | J44: -3.6342243e-17 | K44: -6.028409535e-17 | L44: -0.0524208794 | M44: 0.0524208794 | N44: 2.016579094e-17 | O44: 4.047930552e-17 | P44: -0.06270908937 | Q44: 0.06270908937 | R44: -7.065157325e-17 | S44: 0.4820761246 | T44: 0.5179238754 | U44: 3.469446952e-17
A45: 1.89373658e-16 | B45: 1.849696194e-16 | C45: 2.42629902e-16 | D45: 2.457073173e-16 | E45: 2.580401171e-16 | F45: 1.626303259e-16 | G45: 8.616812892e-17 | H45: 8.416421895e-17 | I45: 1.091173254e-16 | J45: 1.105013235e-16 | K45: 1.16047722e-16 | L45: -3.540943413e-17 | M45: -3.458595891e-17 | N45: -2.63906462e-17 | O45: -2.672537402e-17 | P45: 5.573845302e-18 | Q45: 5.444220993e-18 | R45: 1.755996344e-17 | S45: 1.425265558e-16 | T45: 1.392119848e-16 | U45: 1
A48: Hat Matrix Factors
A49: =IF(A25=1,0,1/SQRT(1-A25)) -> 1.637630331
B50: =IF(B26=1,0,1/SQRT(1-B26)) -> 1.631568185
C51: =IF(C27=1,0,1/SQRT(1-C27)) -> 1.671724591
D52: =IF(D28=1,0,1/SQRT(1-D28)) -> 1.812753971
E53: =IF(E29=1,0,1/SQRT(1-E29)) -> 2.057377999
F54: =IF(F30=1,0,1/SQRT(1-F30)) -> 0
G55: =IF(G31=1,0,1/SQRT(1-G31)) -> 1.270165573
H56: =IF(H32=1,0,1/SQRT(1-H32)) -> 1.266309938
I57: =IF(I33=1,0,1/SQRT(1-I33)) -> 1.279734058
J58: =IF(J34=1,0,1/SQRT(1-J34)) -> 1.306075306
K59: =IF(K35=1,0,1/SQRT(1-K35)) -> 1.346870059
L60: =IF(L36=1,0,1/SQRT(1-L36)) -> 1.220082504
M61: =IF(M37=1,0,1/SQRT(1-M37)) -> 1.215366584
N62: =IF(N38=1,0,1/SQRT(1-N38)) -> 1.227481452
O63: =IF(O39=1,0,1/SQRT(1-O39)) -> 1.240181734
P64: =IF(P40=1,0,1/SQRT(1-P40)) -> 1.309527803
Q65: =IF(Q41=1,0,1/SQRT(1-Q41)) -> 1.301945776
R66: =IF(R42=1,0,1/SQRT(1-R42)) -> 1.321206535
S67: =IF(S43=1,0,1/SQRT(1-S43)) -> 1.457309416
T68: =IF(T44=1,0,1/SQRT(1-T44)) -> 1.440264275
U69: =IF(U45=1,0,1/SQRT(1-U45)) -> 0

Sheet GLM 2
A1: GLM Estimation of Sample Data Parameters | G1: rho = | H1: =Data!F55 -> 1 | J1: parameters = | K1: =2*6-1 -> 11
A2: Newton-Raphson Interation Sequence -- Iteration 1
B3: y(i) | D3: xb(i) | F3: W(i,i) | AB3: XWX | AN3: zz(i) | AP3: factor | AR3: xwx-1 | BD3: aa1(i,j) | BZ3: aa2(j) | CB3: beta(j) | CD3: beta_diff = | CE3: =SUM(CD5:CD15) -> 0.1424619509 | CF3: beta_old = | CG3: =SUM(CB5:CB15) -> 1.56708146
B4: 1 | D4: 1 | F4: 1 | G4: 2 | H4: 3 | I4: 4 | J4: 5 | K4: 6 | L4: 7 | M4: 8 | N4: 9 | O4: 10 | P4: 11 | Q4: 12 | R4: 13 | S4: 14 | T4: 15 | U4: 16 | V4: 17 | W4: 18 | X4: 19 | Y4: 20 | Z4: 21 | AB4: 1 | AC4: 2 | AD4: 3 | AE4: 4 | AF4: 5 | AG4: 6 | AH4: 7 | AI4: 8 | AJ4: 9 | AK4: 10 | AL4: 11 | AN4: 1 | AR4: 1 | AS4: 2 | AT4: 3 | AU4: 4 | AV4: 5 | AW4: 6 | AX4: 7 | AY4: 8 | AZ4: 9 | BA4: 10 | BB4: 11 | BD4: 1 | BE4: 2 | BF4: 3 | BG4: 4 | BH4: 5 | BI4: 6 | BJ4: 7 | BK4: 8 | BL4: 9 | BM4: 10 | BN4: 11 | BO4: 12 | BP4: 13 | BQ4: 14 | BR4: 15 | BS4: 16 | BT4: 17 | BU4: 18 | BV4: 19 | BW4: 20 | BX4: 21
A5: 1 | B5: =Data!N138 -> 127.691635 | D5: =IF(B5<0,-LN(-B5),LN(B5)) -> 4.849618256 | F5: =IF($A5=F$4,IF($B5<0,-(EXP(-$D5)^(2-$H$1)),IF($B5=0,0,EXP($D5)^(2-$H$1))),0) -> 127.691635 | G5: 0 | H5: 0 | I5: 0 | J5: 0 | K5: 0 | L5: 0 | M5: 0 | N5: 0 | O5: 0 | P5: =IF($A5=P$4,IF($B5<0,-(EXP(-$D5)^(2-$H$1)),IF($B5=0,0,EXP($D5)^(2-$H$1))),0) -> 0 | Q5: 0 | R5: 0 | S5: 0 | T5: 0 | U5: 0 | V5: 0 | W5: 0 | X5: 0 | Y5: 0 | Z5: 0 | AB5: =MMULT(TRANSPOSE(DesignMatrix),MMULT(F5:Z25,DesignMatrix)) -> 1118.930019 | AC5: 209.3046211 | AD5: 198.206182 | AE5: 163.1955188 | AF5: 208.605621 | AG5: 101.8053244 | AH5: 415.372661 | AI5: 189.647925 | AJ5: 118.6310079 | AK5: 35.99835124 | AL5: 6.802143791 | AN5: =IF(B5<0,D5+(B5+EXP(-D5))/-EXP(-D5),IF(B5=0,0,D5+(B5-EXP(D5))/EXP(D5))) -> 4.849618256 | AP5: =OFFSET(AA4,A5,A5) -> 1118.930019 | AR5: =MINVERSE(AB5:AL15) -> 0.005199988954 | AS5: -0.004379453744 | AT5: -0.00453907061 | AU5: -0.004407840316 | AV5: -0.004599037278 | AW5: -0.005199988954 | AX5: -0.001871786529 | AY5: 3.319377677e-05 | AZ5: 0.0003692082634 | BA5: -0.001412177321 | BB5: -0.002318427145 | BD5: =MMULT(AR5:BB15,TRANSPOSE(DesignMatrix)) -> 0.005199988954 | BE5: 0.0008205352107 | BF5: 0.000660918344 | BG5: 0.0007921486386 | BH5: 0.0006009516763 | BI5: 0 | BJ5: 0.003328202425 | BK5: -0.001051251319 | BL5: -0.001210868185 | BM5: -0.001079637891 | BN5: -0.001270834853 | BO5: 0.003361396202 | BP5: -0.001018057542 | BQ5: -0.001177674408 | BR5: -0.001046444114 | BS5: 0.003730604465 | BT5: -0.0006488492784 | BU5: -0.0008084661451 | BV5: 0.002318427145 | BW5: -0.002061026599 | BX5: -8.67361738e-19 | BZ5: =MMULT(F5:Z25,AN5:AN25) -> 619.2556842 | CB5: =MMULT(BD5:BX15,BZ5:BZ25) -> 4.816630556 | CD5: =CB5/$K$1 -> 0.4378755051
A6: 2 | B6: =Data!N139 -> 118.3874958 | D6: =IF(B6<0,-LN(-B6),LN(B6)) -> 4.773963107 | F6: 0 | G6: 118.3874958 | H6: 0 | I6: 0 | J6: 0 | K6: 0 | L6: 0 | M6: 0 | N6: 0 | O6: 0 | P6: 0 | Q6: 0 | R6: 0 | S6: 0 | T6: 0 | U6: 0 | V6: 0 | W6: 0 | X6: 0 | Y6: 0 | Z6: 0 | AB6: 209.3046211 | AC6: 209.3046211 | AD6: 0 | AE6: 0 | AF6: 0 | AG6: 0 | AH6: 90.9171253 | AI6: 62.40273191 | AJ6: 49.27032763 | AK6: 15.45610111 | AL6: 0 | AN6: =IF(B6<0,D6+(B6+EXP(-D6))/-EXP(-D6),IF(B6=0,0,D6+(B6-EXP(D6))/EXP(D6))) -> 4.773963107 | AP6: =OFFSET(AA4,A6,A6) -> 209.3046211 | AR6: -0.004379453744 | AS6: 0.009327477097 | AT6: 0.00452142868 | AU6: 0.0041985445 | AV6: 0.00419076932 | AW6: 0.004379453744 | AX6: 0.0005876961086 | AY6: -0.0003973143565 | AZ6: -0.001558785855 | BA6: 0.0008100100328 | BB6: 0.004937847813 | BD6: -0.004379453744 | BE6: 0.004948023353 | BF6: 0.0001419749367 | BG6: -0.0001809092432 | BH6: -0.0001886844232 | BI6: -8.67361738e-19 | BJ6: -0.003791757635 | BK6: 0.005535719462 | BL6: 0.0007296710453 | BM6: 0.0004067868654 | BN6: 0.0003990116854 | BO6: -0.004189071991 | BP6: 0.005138405105 | BQ6: 0.0003323566888 | BR6: 9.472508902e-06 | BS6: -0.005747857846 | BT6: 0.003579619251 | BU6: -0.001226429166 | BV6: -0.004937847813 | BW6: 0.004389629283 | BX6: -1.734723476e-18 | BZ6: 565.1775375 | CB6: -0.1165296094 | CD6: -0.01059360085
A7: 3 | B7: =Data!N140 -> 120.4185298 | D7: 4.790973423 | F7: 0 | G7: 0 | H7: 120.4185298 | I7: 0 | J7: 0 | K7: 0 | L7: 0 | M7: 0 | N7: 0 | O7: 0 | P7: 0 | Q7: 0 | R7: 0 | S7: 0 | T7: 0 | U7: 0 | V7: 0 | W7: 0 | X7: 0 | Y7: 0 | Z7: 0 | AB7: 198.206182 | AC7: 0 | AD7: 198.206182 | AE7: 0 | AF7: 0 | AG7: 0 | AH7: 77.78765226 | AI7: 47.43575154 | AJ7: 35.28958479 | AK7: 0 | AL7: 0 | AN7: 4.790973423 | AP7: =OFFSET(AA4,A7,A7) -> 198.206182 | AR7: -0.00453907061 | AS7: 0.00452142868 | AT7: 0.009740016938 | AU7: 0.004343485224 | AV7: 0.00435345435 | AW7: 0.00453907061 | AX7: 0.0005781396903 | AY7: -0.0002903290335 | AZ7: -0.001758588779 | BA7: 0.003616261861 | BB7: 0.002393586871 | BD7: -0.00453907061 | BE7: -1.764193004e-05 | BF7: 0.005200946328 | BG7: -0.0001955853861 | BH7: -0.0001856162605 | BI7: -8.67361738e-19 | BJ7: -0.00396093092 | BK7: 0.0005604977602 | BL7: 0.005779086018 | BM7: 0.0003825543042 | BN7: 0.0003925234298 | BO7: -0.004251259953 | BP7: 0.0002701687268 | BQ7: 0.005488756985 | BR7: 9.222527076e-05 | BS7: -0.006009848732 | BT7: -0.001488420052 | BU7: 0.003730168206 | BV7: -0.002393586871 | BW7: 0.002127841809 | BX7: 4.33680869e-19 | BZ7: 576.9219756 | CB7: -0.1024287616 | CD7: -0.009311705602
A8: 4 | B8: =Data!N141 -> 93.62321529 | D8: 4.539278379 | F8: 0 | G8: 0 | H8: 0 | I8: 93.62321529 | J8: 0 | K8: 0 | L8: 0 | M8: 0 | N8: 0 | O8: 0 | P8: 0 | Q8: 0 | R8: 0 | S8: 0 | T8: 0 | U8: 0 | V8: 0 | W8: 0 | X8: 0 | Y8: 0 | Z8: 0 | AB8: 163.1955188 | AC8: 0 | AD8: 0 | AE8: 163.1955188 | AF8: 0 | AG8: 0 | AH8: 69.57230349 | AI8: 28.60151927 | AJ8: 0 | AK8: 0 | AL8: 0 | AN8: 4.539278379 | AP8: =OFFSET(AA4,A8,A8) -> 163.1955188 | AR8: -0.004407840316 | AS8: 0.0041985445 | AT8: 0.004343485224 | AU8: 0.01078237001 | AV8: 0.004397729005 | AW8: 0.004407840316 | AX8: 3.149373997e-05 | AY8: -0.001485437636 | AZ8: 0.002288737711 | BA8: 0.00135039041 | BB8: 0.002222656091 | BD8: -0.004407840316 | BE8: -0.0002092958153 | BF8: -6.435509143e-05 | BG8: 0.006374529698 | BH8: -1.011131106e-05 | BI8: 0 | BJ8: -0.004376346576 | BK8: -0.0001778020754 | BL8: -3.286135147e-05 | BM8: 0.006406023438 | BN8: 2.138242891e-05 | BO8: -0.005861784212 | BP8: -0.001663239711 | BQ8: -0.001518298987 | BR8: 0.004920585802 | BS8: -0.003573046501 | BT8: 0.0006254979997 | BU8: 0.0007704387236 | BV8: -0.002222656091 | BW8: 0.00197588841 | BX8: 1.734723476e-18 | BZ8: 424.981837 | CB8: -0.1405470602 | CD8: -0.01277700547
A9: 5 | B9: =Data!N142 -> 141.631158 | D9: 4.953226199 | F9: 0 | G9: 0 | H9: 0 | I9: 0 | J9: 141.631158 | K9: 0 | L9: 0 | M9: 0 | N9: 0 | O9: 0 | P9: 0 | Q9: 0 | R9: 0 | S9: 0 | T9: 0 | U9: 0 | V9: 0 | W9: 0 | X9: 0 | Y9: 0 | Z9: 0 | AB9: 208.605621 | AC9: 0 | AD9: 0 | AE9: 0 | AF9: 208.605621 | AG9: 0 | AH9: 66.97446299 | AI9: 0 | AJ9: 0 | AK9: 0 | AL9: 0 | AN9: 4.953226199 | AP9: =OFFSET(AA4,A9,A9) -> 208.605621 | AR9: -0.004599037278 | AS9: 0.00419076932 | AT9: 0.00435345435 | AU9: 0.004397729005 | AV9: 0.009428569728 | AW9: 0.004599037278 | AX9: -0.0001114994509 | AY9: 0.001419850511 | AZ9: -0.0002834360629 | BA9: 0.001355582272 | BB9: 0.002218540009 | BD9: -0.004599037278 | BE9: -0.0004082679576 | BF9: -0.0002455829282 | BG9: -0.0002013082734 | BH9: 0.00482953245 | BI9: -8.67361738e-19 | BJ9: -0.004710536729 | BK9: -0.0005197674085 | BL9: -0.000357082379 | BM9: -0.0003128077242 | BN9: 0.004718032999 | BO9: -0.003290686218 | BP9: 0.0009000831021 | BQ9: 0.001062768132 | BR9: 0.001107042786 | BS9: -0.003574122281 | BT9: 0.0006166470392 | BU9: 0.0007793320686 | BV9: -0.002218540009 | BW9: 0.001972229311 | BX9: -2.168404345e-18 | BZ9: 701.5311624 | CB9: 0.202917216 | CD9: 0.01844701963
A10: 6 | B10: =Data!N143 -> 101.8053244 | D10: 4.623062406 | F10: 0 | G10: 0 | H10: 0 | I10: 0 | J10: 0 | K10: 101.8053244 | L10: 0 | M10: 0 | N10: 0 | O10: 0 | P10: 0 | Q10: 0 | R10: 0 | S10: 0 | T10: 0 | U10: 0 | V10: 0 | W10: 0 | X10: 0 | Y10: 0 | Z10: 0 | AB10: 101.8053244 | AC10: 0 | AD10: 0 | AE10: 0 | AF10: 0 | AG10: 101.8053244 | AH10: 0 | AI10: 0 | AJ10: 0 | AK10: 0 | AL10: 0 | AN10: 4.623062406 | AP10: =OFFSET(AA4,A10,A10) -> 101.8053244 | AR10: -0.005199988954 | AS10: 0.004379453744 | AT10: 0.00453907061 | AU10: 0.004407840316 | AV10: 0.004599037278 | AW10: 0.01502265791 | AX10: 0.001871786529 | AY10: -3.319377677e-05 | AZ10: -0.0003692082634 | BA10: 0.001412177321 | BB10: 0.002318427145 | BD10: -0.005199988954 | BE10: -0.0008205352107 | BF10: -0.000660918344 | BG10: -0.0007921486386 | BH10: -0.0006009516763 | BI10: 0.009822668958 | BJ10: -0.003328202425 | BK10: 0.001051251319 | BL10: 0.001210868185 | BM10: 0.001079637891 | BN10: 0.001270834853 | BO10: -0.003361396202 | BP10: 0.001018057542 | BQ10: 0.001177674408 | BR10: 0.001046444114 | BS10: -0.003730604465 | BT10: 0.0006488492784 | BU10: 0.0008084661451 | BV10: -0.002318427145 | BW10: 0.002061026599 | BX10: 4.33680869e-19 | BZ10: 470.652368 | CB10: -0.1935681507 | CD10: -0.01759710461
A11: 7 | B11: =Data!O138 -> 58.9131947 | D11: 4.076065084 | F11: 0 | G11: 0 | H11: 0 | I11: 0 | J11: 0 | K11: 0 | L11: 58.9131947 | M11: 0 | N11: 0 | O11: 0 | P11: 0 | Q11: 0 | R11: 0 | S11: 0 | T11: 0 | U11: 0 | V11: 0 | W11: 0 | X11: 0 | Y11: 0 | Z11: 0 | AB11: 415.372661 | AC11: 90.9171253 | AD11: 77.78765226 | AE11: 69.57230349 | AF11: 66.97446299 | AG11: 0 | AH11: 415.372661 | AI11: 189.647925 | AJ11: 118.6310079 | AK11: 35.99835124 | AL11: 6.802143791 | AN11: 4.076065084 | AP11: =OFFSET(AA4,A11,A11) -> 415.372661 | AR11: -0.001871786529 | AS11: 0.0005876961086 | AT11: 0.0005781396903 | AU11: 3.149373997e-05 | AV11: -0.0001114994509 | AW11: 0.001871786529 | AX11: 0.006177348575 | AY11: -0.004525802707 | AZ11: -0.0002671550072 | BA11: 0.0001762768189 | BB11: 0.0003111188497 | BD11: -0.001871786529 | BE11: -0.001284090421 | BF11: -0.001293646839 | BG11: -0.001840292789 | BH11: -0.00198328598 | BI11: 0 | BJ11: 0.004305562045 | BK11: 0.004893258154 | BL11: 0.004883701736 | BM11: 0.004337055785 | BN11: 0.004194062595 | BO11: -0.0002202406614 | BP11: 0.0003674554472 | BQ11: 0.0003578990289 | BR11: -0.0001887469214 | BS11: -0.0004873956686 | BT11: 0.00010030044 | BU11: 9.074402171e-05 | BV11: -0.0003111188497 | BW11: 0.0002765772589 | BX11: 1.084202172e-19 | BZ11: 240.1340159 | CB11: -0.9554868638 | CD11: -0.08686244216
A12: 8 | B12: =Data!O139 -> 28.51439339 | D12: 3.350408991 | F12: 0 | G12: 0 | H12: 0 | I12: 0 | J12: 0 | K12: 0 | L12: 0 | M12: 28.51439339 | N12: 0 | O12: 0 | P12: 0 | Q12: 0 | R12: 0 | S12: 0 | T12: 0 | U12: 0 | V12: 0 | W12: 0 | X12: 0 | Y12: 0 | Z12: 0 | AB12: 189.647925 | AC12: 62.40273191 | AD12: 47.43575154 | AE12: 28.60151927 | AF12: 0 | AG12: 0 | AH12: 189.647925 | AI12: 189.647925 | AJ12: 118.6310079 | AK12: 35.99835124 | AL12: 6.802143791 | AN12: 3.350408991 | AP12: =OFFSET(AA4,A12,A12) -> 189.647925 | AR12: 3.319377677e-05 | AS12: -0.0003973143565 | AT12: -0.0002903290335 | AU12: -0.001485437636 | AV12: 0.001419850511 | AW12: -3.319377677e-05 | AX12: -0.004525802707 | AY12: 0.01929513619 | AZ12: -0.01451595207 | BA12: -7.624201265e-05 | BB12: -0.00021033317 | BD12: 3.319377677e-05 | BE12: -0.0003641205797 | BF12: -0.0002571352567 | BG12: -0.001452243859 | BH12: 0.001453044287 | BI12: 1.355252716e-20 | BJ12: -0.00449260893 | BK12: -0.004889923287 | BL12: -0.004782937964 | BM12: -0.005978046566 | BN12: -0.00307275842 | BO12: 0.01480252726 | BP12: 0.0144052129 | BQ12: 0.01451219822 | BR12: 0.01331708962 | BS12: 0.0002865751827 | BT12: -0.0001107391738 | BU12: -3.753850765e-06 | BV12: 0.00021033317 | BW12: -0.0001869811864 | BX12: 2.439454888e-19 | BZ12: 95.53487999 | CB12: -0.8260334741 | CD12: -0.0750939522
A13: 9 | B13: =Data!O140 -> 30.35190072 | D13: 3.412859142 | F13: 0 | G13: 0 | H13: 0 | I13: 0 | J13: 0 | K13: 0 | L13: 0 | M13: 0 | N13: 30.35190072 | O13: 0 | P13: 0 | Q13: 0 | R13: 0 | S13: 0 | T13: 0 | U13: 0 | V13: 0 | W13: 0 | X13: 0 | Y13: 0 | Z13: 0 | AB13: 118.6310079 | AC13: 49.27032763 | AD13: 35.28958479 | AE13: 0 | AF13: 0 | AG13: 0 | AH13: 118.6310079 | AI13: 118.6310079 | AJ13: 118.6310079 | AK13: 35.99835124 | AL13: 6.802143791 | AN13: 3.412859142 | AP13: =OFFSET(AA4,A13,A13) -> 118.6310079 | AR13: 0.0003692082634 | AS13: -0.001558785855 | AT13: -0.001758588779 | AU13: 0.002288737711 | AV13: -0.0002834360629 | AW13: -0.0003692082634 | AX13: -0.0002671550072 | AY13: -0.01451595207 | AZ13: 0.02790455796 | BA13: -0.01266545773 | BB13: -0.0008252014177 | BD13: 0.0003692082634 | BE13: -0.001189577591 | BF13: -0.001389380516 | BG13: 0.002657945974 | BH13: 8.577220046e-05 | BI13: -2.168404345e-19 | BJ13: 0.0001020532562 | BK13: -0.001456732598 | BL13: -0.001656535523 | BM13: 0.002390790967 | BN13: -0.0001813828067 | BO13: -0.01441389882 | BP13: -0.01597268467 | BQ13: -0.0161724876 | BR13: -0.01212516111 | BS13: 0.01349065914 | BT13: 0.01193187329 | BU13: 0.01173207037 | BV13: 0.0008252014177 | BW13: -0.000733584437 | BX13: 0 | BZ13: 103.5867619 | CB13: 0.4454594015 | CD13: 0.04049630923
A14: 10 | B14: =Data!O141 -> 40.97078422 | D14: 3.712859233 | F14: 0 | G14: 0 | H14: 0 | I14: 0 | J14: 0 | K14: 0 | L14: 0 | M14: 0 | N14: 0 | O14: 40.97078422 | P14: 0 | Q14: 0 | R14: 0 | S14: 0 | T14: 0 | U14: 0 | V14: 0 | W14: 0 | X14: 0 | Y14: 0 | Z14: 0 | AB14: 35.99835124 | AC14: 15.45610111 | AD14: 0 | AE14: 0 | AF14: 0 | AG14: 0 | AH14: 35.99835124 | AI14: 35.99835124 | AJ14: 35.99835124 | AK14: 35.99835124 | AL14: 6.802143791 | AN14: 3.712859233 | AP14: =OFFSET(AA4,A14,A14) -> 35.99835124 | AR14: -0.001412177321 | AS14: 0.0008100100328 | AT14: 0.003616261861 | AU14: 0.00135039041 | AV14: 0.001355582272 | AW14: 0.001412177321 | AX14: 0.0001762768189 | AY14: -7.624201265e-05 | AZ14: -0.01266545773 | BA14: 0.04779981516 | BB14: -0.03382221491 | BD14: -0.001412177321 | BE14: -0.0006021672879 | BF14: 0.00220408454 | BG14: -6.178691071e-05 | BH14: -5.659504872e-05 | BI14: 8.67361738e-19 | BJ14: -0.001235900502 | BK14: -0.000425890469 | BL14: 0.002380361359 | BM14: 0.0001144899082 | BN14: 0.0001196817702 | BO14: -0.001312142514 | BP14: -0.0005021324816 | BQ14: 0.002304119347 | BR14: 3.824789553e-05 | BS14: -0.01397760024 | BT14: -0.01316759021 | BU14: -0.01036133838 | BV14: 0.03382221491 | BW14: 0.03463222495 | BX14: 6.938893904e-18 | BZ14: 152.1187545 | CB14: -0.7362604661 | CD14: -0.06693276965
A15: 11 | B15: =Data!O142 -> 66.97446299 | D15: 4.204311397 | F15: =IF($A15=F$4,IF($B15<0,-(EXP(-$D15)^(2-$H$1)),IF($B15=0,0,EXP($D15)^(2-$H$1))),0) -> 0 | G15: 0 | H15: 0 | I15: 0 | J15: 0 | K15: 0 | L15: 0 | M15: 0 | N15: 0 | O15: 0 | P15: =IF($A15=P$4,IF($B15<0,-(EXP(-$D15)^(2-$H$1)),IF($B15=0,0,EXP($D15)^(2-$H$1))),0) -> 66.97446299 | Q15: 0 | R15: 0 | S15: 0 | T15: 0 | U15: 0 | V15: 0 | W15: 0 | X15: 0 | Y15: 0 | Z15: 0 | AB15: 6.802143791 | AC15: 0 | AD15: 0 | AE15: 0 | AF15: 0 | AG15: 0 | AH15: 6.802143791 | AI15: 6.802143791 | AJ15: 6.802143791 | AK15: 6.802143791 | AL15: 6.802143791 | AN15: 4.204311397 | AP15: =OFFSET(AA4,A15,A15) -> 6.802143791 | AR15: -0.002318427145 | AS15: 0.004937847813 | AT15: 0.002393586871 | AU15: 0.002222656091 | AV15: 0.002218540009 | AW15: 0.002318427145 | AX15: 0.0003111188497 | AY15: -0.00021033317 | AZ15: -0.0008252014177 | BA15: -0.03382221491 | BB15: 0.1838775337 | BD15: -0.002318427145 | BE15: 0.002619420669 | BF15: 7.515972684e-05 | BG15: -9.577105383e-05 | BH15: -9.988713527e-05 | BI15: -4.33680869e-19 | BJ15: -0.002007308295 | BK15: 0.002930539518 | BL15: 0.0003862785765 | BM15: 0.0002153477958 | BN15: 0.0002112317144 | BO15: -0.002217641465 | BP15: 0.002720206348 | BQ15: 0.0001759454065 | BR15: 5.014625808e-06 | BS15: -0.003042842883 | BT15: 0.001895004931 | BU15: -0.0006492560112 | BV15: -0.0368650578 | BW15: -0.03192720998 | BX15: 0.1470124759 | BZ15: 281.5814981 | CB15: -0.8270713279 | CD15: -0.07518830253
A16: 12 | B16: =Data!P138 -> 17.13682678 | D16: 2.841229761 | F16: 0 | G16: 0 | H16: 0 | I16: 0 | J16: 0 | K16: 0 | L16: 0 | M16: 0 | N16: 0 | O16: 0 | P16: 0 | Q16: 17.13682678 | R16: 0 | S16: 0 | T16: 0 | U16: 0 | V16: 0 | W16: 0 | X16: 0 | Y16: 0 | Z16: 0 | AN16: 2.841229761 | BZ16: 48.68966226
A17: 13 | B17: =Data!P139 -> 13.13240428 | D17: 2.575082785 | F17: 0 | G17: 0 | H17: 0 | I17: 0 | J17: 0 | K17: 0 | L17: 0 | M17: 0 | N17: 0 | O17: 0 | P17: 0 | Q17: 0 | R17: 13.13240428 | S17: 0 | T17: 0 | U17: 0 | V17: 0 | W17: 0 | X17: 0 | Y17: 0 | Z17: 0 | AN17: 2.575082785 | BZ17: 33.81702818
A18: 14 | B18: =Data!P140 -> 12.14616676 | D18: 2.497013627 | F18: 0 | G18: 0 | H18: 0 | I18: 0 | J18: 0 | K18: 0 | L18: 0 | M18: 0 | N18: 0 | O18: 0 | P18: 0 | Q18: 0 | R18: 0 | S18: 12.14616676 | T18: 0 | U18: 0 | V18: 0 | W18: 0 | X18: 0 | Y18: 0 | Z18: 0 | AN18: 2.497013627 | BZ18: 30.3291439
A19: 15 | B19: =Data!P141 -> 28.60151927 | D19: 3.353459838 | F19: 0 | G19: 0 | H19: 0 | I19: 0 | J19: 0 | K19: 0 | L19: 0 | M19: 0 | N19: 0 | O19: 0 | P19: 0 | Q19: 0 | R19: 0 | S19: 0 | T19: 28.60151927 | U19: 0 | V19: 0 | W19: 0 | X19: 0 | Y19: 0 | Z19: 0 | AN19: 3.353459838 | BZ19: 95.91404618
A20: 16 | B20: =Data!Q138 -> 13.5288454 | D20: 2.604824102 | F20: 0 | G20: 0 | H20: 0 | I20: 0 | J20: 0 | K20: 0 | L20: 0 | M20: 0 | N20: 0 | O20: 0 | P20: 0 | Q20: 0 | R20: 0 | S20: 0 | T20: 0 | U20: 13.5288454 | V20: 0 | W20: 0 | X20: 0 | Y20: 0 | Z20: 0 | AN20: 2.604824102 | BZ20: 35.24026257
A21: 17 | B21: =Data!Q139 -> 33.81422652 | D21: 3.520881617 | F21: 0 | G21: 0 | H21: 0 | I21: 0 | J21: 0 | K21: 0 | L21: 0 | M21: 0 | N21: 0 | O21: 0 | P21: 0 | Q21: 0 | R21: 0 | S21: 0 | T21: 0 | U21: 0 | V21: 33.81422652 | W21: 0 | X21: 0 | Y21: 0 | Z21: 0 | AN21: 3.520881617 | BZ21: 119.0558885
A22: 18 | B22: =Data!Q140 -> 35.28958479 | D22: 3.563587872 | F22: 0 | G22: 0 | H22: 0 | I22: 0 | J22: 0 | K22: 0 | L22: 0 | M22: 0 | N22: 0 | O22: 0 | P22: 0 | Q22: 0 | R22: 0 | S22: 0 | T22: 0 | U22: 0 | V22: 0 | W22: 35.28958479 | X22: 0 | Y22: 0 | Z22: 0 | AN22: 3.563587872 | BZ22: 125.7575363
A23: 19 | B23: =Data!R138 -> 13.74010634 | D23: 2.620319026 | F23: 0 | G23: 0 | H23: 0 | I23: 0 | J23: 0 | K23: 0 | L23: 0 | M23: 0 | N23: 0 | O23: 0 | P23: 0 | Q23: 0 | R23: 0 | S23: 0 | T23: 0 | U23: 0 | V23: 0 | W23: 0 | X23: 13.74010634 | Y23: 0 | Z23: 0 | AN23: 2.620319026 | BZ23: 36.00346206
A24: 20 | B24: =Data!R139 -> 15.45610111 | D24: 2.738003819 | F24: 0 | G24: 0 | H24: 0 | I24: 0 | J24: 0 | K24: 0 | L24: 0 | M24: 0 | N24: 0 | O24: 0 | P24: 0 | Q24: 0 | R24: 0 | S24: 0 | T24: 0 | U24: 0 | V24: 0 | W24: 0 | X24: 0 | Y24: 15.45610111 | Z24: 0 | AN24: 2.738003819 | BZ24: 42.31886387
A25: 21 | B25: =Data!S138 -> 6.802143791 | D25: 1.917237826 | F25: 0 | G25: 0 | H25: 0 | I25: 0 | J25: 0 | K25: 0 | L25: 0 | M25: 0 | N25: 0 | O25: 0 | P25: 0 | Q25: 0 | R25: 0 | S25: 0 | T25: 0 | U25: 0 | V25: 0 | W25: 0 | X25: 0 | Y25: 0 | Z25: 6.802143791 | AN25: 1.917237826 | BZ25: 13.04132737
A27: Newton-Raphson Interation Sequence -- Iteration 2
B28: y(i) | D28: xb(i) | F28: W(i,i) | AB28: XWX | AN28: zz(i) | AP28: factor | AR28: xwx-1 | BD28: aa1(i,j) | BZ28: aa2(j) | CB28: beta(j) | CD28: beta_diff = | CE28: =SUM(CD30:CD40) -> 0.07472513357 | CF28: beta_old = | CG28: =SUM(CB30:CB40) -> 1.641806593
B29: 1 | D29: 1 | F29: 1 | G29: 2 | H29: 3 | I29: 4 | J29: 5 | K29: 6 | L29: 7 | M29: 8 | N29: 9 | O29: 10 | P29: 11 | Q29: 12 | R29: 13 | S29: 14 | T29: 15 | U29: 16 | V29: 17 | W29: 18 | X29: 19 | Y29: 20 | Z29: 21 | AB29: 1 | AC29: 2 | AD29: 3 | AE29: 4 | AF29: 5 | AG29: 6 | AH29: 7 | AI29: 8 | AJ29: 9 | AK29: 10 | AL29: 11 | AN29: 1 | AR29: 1 | AS29: 2 | AT29: 3 | AU29: 4 | AV29: 5 | AW29: 6 | AX29: 7 | AY29: 8 | AZ29: 9 | BA29: 10 | BB29: 11 | BD29: 1 | BE29: 2 | BF29: 3 | BG29: 4 | BH29: 5 | BI29: 6 | BJ29: 7 | BK29: 8 | BL29: 9 | BM29: 10 | BN29: 11 | BO29: 12 | BP29: 13 | BQ29: 14 | BR29: 15 | BS29: 16 | BT29: 17 | BU29: 18 | BV29: 19 | BW29: 20 | BX29: 21
A30: 1 | B30: =B5 -> 127.691635 | D30: =MMULT(DesignMatrix,CB5:CB15) -> 4.816630556 | F30: =IF($A30=F$4,IF($B30<0,-(EXP(-$D30)^(2-$H$1)),IF($B30=0,0,EXP($D30)^(2-$H$1))),0) -> 123.5481003 | G30: 0 | H30: 0 | I30: 0 | J30: 0 | K30: 0 | L30: 0 | M30: 0 | N30: 0 | O30: 0 | P30: =IF($A30=P$4,IF($B30<0,-(EXP(-$D30)^(2-$H$1)),IF($B30=0,0,EXP($D30)^(2-$H$1))),0) -> 0 | Q30: 0 | R30: 0 | S30: 0 | T30: 0 | U30: 0 | V30: 0 | W30: 0 | X30: 0 | Y30: 0 | Z30: 0 | AB30: =MMULT(TRANSPOSE(DesignMatrix),MMULT(F30:Z50,DesignMatrix)) -> 1140.798933 | AC30: 213.514676 | AD30: 202.5071623 | AE30: 166.7134408 | AF30: 209.553065 | AG30: 101.8053244 | AH30: 435.2758139 | AI30: 203.0709541 | AJ30: 126.8991759 | AK30: 36.19900667 | AL30: 6.802143791 | AN30: =IF(B30<0,D30+(B30+EXP(-D30))/-EXP(-D30),IF(B30=0,0,D30+(B30-EXP(D30))/EXP(D30))) -> 4.850168382 | AP30: =OFFSET(AA29,A30,A30) -> 1140.798933 | AR30: =MINVERSE(AB30:AL40) -> 0.00522464304 | AS30: -0.004168349271 | AT30: -0.004321251961 | AU30: -0.00459142512 | AV30: -0.004764522912 | AW30: -0.00522464304 | AX30: -0.001656403055 | AY30: -0.0004002185897 | AZ30: -0.0004428670483 | BA30: -0.0007622765117 | BB30: -0.001962877835 | BD30: =MMULT(AR30:BB40,TRANSPOSE(DesignMatrix)) -> 0.00522464304 | BE30: 0.001056293768 | BF30: 0.0009033910786 | BG30: 0.0006332179198 | BH30: 0.0004601201281 | BI30: -8.67361738e-19 | BJ30: 0.003568239985 | BK30: -0.0006001092862 | BL30: -0.0007530119761 | BM30: -0.001023185135 | BN30: -0.001196282927 | BO30: 0.003168021395 | BP30: -0.001000327876 | BQ30: -0.001153230566 | BR30: -0.001423403725 | BS30: 0.002725154347 | BT30: -0.001443194924 | BU30: -0.001596097614 | BV30: 0.001962877835 | BW30: -0.002205471436 | BX30: 8.67361738e-19 | BZ30: =MMULT(F30:Z50,AN30:AN50) -> 599.2290897 | CB30: =MMULT(BD30:BX40,BZ30:BZ50) -> 4.801328722 | CD30: =CB30-CG3/$K$1 -> 4.658866772
A31: 2 | B31: =B6 -> 118.3874958 | D31: 4.700100947 | F31: 0 | G31: 109.9582718 | H31: 0 | I31: 0 | J31: 0 | K31: 0 | L31: 0 | M31: 0 | N31: 0 | O31: 0 | P31: 0 | Q31: 0 | R31: 0 | S31: 0 | T31: 0 | U31: 0 | V31: 0 | W31: 0 | X31: 0 | Y31: 0 | Z31: 0 | AB31: 213.514676 | AC31: 213.514676 | AD31: 0 | AE31: 0 | AF31: 0 | AG31: 0 | AH31: 103.5564042 | AI31: 61.26372155 | AJ31: 42.74873276 | AK31: 13.84299799 | AL31: 0 | AN31: =IF(B31<0,D31+(B31+EXP(-D31))/-EXP(-D31),IF(B31=0,0,D31+(B31-EXP(D31))/EXP(D31))) -> 4.776759336 | AP31: =OFFSET(AA29,A31,A31) -> 213.514676 | AR31: -0.004168349271 | AS31: 0.008851868075 | AT31: 0.004168349271 | AU31: 0.004168349271 | AV31: 0.004168349271 | AW31: 0.004168349271 | AX31: 1.098566747e-18 | AY31: -2.158771393e-19 | AZ31: 8.889067323e-19 | BA31: -5.997220186e-19 | BB31: 0.004168349271 | BD31: -0.004168349271 | BE31: 0.004683518804 | BF31: -8.67361738e-19 | BG31: 0 | BH31: -8.67361738e-19 | BI31: 8.67361738e-19 | BJ31: -0.004168349271 | BK31: 0.004683518804 | BL31: 2.312050089e-19 | BM31: 1.098566747e-18 | BN31: 2.312050089e-19 | BO31: -0.004168349271 | BP31: 0.004683518804 | BQ31: 1.532786967e-20 | BR31: 8.826896077e-19 | BS31: -0.004168349271 | BT31: 0.004683518804 | BU31: 9.042346019e-19 | BV31: -0.004168349271 | BW31: 0.004683518804 | BX31: -1.734723476e-18 | BZ31: 525.2442016 | CB31: -0.0991803809 | CD31: =CB31-CG3/$K$1 -> -0.2416423318
A32: 3 | B32: 120.4185298 | D32: 4.714201795 | F32: 0 | G32: 0 | H32: 111.51976 | I32: 0 | J32: 0 | K32: 0 | L32: 0 | M32: 0 | N32: 0 | O32: 0 | P32: 0 | Q32: 0 | R32: 0 | S32: 0 | T32: 0 | U32: 0 | V32: 0 | W32: 0 | X32: 0 | Y32: 0 | Z32: 0 | AB32: 202.5071623 | AC32: 0 | AD32: 202.5071623 | AE32: 0 | AF32: 0 | AG32: 0 | AH32: 90.98740236 | AI32: 48.09413263 | AJ32: 29.31621741 | AK32: 0 | AL32: 0 | AN32: 4.793997248 | AP32: =OFFSET(AA29,A32,A32) -> 202.5071623 | AR32: -0.004321251961 | AS32: 0.004168349271 | AT32: 0.009259348908 | AU32: 0.004321251961 | AV32: 0.004321251961 | AW32: 0.004321251961 | AX32: 3.309439012e-19 | AY32: 1.260512515e-19 | AZ32: 1.370918586e-18 | BA32: 0.002358374126 | BB32: 0.001962877835 | BD32: -0.004321251961 | BE32: -0.0001529026898 | BF32: 0.004938096947 | BG32: 8.67361738e-19 | BH32: 0 | BI32: 0 | BJ32: -0.004321251961 | BK32: -0.0001529026898 | BL32: 0.004938096947 | BM32: 1.198305639e-18 | BN32: 3.309439012e-19 | BO32: -0.004321251961 | BP32: -0.0001529026898 | BQ32: 0.004938096947 | BR32: 1.324356891e-18 | BS32: -0.004321251961 | BT32: -0.0001529026898 | BU32: 0.004938096947 | BV32: -0.001962877835 | BW32: 0.002205471436 | BX32: -4.33680869e-19 | BZ32: 534.6254224 | CB32: -0.08507012252 | CD32: =CB32-CG3/$K$1 -> -0.2275320734
A33: 4 | B33: 93.62321529 | D33: 4.676083496 | F33: 0 | G33: 0 | H33: 0 | I33: 107.3488161 | J33: 0 | K33: 0 | L33: 0 | M33: 0 | N33: 0 | O33: 0 | P33: 0 | Q33: 0 | R33: 0 | S33: 0 | T33: 0 | U33: 0 | V33: 0 | W33: 0 | X33: 0 | Y33: 0 | Z33: 0 | AB33: 166.7134408 | AC33: 0 | AD33: 0 | AE33: 166.7134408 | AF33: 0 | AG33: 0 | AH33: 59.36462466 | AI33: 18.07560354 | AJ33: 0 | AK33: 0 | AL33: 0 | AN33: 4.548223671 | AP33: =OFFSET(AA29,A33,A33) -> 166.7134408 | AR33: -0.00459142512 | AS33: 0.004168349271 | AT33: 0.004321251961 | AU33: 0.01058974172 | AV33: 0.00459142512 | AW33: 0.00459142512 | AX33: 7.523204829e-19 | AY33: 5.961517016e-19 | AZ33: 0.001866270773 | BA33: 0.0007622765117 | BB33: 0.001962877835 | BD33: -0.00459142512 | BE33: -0.0004230758486 | BF33: -0.0002701731588 | BG33: 0.005998316604 | BH33: 0 | BI33: 0 | BJ33: -0.00459142512 | BK33: -0.0004230758486 | BL33: -0.0002701731588 | BM33: 0.005998316604 | BN33: 7.523204829e-19 | BO33: -0.00459142512 | BP33: -0.0004230758486 | BQ33: -0.0002701731588 | BR33: 0.005998316604 | BS33: -0.002725154347 | BT33: 0.001443194924 | BU33: 0.001596097614 | BV33: -0.001962877835 | BW33: 0.002205471436 | BX33: 4.33680869e-19 | BZ33: 488.2464266 | CB33: -0.1334597763 | CD33: =CB33-CG3/$K$1 -> -0.2759217272
A34: 5 | B34: 141.631158 | D34: 5.019547772 | F34: 0 | G34: 0 | H34: 0 | I34: 0 | J34: 151.3428469 | K34: 0 | L34: 0 | M34: 0 | N34: 0 | O34: 0 | P34: 0 | Q34: 0 | R34: 0 | S34: 0 | T34: 0 | U34: 0 | V34: 0 | W34: 0 | X34: 0 | Y34: 0 | Z34: 0 | AB34: 209.553065 | AC34: 0 | AD34: 0 | AE34: 0 | AF34: 209.553065 | AG34: 0 | AH34: 58.21021813 | AI34: 0 | AJ34: 0 | AK34: 0 | AL34: 0 | AN34: 4.955377651 | AP34: =OFFSET(AA29,A34,A34) -> 209.553065 | AR34: -0.004764522912 | AS34: 0.004168349271 | AT34: 0.004321251961 | AU34: 0.00459142512 | AV34: 0.009536583869 | AW34: 0.004764522912 | AX34: 5.057562432e-19 | AY34: 0.001596501516 | AZ34: 0.0004428670483 | BA34: 0.0007622765117 | BB34: 0.001962877835 | BD34: -0.004764522912 | BE34: -0.0005961736404 | BF34: -0.0004432709505 | BG34: -0.0001730977917 | BH34: 0.004772060957 | BI34: 0 | BJ34: -0.004764522912 | BK34: -0.0005961736404 | BL34: -0.0004432709505 | BM34: -0.0001730977917 | BN34: 0.004772060957 | BO34: -0.003168021395 | BP34: 0.001000327876 | BQ34: 0.001153230566 | BR34: 0.001423403725 | BS34: -0.002725154347 | BT34: 0.001443194924 | BU34: 0.001596097614 | BV34: -0.001962877835 | BW34: 0.002205471436 | BX34: 0 | BZ34: 749.960961 | CB34: 0.2205453642 | CD34: =CB34-CG3/$K$1 -> 0.07808341333
A35: 6 | B35: 101.8053244 | D35: 4.623062406 | F35: 0 | G35: 0 | H35: 0 | I35: 0 | J35: 0 | K35: 101.8053244 | L35: 0 | M35: 0 | N35: 0 | O35: 0 | P35: 0 | Q35: 0 | R35: 0 | S35: 0 | T35: 0 | U35: 0 | V35: 0 | W35: 0 | X35: 0 | Y35: 0 | Z35: 0 | AB35: 101.8053244 | AC35: 0 | AD35: 0 | AE35: 0 | AF35: 0 | AG35: 101.8053244 | AH35: 0 | AI35: 0 | AJ35: 0 | AK35: 0 | AL35: 0 | AN35: 4.623062406 | AP35: =OFFSET(AA29,A35,A35) -> 101.8053244 | AR35: -0.00522464304 | AS35: 0.004168349271 | AT35: 0.004321251961 | AU35: 0.00459142512 | AV35: 0.004764522912 | AW35: 0.015047312 | AX35: 0.001656403055 | AY35: 0.0004002185897 | AZ35: 0.0004428670483 | BA35: 0.0007622765117 | BB35: 0.001962877835 | BD35: -0.00522464304 | BE35: -0.001056293768 | BF35: -0.0009033910786 | BG35: -0.0006332179198 | BH35: -0.0004601201281 | BI35: 0.009822668958 | BJ35: -0.003568239985 | BK35: 0.0006001092862 | BL35: 0.0007530119761 | BM35: 0.001023185135 | BN35: 0.001196282927 | BO35: -0.003168021395 | BP35: 0.001000327876 | BQ35: 0.001153230566 | BR35: 0.001423403725 | BS35: -0.002725154347 | BT35: 0.001443194924 | BU35: 0.001596097614 | BV35: -0.001962877835 | BW35: 0.002205471436 | BX35: 1.301042607e-18 | BZ35: 470.652368 | CB35: -0.1782663169 | CD35: =CB35-CG3/$K$1 -> -0.3207282678
A36: 7 | B36: 58.9131947 | D36: 3.861143693 | F36: 0 | G36: 0 | H36: 0 | I36: 0 | J36: 0 | K36: 0 | L36: 47.51966819 | M36: 0 | N36: 0 | O36: 0 | P36: 0 | Q36: 0 | R36: 0 | S36: 0 | T36: 0 | U36: 0 | V36: 0 | W36: 0 | X36: 0 | Y36: 0 | Z36: 0 | AB36: 435.2758139 | AC36: 103.5564042 | AD36: 90.98740236 | AE36: 59.36462466 | AF36: 58.21021813 | AG36: 0 | AH36: 435.2758139 | AI36: 203.0709541 | AJ36: 126.8991759 | AK36: 36.19900667 | AL36: 6.802143791 | AN36: 4.10090813 | AP36: =OFFSET(AA29,A36,A36) -> 435.2758139 | AR36: -0.001656403055 | AS36: 2.403650924e-19 | AT36: -9.54390808e-20 | AU36: 1.979477231e-19 | AV36: -9.54390808e-20 | AW36: 0.001656403055 | AX36: 0.005962945135 | AY36: -0.004306542081 | AZ36: -1.488096248e-18 | BA36: 5.655649233e-20 | BB36: 1.357355816e-18 | BD36: -0.001656403055 | BE36: -0.001656403055 | BF36: -0.001656403055 | BG36: -0.001656403055 | BH36: -0.001656403055 | BI36: 2.168404345e-19 | BJ36: 0.004306542081 | BK36: 0.004306542081 | BL36: 0.004306542081 | BM36: 0.004306542081 | BN36: 0.004306542081 | BO36: 0 | BP36: 0 | BQ36: 0 | BR36: 0 | BS36: -1.488096248e-18 | BT36: -1.488096248e-18 | BU36: -1.488096248e-18 | BV36: -1.431539756e-18 | BW36: -1.431539756e-18 | BX36: -7.418394002e-20 | BZ36: 194.8737936 | CB36: -0.9801376966 | CD36: =CB36-CG3/$K$1 -> -1.122599647
A37: 8 | B37: 28.51439339 | D37: 3.744614083 | F37: 0 | G37: 0 | H37: 0 | I37: 0 | J37: 0 | K37: 0 | L37: 0 | M37: 42.29268261 | N37: 0 | O37: 0 | P37: 0 | Q37: 0 | R37: 0 | S37: 0 | T37: 0 | U37: 0 | V37: 0 | W37: 0 | X37: 0 | Y37: 0 | Z37: 0 | AB37: 203.0709541 | AC37: 61.26372155 | AD37: 48.09413263 | AE37: 18.07560354 | AF37: 0 | AG37: 0 | AH37: 203.0709541 | AI37: 203.0709541 | AJ37: 126.8991759 | AK37: 36.19900667 | AL37: 6.802143791 | AN37: 3.418829849 | AP37: =OFFSET(AA29,A37,A37) -> 203.0709541 | AR37: -0.0004002185897 | AS37: 8.351588175e-19 | AT37: 1.585097347e-18 | AU37: 1.934500526e-18 | AV37: 0.001596501516 | AW37: 0.0004002185897 | AX37: -0.004306542081 | AY37: 0.01783498248 | AZ37: -0.01312822181 | BA37: 1.90893444e-18 | BB37: -3.27245904e-18 | BD37: -0.0004002185897 | BE37: -0.0004002185897 | BF37: -0.0004002185897 | BG37: -0.0004002185897 | BH37: 0.001196282927 | BI37: 2.710505431e-19 | BJ37: -0.00470676067 | BK37: -0.00470676067 | BL37: -0.00470676067 | BM37: -0.00470676067 | BN37: -0.003110259154 | BO37: 0.01312822181 | BP37: 0.01312822181 | BQ37: 0.01312822181 | BR37: 0.01312822181 | BS37: 5.204170428e-18 | BT37: 5.204170428e-18 | BU37: 5.204170428e-18 | BV37: 7.113104868e-18 | BW37: 7.113104868e-18 | BX37: 3.840645828e-18 | BZ37: 144.5914857 | CB37: -0.8639331044 | CD37: =CB37-CG3/$K$1 -> -1.006395055
A38: 9 | B38: 30.35190072 | D38: 3.758714931 | F38: 0 | G38: 0 | H38: 0 | I38: 0 | J38: 0 | K38: 0 | L38: 0 | M38: 0 | N38: 42.89326973 | O38: 0 | P38: 0 | Q38: 0 | R38: 0 | S38: 0 | T38: 0 | U38: 0 | V38: 0 | W38: 0 | X38: 0 | Y38: 0 | Z38: 0 | AB38: 126.8991759 | AC38: 42.74873276 | AD38: 29.31621741 | AE38: 0 | AF38: 0 | AG38: 0 | AH38: 126.8991759 | AI38: 126.8991759 | AJ38: 126.8991759 | AK38: 36.19900667 | AL38: 6.802143791 | AN38: 3.466329457 | AP38: =OFFSET(AA29,A38,A38) -> 126.8991759 | AR38: -0.0004428670483 | AS38: 1.007828759e-18 | AT38: 2.239619466e-19 | AU38: 0.001866270773 | AV38: 0.0004428670483 | AW38: 0.0004428670483 | AX38: 1.365375957e-18 | AY38: -0.01312822181 | AZ38: 0.02459642661 | BA38: -0.01102533775 | BB38: 2.38892743e-18 | BD38: -0.0004428670483 | BE38: -0.0004428670483 | BF38: -0.0004428670483 | BG38: 0.001423403725 | BH38: -1.463672933e-18 | BI38: -1.029992064e-18 | BJ38: -0.0004428670483 | BK38: -0.0004428670483 | BL38: -0.0004428670483 | BM38: 0.001423403725 | BN38: -9.829697558e-20 | BO38: -0.01357108886 | BP38: -0.01357108886 | BQ38: -0.01357108886 | BR38: -0.01170481808 | BS38: 0.01102533775 | BT38: 0.01102533775 | BU38: 0.01102533775 | BV38: -3.469446952e-18 | BW38: -1.734723476e-18 | BX38: -1.080519522e-18 | BZ38: 148.6822044 | CB38: 0.4232248469 | CD38: =CB38-CG3/$K$1 -> 0.280762896
A39: 10 | B39: 40.97078422 | D39: 3.720596632 | F39: 0 | G39: 0 | H39: 0 | I39: 0 | J39: 0 | K39: 0 | L39: 0 | M39: 0 | N39: 0 | O39: 41.28902112 | P39: 0 | Q39: 0 | R39: 0 | S39: 0 | T39: 0 | U39: 0 | V39: 0 | W39: 0 | X39: 0 | Y39: 0 | Z39: 0 | AB39: 36.19900667 | AC39: 13.84299799 | AD39: 0 | AE39: 0 | AF39: 0 | AG39: 0 | AH39: 36.19900667 | AI39: 36.19900667 | AJ39: 36.19900667 | AK39: 36.19900667 | AL39: 6.802143791 | AN39: 3.712889089 | AP39: =OFFSET(AA29,A39,A39) -> 36.19900667 | AR39: -0.0007622765117 | AS39: -9.588466579e-19 | AT39: 0.002358374126 | AU39: 0.0007622765117 | AV39: 0.0007622765117 | AW39: 0.0007622765117 | AX39: -9.070816742e-19 | AY39: 4.84931787e-18 | AZ39: -0.01102533775 | BA39: 0.04580484951 | BB39: -0.03401723525 | BD39: -0.0007622765117 | BE39: -0.0007622765117 | BF39: 0.001596097614 | BG39: -2.168404345e-19 | BH39: 0 | BI39: 3.252606517e-19 | BJ39: -0.0007622765117 | BK39: -0.0007622765117 | BL39: 0.001596097614 | BM39: -1.123922109e-18 | BN39: -9.070816742e-19 | BO39: -0.0007622765117 | BP39: -0.0007622765117 | BQ39: 0.001596097614 | BR39: 3.725395762e-18 | BS39: -0.01178761426 | BT39: -0.01178761426 | BU39: -0.009429240139 | BV39: 0.03401723525 | BW39: 0.03401723525 | BX39: 0 | BZ39: 153.301556 | CB39: -0.6511691183 | CD39: =CB39-CG3/$K$1 -> -0.7936310692
A40: 11 | B40: 66.97446299 | D40: 4.064060908 | F40: =IF($A40=F$4,IF($B40<0,-(EXP(-$D40)^(2-$H$1)),IF($B40=0,0,EXP($D40)^(2-$H$1))),0) -> 0 | G40: 0 | H40: 0 | I40: 0 | J40: 0 | K40: 0 | L40: 0 | M40: 0 | N40: 0 | O40: 0 | P40: =IF($A40=P$4,IF($B40<0,-(EXP(-$D40)^(2-$H$1)),IF($B40=0,0,EXP($D40)^(2-$H$1))),0) -> 58.21021813 | Q40: 0 | R40: 0 | S40: 0 | T40: 0 | U40: 0 | V40: 0 | W40: 0 | X40: 0 | Y40: 0 | Z40: 0 | AB40: 6.802143791 | AC40: 0 | AD40: 0 | AE40: 0 | AF40: 0 | AG40: 0 | AH40: 6.802143791 | AI40: 6.802143791 | AJ40: 6.802143791 | AK40: 6.802143791 | AL40: 6.802143791 | AN40: 4.214622874 | AP40: =OFFSET(AA29,A40,A40) -> 6.802143791 | AR40: -0.001962877835 | AS40: 0.004168349271 | AT40: 0.001962877835 | AU40: 0.001962877835 | AV40: 0.001962877835 | AW40: 0.001962877835 | AX40: 1.5872077e-18 | AY40: -2.50690562e-18 | AZ40: 1.26976616e-18 | BA40: -0.03401723525 | BB40: 0.182992589 | BD40: -0.001962877835 | BE40: 0.002205471436 | BF40: -8.67361738e-19 | BG40: 0 | BH40: -4.33680869e-19 | BI40: 1.301042607e-18 | BJ40: -0.001962877835 | BK40: 0.002205471436 | BL40: 7.198459621e-19 | BM40: 1.5872077e-18 | BN40: 1.153526831e-18 | BO40: -0.001962877835 | BP40: 0.002205471436 | BQ40: -1.787059658e-18 | BR40: -9.196979204e-19 | BS40: -0.001962877835 | BT40: 0.002205471436 | BU40: -5.172934983e-19 | BV40: -0.03598011308 | BW40: -0.03181176381 | BX40: 0.1470124759 | BZ40: 245.3341168 | CB40: -0.8120758243 | CD40: =CB40-CG3/$K$1 -> -0.9545377752
A41: 12 | B41: 17.13682678 | D41: 3.035110218 | F41: 0 | G41: 0 | H41: 0 | I41: 0 | J41: 0 | K41: 0 | L41: 0 | M41: 0 | N41: 0 | O41: 0 | P41: 0 | Q41: 20.80327068 | R41: 0 | S41: 0 | T41: 0 | U41: 0 | V41: 0 | W41: 0 | X41: 0 | Y41: 0 | Z41: 0 | AN41: 2.858866591 | BZ41: 59.47377551
A42: 13 | B42: 13.13240428 | D42: 2.918580609 | F42: 0 | G42: 0 | H42: 0 | I42: 0 | J42: 0 | K42: 0 | L42: 0 | M42: 0 | N42: 0 | O42: 0 | P42: 0 | Q42: 0 | R42: 18.51498879 | S42: 0 | T42: 0 | U42: 0 | V42: 0 | W42: 0 | X42: 0 | Y42: 0 | Z42: 0 | AN42: 2.627865633 | BZ42: 48.65490275
A43: 14 | B43: 12.14616676 | D43: 2.932681457 | F43: 0 | G43: 0 | H43: 0 | I43: 0 | J43: 0 | K43: 0 | L43: 0 | M43: 0 | N43: 0 | O43: 0 | P43: 0 | Q43: 0 | R43: 0 | S43: 18.77791522 | T43: 0 | U43: 0 | V43: 0 | W43: 0 | X43: 0 | Y43: 0 | Z43: 0 | AN43: 2.579514005 | BZ43: 48.43789529
A44: 15 | B44: 28.60151927 | D44: 2.894563158 | F44: 0 | G44: 0 | H44: 0 | I44: 0 | J44: 0 | K44: 0 | L44: 0 | M44: 0 | N44: 0 | O44: 0 | P44: 0 | Q44: 0 | R44: 0 | S44: 0 | T44: 18.07560354 | U44: 0 | V44: 0 | W44: 0 | X44: 0 | Y44: 0 | Z44: 0 | AN44: 3.476890366 | BZ44: 62.84689179
A45: 16 | B45: 13.5288454 | D45: 3.48056962 | F45: 0 | G45: 0 | H45: 0 | I45: 0 | J45: 0 | K45: 0 | L45: 0 | M45: 0 | N45: 0 | O45: 0 | P45: 0 | Q45: 0 | R45: 0 | S45: 0 | T45: 0 | U45: 32.47821704 | V45: 0 | W45: 0 | X45: 0 | Y45: 0 | Z45: 0 | AN45: 2.897120977 | BZ45: 94.09332391
A46: 17 | B46: 33.81422652 | D46: 3.36404001 | F46: 0 | G46: 0 | H46: 0 | I46: 0 | J46: 0 | K46: 0 | L46: 0 | M46: 0 | N46: 0 | O46: 0 | P46: 0 | Q46: 0 | R46: 0 | S46: 0 | T46: 0 | U46: 0 | V46: 28.90573477 | W46: 0 | X46: 0 | Y46: 0 | Z46: 0 | AN46: 3.533850319 | BZ46: 102.1485401
A47: 18 | B47: 35.28958479 | D47: 3.378140858 | F47: 0 | G47: 0 | H47: 0 | I47: 0 | J47: 0 | K47: 0 | L47: 0 | M47: 0 | N47: 0 | O47: 0 | P47: 0 | Q47: 0 | R47: 0 | S47: 0 | T47: 0 | U47: 0 | V47: 0 | W47: 29.31621741 | X47: 0 | Y47: 0 | Z47: 0 | AN47: 3.581897274 | BZ47: 105.0076792
A48: 19 | B48: 13.74010634 | D48: 2.744309154 | F48: 0 | G48: 0 | H48: 0 | I48: 0 | J48: 0 | K48: 0 | L48: 0 | M48: 0 | N48: 0 | O48: 0 | P48: 0 | Q48: 0 | R48: 0 | S48: 0 | T48: 0 | U48: 0 | V48: 0 | W48: 0 | X48: 15.55386489 | Y48: 0 | Z48: 0 | AN48: 2.627697716 | BZ48: 40.87085524
A49: 20 | B49: 15.45610111 | D49: 2.627779544 | F49: 0 | G49: 0 | H49: 0 | I49: 0 | J49: 0 | K49: 0 | L49: 0 | M49: 0 | N49: 0 | O49: 0 | P49: 0 | Q49: 0 | R49: 0 | S49: 0 | T49: 0 | U49: 0 | V49: 0 | W49: 0 | X49: 0 | Y49: 13.84299799 | Z49: 0 | AN49: 2.744307996 | BZ49: 37.98945007
A50: 21 | B50: 6.802143791 | D50: 1.917237826 | F50: 0 | G50: 0 | H50: 0 | I50: 0 | J50: 0 | K50: 0 | L50: 0 | M50: 0 | N50: 0 | O50: 0 | P50: 0 | Q50: 0 | R50: 0 | S50: 0 | T50: 0 | U50: 0 | V50: 0 | W50: 0 | X50: 0 | Y50: 0 | Z50: 6.802143791 | AN50: 1.917237826 | BZ50: 13.04132737
A52: Newton-Raphson Interation Sequence -- Iteration 3
B53: y(i) | D53: xb(i) | F53: W(i,i) | AB53: XWX | AN53: zz(i) | AP53: factor | AR53: xwx-1 | BD53: aa1(i,j) | BZ53: aa2(j) | CB53: beta(j) | CD53: beta_diff = | CE53: =SUM(CD55:CD65) -> 0.002104591018 | CF53: beta_old = | CG53: =SUM(CB55:CB65) -> 1.643911184
B54: 1 | D54: 1 | F54: 1 | G54: 2 | H54: 3 | I54: 4 | J54: 5 | K54: 6 | L54: 7 | M54: 8 | N54: 9 | O54: 10 | P54: 11 | Q54: 12 | R54: 13 | S54: 14 | T54: 15 | U54: 16 | V54: 17 | W54: 18 | X54: 19 | Y54: 20 | Z54: 21 | AB54: 1 | AC54: 2 | AD54: 3 | AE54: 4 | AF54: 5 | AG54: 6 | AH54: 7 | AI54: 8 | AJ54: 9 | AK54: 10 | AL54: 11 | AN54: 1 | AR54: 1 | AS54: 2 | AT54: 3 | AU54: 4 | AV54: 5 | AW54: 6 | AX54: 7 | AY54: 8 | AZ54: 9 | BA54: 10 | BB54: 11 | BD54: 1 | BE54: 2 | BF54: 3 | BG54: 4 | BH54: 5 | BI54: 6 | BJ54: 7 | BK54: 8 | BL54: 9 | BM54: 10 | BN54: 11 | BO54: 12 | BP54: 13 | BQ54: 14 | BR54: 15 | BS54: 16 | BT54: 17 | BU54: 18 | BV54: 19 | BW54: 20 | BX54: 21
A55: 1 | B55: =B30 -> 127.691635 | D55: =MMULT(DesignMatrix,CB30:CB40) -> 4.801328722 | F55: =IF($A55=F$4,IF($B55<0,-(EXP(-$D55)^(2-$H$1)),IF($B55=0,0,EXP($D55)^(2-$H$1))),0) -> 121.6719785 | G55: 0 | H55: 0 | I55: 0 | J55: 0 | K55: 0 | L55: 0 | M55: 0 | N55: 0 | O55: 0 | P55: =IF($A55=P$4,IF($B55<0,-(EXP(-$D55)^(2-$H$1)),IF($B55=0,0,EXP($D55)^(2-$H$1))),0) -> 0 | Q55: 0 | R55: 0 | S55: 0 | T55: 0 | U55: 0 | V55: 0 | W55: 0 | X55: 0 | Y55: 0 | Z55: 0 | AB55: =MMULT(TRANSPOSE(DesignMatrix),MMULT(F55:Z75,DesignMatrix)) -> 1119.56994 | AC55: 209.4450923 | AD55: 198.34857 | AE55: 163.2653968 | AF55: 208.620429 | AG55: 101.8053244 | AH55: 415.9937022 | AI55: 190.1734964 | AJ55: 118.9840392 | AK55: 36.00012967 | AL55: 6.802143791 | AN55: =IF(B55<0,D55+(B55+EXP(-D55))/-EXP(-D55),IF(B55=0,0,D55+(B55-EXP(D55))/EXP(D55))) -> 4.850803192 | AP55: =OFFSET(AA54,A55,A55) -> 1119.56994 | AR55: =MINVERSE(AB55:AL65) -> 0.005363014762 | AS55: -0.004323707631 | AT55: -0.004484690841 | AU55: -0.004742932666 | AV55: -0.004909578983 | AW55: -0.005363014762 | AX55: -0.00166176194 | AY55: -0.000407259223 | AZ55: -0.0004489731806 | BA55: -0.0007902855505 | BB55: -0.002054734867 | BD55: =MMULT(AR55:BB65,TRANSPOSE(DesignMatrix)) -> 0.005363014762 | BE55: 0.00103930713 | BF55: 0.0008783239208 | BG55: 0.0006200820956 | BH55: 0.0004534357786 | BI55: 2.602085214e-18 | BJ55: 0.003701252821 | BK55: -0.0006224548098 | BL55: -0.0007834380194 | BM55: -0.001041679845 | BN55: -0.001208326162 | BO55: 0.003293993598 | BP55: -0.001029714033 | BQ55: -0.001190697242 | BR55: -0.001448939068 | BS55: 0.002845020418 | BT55: -0.001478687213 | BU55: -0.001639670423 | BV55: 0.002054734867 | BW55: -0.002268972764 | BX55: -8.67361738e-19 | BZ55: =MMULT(F55:Z75,AN55:AN75) -> 590.2068214 | CB55: =MMULT(BD55:BX65,BZ55:BZ75) -> 4.800952844 | CD55: =CB55-CG28/$K$1 -> 4.651697699
A56: 2 | B56: =B31 -> 118.3874958 | D56: 4.702148342 | F56: 0 | G56: 110.1836304 | H56: 0 | I56: 0 | J56: 0 | K56: 0 | L56: 0 | M56: 0 | N56: 0 | O56: 0 | P56: 0 | Q56: 0 | R56: 0 | S56: 0 | T56: 0 | U56: 0 | V56: 0 | W56: 0 | X56: 0 | Y56: 0 | Z56: 0 | AB56: 209.4450923 | AC56: 209.4450923 | AD56: 0 | AE56: 0 | AF56: 0 | AG56: 0 | AH56: 99.26146191 | AI56: 57.91401628 | AJ56: 40.48602618 | AK56: 13.87561897 | AL56: 0 | AN56: =IF(B56<0,D56+(B56+EXP(-D56))/-EXP(-D56),IF(B56=0,0,D56+(B56-EXP(D56))/EXP(D56))) -> 4.776604641 | AP56: =OFFSET(AA54,A56,A56) -> 209.4450923 | AR56: -0.004323707631 | AS56: 0.00909822867 | AT56: 0.004323707631 | AU56: 0.004323707631 | AV56: 0.004323707631 | AW56: 0.004323707631 | AX56: -7.93565102e-19 | AY56: 1.350073689e-18 | AZ56: 2.92883515e-18 | BA56: -5.705560991e-19 | BB56: 0.004323707631 | BD56: -0.004323707631 | BE56: 0.004774521039 | BF56: 0 | BG56: 8.67361738e-19 | BH56: 0 | BI56: -8.67361738e-19 | BJ56: -0.004323707631 | BK56: 0.004774521039 | BL56: -7.93565102e-19 | BM56: 7.379663603e-20 | BN56: -7.93565102e-19 | BO56: -0.004323707631 | BP56: 0.004774521039 | BQ56: 5.565085871e-19 | BR56: 1.423870325e-18 | BS56: -0.004323707631 | BT56: 0.004774521039 | BU56: 3.485343737e-18 | BV56: -0.004323707631 | BW56: 0.004774521039 | BX56: 8.67361738e-19 | BZ56: 526.3036406 | CB56: -0.09867339322 | CD56: =CB56-CG28/$K$1 -> -0.2479285381
A57: 3 | B57: 120.4185298 | D57: 4.7162586 | F57: 0 | G57: 0 | H57: 111.7493705 | I57: 0 | J57: 0 | K57: 0 | L57: 0 | M57: 0 | N57: 0 | O57: 0 | P57: 0 | Q57: 0 | R57: 0 | S57: 0 | T57: 0 | U57: 0 | V57: 0 | W57: 0 | X57: 0 | Y57: 0 | Z57: 0 | AB57: 198.34857 | AC57: 0 | AD57: 198.34857 | AE57: 0 | AF57: 0 | AG57: 0 | AH57: 86.5991995 | AI57: 44.66419518 | AJ57: 26.98854849 | AK57: 0 | AL57: 0 | AN57: 4.793835407 | AP57: =OFFSET(AA54,A57,A57) -> 198.34857 | AR57: -0.004484690841 | AS57: 0.004323707631 | AT57: 0.009526320333 | AU57: 0.004484690841 | AV57: 0.004484690841 | AW57: 0.004484690841 | AX57: -1.170254595e-18 | AY57: 1.707121415e-18 | AZ57: 1.797065826e-18 | BA57: 0.002429955973 | BB57: 0.002054734867 | BD57: -0.004484690841 | BE57: -0.0001609832096 | BF57: 0.005041629492 | BG57: 0 | BH57: 0 | BI57: -1.734723476e-18 | BJ57: -0.004484690841 | BK57: -0.0001609832096 | BL57: 0.005041629492 | BM57: -1.170254595e-18 | BN57: -1.170254595e-18 | BO57: -0.004484690841 | BP57: -0.0001609832096 | BQ57: 0.005041629492 | BR57: 5.368668197e-19 | BS57: -0.004484690841 | BT57: -0.0001609832096 | BU57: 0.005041629492 | BV57: -0.002054734867 | BW57: 0.002268972764 | BX57: 0 | BZ57: 535.7080888 | CB57: -0.08454817951 | CD57: =CB57-CG28/$K$1 -> -0.2338033244
A58: 4 | B58: 93.62321529 | D58: 4.667868946 | F58: 0 | G58: 0 | H58: 0 | I58: 106.4706059 | J58: 0 | K58: 0 | L58: 0 | M58: 0 | N58: 0 | O58: 0 | P58: 0 | Q58: 0 | R58: 0 | S58: 0 | T58: 0 | U58: 0 | V58: 0 | W58: 0 | X58: 0 | Y58: 0 | Z58: 0 | AB58: 163.2653968 | AC58: 0 | AD58: 0 | AE58: 163.2653968 | AF58: 0 | AG58: 0 | AH58: 56.79479093 | AI58: 16.84069275 | AJ58: 0 | AK58: 0 | AL58: 0 | AN58: 4.547202867 | AP58: =OFFSET(AA54,A58,A58) -> 163.2653968 | AR58: -0.004742932666 | AS58: 0.004323707631 | AT58: 0.004484690841 | AU58: 0.01086792926 | AV58: 0.004742932666 | AW58: 0.004742932666 | AX58: -9.96843891e-19 | AY58: 2.320034456e-18 | AZ58: 0.001897912248 | BA58: 0.0007902855505 | BB58: 0.002054734867 | BD58: -0.004742932666 | BE58: -0.0004192250348 | BF58: -0.0002582418252 | BG58: 0.006124996597 | BH58: 0 | BI58: -1.734723476e-18 | BJ58: -0.004742932666 | BK58: -0.0004192250348 | BL58: -0.0002582418252 | BM58: 0.006124996597 | BN58: -9.96843891e-19 | BO58: -0.004742932666 | BP58: -0.0004192250348 | BQ58: -0.0002582418252 | BR58: 0.006124996597 | BS58: -0.002845020418 | BT58: 0.001478687213 | BU58: 0.001639670423 | BV58: -0.002054734867 | BW58: 0.002268972764 | BX58: 0 | BZ58: 484.1434444 | CB58: -0.1331716905 | CD58: =CB58-CG28/$K$1 -> -0.2824268353
A59: 5 | B59: 141.631158 | D59: 5.021874087 | F59: 0 | G59: 0 | H59: 0 | I59: 0 | J59: 151.6953278 | K59: 0 | L59: 0 | M59: 0 | N59: 0 | O59: 0 | P59: 0 | Q59: 0 | R59: 0 | S59: 0 | T59: 0 | U59: 0 | V59: 0 | W59: 0 | X59: 0 | Y59: 0 | Z59: 0 | AB59: 208.620429 | AC59: 0 | AD59: 0 | AE59: 0 | AF59: 208.620429 | AG59: 0 | AH59: 56.92510122 | AI59: 0 | AJ59: 0 | AK59: 0 | AL59: 0 | AN59: 4.955529461 | AP59: =OFFSET(AA54,A59,A59) -> 208.620429 | AR59: -0.004909578983 | AS59: 0.004323707631 | AT59: 0.004484690841 | AU59: 0.004742932666 | AV59: 0.009702973402 | AW59: 0.004909578983 | AX59: -9.216734429e-19 | AY59: 0.001615585385 | AZ59: 0.0004489731806 | BA59: 0.0007902855505 | BB59: 0.002054734867 | BD59: -0.004909578983 | BE59: -0.0005858713518 | BF59: -0.0004248881422 | BG59: -0.000166646317 | BH59: 0.004793394419 | BI59: -8.67361738e-19 | BJ59: -0.004909578983 | BK59: -0.0005858713518 | BL59: -0.0004248881422 | BM59: -0.000166646317 | BN59: 0.004793394419 | BO59: -0.003293993598 | BP59: 0.001029714033 | BQ59: 0.001190697242 | BR59: 0.001448939068 | BS59: -0.002845020418 | BT59: 0.001478687213 | BU59: 0.001639670423 | BV59: -0.002054734867 | BW59: 0.002268972764 | BX59: 8.67361738e-19 | BZ59: 751.7306658 | CB59: 0.2209570602 | CD59: =CB59-CG28/$K$1 -> 0.07170191538
A60: 6 | B60: 101.8053244 | D60: 4.623062406 | F60: 0 | G60: 0 | H60: 0 | I60: 0 | J60: 0 | K60: 101.8053244 | L60: 0 | M60: 0 | N60: 0 | O60: 0 | P60: 0 | Q60: 0 | R60: 0 | S60: 0 | T60: 0 | U60: 0 | V60: 0 | W60: 0 | X60: 0 | Y60: 0 | Z60: 0 | AB60: 101.8053244 | AC60: 0 | AD60: 0 | AE60: 0 | AF60: 0 | AG60: 101.8053244 | AH60: 0 | AI60: 0 | AJ60: 0 | AK60: 0 | AL60: 0 | AN60: 4.623062406 | AP60: =OFFSET(AA54,A60,A60) -> 101.8053244 | AR60: -0.005363014762 | AS60: 0.004323707631 | AT60: 0.004484690841 | AU60: 0.004742932666 | AV60: 0.004909578983 | AW60: 0.01518568372 | AX60: 0.00166176194 | AY60: 0.000407259223 | AZ60: 0.0004489731806 | BA60: 0.0007902855505 | BB60: 0.002054734867 | BD60: -0.005363014762 | BE60: -0.00103930713 | BF60: -0.0008783239208 | BG60: -0.0006200820956 | BH60: -0.0004534357786 | BI60: 0.009822668958 | BJ60: -0.003701252821 | BK60: 0.0006224548098 | BL60: 0.0007834380194 | BM60: 0.001041679845 | BN60: 0.001208326162 | BO60: -0.003293993598 | BP60: 0.001029714033 | BQ60: 0.001190697242 | BR60: 0.001448939068 | BS60: -0.002845020418 | BT60: 0.001478687213 | BU60: 0.001639670423 | BV60: -0.002054734867 | BW60: 0.002268972764 | BX60: -4.33680869e-19 | BZ60: 470.652368 | CB60: -0.1778904385 | CD60: =CB60-CG28/$K$1 -> -0.3271455833
A61: 7 | B61: 58.9131947 | D61: 3.821191026 | F61: 0 | G61: 0 | H61: 0 | I61: 0 | J61: 0 | K61: 0 | L61: 45.65855647 | M61: 0 | N61: 0 | O61: 0 | P61: 0 | Q61: 0 | R61: 0 | S61: 0 | T61: 0 | U61: 0 | V61: 0 | W61: 0 | X61: 0 | Y61: 0 | Z61: 0 | AB61: 415.9937022 | AC61: 99.26146191 | AD61: 86.5991995 | AE61: 56.79479093 | AF61: 56.92510122 | AG61: 0 | AH61: 415.9937022 | AI61: 190.1734964 | AJ61: 118.9840392 | AK61: 36.00012967 | AL61: 6.802143791 | AN61: 4.111490134 | AP61: =OFFSET(AA54,A61,A61) -> 415.9937022 | AR61: -0.00166176194 | AS61: -1.009189157e-18 | AT61: -1.357686132e-18 | AU61: -1.517413912e-18 | AV61: -1.825978942e-18 | AW61: 0.00166176194 | AX61: 0.006090063634 | AY61: -0.004428301694 | AZ61: -3.865352491e-18 | BA61: -2.904141458e-19 | BB61: 4.646626333e-19 | BD61: -0.00166176194 | BE61: -0.00166176194 | BF61: -0.00166176194 | BG61: -0.00166176194 | BH61: -0.00166176194 | BI61: 0 | BJ61: 0.004428301694 | BK61: 0.004428301694 | BL61: 0.004428301694 | BM61: 0.004428301694 | BN61: 0.004428301694 | BO61: 2.602085214e-18 | BP61: 1.734723476e-18 | BQ61: 8.67361738e-19 | BR61: 8.67361738e-19 | BS61: -1.263267277e-18 | BT61: -2.130629015e-18 | BU61: -2.997990753e-18 | BV61: -1.553681423e-18 | BW61: -2.421043161e-18 | BX61: -1.089018789e-18 | BZ61: 187.7247045 | CB61: -0.980529093 | CD61: =CB61-CG28/$K$1 -> -1.129784238
A62: 8 | B62: 28.51439339 | D62: 3.722010645 | F62: 0 | G62: 0 | H62: 0 | I62: 0 | J62: 0 | K62: 0 | L62: 0 | M62: 41.34744562 | N62: 0 | O62: 0 | P62: 0 | Q62: 0 | R62: 0 | S62: 0 | T62: 0 | U62: 0 | V62: 0 | W62: 0 | X62: 0 | Y62: 0 | Z62: 0 | AB62: 190.1734964 | AC62: 57.91401628 | AD62: 44.66419518 | AE62: 16.84069275 | AF62: 0 | AG62: 0 | AH62: 190.1734964 | AI62: 190.1734964 | AJ62: 118.9840392 | AK62: 36.00012967 | AL62: 6.802143791 | AN62: 3.411639544 | AP62: =OFFSET(AA54,A62,A62) -> 190.1734964 | AR62: -0.000407259223 | AS62: 9.108267524e-19 | AT62: 1.785934809e-18 | AU62: 2.455660362e-18 | AV62: 0.001615585385 | AW62: 0.000407259223 | AX62: -0.004428301694 | AY62: 0.01888258472 | AZ62: -0.0140470238 | BA62: -2.285996555e-18 | BB62: -3.428994833e-18 | BD62: -0.000407259223 | BE62: -0.000407259223 | BF62: -0.000407259223 | BG62: -0.000407259223 | BH62: 0.001208326162 | BI62: 4.33680869e-19 | BJ62: -0.004835560917 | BK62: -0.004835560917 | BL62: -0.004835560917 | BM62: -0.004835560917 | BN62: -0.003219975533 | BO62: 0.0140470238 | BP62: 0.0140470238 | BQ62: 0.0140470238 | BR62: 0.0140470238 | BS62: 5.204170428e-18 | BT62: 6.938893904e-18 | BU62: 8.67361738e-18 | BV62: 2.918173873e-18 | BW62: 4.652897349e-18 | BX62: -5.108209599e-19 | BZ62: 141.0625805 | CB62: -0.8659113648 | CD62: =CB62-CG28/$K$1 -> -1.01516651
A63: 9 | B63: 30.35190072 | D63: 3.736120903 | F63: 0 | G63: 0 | H63: 0 | I63: 0 | J63: 0 | K63: 0 | L63: 0 | M63: 0 | N63: 41.93500432 | O63: 0 | P63: 0 | Q63: 0 | R63: 0 | S63: 0 | T63: 0 | U63: 0 | V63: 0 | W63: 0 | X63: 0 | Y63: 0 | Z63: 0 | AB63: 118.9840392 | AC63: 40.48602618 | AD63: 26.98854849 | AE63: 0 | AF63: 0 | AG63: 0 | AH63: 118.9840392 | AI63: 118.9840392 | AJ63: 118.9840392 | AK63: 36.00012967 | AL63: 6.802143791 | AN63: 3.459905274 | AP63: =OFFSET(AA54,A63,A63) -> 118.9840392 | AR63: -0.0004489731806 | AS63: 1.753845441e-18 | AT63: 5.97901855e-19 | AU63: 0.001897912248 | AV63: 0.0004489731806 | AW63: 0.0004489731806 | AX63: -2.61278706e-18 | AY63: -0.0140470238 | AZ63: 0.02654652588 | BA63: -0.0120505289 | BB63: 7.653143744e-18 | BD63: -0.0004489731806 | BE63: -0.0004489731806 | BF63: -0.0004489731806 | BG63: 0.001448939068 | BH63: 1.626303259e-19 | BI63: -8.131516294e-19 | BJ63: -0.0004489731806 | BK63: -0.0004489731806 | BL63: -0.0004489731806 | BM63: 0.001448939068 | BN63: -2.450156734e-18 | BO63: -0.01449599698 | BP63: -0.01449599698 | BQ63: -0.01449599698 | BR63: -0.01259808473 | BS63: 0.0120505289 | BT63: 0.0120505289 | BU63: 0.0120505289 | BV63: -6.938893904e-18 | BW63: -5.204170428e-18 | BX63: 7.142498397e-19 | BZ63: 145.0911426 | CB63: 0.4214052751 | CD63: =CB63-CG28/$K$1 -> 0.2721501303
A64: 10 | B64: 40.97078422 | D64: 3.68773125 | F64: 0 | G64: 0 | H64: 0 | I64: 0 | J64: 0 | K64: 0 | L64: 0 | M64: 0 | N64: 0 | O64: 39.95409818 | P64: 0 | Q64: 0 | R64: 0 | S64: 0 | T64: 0 | U64: 0 | V64: 0 | W64: 0 | X64: 0 | Y64: 0 | Z64: 0 | AB64: 36.00012967 | AC64: 13.87561897 | AD64: 0 | AE64: 0 | AF64: 0 | AG64: 0 | AH64: 36.00012967 | AI64: 36.00012967 | AJ64: 36.00012967 | AK64: 36.00012967 | AL64: 6.802143791 | AN64: 3.713177601 | AP64: =OFFSET(AA54,A64,A64) -> 36.00012967 | AR64: -0.0007902855505 | AS64: -1.129402865e-18 | AT64: 0.002429955973 | AU64: 0.0007902855505 | AV64: 0.0007902855505 | AW64: 0.0007902855505 | AX64: 2.685240326e-19 | AY64: -1.663407374e-18 | AZ64: -0.0120505289 | BA64: 0.04708975218 | BB64: -0.03424893773 | BD64: -0.0007902855505 | BE64: -0.0007902855505 | BF64: 0.001639670423 | BG64: 0 | BH64: 0 | BI64: 3.252606517e-19 | BJ64: -0.0007902855505 | BK64: -0.0007902855505 | BL64: 0.001639670423 | BM64: 2.685240326e-19 | BN64: 2.685240326e-19 | BO64: -0.0007902855505 | BP64: -0.0007902855505 | BQ64: 0.001639670423 | BR64: -1.394883341e-18 | BS64: -0.01284081445 | BT64: -0.01284081445 | BU64: -0.01041085848 | BV64: 0.03424893773 | BW64: 0.03424893773 | BX64: 0 | BZ64: 148.3566624 | CB64: -0.6469058538 | CD64: =CB64-CG28/$K$1 -> -0.7961609986
A65: 11 | B65: 66.97446299 | D65: 4.04173639 | F65: =IF($A65=F$4,IF($B65<0,-(EXP(-$D65)^(2-$H$1)),IF($B65=0,0,EXP($D65)^(2-$H$1))),0) -> 0 | G65: 0 | H65: 0 | I65: 0 | J65: 0 | K65: 0 | L65: 0 | M65: 0 | N65: 0 | O65: 0 | P65: =IF($A65=P$4,IF($B65<0,-(EXP(-$D65)^(2-$H$1)),IF($B65=0,0,EXP($D65)^(2-$H$1))),0) -> 56.92510122 | Q65: 0 | R65: 0 | S65: 0 | T65: 0 | U65: 0 | V65: 0 | W65: 0 | X65: 0 | Y65: 0 | Z65: 0 | AB65: 6.802143791 | AC65: 0 | AD65: 0 | AE65: 0 | AF65: 0 | AG65: 0 | AH65: 6.802143791 | AI65: 6.802143791 | AJ65: 6.802143791 | AK65: 6.802143791 | AL65: 6.802143791 | AN65: 4.218272954 | AP65: =OFFSET(AA54,A65,A65) -> 6.802143791 | AR65: -0.002054734867 | AS65: 0.004323707631 | AT65: 0.002054734867 | AU65: 0.002054734867 | AV65: 0.002054734867 | AW65: 0.002054734867 | AX65: -3.214123244e-19 | AY65: -3.186847259e-18 | AZ65: 1.017609044e-17 | BA65: -0.03424893773 | BB65: 0.1833161485 | BD65: -0.002054734867 | BE65: 0.002268972764 | BF65: -1.301042607e-18 | BG65: 8.67361738e-19 | BH65: 0 | BI65: 0 | BJ65: -0.002054734867 | BK65: 0.002268972764 | BL65: -1.622454931e-18 | BM65: 5.459494136e-19 | BN65: -3.214123244e-19 | BO65: -0.002054734867 | BP65: 0.002268972764 | BQ65: -4.80930219e-18 | BR65: -2.640897845e-18 | BS65: -0.002054734867 | BT65: 0.002268972764 | BU65: 5.366788251e-18 | BV65: -0.03630367259 | BW65: -0.03197996496 | BX65: 0.1470124759 | BZ65: 240.1256149 | CB65: -0.8117739817 | CD65: =CB65-CG28/$K$1 -> -0.9610291265
A66: 12 | B66: 17.13682678 | D66: 2.957257922 | F66: 0 | G66: 0 | H66: 0 | I66: 0 | J66: 0 | K66: 0 | L66: 0 | M66: 0 | N66: 0 | O66: 0 | P66: 0 | Q66: 19.24512769 | R66: 0 | S66: 0 | T66: 0 | U66: 0 | V66: 0 | W66: 0 | X66: 0 | Y66: 0 | Z66: 0 | AN66: 2.847708069 | BZ66: 54.8045054
A67: 13 | B67: 13.13240428 | D67: 2.858077541 | F67: 0 | G67: 0 | H67: 0 | I67: 0 | J67: 0 | K67: 0 | L67: 0 | M67: 0 | N67: 0 | O67: 0 | P67: 0 | Q67: 0 | R67: 17.42799011 | S67: 0 | T67: 0 | U67: 0 | V67: 0 | W67: 0 | X67: 0 | Y67: 0 | Z67: 0 | AN67: 2.61160128 | BZ67: 45.51496127
A68: 14 | B68: 12.14616676 | D68: 2.872187799 | F68: 0 | G68: 0 | H68: 0 | I68: 0 | J68: 0 | K68: 0 | L68: 0 | M68: 0 | N68: 0 | O68: 0 | P68: 0 | Q68: 0 | R68: 0 | S68: 17.67564669 | T68: 0 | U68: 0 | V68: 0 | W68: 0 | X68: 0 | Y68: 0 | Z68: 0 | AN68: 2.559357381 | BZ68: 45.23829683
A69: 15 | B69: 28.60151927 | D69: 2.823798145 | F69: 0 | G69: 0 | H69: 0 | I69: 0 | J69: 0 | K69: 0 | L69: 0 | M69: 0 | N69: 0 | O69: 0 | P69: 0 | Q69: 0 | R69: 0 | S69: 0 | T69: 16.84069275 | U69: 0 | V69: 0 | W69: 0 | X69: 0 | Y69: 0 | Z69: 0 | AN69: 3.52215579 | BZ69: 59.31554347
A70: 16 | B70: 13.5288454 | D70: 3.380482768 | F70: 0 | G70: 0 | H70: 0 | I70: 0 | J70: 0 | K70: 0 | L70: 0 | M70: 0 | N70: 0 | O70: 0 | P70: 0 | Q70: 0 | R70: 0 | S70: 0 | T70: 0 | U70: 29.38495382 | V70: 0 | W70: 0 | X70: 0 | Y70: 0 | Z70: 0 | AN70: 2.840883199 | BZ70: 83.47922161
A71: 17 | B71: 33.81422652 | D71: 3.281302388 | F71: 0 | G71: 0 | H71: 0 | I71: 0 | J71: 0 | K71: 0 | L71: 0 | M71: 0 | N71: 0 | O71: 0 | P71: 0 | Q71: 0 | R71: 0 | S71: 0 | T71: 0 | U71: 0 | V71: 26.6104072 | W71: 0 | X71: 0 | Y71: 0 | Z71: 0 | AN71: 3.552016746 | BZ71: 94.52061201
A72: 18 | B72: 35.28958479 | D72: 3.295412646 | F72: 0 | G72: 0 | H72: 0 | I72: 0 | J72: 0 | K72: 0 | L72: 0 | M72: 0 | N72: 0 | O72: 0 | P72: 0 | Q72: 0 | R72: 0 | S72: 0 | T72: 0 | U72: 0 | V72: 0 | W72: 26.98854849 | X72: 0 | Y72: 0 | Z72: 0 | AN72: 3.602988887 | BZ72: 97.23944028
A73: 19 | B73: 13.74010634 | D73: 2.72931365 | F73: 0 | G73: 0 | H73: 0 | I73: 0 | J73: 0 | K73: 0 | L73: 0 | M73: 0 | N73: 0 | O73: 0 | P73: 0 | Q73: 0 | R73: 0 | S73: 0 | T73: 0 | U73: 0 | V73: 0 | W73: 0 | X73: 15.32236691 | Y73: 0 | Z73: 0 | AN73: 2.626048888 | BZ73: 40.23728458
A74: 20 | B74: 15.45610111 | D74: 2.630133269 | F74: 0 | G74: 0 | H74: 0 | I74: 0 | J74: 0 | K74: 0 | L74: 0 | M74: 0 | N74: 0 | O74: 0 | P74: 0 | Q74: 0 | R74: 0 | S74: 0 | T74: 0 | U74: 0 | V74: 0 | W74: 0 | X74: 0 | Y74: 13.87561897 | Z74: 0 | AN74: 2.74403681 | BZ74: 38.07520923
A75: 21 | B75: 6.802143791 | D75: 1.917237826 | F75: 0 | G75: 0 | H75: 0 | I75: 0 | J75: 0 | K75: 0 | L75: 0 | M75: 0 | N75: 0 | O75: 0 | P75: 0 | Q75: 0 | R75: 0 | S75: 0 | T75: 0 | U75: 0 | V75: 0 | W75: 0 | X75: 0 | Y75: 0 | Z75: 6.802143791 | AN75: 1.917237826 | BZ75: 13.04132737
A77: Newton-Raphson Interation Sequence -- Iteration 4
B78: y(i) | D78: xb(i) | F78: W(i,i) | AB78: XWX | AN78: zz(i) | AP78: factor | AR78: xwx-1 | BD78: aa1(i,j) | BZ78: aa2(j) | CB78: beta(j) | CD78: beta_diff = | CE78: =SUM(CD80:CD90) -> 1.980123911e-06 | CF78: beta_old = | CG78: =SUM(CB80:CB90) -> 1.643913165
B79: 1 | D79: 1 | F79: 1 | G79: 2 | H79: 3 | I79: 4 | J79: 5 | K79: 6 | L79: 7 | M79: 8 | N79: 9 | O79: 10 | P79: 11 | Q79: 12 | R79: 13 | S79: 14 | T79: 15 | U79: 16 | V79: 17 | W79: 18 | X79: 19 | Y79: 20 | Z79: 21 | AB79: 1 | AC79: 2 | AD79: 3 | AE79: 4 | AF79: 5 | AG79: 6 | AH79: 7 | AI79: 8 | AJ79: 9 | AK79: 10 | AL79: 11 | AN79: 1 | AR79: 1 | AS79: 2 | AT79: 3 | AU79: 4 | AV79: 5 | AW79: 6 | AX79: 7 | AY79: 8 | AZ79: 9 | BA79: 10 | BB79: 11 | BD79: 1 | BE79: 2 | BF79: 3 | BG79: 4 | BH79: 5 | BI79: 6 | BJ79: 7 | BK79: 8 | BL79: 9 | BM79: 10 | BN79: 11 | BO79: 12 | BP79: 13 | BQ79: 14 | BR79: 15 | BS79: 16 | BT79: 17 | BU79: 18 | BV79: 19 | BW79: 20 | BX79: 21
A80: 1 | B80: =B55 -> 127.691635 | D80: =MMULT(DesignMatrix,CB55:CB65) -> 4.800952844 | F80: =IF($A80=F$4,IF($B80<0,-(EXP(-$D80)^(2-$H$1)),IF($B80=0,0,EXP($D80)^(2-$H$1))),0) -> 121.6262532 | G80: 0 | H80: 0 | I80: 0 | J80: 0 | K80: 0 | L80: 0 | M80: 0 | N80: 0 | O80: 0 | P80: =IF($A80=P$4,IF($B80<0,-(EXP(-$D80)^(2-$H$1)),IF($B80=0,0,EXP($D80)^(2-$H$1))),0) -> 0 | Q80: 0 | R80: 0 | S80: 0 | T80: 0 | U80: 0 | V80: 0 | W80: 0 | X80: 0 | Y80: 0 | Z80: 0 | AB80: =MMULT(TRANSPOSE(DesignMatrix),MMULT(F80:Z100,DesignMatrix)) -> 1118.931011 | AC80: 209.3048862 | AD80: 198.2064484 | AE80: 163.1955746 | AF80: 208.6056247 | AG80: 101.8053244 | AH80: 415.3736417 | AI80: 189.6488814 | AJ80: 118.6317538 | AK80: 35.99835223 | AL80: 6.802143791 | AN80: =IF(B80<0,D80+(B80+EXP(-D80))/-EXP(-D80),IF(B80=0,0,D80+(B80-EXP(D80))/EXP(D80))) -> 4.850821862 | AP80: =OFFSET(AA79,A80,A80) -> 1118.931011 | AR80: =MINVERSE(AB80:AL90) -> 0.005367222043 | AS80: -0.004328798025 | AT80: -0.004490082965 | AU80: -0.004747565927 | AV80: -0.004913901087 | AW80: -0.005367222043 | AX80: -0.001661814045 | AY80: -0.0004073520685 | AZ80: -0.0004491302076 | BA80: -0.0007912244504 | BB80: -0.002057701272 | BD80: =MMULT(AR80:BB90,TRANSPOSE(DesignMatrix)) -> 0.005367222043 | BE80: 0.001038424019 | BF80: 0.0008771390784 | BG80: 0.0006196561159 | BH80: 0.0004533209565 | BI80: -2.602085214e-18 | BJ80: 0.003705407999 | BK80: -0.000623390026 | BL80: -0.0007846749663 | BM80: -0.001042157929 | BN80: -0.001208493088 | BO80: 0.00329805593 | BP80: -0.001030742094 | BQ80: -0.001192027035 | BR80: -0.001449509997 | BS80: 0.002848925722 | BT80: -0.001479872302 | BU80: -0.001641157242 | BV80: 0.002057701272 | BW80: -0.002271096752 | BX80: 0 | BZ80: =MMULT(F80:Z100,AN80:AN100) -> 589.9872879 | CB80: =MMULT(BD80:BX90,BZ80:BZ100) -> 4.800952502 | CD80: =CB80-CG53/$K$1 -> 4.651506031
A81: 2 | B81: =B56 -> 118.3874958 | D81: 4.702279451 | F81: 0 | G81: 110.1980775 | H81: 0 | I81: 0 | J81: 0 | K81: 0 | L81: 0 | M81: 0 | N81: 0 | O81: 0 | P81: 0 | Q81: 0 | R81: 0 | S81: 0 | T81: 0 | U81: 0 | V81: 0 | W81: 0 | X81: 0 | Y81: 0 | Z81: 0 | AB81: 209.3048862 | AC81: 209.3048862 | AD81: 0 | AE81: 0 | AF81: 0 | AG81: 0 | AH81: 99.10680876 | AI81: 57.77012394 | AJ81: 40.38110359 | AK81: 13.87846578 | AL81: 0 | AN81: =IF(B81<0,D81+(B81+EXP(-D81))/-EXP(-D81),IF(B81=0,0,D81+(B81-EXP(D81))/EXP(D81))) -> 4.776594889 | AP81: =OFFSET(AA79,A81,A81) -> 209.3048862 | AR81: -0.004328798025 | AS81: 0.009106517351 | AT81: 0.004328798025 | AU81: 0.004328798025 | AV81: 0.004328798025 | AW81: 0.004328798025 | AX81: 2.032110032e-18 | AY81: -5.709221111e-18 | AZ81: 3.617210336e-18 | BA81: -3.262430379e-19 | BB81: 0.004328798025 | BD81: -0.004328798025 | BE81: 0.004777719326 | BF81: -8.67361738e-19 | BG81: -8.67361738e-19 | BH81: -2.602085214e-18 | BI81: 1.734723476e-18 | BJ81: -0.004328798025 | BK81: 0.004777719326 | BL81: 1.164748294e-18 | BM81: 1.164748294e-18 | BN81: -5.699751821e-19 | BO81: -0.004328798025 | BP81: 0.004777719326 | BQ81: -4.544472817e-18 | BR81: -4.544472817e-18 | BS81: -0.004328798025 | BT81: 0.004777719326 | BU81: -9.272624814e-19 | BV81: -0.004328798025 | BW81: 0.004777719326 | BX81: 0 | BZ81: 526.3715736 | CB81: -0.09867292423 | CD81: =CB81-CG53/$K$1 -> -0.2481193955
A82: 3 | B82: 120.4185298 | D82: 4.716404665 | F82: 0 | G82: 0 | H82: 111.7656943 | I82: 0 | J82: 0 | K82: 0 | L82: 0 | M82: 0 | N82: 0 | O82: 0 | P82: 0 | Q82: 0 | R82: 0 | S82: 0 | T82: 0 | U82: 0 | V82: 0 | W82: 0 | X82: 0 | Y82: 0 | Z82: 0 | AB82: 198.2064484 | AC82: 0 | AD82: 198.2064484 | AE82: 0 | AF82: 0 | AG82: 0 | AH82: 86.44075416 | AI82: 44.51603658 | AJ82: 26.87964965 | AK82: 0 | AL82: 0 | AN82: 4.793824087 | AP82: =OFFSET(AA79,A82,A82) -> 198.2064484 | AR82: -0.004490082965 | AS82: 0.004328798025 | AT82: 0.009535327496 | AU82: 0.004490082965 | AV82: 0.004490082965 | AW82: 0.004490082965 | AX82: 2.019412913e-18 | AY82: -5.138747708e-18 | AZ82: 2.901255745e-18 | BA82: 0.002432381693 | BB82: 0.002057701272 | BD82: -0.004490082965 | BE82: -0.0001612849403 | BF82: 0.005045244531 | BG82: 0 | BH82: -1.734723476e-18 | BI82: 1.734723476e-18 | BJ82: -0.004490082965 | BK82: -0.0001612849403 | BL82: 0.005045244531 | BM82: 2.019412913e-18 | BN82: 2.846894369e-19 | BO82: -0.004490082965 | BP82: -0.0001612849403 | BQ82: 0.005045244531 | BR82: -3.119334795e-18 | BS82: -0.004490082965 | BT82: -0.0001612849403 | BU82: 0.005045244531 | BV82: -0.002057701272 | BW82: 0.002271096752 | BX82: 4.33680869e-19 | BZ82: 535.7850773 | CB82: -0.0845476831 | CD82: =CB82-CG53/$K$1 -> -0.2339941544
A83: 4 | B83: 93.62321529 | D83: 4.667781154 | F83: 0 | G83: 0 | H83: 0 | I83: 106.461259 | J83: 0 | K83: 0 | L83: 0 | M83: 0 | N83: 0 | O83: 0 | P83: 0 | Q83: 0 | R83: 0 | S83: 0 | T83: 0 | U83: 0 | V83: 0 | W83: 0 | X83: 0 | Y83: 0 | Z83: 0 | AB83: 163.1955746 | AC83: 0 | AD83: 0 | AE83: 163.1955746 | AF83: 0 | AG83: 0 | AH83: 56.73431561 | AI83: 16.79935841 | AJ83: 0 | AK83: 0 | AL83: 0 | AN83: 4.547192276 | AP83: =OFFSET(AA79,A83,A83) -> 163.1955746 | AR83: -0.004747565927 | AS83: 0.004328798025 | AT83: 0.004490082965 | AU83: 0.01087518307 | AV83: 0.004747565927 | AW83: 0.004747565927 | AX83: 2.579918512e-18 | AY83: -6.330793505e-18 | AZ83: 0.001898640205 | BA83: 0.0007912244504 | BB83: 0.002057701272 | BD83: -0.004747565927 | BE83: -0.0004187679028 | BF83: -0.0002574829625 | BG83: 0.00612761714 | BH83: -2.602085214e-18 | BI83: 8.67361738e-19 | BJ83: -0.004747565927 | BK83: -0.0004187679028 | BL83: -0.0002574829625 | BM83: 0.00612761714 | BN83: -2.216670231e-20 | BO83: -0.004747565927 | BP83: -0.0004187679028 | BQ83: -0.0002574829625 | BR83: 0.00612761714 | BS83: -0.002848925722 | BT83: 0.001479872302 | BU83: 0.001641157242 | BV83: -0.002057701272 | BW83: 0.002271096752 | BX83: 0 | BZ83: 484.0998146 | CB83: -0.1331713662 | CD83: =CB83-CG53/$K$1 -> -0.2826178376
A84: 5 | B84: 141.631158 | D84: 5.021909904 | F84: 0 | G84: 0 | H84: 0 | I84: 0 | J84: 151.7007612 | K84: 0 | L84: 0 | M84: 0 | N84: 0 | O84: 0 | P84: 0 | Q84: 0 | R84: 0 | S84: 0 | T84: 0 | U84: 0 | V84: 0 | W84: 0 | X84: 0 | Y84: 0 | Z84: 0 | AB84: 208.6056247 | AC84: 0 | AD84: 0 | AE84: 0 | AF84: 208.6056247 | AG84: 0 | AH84: 56.90486346 | AI84: 0 | AJ84: 0 | AK84: 0 | AL84: 0 | AN84: 4.955531838 | AP84: =OFFSET(AA79,A84,A84) -> 208.6056247 | AR84: -0.004913901087 | AS84: 0.004328798025 | AT84: 0.004490082965 | AU84: 0.004747565927 | AV84: 0.009707635683 | AW84: 0.004913901087 | AX84: 1.946956684e-18 | AY84: 0.001615845157 | AZ84: 0.0004491302076 | BA84: 0.0007912244504 | BB84: 0.002057701272 | BD84: -0.004913901087 | BE84: -0.0005851030622 | BF84: -0.0004238181219 | BG84: -0.0001663351594 | BH84: 0.004793734596 | BI84: 1.734723476e-18 | BJ84: -0.004913901087 | BK84: -0.0005851030622 | BL84: -0.0004238181219 | BM84: -0.0001663351594 | BN84: 0.004793734596 | BO84: -0.00329805593 | BP84: 0.001030742094 | BQ84: 0.001192027035 | BR84: 0.001449509997 | BS84: -0.002848925722 | BT84: 0.001479872302 | BU84: 0.001641157242 | BV84: -0.002057701272 | BW84: 0.002271096752 | BX84: -8.67361738e-19 | BZ84: 751.757952 | CB84: 0.2209574088 | CD84: =CB84-CG53/$K$1 -> 0.07151093745
A85: 6 | B85: 101.8053244 | D85: 4.623062406 | F85: 0 | G85: 0 | H85: 0 | I85: 0 | J85: 0 | K85: 101.8053244 | L85: 0 | M85: 0 | N85: 0 | O85: 0 | P85: 0 | Q85: 0 | R85: 0 | S85: 0 | T85: 0 | U85: 0 | V85: 0 | W85: 0 | X85: 0 | Y85: 0 | Z85: 0 | AB85: 101.8053244 | AC85: 0 | AD85: 0 | AE85: 0 | AF85: 0 | AG85: 101.8053244 | AH85: 0 | AI85: 0 | AJ85: 0 | AK85: 0 | AL85: 0 | AN85: 4.623062406 | AP85: =OFFSET(AA79,A85,A85) -> 101.8053244 | AR85: -0.005367222043 | AS85: 0.004328798025 | AT85: 0.004490082965 | AU85: 0.004747565927 | AV85: 0.004913901087 | AW85: 0.015189891 | AX85: 0.001661814045 | AY85: 0.0004073520685 | AZ85: 0.0004491302076 | BA85: 0.0007912244504 | BB85: 0.002057701272 | BD85: -0.005367222043 | BE85: -0.001038424019 | BF85: -0.0008771390784 | BG85: -0.0006196561159 | BH85: -0.0004533209565 | BI85: 0.009822668958 | BJ85: -0.003705407999 | BK85: 0.000623390026 | BL85: 0.0007846749663 | BM85: 0.001042157929 | BN85: 0.001208493088 | BO85: -0.00329805593 | BP85: 0.001030742094 | BQ85: 0.001192027035 | BR85: 0.001449509997 | BS85: -0.002848925722 | BT85: 0.001479872302 | BU85: 0.001641157242 | BV85: -0.002057701272 | BW85: 0.002271096752 | BX85: 0 | BZ85: 470.652368 | CB85: -0.1778900965 | CD85: =CB85-CG53/$K$1 -> -0.3273365678
A86: 7 | B86: 58.9131947 | D86: 3.820423751 | F86: 0 | G86: 0 | H86: 0 | I86: 0 | J86: 0 | K86: 0 | L86: 45.62353725 | M86: 0 | N86: 0 | O86: 0 | P86: 0 | Q86: 0 | R86: 0 | S86: 0 | T86: 0 | U86: 0 | V86: 0 | W86: 0 | X86: 0 | Y86: 0 | Z86: 0 | AB86: 415.3736417 | AC86: 99.10680876 | AD86: 86.44075416 | AE86: 56.73431561 | AF86: 56.90486346 | AG86: 0 | AH86: 415.3736417 | AI86: 189.6488814 | AJ86: 118.6317538 | AK86: 35.99835223 | AL86: 6.802143791 | AN86: 4.111713253 | AP86: =OFFSET(AA79,A86,A86) -> 415.3736417 | AR86: -0.001661814045 | AS86: 3.073625655e-18 | AT86: 2.746644202e-18 | AU86: 3.720322306e-18 | AV86: 3.68762416e-18 | AW86: 0.001661814045 | AX86: 0.006091988203 | AY86: -0.004430174159 | AZ86: 7.733816247e-18 | BA86: -3.371542089e-18 | BB86: 3.255282017e-18 | BD86: -0.001661814045 | BE86: -0.001661814045 | BF86: -0.001661814045 | BG86: -0.001661814045 | BH86: -0.001661814045 | BI86: 6.505213035e-19 | BJ86: 0.004430174159 | BK86: 0.004430174159 | BL86: 0.004430174159 | BM86: 0.004430174159 | BN86: 0.004430174159 | BO86: -7.806255642e-18 | BP86: -5.204170428e-18 | BQ86: -5.204170428e-18 | BR86: -4.33680869e-18 | BS86: -7.243939497e-20 | BT86: 2.529645819e-18 | BU86: 2.529645819e-18 | BV86: -3.443981484e-18 | BW86: -8.418962704e-19 | BX86: -1.88699467e-19 | BZ86: 187.5909028 | CB86: -0.9805291819 | CD86: =CB86-CG53/$K$1 -> -1.129975653
A87: 8 | B87: 28.51439339 | D87: 3.721750358 | F87: 0 | G87: 0 | H87: 0 | I87: 0 | J87: 0 | K87: 0 | L87: 0 | M87: 41.33668481 | N87: 0 | O87: 0 | P87: 0 | Q87: 0 | R87: 0 | S87: 0 | T87: 0 | U87: 0 | V87: 0 | W87: 0 | X87: 0 | Y87: 0 | Z87: 0 | AB87: 189.6488814 | AC87: 57.77012394 | AD87: 44.51603658 | AE87: 16.79935841 | AF87: 0 | AG87: 0 | AH87: 189.6488814 | AI87: 189.6488814 | AJ87: 118.6317538 | AK87: 35.99835223 | AL87: 6.802143791 | AN87: 3.411558782 | AP87: =OFFSET(AA79,A87,A87) -> 189.6488814 | AR87: -0.0004073520685 | AS87: -5.777929331e-18 | AT87: -5.625878559e-18 | AU87: -6.913838039e-18 | AV87: 0.001615845157 | AW87: 0.0004073520685 | AX87: -0.004430174159 | AY87: 0.01891863642 | AZ87: -0.01408111019 | BA87: 8.157076703e-18 | BB87: -4.579411482e-18 | BD87: -0.0004073520685 | BE87: -0.0004073520685 | BF87: -0.0004073520685 | BG87: -0.0004073520685 | BH87: 0.001208493088 | BI87: -3.794707604e-19 | BJ87: -0.004837526227 | BK87: -0.004837526227 | BL87: -0.004837526227 | BM87: -0.004837526227 | BN87: -0.00322168107 | BO87: 0.01408111019 | BP87: 0.01408111019 | BQ87: 0.01408111019 | BR87: 0.01408111019 | BS87: -1.734723476e-18 | BT87: -8.67361738e-18 | BU87: -8.67361738e-18 | BV87: 6.422353227e-18 | BW87: -5.165406773e-19 | BX87: 1.842941744e-18 | BZ87: 141.0225301 | CB87: -0.8659142139 | CD87: =CB87-CG53/$K$1 -> -1.015360685
A88: 9 | B88: 30.35190072 | D88: 3.735875572 | F88: 0 | G88: 0 | H88: 0 | I88: 0 | J88: 0 | K88: 0 | L88: 0 | M88: 0 | N88: 41.92471759 | O88: 0 | P88: 0 | Q88: 0 | R88: 0 | S88: 0 | T88: 0 | U88: 0 | V88: 0 | W88: 0 | X88: 0 | Y88: 0 | Z88: 0 | AB88: 118.6317538 | AC88: 40.38110359 | AD88: 26.87964965 | AE88: 0 | AF88: 0 | AG88: 0 | AH88: 118.6317538 | AI88: 118.6317538 | AJ88: 118.6317538 | AK88: 35.99835223 | AL88: 6.802143791 | AN88: 3.459837532 | AP88: =OFFSET(AA79,A88,A88) -> 118.6317538 | AR88: -0.0004491302076 | AS88: 2.957318984e-18 | AT88: 3.177119719e-18 | AU88: 0.001898640205 | AV88: 0.0004491302076 | AW88: 0.0004491302076 | AX88: 6.384168508e-18 | AY88: -0.01408111019 | AZ88: 0.0266318843 | BA88: -0.0121016439 | BB88: 1.278840642e-18 | BD88: -0.0004491302076 | BE88: -0.0004491302076 | BF88: -0.0004491302076 | BG88: 0.001449509997 | BH88: -9.757819552e-19 | BI88: 5.421010862e-19 | BJ88: -0.0004491302076 | BK88: -0.0004491302076 | BL88: -0.0004491302076 | BM88: 0.001449509997 | BN88: 5.408386552e-18 | BO88: -0.0145302404 | BP88: -0.0145302404 | BQ88: -0.0145302404 | BR88: -0.01263160019 | BS88: 0.0121016439 | BT88: 0.0121016439 | BU88: 0.0121016439 | BV88: 0 | BW88: 3.469446952e-18 | BX88: 1.278840642e-18 | BZ88: 145.0527114 | CB88: 0.4213992294 | CD88: =CB88-CG53/$K$1 -> 0.271952758
A89: 10 | B89: 40.97078422 | D89: 3.687252061 | F89: 0 | G89: 0 | H89: 0 | I89: 0 | J89: 0 | K89: 0 | L89: 0 | M89: 0 | N89: 0 | O89: 39.9349572 | P89: 0 | Q89: 0 | R89: 0 | S89: 0 | T89: 0 | U89: 0 | V89: 0 | W89: 0 | X89: 0 | Y89: 0 | Z89: 0 | AB89: 35.99835223 | AC89: 13.87846578 | AD89: 0 | AE89: 0 | AF89: 0 | AG89: 0 | AH89: 35.99835223 | AI89: 35.99835223 | AJ89: 35.99835223 | AK89: 35.99835223 | AL89: 6.802143791 | AN89: 3.713189913 | AP89: =OFFSET(AA79,A89,A89) -> 35.99835223 | AR89: -0.0007912244504 | AS89: -7.068054948e-19 | AT89: 0.002432381693 | AU89: 0.0007912244504 | AV89: 0.0007912244504 | AW89: 0.0007912244504 | AX89: -2.651881655e-19 | AY89: 3.092340096e-18 | AZ89: -0.0121016439 | BA89: 0.04714389112 | BB89: -0.03425102277 | BD89: -0.0007912244504 | BE89: -0.0007912244504 | BF89: 0.001641157242 | BG89: -1.409462824e-18 | BH89: -2.168404345e-19 | BI89: -2.168404345e-19 | BJ89: -0.0007912244504 | BK89: -0.0007912244504 | BL89: 0.001641157242 | BM89: -1.67465099e-18 | BN89: -4.820286e-19 | BO89: -0.0007912244504 | BP89: -0.0007912244504 | BQ89: 0.001641157242 | BR89: 1.417689106e-18 | BS89: -0.01289286835 | BT89: -0.01289286835 | BU89: -0.01046048666 | BV89: 0.03425102277 | BW89: 0.03425102277 | BX89: -6.938893904e-18 | BZ89: 148.2860802 | CB89: -0.6468967849 | CD89: =CB89-CG53/$K$1 -> -0.7963432562
A90: 11 | B90: 66.97446299 | D90: 4.041380811 | F90: =IF($A90=F$4,IF($B90<0,-(EXP(-$D90)^(2-$H$1)),IF($B90=0,0,EXP($D90)^(2-$H$1))),0) -> 0 | G90: 0 | H90: 0 | I90: 0 | J90: 0 | K90: 0 | L90: 0 | M90: 0 | N90: 0 | O90: 0 | P90: =IF($A90=P$4,IF($B90<0,-(EXP(-$D90)^(2-$H$1)),IF($B90=0,0,EXP($D90)^(2-$H$1))),0) -> 56.90486346 | Q90: 0 | R90: 0 | S90: 0 | T90: 0 | U90: 0 | V90: 0 | W90: 0 | X90: 0 | Y90: 0 | Z90: 0 | AB90: 6.802143791 | AC90: 0 | AD90: 0 | AE90: 0 | AF90: 0 | AG90: 0 | AH90: 6.802143791 | AI90: 6.802143791 | AJ90: 6.802143791 | AK90: 6.802143791 | AL90: 6.802143791 | AN90: 4.218335801 | AP90: =OFFSET(AA79,A90,A90) -> 6.802143791 | AR90: -0.002057701272 | AS90: 0.004328798025 | AT90: 0.002057701272 | AU90: 0.002057701272 | AV90: 0.002057701272 | AW90: 0.002057701272 | AX90: 1.600191691e-18 | AY90: -4.445406418e-18 | AZ90: 3.81613907e-18 | BA90: -0.03425102277 | BB90: 0.1833211999 | BD90: -0.002057701272 | BE90: 0.002271096752 | BF90: -4.33680869e-19 | BG90: 4.33680869e-19 | BH90: -8.67361738e-19 | BI90: 4.33680869e-19 | BJ90: -0.002057701272 | BK90: 0.002271096752 | BL90: 1.166510822e-18 | BM90: 2.03387256e-18 | BN90: 7.328299531e-19 | BO90: -0.002057701272 | BP90: 0.002271096752 | BQ90: -3.278895596e-18 | BR90: -2.411533858e-18 | BS90: -0.002057701272 | BT90: 0.002271096752 | BU90: 5.37243474e-19 | BV90: -0.03630872404 | BW90: -0.03197992602 | BX90: 0.1470124759 | BZ90: 240.0438228 | CB90: -0.8117737248 | CD90: =CB90-CG53/$K$1 -> -0.9612201961
A91: 12 | B91: 17.13682678 | D91: 2.954512386 | F91: 0 | G91: 0 | H91: 0 | I91: 0 | J91: 0 | K91: 0 | L91: 0 | M91: 0 | N91: 0 | O91: 0 | P91: 0 | Q91: 19.19236198 | R91: 0 | S91: 0 | T91: 0 | U91: 0 | V91: 0 | W91: 0 | X91: 0 | Y91: 0 | Z91: 0 | AN91: 2.847410655 | BZ91: 54.64853599
A92: 13 | B92: 13.13240428 | D92: 2.855838993 | F92: 0 | G92: 0 | H92: 0 | I92: 0 | J92: 0 | K92: 0 | L92: 0 | M92: 0 | N92: 0 | O92: 0 | P92: 0 | Q92: 0 | R92: 17.38902035 | S92: 0 | T92: 0 | U92: 0 | V92: 0 | W92: 0 | X92: 0 | Y92: 0 | Z92: 0 | AN92: 2.611051421 | BZ92: 45.4036263
A93: 14 | B93: 12.14616676 | D93: 2.869964207 | F93: 0 | G93: 0 | H93: 0 | I93: 0 | J93: 0 | K93: 0 | L93: 0 | M93: 0 | N93: 0 | O93: 0 | P93: 0 | Q93: 0 | R93: 0 | S93: 17.63638692 | T93: 0 | U93: 0 | V93: 0 | W93: 0 | X93: 0 | Y93: 0 | Z93: 0 | AN93: 2.558663474 | BZ93: 45.12557904
A94: 15 | B94: 28.60151927 | D94: 2.821340696 | F94: 0 | G94: 0 | H94: 0 | I94: 0 | J94: 0 | K94: 0 | L94: 0 | M94: 0 | N94: 0 | O94: 0 | P94: 0 | Q94: 0 | R94: 0 | S94: 0 | T94: 16.79935841 | U94: 0 | V94: 0 | W94: 0 | X94: 0 | Y94: 0 | Z94: 0 | AN94: 3.523877101 | BZ94: 59.1988744
A95: 16 | B95: 13.5288454 | D95: 3.375917661 | F95: 0 | G95: 0 | H95: 0 | I95: 0 | J95: 0 | K95: 0 | L95: 0 | M95: 0 | N95: 0 | O95: 0 | P95: 0 | Q95: 0 | R95: 0 | S95: 0 | T95: 0 | U95: 29.25111408 | V95: 0 | W95: 0 | X95: 0 | Y95: 0 | Z95: 0 | AN95: 2.838424674 | BZ95: 83.02708396
A96: 17 | B96: 33.81422652 | D96: 3.277244268 | F96: 0 | G96: 0 | H96: 0 | I96: 0 | J96: 0 | K96: 0 | L96: 0 | M96: 0 | N96: 0 | O96: 0 | P96: 0 | Q96: 0 | R96: 0 | S96: 0 | T96: 0 | U96: 0 | V96: 26.50263781 | W96: 0 | X96: 0 | Y96: 0 | Z96: 0 | AN96: 3.553125815 | BZ96: 94.16720656
A97: 18 | B97: 35.28958479 | D97: 3.291369482 | F97: 0 | G97: 0 | H97: 0 | I97: 0 | J97: 0 | K97: 0 | L97: 0 | M97: 0 | N97: 0 | O97: 0 | P97: 0 | Q97: 0 | R97: 0 | S97: 0 | T97: 0 | U97: 0 | V97: 0 | W97: 26.87964965 | X97: 0 | Y97: 0 | Z97: 0 | AN97: 3.60424317 | BZ97: 96.88079368
A98: 19 | B98: 13.74010634 | D98: 2.729011808 | F98: 0 | G98: 0 | H98: 0 | I98: 0 | J98: 0 | K98: 0 | L98: 0 | M98: 0 | N98: 0 | O98: 0 | P98: 0 | Q98: 0 | R98: 0 | S98: 0 | T98: 0 | U98: 0 | V98: 0 | W98: 0 | X98: 15.31774266 | Y98: 0 | Z98: 0 | AN98: 2.62601776 | BZ98: 40.22466426
A99: 20 | B99: 15.45610111 | D99: 2.630338414 | F99: 0 | G99: 0 | H99: 0 | I99: 0 | J99: 0 | K99: 0 | L99: 0 | M99: 0 | N99: 0 | O99: 0 | P99: 0 | Q99: 0 | R99: 0 | S99: 0 | T99: 0 | U99: 0 | V99: 0 | W99: 0 | X99: 0 | Y99: 13.87846578 | Z99: 0 | AN99: 2.744013467 | BZ99: 38.082697
A100: 21 | B100: 6.802143791 | D100: 1.917237826 | F100: 0 | G100: 0 | H100: 0 | I100: 0 | J100: 0 | K100: 0 | L100: 0 | M100: 0 | N100: 0 | O100: 0 | P100: 0 | Q100: 0 | R100: 0 | S100: 0 | T100: 0 | U100: 0 | V100: 0 | W100: 0 | X100: 0 | Y100: 0 | Z100: 6.802143791 | AN100: 1.917237826 | BZ100: 13.04132737
A102: Newton-Raphson Interation Sequence -- Iteration 5
B103: y(i) | D103: xb(i) | F103: W(i,i) | AB103: XWX | AN103: zz(i) | AP103: factor | AR103: xwx-1 | BD103: aa1(i,j) | BZ103: aa2(j) | CB103: beta(j) | CD103: beta_diff = | CE103: =SUM(CD105:CD115) -> 2.999267501e-12 | CF103: beta_old = | CG103: =SUM(CB105:CB115) -> 1.643913165
B104: 1 | D104: 1 | F104: 1 | G104: 2 | H104: 3 | I104: 4 | J104: 5 | K104: 6 | L104: 7 | M104: 8 | N104: 9 | O104: 10 | P104: 11 | Q104: 12 | R104: 13 | S104: 14 | T104: 15 | U104: 16 | V104: 17 | W104: 18 | X104: 19 | Y104: 20 | Z104: 21 | AB104: 1 | AC104: 2 | AD104: 3 | AE104: 4 | AF104: 5 | AG104: 6 | AH104: 7 | AI104: 8 | AJ104: 9 | AK104: 10 | AL104: 11 | AN104: 1 | AR104: 1 | AS104: 2 | AT104: 3 | AU104: 4 | AV104: 5 | AW104: 6 | AX104: 7 | AY104: 8 | AZ104: 9 | BA104: 10 | BB104: 11 | BD104: 1 | BE104: 2 | BF104: 3 | BG104: 4 | BH104: 5 | BI104: 6 | BJ104: 7 | BK104: 8 | BL104: 9 | BM104: 10 | BN104: 11 | BO104: 12 | BP104: 13 | BQ104: 14 | BR104: 15 | BS104: 16 | BT104: 17 | BU104: 18 | BV104: 19 | BW104: 20 | BX104: 21
A105: 1 | B105: =B80 -> 127.691635 | D105: =MMULT(DesignMatrix,CB80:CB90) -> 4.800952502 | F105: =IF($A105=F$4,IF($B105<0,-(EXP(-$D105)^(2-$H$1)),IF($B105=0,0,EXP($D105)^(2-$H$1))),0) -> 121.6262116 | G105: 0 | H105: 0 | I105: 0 | J105: 0 | K105: 0 | L105: 0 | M105: 0 | N105: 0 | O105: 0 | P105: =IF($A105=P$4,IF($B105<0,-(EXP(-$D105)^(2-$H$1)),IF($B105=0,0,EXP($D105)^(2-$H$1))),0) -> 0 | Q105: 0 | R105: 0 | S105: 0 | T105: 0 | U105: 0 | V105: 0 | W105: 0 | X105: 0 | Y105: 0 | Z105: 0 | AB105: =MMULT(TRANSPOSE(DesignMatrix),MMULT(F105:Z125,DesignMatrix)) -> 1118.930019 | AC105: 209.3046211 | AD105: 198.206182 | AE105: 163.1955188 | AF105: 208.605621 | AG105: 101.8053244 | AH105: 415.372661 | AI105: 189.647925 | AJ105: 118.6310079 | AK105: 35.99835124 | AL105: 6.802143791 | AN105: =IF(B105<0,D105+(B105+EXP(-D105))/-EXP(-D105),IF(B105=0,0,D105+(B105-EXP(D105))/EXP(D105))) -> 4.850821879 | AP105: =OFFSET(AA104,A105,A105) -> 1118.930019 | AR105: =MINVERSE(AB105:AL115) -> 0.005367227772 | AS105: -0.004328805537 | AT105: -0.004490090977 | AU105: -0.004747572103 | AV105: -0.004913906837 | AW105: -0.005367227772 | AX105: -0.001661814076 | AY105: -0.0004073520997 | AZ105: -0.0004491303709 | BA105: -0.0007912258762 | BB105: -0.00205770535 | BD105: =MMULT(AR105:BB115,TRANSPOSE(DesignMatrix)) -> 0.005367227772 | BE105: 0.001038422235 | BF105: 0.0008771367953 | BG105: 0.0006196556689 | BH105: 0.0004533209356 | BI105: 0 | BJ105: 0.003705413696 | BK105: -0.0006233918408 | BL105: -0.0007846772805 | BM105: -0.001042158407 | BN105: -0.00120849314 | BO105: 0.003298061597 | BP105: -0.00103074394 | BQ105: -0.00119202938 | BR105: -0.001449510507 | BS105: 0.002848931226 | BT105: -0.001479874311 | BU105: -0.001641159751 | BV105: 0.00205770535 | BW105: -0.002271100188 | BX105: -1.301042607e-18 | BZ105: =MMULT(F105:Z125,AN105:AN125) -> 589.9870882 | CB105: =MMULT(BD105:BX115,BZ105:BZ125) -> 4.800952502 | CD105: =CB105-CG78/$K$1 -> 4.651505851
A106: 2 | B106: =B81 -> 118.3874958 | D106: 4.702279578 | F106: 0 | G106: 110.1980915 | H106: 0 | I106: 0 | J106: 0 | K106: 0 | L106: 0 | M106: 0 | N106: 0 | O106: 0 | P106: 0 | Q106: 0 | R106: 0 | S106: 0 | T106: 0 | U106: 0 | V106: 0 | W106: 0 | X106: 0 | Y106: 0 | Z106: 0 | AB106: 209.3046211 | AC106: 209.3046211 | AD106: 0 | AE106: 0 | AF106: 0 | AG106: 0 | AH106: 99.10652967 | AI106: 57.76984328 | AJ106: 40.38087181 | AK106: 13.87846872 | AL106: 0 | AN106: =IF(B106<0,D106+(B106+EXP(-D106))/-EXP(-D106),IF(B106=0,0,D106+(B106-EXP(D106))/EXP(D106))) -> 4.776594879 | AP106: =OFFSET(AA104,A106,A106) -> 209.3046211 | AR106: -0.004328805537 | AS106: 0.009106530914 | AT106: 0.004328805537 | AU106: 0.004328805537 | AV106: 0.004328805537 | AW106: 0.004328805537 | AX106: -2.50723041e-18 | AY106: 1.429143461e-18 | AZ106: 1.916586535e-19 | BA106: -1.182632407e-18 | BB106: 0.004328805537 | BD106: -0.004328805537 | BE106: 0.004777725377 | BF106: 0 | BG106: 8.67361738e-19 | BH106: -8.67361738e-19 | BI106: 0 | BJ106: -0.004328805537 | BK106: 0.004777725377 | BL106: -2.50723041e-18 | BM106: -1.639868672e-18 | BN106: -3.374592148e-18 | BO106: -0.004328805537 | BP106: 0.004777725377 | BQ106: -1.078086949e-18 | BR106: -2.107252109e-19 | BS106: -0.004328805537 | BT106: 0.004777725377 | BU106: -8.864282954e-19 | BV106: -0.004328805537 | BW106: 0.004777725377 | BX106: 8.67361738e-19 | BZ106: 526.3716394 | CB106: -0.09867292423 | CD106: =CB106-CG78/$K$1 -> -0.2481195756
A107: 3 | B107: 120.4185298 | D107: 4.716404819 | F107: 0 | G107: 0 | H107: 111.7657115 | I107: 0 | J107: 0 | K107: 0 | L107: 0 | M107: 0 | N107: 0 | O107: 0 | P107: 0 | Q107: 0 | R107: 0 | S107: 0 | T107: 0 | U107: 0 | V107: 0 | W107: 0 | X107: 0 | Y107: 0 | Z107: 0 | AB107: 198.206182 | AC107: 0 | AD107: 198.206182 | AE107: 0 | AF107: 0 | AG107: 0 | AH107: 86.44047049 | AI107: 44.51575016 | AJ107: 26.87941232 | AK107: 0 | AL107: 0 | AN107: 4.793824075 | AP107: =OFFSET(AA104,A107,A107) -> 198.206182 | AR107: -0.004490090977 | AS107: 0.004328805537 | AT107: 0.00953534229 | AU107: 0.004490090977 | AV107: 0.004490090977 | AW107: 0.004490090977 | AX107: -2.241504464e-18 | AY107: 5.812438136e-19 | AZ107: 9.764907268e-19 | BA107: 0.002432385627 | BB107: 0.00205770535 | BD107: -0.004490090977 | BE107: -0.0001612854397 | BF107: 0.005045251313 | BG107: 1.734723476e-18 | BH107: 8.67361738e-19 | BI107: 0 | BJ107: -0.004490090977 | BK107: -0.0001612854397 | BL107: 0.005045251313 | BM107: -5.067809879e-19 | BN107: -1.374142726e-18 | BO107: -0.004490090977 | BP107: -0.0001612854397 | BQ107: 0.005045251313 | BR107: 7.446282571e-20 | BS107: -0.004490090977 | BT107: -0.0001612854397 | BU107: 0.005045251313 | BV107: -0.00205770535 | BW107: 0.002271100188 | BX107: -8.67361738e-19 | BZ107: 535.7851587 | CB107: -0.0845476831 | CD107: =CB107-CG78/$K$1 -> -0.2339943344
A108: 4 | B108: 93.62321529 | D108: 4.667781136 | F108: 0 | G108: 0 | H108: 0 | I108: 106.4612571 | J108: 0 | K108: 0 | L108: 0 | M108: 0 | N108: 0 | O108: 0 | P108: 0 | Q108: 0 | R108: 0 | S108: 0 | T108: 0 | U108: 0 | V108: 0 | W108: 0 | X108: 0 | Y108: 0 | Z108: 0 | AB108: 163.1955188 | AC108: 0 | AD108: 0 | AE108: 163.1955188 | AF108: 0 | AG108: 0 | AH108: 56.73426169 | AI108: 16.79930875 | AJ108: 0 | AK108: 0 | AL108: 0 | AN108: 4.547192274 | AP108: =OFFSET(AA104,A108,A108) -> 163.1955188 | AR108: -0.004747572103 | AS108: 0.004328805537 | AT108: 0.004490090977 | AU108: 0.01087519134 | AV108: 0.004747572103 | AW108: 0.004747572103 | AX108: -2.292603694e-18 | AY108: 1.602153129e-18 | AZ108: 0.001898640877 | BA108: 0.0007912258762 | BB108: 0.00205770535 | BD108: -0.004747572103 | BE108: -0.0004187665661 | BF108: -0.0002574811264 | BG108: 0.006127619235 | BH108: -8.67361738e-19 | BI108: 8.67361738e-19 | BJ108: -0.004747572103 | BK108: -0.0004187665661 | BL108: -0.0002574811264 | BM108: 0.006127619235 | BN108: -3.159965432e-18 | BO108: -0.004747572103 | BP108: -0.0004187665661 | BQ108: -0.0002574811264 | BR108: 0.006127619235 | BS108: -0.002848931226 | BT108: 0.001479874311 | BU108: 0.001641159751 | BV108: -0.00205770535 | BW108: 0.002271100188 | BX108: -4.33680869e-19 | BZ108: 484.0998057 | CB108: -0.1331713662 | CD108: =CB108-CG78/$K$1 -> -0.2826180176
A109: 5 | B109: 141.631158 | D109: 5.021909911 | F109: 0 | G109: 0 | H109: 0 | I109: 0 | J109: 151.7007622 | K109: 0 | L109: 0 | M109: 0 | N109: 0 | O109: 0 | P109: 0 | Q109: 0 | R109: 0 | S109: 0 | T109: 0 | U109: 0 | V109: 0 | W109: 0 | X109: 0 | Y109: 0 | Z109: 0 | AB109: 208.605621 | AC109: 0 | AD109: 0 | AE109: 0 | AF109: 208.605621 | AG109: 0 | AH109: 56.90485877 | AI109: 0 | AJ109: 0 | AK109: 0 | AL109: 0 | AN109: 4.955531838 | AP109: =OFFSET(AA104,A109,A109) -> 208.605621 | AR109: -0.004913906837 | AS109: 0.004328805537 | AT109: 0.004490090977 | AU109: 0.004747572103 | AV109: 0.009707641518 | AW109: 0.004913906837 | AX109: -2.860901569e-18 | AY109: 0.00161584524 | AZ109: 0.0004491303709 | BA109: 0.0007912258762 | BB109: 0.00205770535 | BD109: -0.004913906837 | BE109: -0.0005851012993 | BF109: -0.0004238158596 | BG109: -0.0001663347332 | BH109: 0.004793734681 | BI109: 0 | BJ109: -0.004913906837 | BK109: -0.0005851012993 | BL109: -0.0004238158596 | BM109: -0.0001663347332 | BN109: 0.004793734681 | BO109: -0.003298061597 | BP109: 0.00103074394 | BQ109: 0.00119202938 | BR109: 0.001449510507 | BS109: -0.002848931226 | BT109: 0.001479874311 | BU109: 0.001641159751 | BV109: -0.00205770535 | BW109: 0.002271100188 | BX109: -2.168404345e-18 | BZ109: 751.757957 | CB109: 0.2209574088 | CD109: =CB109-CG78/$K$1 -> 0.07151075744
A110: 6 | B110: 101.8053244 | D110: 4.623062406 | F110: 0 | G110: 0 | H110: 0 | I110: 0 | J110: 0 | K110: 101.8053244 | L110: 0 | M110: 0 | N110: 0 | O110: 0 | P110: 0 | Q110: 0 | R110: 0 | S110: 0 | T110: 0 | U110: 0 | V110: 0 | W110: 0 | X110: 0 | Y110: 0 | Z110: 0 | AB110: 101.8053244 | AC110: 0 | AD110: 0 | AE110: 0 | AF110: 0 | AG110: 101.8053244 | AH110: 0 | AI110: 0 | AJ110: 0 | AK110: 0 | AL110: 0 | AN110: 4.623062406 | AP110: =OFFSET(AA104,A110,A110) -> 101.8053244 | AR110: -0.005367227772 | AS110: 0.004328805537 | AT110: 0.004490090977 | AU110: 0.004747572103 | AV110: 0.004913906837 | AW110: 0.01518989673 | AX110: 0.001661814076 | AY110: 0.0004073520997 | AZ110: 0.0004491303709 | BA110: 0.0007912258762 | BB110: 0.00205770535 | BD110: -0.005367227772 | BE110: -0.001038422235 | BF110: -0.0008771367953 | BG110: -0.0006196556689 | BH110: -0.0004533209356 | BI110: 0.009822668958 | BJ110: -0.003705413696 | BK110: 0.0006233918408 | BL110: 0.0007846772805 | BM110: 0.001042158407 | BN110: 0.00120849314 | BO110: -0.003298061597 | BP110: 0.00103074394 | BQ110: 0.00119202938 | BR110: 0.001449510507 | BS110: -0.002848931226 | BT110: 0.001479874311 | BU110: 0.001641159751 | BV110: -0.00205770535 | BW110: 0.002271100188 | BX110: -4.33680869e-19 | BZ110: 470.652368 | CB110: -0.1778900965 | CD110: =CB110-CG78/$K$1 -> -0.3273367478
A111: 7 | B111: 58.9131947 | D111: 3.82042332 | F111: 0 | G111: 0 | H111: 0 | I111: 0 | J111: 0 | K111: 0 | L111: 45.62351759 | M111: 0 | N111: 0 | O111: 0 | P111: 0 | Q111: 0 | R111: 0 | S111: 0 | T111: 0 | U111: 0 | V111: 0 | W111: 0 | X111: 0 | Y111: 0 | Z111: 0 | AB111: 415.372661 | AC111: 99.10652967 | AD111: 86.44047049 | AE111: 56.73426169 | AF111: 56.90485877 | AG111: 0 | AH111: 415.372661 | AI111: 189.647925 | AJ111: 118.6310079 | AK111: 35.99835124 | AL111: 6.802143791 | AN111: 4.111713379 | AP111: =OFFSET(AA104,A111,A111) -> 415.372661 | AR111: -0.001661814076 | AS111: -3.705794308e-18 | AT111: -3.571368436e-18 | AU111: -3.335214877e-18 | AV111: -3.872918365e-18 | AW111: 0.001661814076 | AX111: 0.006091988711 | AY111: -0.004430174635 | AZ111: -1.799511928e-18 | BA111: -1.743903204e-19 | BB111: -2.325204272e-18 | BD111: -0.001661814076 | BE111: -0.001661814076 | BF111: -0.001661814076 | BG111: -0.001661814076 | BH111: -0.001661814076 | BI111: 0 | BJ111: 0.004430174635 | BK111: 0.004430174635 | BL111: 0.004430174635 | BM111: 0.004430174635 | BN111: 0.004430174635 | BO111: 4.33680869e-18 | BP111: 0 | BQ111: 8.67361738e-19 | BR111: 8.67361738e-19 | BS111: 2.537296762e-18 | BT111: -1.799511928e-18 | BU111: -9.321501901e-19 | BV111: 2.362906441e-18 | BW111: -1.973902248e-18 | BX111: 3.770216983e-20 | BZ111: 187.5908276 | CB111: -0.9805291819 | CD111: =CB111-CG78/$K$1 -> -1.129975833
A112: 8 | B112: 28.51439339 | D112: 3.721750396 | F112: 0 | G112: 0 | H112: 0 | I112: 0 | J112: 0 | K112: 0 | L112: 0 | M112: 41.33668639 | N112: 0 | O112: 0 | P112: 0 | Q112: 0 | R112: 0 | S112: 0 | T112: 0 | U112: 0 | V112: 0 | W112: 0 | X112: 0 | Y112: 0 | Z112: 0 | AB112: 189.647925 | AC112: 57.76984328 | AD112: 44.51575016 | AE112: 16.79930875 | AF112: 0 | AG112: 0 | AH112: 189.647925 | AI112: 189.647925 | AJ112: 118.6310079 | AK112: 35.99835124 | AL112: 6.802143791 | AN112: 3.411558793 | AP112: =OFFSET(AA104,A112,A112) -> 189.647925 | AR112: -0.0004073520997 | AS112: 1.341627983e-18 | AT112: 1.270074491e-18 | AU112: 2.209214079e-18 | AV112: 0.00161584524 | AW112: 0.0004073520997 | AX112: -0.004430174635 | AY112: 0.01891867868 | AZ112: -0.01408115194 | BA112: -2.003497788e-18 | BB112: -3.434567636e-18 | BD112: -0.0004073520997 | BE112: -0.0004073520997 | BF112: -0.0004073520997 | BG112: -0.0004073520997 | BH112: 0.00120849314 | BI112: 0 | BJ112: -0.004837526735 | BK112: -0.004837526735 | BL112: -0.004837526735 | BM112: -0.004837526735 | BN112: -0.003221681495 | BO112: 0.01408115194 | BP112: 0.01408115194 | BQ112: 0.01408115194 | BR112: 0.01408115194 | BS112: 0 | BT112: 1.734723476e-18 | BU112: 1.734723476e-18 | BV112: -2.003497788e-18 | BW112: -2.68774312e-19 | BX112: -5.438065424e-18 | BZ112: 141.0225359 | CB112: -0.8659142139 | CD112: =CB112-CG78/$K$1 -> -1.015360865
A113: 9 | B113: 30.35190072 | D113: 3.735875637 | F113: 0 | G113: 0 | H113: 0 | I113: 0 | J113: 0 | K113: 0 | L113: 0 | M113: 0 | N113: 41.92472033 | O113: 0 | P113: 0 | Q113: 0 | R113: 0 | S113: 0 | T113: 0 | U113: 0 | V113: 0 | W113: 0 | X113: 0 | Y113: 0 | Z113: 0 | AB113: 118.6310079 | AC113: 40.38087181 | AD113: 26.87941232 | AE113: 0 | AF113: 0 | AG113: 0 | AH113: 118.6310079 | AI113: 118.6310079 | AJ113: 118.6310079 | AK113: 35.99835124 | AL113: 6.802143791 | AN113: 3.45983755 | AP113: =OFFSET(AA104,A113,A113) -> 118.6310079 | AR113: -0.0004491303709 | AS113: -2.397836198e-19 | AT113: 1.998196832e-19 | AU113: 0.001898640877 | AV113: 0.0004491303709 | AW113: 0.0004491303709 | AX113: -3.427451457e-18 | AY113: -0.01408115194 | AZ113: 0.0266320353 | BA113: -0.01210175299 | BB113: 3.836537917e-18 | BD113: -0.0004491303709 | BE113: -0.0004491303709 | BF113: -0.0004491303709 | BG113: 0.001449510507 | BH113: 7.047314121e-19 | BI113: 0 | BJ113: -0.0004491303709 | BK113: -0.0004491303709 | BL113: -0.0004491303709 | BM113: 0.001449510507 | BN113: -2.722720045e-18 | BO113: -0.01453028231 | BP113: -0.01453028231 | BQ113: -0.01453028231 | BR113: -0.01263164144 | BS113: 0.01210175299 | BT113: 0.01210175299 | BU113: 0.01210175299 | BV113: 3.469446952e-18 | BW113: 3.469446952e-18 | BX113: 7.305984869e-18 | BZ113: 145.0527217 | CB113: 0.4213992293 | CD113: =CB113-CG78/$K$1 -> 0.271952578
A114: 10 | B114: 40.97078422 | D114: 3.687251954 | F114: 0 | G114: 0 | H114: 0 | I114: 0 | J114: 0 | K114: 0 | L114: 0 | M114: 0 | N114: 0 | O114: 39.93495294 | P114: 0 | Q114: 0 | R114: 0 | S114: 0 | T114: 0 | U114: 0 | V114: 0 | W114: 0 | X114: 0 | Y114: 0 | Z114: 0 | AB114: 35.99835124 | AC114: 13.87846872 | AD114: 0 | AE114: 0 | AF114: 0 | AG114: 0 | AH114: 35.99835124 | AI114: 35.99835124 | AJ114: 35.99835124 | AK114: 35.99835124 | AL114: 6.802143791 | AN114: 3.713189916 | AP114: =OFFSET(AA104,A114,A114) -> 35.99835124 | AR114: -0.0007912258762 | AS114: -5.65445942e-19 | AT114: 0.002432385627 | AU114: 0.0007912258762 | AV114: 0.0007912258762 | AW114: 0.0007912258762 | AX114: -1.43485164e-18 | AY114: 3.567674753e-18 | AZ114: -0.01210175299 | BA114: 0.04714400279 | BB114: -0.03425102393 | BD114: -0.0007912258762 | BE114: -0.0007912258762 | BF114: 0.001641159751 | BG114: 6.505213035e-19 | BH114: 3.252606517e-19 | BI114: 0 | BJ114: -0.0007912258762 | BK114: -0.0007912258762 | BL114: 0.001641159751 | BM114: -7.843303367e-19 | BN114: -1.109590988e-18 | BO114: -0.0007912258762 | BP114: -0.0007912258762 | BQ114: 0.001641159751 | BR114: 2.783344417e-18 | BS114: -0.01289297886 | BT114: -0.01289297886 | BU114: -0.01046059323 | BV114: 0.03425102393 | BW114: 0.03425102393 | BX114: -6.938893904e-18 | BZ114: 148.2860645 | CB114: -0.6468967849 | CD114: =CB114-CG78/$K$1 -> -0.7963434362
A115: 11 | B115: 66.97446299 | D115: 4.041380729 | F115: =IF($A115=F$4,IF($B115<0,-(EXP(-$D115)^(2-$H$1)),IF($B115=0,0,EXP($D115)^(2-$H$1))),0) -> 0 | G115: 0 | H115: 0 | I115: 0 | J115: 0 | K115: 0 | L115: 0 | M115: 0 | N115: 0 | O115: 0 | P115: =IF($A115=P$4,IF($B115<0,-(EXP(-$D115)^(2-$H$1)),IF($B115=0,0,EXP($D115)^(2-$H$1))),0) -> 56.90485877 | Q115: 0 | R115: 0 | S115: 0 | T115: 0 | U115: 0 | V115: 0 | W115: 0 | X115: 0 | Y115: 0 | Z115: 0 | AB115: 6.802143791 | AC115: 0 | AD115: 0 | AE115: 0 | AF115: 0 | AG115: 0 | AH115: 6.802143791 | AI115: 6.802143791 | AJ115: 6.802143791 | AK115: 6.802143791 | AL115: 6.802143791 | AN115: 4.218335816 | AP115: =OFFSET(AA104,A115,A115) -> 6.802143791 | AR115: -0.00205770535 | AS115: 0.004328805537 | AT115: 0.00205770535 | AU115: 0.00205770535 | AV115: 0.00205770535 | AW115: 0.00205770535 | AX115: 3.078778679e-19 | AY115: -6.989499341e-18 | AZ115: 3.816139179e-18 | BA115: -0.03425102393 | BB115: 0.1833212052 | BD115: -0.00205770535 | BE115: 0.002271100188 | BF115: 1.734723476e-18 | BG115: 4.33680869e-19 | BH115: 4.33680869e-19 | BI115: 0 | BJ115: -0.00205770535 | BK115: 0.002271100188 | BL115: 2.042601344e-18 | BM115: 7.415587369e-19 | BN115: 7.415587369e-19 | BO115: -0.00205770535 | BP115: 0.002271100188 | BQ115: -4.946897997e-18 | BR115: -6.247940604e-18 | BS115: -0.00205770535 | BT115: 0.002271100188 | BU115: -1.130758818e-18 | BV115: -0.03630872928 | BW115: -0.03197992374 | BX115: 0.1470124759 | BZ115: 240.0438038 | CB115: -0.8117737248 | CD115: =CB115-CG78/$K$1 -> -0.9612203762
A116: 12 | B116: 17.13682678 | D116: 2.954509106 | F116: 0 | G116: 0 | H116: 0 | I116: 0 | J116: 0 | K116: 0 | L116: 0 | M116: 0 | N116: 0 | O116: 0 | P116: 0 | Q116: 19.19229903 | R116: 0 | S116: 0 | T116: 0 | U116: 0 | V116: 0 | W116: 0 | X116: 0 | Y116: 0 | Z116: 0 | AN116: 2.847410304 | BZ116: 54.64835
A117: 13 | B117: 13.13240428 | D117: 2.855836182 | F117: 0 | G117: 0 | H117: 0 | I117: 0 | J117: 0 | K117: 0 | L117: 0 | M117: 0 | N117: 0 | O117: 0 | P117: 0 | Q117: 0 | R117: 17.38897147 | S117: 0 | T117: 0 | U117: 0 | V117: 0 | W117: 0 | X117: 0 | Y117: 0 | Z117: 0 | AN117: 2.611050733 | BZ117: 45.40348671
A118: 14 | B118: 12.14616676 | D118: 2.869961423 | F118: 0 | G118: 0 | H118: 0 | I118: 0 | J118: 0 | K118: 0 | L118: 0 | M118: 0 | N118: 0 | O118: 0 | P118: 0 | Q118: 0 | R118: 0 | S118: 17.63633783 | T118: 0 | U118: 0 | V118: 0 | W118: 0 | X118: 0 | Y118: 0 | Z118: 0 | AN118: 2.558662608 | BZ118: 45.12543815
A119: 15 | B119: 28.60151927 | D119: 2.82133774 | F119: 0 | G119: 0 | H119: 0 | I119: 0 | J119: 0 | K119: 0 | L119: 0 | M119: 0 | N119: 0 | O119: 0 | P119: 0 | Q119: 0 | R119: 0 | S119: 0 | T119: 16.79930875 | U119: 0 | V119: 0 | W119: 0 | X119: 0 | Y119: 0 | Z119: 0 | AN119: 3.523879177 | BZ119: 59.19873431
A120: 16 | B120: 13.5288454 | D120: 3.375908336 | F120: 0 | G120: 0 | H120: 0 | I120: 0 | J120: 0 | K120: 0 | L120: 0 | M120: 0 | N120: 0 | O120: 0 | P120: 0 | Q120: 0 | R120: 0 | S120: 0 | T120: 0 | U120: 29.2508413 | V120: 0 | W120: 0 | X120: 0 | Y120: 0 | Z120: 0 | AN120: 2.838419662 | BZ120: 83.02616306
A121: 17 | B121: 33.81422652 | D121: 3.277235411 | F121: 0 | G121: 0 | H121: 0 | I121: 0 | J121: 0 | K121: 0 | L121: 0 | M121: 0 | N121: 0 | O121: 0 | P121: 0 | Q121: 0 | R121: 0 | S121: 0 | T121: 0 | U121: 0 | V121: 26.50240309 | W121: 0 | X121: 0 | Y121: 0 | Z121: 0 | AN121: 3.553128258 | BZ121: 94.16643731
A122: 18 | B122: 35.28958479 | D122: 3.291360652 | F122: 0 | G122: 0 | H122: 0 | I122: 0 | J122: 0 | K122: 0 | L122: 0 | M122: 0 | N122: 0 | O122: 0 | P122: 0 | Q122: 0 | R122: 0 | S122: 0 | T122: 0 | U122: 0 | V122: 0 | W122: 26.87941232 | X122: 0 | Y122: 0 | Z122: 0 | AN122: 3.604245933 | BZ122: 96.88001255
A123: 19 | B123: 13.74010634 | D123: 2.729011551 | F123: 0 | G123: 0 | H123: 0 | I123: 0 | J123: 0 | K123: 0 | L123: 0 | M123: 0 | N123: 0 | O123: 0 | P123: 0 | Q123: 0 | R123: 0 | S123: 0 | T123: 0 | U123: 0 | V123: 0 | W123: 0 | X123: 15.31773873 | Y123: 0 | Z123: 0 | AN123: 2.626017733 | BZ123: 40.22465353
A124: 20 | B124: 15.45610111 | D124: 2.630338626 | F124: 0 | G124: 0 | H124: 0 | I124: 0 | J124: 0 | K124: 0 | L124: 0 | M124: 0 | N124: 0 | O124: 0 | P124: 0 | Q124: 0 | R124: 0 | S124: 0 | T124: 0 | U124: 0 | V124: 0 | W124: 0 | X124: 0 | Y124: 13.87846872 | Z124: 0 | AN124: 2.744013443 | BZ124: 38.08270474
A125: 21 | B125: 6.802143791 | D125: 1.917237826 | F125: 0 | G125: 0 | H125: 0 | I125: 0 | J125: 0 | K125: 0 | L125: 0 | M125: 0 | N125: 0 | O125: 0 | P125: 0 | Q125: 0 | R125: 0 | S125: 0 | T125: 0 | U125: 0 | V125: 0 | W125: 0 | X125: 0 | Y125: 0 | Z125: 6.802143791 | AN125: 1.917237826 | BZ125: 13.04132737
A127: Newton-Raphson Interation Sequence -- Iteration 6
B128: y(i) | D128: xb(i) | F128: W(i,i) | AB128: XWX | AN128: zz(i) | AP128: factor | AR128: xwx-1 | BD128: aa1(i,j) | BZ128: aa2(j) | CB128: beta(j) | CD128: beta_diff = | CE128: =SUM(CD130:CD140) -> -5.018208071e-14 | CF128: beta_old = | CG128: =SUM(CB130:CB140) -> 1.643913165
B129: 1 | D129: 1 | F129: 1 | G129: 2 | H129: 3 | I129: 4 | J129: 5 | K129: 6 | L129: 7 | M129: 8 | N129: 9 | O129: 10 | P129: 11 | Q129: 12 | R129: 13 | S129: 14 | T129: 15 | U129: 16 | V129: 17 | W129: 18 | X129: 19 | Y129: 20 | Z129: 21 | AB129: 1 | AC129: 2 | AD129: 3 | AE129: 4 | AF129: 5 | AG129: 6 | AH129: 7 | AI129: 8 | AJ129: 9 | AK129: 10 | AL129: 11 | AN129: 1 | AR129: 1 | AS129: 2 | AT129: 3 | AU129: 4 | AV129: 5 | AW129: 6 | AX129: 7 | AY129: 8 | AZ129: 9 | BA129: 10 | BB129: 11 | BD129: 1 | BE129: 2 | BF129: 3 | BG129: 4 | BH129: 5 | BI129: 6 | BJ129: 7 | BK129: 8 | BL129: 9 | BM129: 10 | BN129: 11 | BO129: 12 | BP129: 13 | BQ129: 14 | BR129: 15 | BS129: 16 | BT129: 17 | BU129: 18 | BV129: 19 | BW129: 20 | BX129: 21
A130: 1 | B130: =B105 -> 127.691635 | D130: =MMULT(DesignMatrix,CB105:CB115) -> 4.800952502 | F130: =IF($A130=F$4,IF($B130<0,-(EXP(-$D130)^(2-$H$1)),IF($B130=0,0,EXP($D130)^(2-$H$1))),0) -> 121.6262116 | G130: 0 | H130: 0 | I130: 0 | J130: 0 | K130: 0 | L130: 0 | M130: 0 | N130: 0 | O130: 0 | P130: =IF($A130=P$4,IF($B130<0,-(EXP(-$D130)^(2-$H$1)),IF($B130=0,0,EXP($D130)^(2-$H$1))),0) -> 0 | Q130: 0 | R130: 0 | S130: 0 | T130: 0 | U130: 0 | V130: 0 | W130: 0 | X130: 0 | Y130: 0 | Z130: 0 | AB130: =MMULT(TRANSPOSE(DesignMatrix),MMULT(F130:Z150,DesignMatrix)) -> 1118.930019 | AC130: 209.3046211 | AD130: 198.206182 | AE130: 163.1955188 | AF130: 208.605621 | AG130: 101.8053244 | AH130: 415.372661 | AI130: 189.647925 | AJ130: 118.6310079 | AK130: 35.99835124 | AL130: 6.802143791 | AN130: =IF(B130<0,D130+(B130+EXP(-D130))/-EXP(-D130),IF(B130=0,0,D130+(B130-EXP(D130))/EXP(D130))) -> 4.850821879 | AP130: =OFFSET(AA129,A130,A130) -> 1118.930019 | AR130: =MINVERSE(AB130:AL140) -> 0.005367227772 | AS130: -0.004328805537 | AT130: -0.004490090977 | AU130: -0.004747572103 | AV130: -0.004913906837 | AW130: -0.005367227772 | AX130: -0.001661814076 | AY130: -0.0004073520997 | AZ130: -0.0004491303709 | BA130: -0.0007912258762 | BB130: -0.00205770535 | BD130: =MMULT(AR130:BB140,TRANSPOSE(DesignMatrix)) -> 0.005367227772 | BE130: 0.001038422235 | BF130: 0.0008771367952 | BG130: 0.0006196556689 | BH130: 0.0004533209356 | BI130: -8.67361738e-19 | BJ130: 0.003705413696 | BK130: -0.0006233918408 | BL130: -0.0007846772805 | BM130: -0.001042158407 | BN130: -0.00120849314 | BO130: 0.003298061597 | BP130: -0.00103074394 | BQ130: -0.00119202938 | BR130: -0.001449510507 | BS130: 0.002848931226 | BT130: -0.001479874311 | BU130: -0.001641159751 | BV130: 0.00205770535 | BW130: -0.002271100188 | BX130: 1.301042607e-18 | BZ130: =MMULT(F130:Z150,AN130:AN150) -> 589.9870882 | CB130: =MMULT(BD130:BX140,BZ130:BZ150) -> 4.800952502 | CD130: =CB130-CG103/$K$1 -> 4.651505851
A131: 2 | B131: =B106 -> 118.3874958 | D131: 4.702279578 | F131: 0 | G131: 110.1980915 | H131: 0 | I131: 0 | J131: 0 | K131: 0 | L131: 0 | M131: 0 | N131: 0 | O131: 0 | P131: 0 | Q131: 0 | R131: 0 | S131: 0 | T131: 0 | U131: 0 | V131: 0 | W131: 0 | X131: 0 | Y131: 0 | Z131: 0 | AB131: 209.3046211 | AC131: 209.3046211 | AD131: 0 | AE131: 0 | AF131: 0 | AG131: 0 | AH131: 99.10652967 | AI131: 57.76984328 | AJ131: 40.38087181 | AK131: 13.87846872 | AL131: 0 | AN131: =IF(B131<0,D131+(B131+EXP(-D131))/-EXP(-D131),IF(B131=0,0,D131+(B131-EXP(D131))/EXP(D131))) -> 4.776594879 | AP131: =OFFSET(AA129,A131,A131) -> 209.3046211 | AR131: -0.004328805537 | AS131: 0.009106530915 | AT131: 0.004328805537 | AU131: 0.004328805537 | AV131: 0.004328805537 | AW131: 0.004328805537 | AX131: 8.096433475e-19 | AY131: 2.166689638e-18 | AZ131: 2.256579388e-19 | BA131: 4.48584706e-19 | BB131: 0.004328805537 | BD131: -0.004328805537 | BE131: 0.004777725377 | BF131: -2.602085214e-18 | BG131: -2.602085214e-18 | BH131: 0 | BI131: 0 | BJ131: -0.004328805537 | BK131: 0.004777725377 | BL131: -1.792441866e-18 | BM131: -1.792441866e-18 | BN131: 8.096433475e-19 | BO131: -0.004328805537 | BP131: 0.004777725377 | BQ131: 3.74247771e-19 | BR131: 3.74247771e-19 | BS131: -0.004328805537 | BT131: 0.004777725377 | BU131: 5.999057098e-19 | BV131: -0.004328805537 | BW131: 0.004777725377 | BX131: -8.67361738e-19 | BZ131: 526.3716394 | CB131: -0.09867292423 | CD131: =CB131-CG103/$K$1 -> -0.2481195756
A132: 3 | B132: 120.4185298 | D132: 4.716404819 | F132: 0 | G132: 0 | H132: 111.7657115 | I132: 0 | J132: 0 | K132: 0 | L132: 0 | M132: 0 | N132: 0 | O132: 0 | P132: 0 | Q132: 0 | R132: 0 | S132: 0 | T132: 0 | U132: 0 | V132: 0 | W132: 0 | X132: 0 | Y132: 0 | Z132: 0 | AB132: 198.206182 | AC132: 0 | AD132: 198.206182 | AE132: 0 | AF132: 0 | AG132: 0 | AH132: 86.44047049 | AI132: 44.51575015 | AJ132: 26.87941232 | AK132: 0 | AL132: 0 | AN132: 4.793824075 | AP132: =OFFSET(AA129,A132,A132) -> 198.206182 | AR132: -0.004490090977 | AS132: 0.004328805537 | AT132: 0.00953534229 | AU132: 0.004490090977 | AV132: 0.004490090977 | AW132: 0.004490090977 | AX132: 4.927587203e-19 | AY132: 2.370747875e-18 | AZ132: -2.432501759e-20 | BA132: 0.002432385627 | BB132: 0.00205770535 | BD132: -0.004490090977 | BE132: -0.0001612854397 | BF132: 0.005045251313 | BG132: -1.734723476e-18 | BH132: 0 | BI132: -8.67361738e-19 | BJ132: -0.004490090977 | BK132: -0.0001612854397 | BL132: 0.005045251313 | BM132: -1.241964756e-18 | BN132: 4.927587203e-19 | BO132: -0.004490090977 | BP132: -0.0001612854397 | BQ132: 0.005045251313 | BR132: 1.128783119e-18 | BS132: -0.004490090977 | BT132: -0.0001612854397 | BU132: 0.005045251313 | BV132: -0.00205770535 | BW132: 0.002271100188 | BX132: -4.33680869e-19 | BZ132: 535.7851587 | CB132: -0.0845476831 | CD132: =CB132-CG103/$K$1 -> -0.2339943344
A133: 4 | B133: 93.62321529 | D133: 4.667781136 | F133: 0 | G133: 0 | H133: 0 | I133: 106.4612571 | J133: 0 | K133: 0 | L133: 0 | M133: 0 | N133: 0 | O133: 0 | P133: 0 | Q133: 0 | R133: 0 | S133: 0 | T133: 0 | U133: 0 | V133: 0 | W133: 0 | X133: 0 | Y133: 0 | Z133: 0 | AB133: 163.1955188 | AC133: 0 | AD133: 0 | AE133: 163.1955188 | AF133: 0 | AG133: 0 | AH133: 56.73426169 | AI133: 16.79930875 | AJ133: 0 | AK133: 0 | AL133: 0 | AN133: 4.547192274 | AP133: =OFFSET(AA129,A133,A133) -> 163.1955188 | AR133: -0.004747572103 | AS133: 0.004328805537 | AT133: 0.004490090977 | AU133: 0.01087519134 | AV133: 0.004747572103 | AW133: 0.004747572103 | AX133: 9.849728642e-19 | AY133: 3.354870441e-18 | AZ133: 0.001898640877 | BA133: 0.0007912258762 | BB133: 0.00205770535 | BD133: -0.004747572103 | BE133: -0.0004187665661 | BF133: -0.0002574811264 | BG133: 0.006127619235 | BH133: 0 | BI133: 8.67361738e-19 | BJ133: -0.004747572103 | BK133: -0.0004187665661 | BL133: -0.0002574811264 | BM133: 0.006127619235 | BN133: 9.849728642e-19 | BO133: -0.004747572103 | BP133: -0.0004187665661 | BQ133: -0.0002574811264 | BR133: 0.006127619235 | BS133: -0.002848931226 | BT133: 0.001479874311 | BU133: 0.001641159751 | BV133: -0.00205770535 | BW133: 0.002271100188 | BX133: -4.33680869e-19 | BZ133: 484.0998057 | CB133: -0.1331713662 | CD133: =CB133-CG103/$K$1 -> -0.2826180176
A134: 5 | B134: 141.631158 | D134: 5.021909911 | F134: 0 | G134: 0 | H134: 0 | I134: 0 | J134: 151.7007622 | K134: 0 | L134: 0 | M134: 0 | N134: 0 | O134: 0 | P134: 0 | Q134: 0 | R134: 0 | S134: 0 | T134: 0 | U134: 0 | V134: 0 | W134: 0 | X134: 0 | Y134: 0 | Z134: 0 | AB134: 208.605621 | AC134: 0 | AD134: 0 | AE134: 0 | AF134: 208.605621 | AG134: 0 | AH134: 56.90485877 | AI134: 0 | AJ134: 0 | AK134: 0 | AL134: 0 | AN134: 4.955531838 | AP134: =OFFSET(AA129,A134,A134) -> 208.605621 | AR134: -0.004913906837 | AS134: 0.004328805537 | AT134: 0.004490090977 | AU134: 0.004747572103 | AV134: 0.009707641518 | AW134: 0.004913906837 | AX134: 1.046288224e-18 | AY134: 0.00161584524 | AZ134: 0.0004491303709 | BA134: 0.0007912258762 | BB134: 0.00205770535 | BD134: -0.004913906837 | BE134: -0.0005851012993 | BF134: -0.0004238158596 | BG134: -0.0001663347332 | BH134: 0.004793734681 | BI134: 0 | BJ134: -0.004913906837 | BK134: -0.0005851012993 | BL134: -0.0004238158596 | BM134: -0.0001663347332 | BN134: 0.004793734681 | BO134: -0.003298061597 | BP134: 0.00103074394 | BQ134: 0.00119202938 | BR134: 0.001449510507 | BS134: -0.002848931226 | BT134: 0.001479874311 | BU134: 0.001641159751 | BV134: -0.00205770535 | BW134: 0.002271100188 | BX134: -1.301042607e-18 | BZ134: 751.757957 | CB134: 0.2209574088 | CD134: =CB134-CG103/$K$1 -> 0.07151075744
A135: 6 | B135: 101.8053244 | D135: 4.623062406 | F135: 0 | G135: 0 | H135: 0 | I135: 0 | J135: 0 | K135: 101.8053244 | L135: 0 | M135: 0 | N135: 0 | O135: 0 | P135: 0 | Q135: 0 | R135: 0 | S135: 0 | T135: 0 | U135: 0 | V135: 0 | W135: 0 | X135: 0 | Y135: 0 | Z135: 0 | AB135: 101.8053244 | AC135: 0 | AD135: 0 | AE135: 0 | AF135: 0 | AG135: 101.8053244 | AH135: 0 | AI135: 0 | AJ135: 0 | AK135: 0 | AL135: 0 | AN135: 4.623062406 | AP135: =OFFSET(AA129,A135,A135) -> 101.8053244 | AR135: -0.005367227772 | AS135: 0.004328805537 | AT135: 0.004490090977 | AU135: 0.004747572103 | AV135: 0.004913906837 | AW135: 0.01518989673 | AX135: 0.001661814076 | AY135: 0.0004073520997 | AZ135: 0.0004491303709 | BA135: 0.0007912258762 | BB135: 0.00205770535 | BD135: -0.005367227772 | BE135: -0.001038422235 | BF135: -0.0008771367952 | BG135: -0.0006196556689 | BH135: -0.0004533209356 | BI135: 0.009822668958 | BJ135: -0.003705413696 | BK135: 0.0006233918408 | BL135: 0.0007846772805 | BM135: 0.001042158407 | BN135: 0.00120849314 | BO135: -0.003298061597 | BP135: 0.00103074394 | BQ135: 0.00119202938 | BR135: 0.001449510507 | BS135: -0.002848931226 | BT135: 0.001479874311 | BU135: 0.001641159751 | BV135: -0.00205770535 | BW135: 0.002271100188 | BX135: 1.734723476e-18 | BZ135: 470.652368 | CB135: -0.1778900965 | CD135: =CB135-CG103/$K$1 -> -0.3273367478
A136: 7 | B136: 58.9131947 | D136: 3.82042332 | F136: 0 | G136: 0 | H136: 0 | I136: 0 | J136: 0 | K136: 0 | L136: 45.62351759 | M136: 0 | N136: 0 | O136: 0 | P136: 0 | Q136: 0 | R136: 0 | S136: 0 | T136: 0 | U136: 0 | V136: 0 | W136: 0 | X136: 0 | Y136: 0 | Z136: 0 | AB136: 415.372661 | AC136: 99.10652967 | AD136: 86.44047049 | AE136: 56.73426169 | AF136: 56.90485877 | AG136: 0 | AH136: 415.372661 | AI136: 189.647925 | AJ136: 118.6310079 | AK136: 35.99835124 | AL136: 6.802143791 | AN136: 4.111713379 | AP136: =OFFSET(AA129,A136,A136) -> 415.372661 | AR136: -0.001661814076 | AS136: 1.300661139e-18 | AT136: 1.36605751e-18 | AU136: 1.402388826e-18 | AV136: 1.438720143e-18 | AW136: 0.001661814076 | AX136: 0.006091988711 | AY136: -0.004430174635 | AZ136: 9.671541916e-19 | BA136: 1.104472029e-18 | BB136: 9.300817087e-19 | BD136: -0.001661814076 | BE136: -0.001661814076 | BF136: -0.001661814076 | BG136: -0.001661814076 | BH136: -0.001661814076 | BI136: 8.67361738e-19 | BJ136: 0.004430174635 | BK136: 0.004430174635 | BL136: 0.004430174635 | BM136: 0.004430174635 | BN136: 0.004430174635 | BO136: -4.33680869e-18 | BP136: -2.602085214e-18 | BQ136: -2.602085214e-18 | BR136: -2.602085214e-18 | BS136: -3.369654498e-18 | BT136: -1.634931022e-18 | BU136: -1.634931022e-18 | BV136: -2.265182469e-18 | BW136: -5.304589934e-19 | BX136: -1.335100761e-18 | BZ136: 187.5908276 | CB136: -0.9805291819 | CD136: =CB136-CG103/$K$1 -> -1.129975833
A137: 8 | B137: 28.51439339 | D137: 3.721750396 | F137: 0 | G137: 0 | H137: 0 | I137: 0 | J137: 0 | K137: 0 | L137: 0 | M137: 41.33668639 | N137: 0 | O137: 0 | P137: 0 | Q137: 0 | R137: 0 | S137: 0 | T137: 0 | U137: 0 | V137: 0 | W137: 0 | X137: 0 | Y137: 0 | Z137: 0 | AB137: 189.647925 | AC137: 57.76984328 | AD137: 44.51575015 | AE137: 16.79930875 | AF137: 0 | AG137: 0 | AH137: 189.647925 | AI137: 189.647925 | AJ137: 118.6310079 | AK137: 35.99835124 | AL137: 6.802143791 | AN137: 3.411558793 | AP137: =OFFSET(AA129,A137,A137) -> 189.647925 | AR137: -0.0004073520997 | AS137: 2.504372235e-18 | AT137: 2.862139697e-18 | AU137: 3.935442084e-18 | AV137: 0.00161584524 | AW137: 0.0004073520997 | AX137: -0.004430174635 | AY137: 0.01891867868 | AZ137: -0.01408115194 | BA137: -7.441563212e-18 | BB137: 0 | BD137: -0.0004073520997 | BE137: -0.0004073520997 | BF137: -0.0004073520997 | BG137: -0.0004073520997 | BH137: 0.00120849314 | BI137: -1.084202172e-18 | BJ137: -0.004837526735 | BK137: -0.004837526735 | BL137: -0.004837526735 | BM137: -0.004837526735 | BN137: -0.003221681495 | BO137: 0.01408115194 | BP137: 0.01408115194 | BQ137: 0.01408115194 | BR137: 0.01408115194 | BS137: 5.204170428e-18 | BT137: 8.67361738e-18 | BU137: 8.67361738e-18 | BV137: -2.237392785e-18 | BW137: 1.232054167e-18 | BX137: -2.237392785e-18 | BZ137: 141.0225359 | CB137: -0.8659142139 | CD137: =CB137-CG103/$K$1 -> -1.015360865
A138: 9 | B138: 30.35190072 | D138: 3.735875637 | F138: 0 | G138: 0 | H138: 0 | I138: 0 | J138: 0 | K138: 0 | L138: 0 | M138: 0 | N138: 41.92472033 | O138: 0 | P138: 0 | Q138: 0 | R138: 0 | S138: 0 | T138: 0 | U138: 0 | V138: 0 | W138: 0 | X138: 0 | Y138: 0 | Z138: 0 | AB138: 118.6310079 | AC138: 40.38087181 | AD138: 26.87941232 | AE138: 0 | AF138: 0 | AG138: 0 | AH138: 118.6310079 | AI138: 118.6310079 | AJ138: 118.6310079 | AK138: 35.99835124 | AL138: 6.802143791 | AN138: 3.45983755 | AP138: =OFFSET(AA129,A138,A138) -> 118.6310079 | AR138: -0.0004491303709 | AS138: -5.195311763e-19 | AT138: -6.394229862e-19 | AU138: 0.001898640877 | AV138: 0.0004491303709 | AW138: 0.0004491303709 | AX138: 1.646320499e-18 | AY138: -0.01408115194 | AZ138: 0.0266320353 | BA138: -0.01210175299 | BB138: 0 | BD138: -0.0004491303709 | BE138: -0.0004491303709 | BF138: -0.0004491303709 | BG138: 0.001449510507 | BH138: 1.355252716e-18 | BI138: 7.047314121e-19 | BJ138: -0.0004491303709 | BK138: -0.0004491303709 | BL138: -0.0004491303709 | BM138: 0.001449510507 | BN138: 3.001573215e-18 | BO138: -0.01453028231 | BP138: -0.01453028231 | BQ138: -0.01453028231 | BR138: -0.01263164144 | BS138: 0.01210175299 | BT138: 0.01210175299 | BU138: 0.01210175299 | BV138: 1.734723476e-18 | BW138: 1.734723476e-18 | BX138: 1.734723476e-18 | BZ138: 145.0527217 | CB138: 0.4213992293 | CD138: =CB138-CG103/$K$1 -> 0.271952578
A139: 10 | B139: 40.97078422 | D139: 3.687251954 | F139: 0 | G139: 0 | H139: 0 | I139: 0 | J139: 0 | K139: 0 | L139: 0 | M139: 0 | N139: 0 | O139: 39.93495294 | P139: 0 | Q139: 0 | R139: 0 | S139: 0 | T139: 0 | U139: 0 | V139: 0 | W139: 0 | X139: 0 | Y139: 0 | Z139: 0 | AB139: 35.99835124 | AC139: 13.87846872 | AD139: 0 | AE139: 0 | AF139: 0 | AG139: 0 | AH139: 35.99835124 | AI139: 35.99835124 | AJ139: 35.99835124 | AK139: 35.99835124 | AL139: 6.802143791 | AN139: 3.713189916 | AP139: =OFFSET(AA129,A139,A139) -> 35.99835124 | AR139: -0.0007912258762 | AS139: 9.895303986e-19 | AT139: 0.002432385627 | AU139: 0.0007912258762 | AV139: 0.0007912258762 | AW139: 0.0007912258762 | AX139: -1.682533039e-18 | AY139: -4.758707295e-18 | AZ139: -0.01210175299 | BA139: 0.04714400279 | BB139: -0.03425102393 | BD139: -0.0007912258762 | BE139: -0.0007912258762 | BF139: 0.001641159751 | BG139: 1.95156391e-18 | BH139: 9.757819552e-19 | BI139: 3.252606517e-19 | BJ139: -0.0007912258762 | BK139: -0.0007912258762 | BL139: 0.001641159751 | BM139: 2.690308714e-19 | BN139: -7.067510838e-19 | BO139: -0.0007912258762 | BP139: -0.0007912258762 | BQ139: 0.001641159751 | BR139: -4.489676424e-18 | BS139: -0.01289297886 | BT139: -0.01289297886 | BU139: -0.01046059323 | BV139: 0.03425102393 | BW139: 0.03425102393 | BX139: 0 | BZ139: 148.2860645 | CB139: -0.6468967849 | CD139: =CB139-CG103/$K$1 -> -0.7963434362
A140: 11 | B140: 66.97446299 | D140: 4.041380729 | F140: =IF($A140=F$4,IF($B140<0,-(EXP(-$D140)^(2-$H$1)),IF($B140=0,0,EXP($D140)^(2-$H$1))),0) -> 0 | G140: 0 | H140: 0 | I140: 0 | J140: 0 | K140: 0 | L140: 0 | M140: 0 | N140: 0 | O140: 0 | P140: =IF($A140=P$4,IF($B140<0,-(EXP(-$D140)^(2-$H$1)),IF($B140=0,0,EXP($D140)^(2-$H$1))),0) -> 56.90485877 | Q140: 0 | R140: 0 | S140: 0 | T140: 0 | U140: 0 | V140: 0 | W140: 0 | X140: 0 | Y140: 0 | Z140: 0 | AB140: 6.802143791 | AC140: 0 | AD140: 0 | AE140: 0 | AF140: 0 | AG140: 0 | AH140: 6.802143791 | AI140: 6.802143791 | AJ140: 6.802143791 | AK140: 6.802143791 | AL140: 6.802143791 | AN140: 4.218335816 | AP140: =OFFSET(AA129,A140,A140) -> 6.802143791 | AR140: -0.00205770535 | AS140: 0.004328805537 | AT140: 0.00205770535 | AU140: 0.00205770535 | AV140: 0.00205770535 | AW140: 0.00205770535 | AX140: 2.383398032e-18 | AY140: 1.258534752e-18 | AZ140: -2.544092786e-18 | BA140: -0.03425102393 | BB140: 0.1833212052 | BD140: -0.00205770535 | BE140: 0.002271100188 | BF140: -1.301042607e-18 | BG140: -1.301042607e-18 | BH140: -8.67361738e-19 | BI140: 4.33680869e-19 | BJ140: -0.00205770535 | BK140: 0.002271100188 | BL140: 1.082355425e-18 | BM140: 1.082355425e-18 | BN140: 1.516036294e-18 | BO140: -0.00205770535 | BP140: 0.002271100188 | BQ140: 2.340890177e-18 | BR140: 2.340890177e-18 | BS140: -0.00205770535 | BT140: 0.002271100188 | BU140: -2.032026087e-19 | BV140: -0.03630872928 | BW140: -0.03197992374 | BX140: 0.1470124759 | BZ140: 240.0438038 | CB140: -0.8117737248 | CD140: =CB140-CG103/$K$1 -> -0.9612203762
A141: 12 | B141: 17.13682678 | D141: 2.954509106 | F141: 0 | G141: 0 | H141: 0 | I141: 0 | J141: 0 | K141: 0 | L141: 0 | M141: 0 | N141: 0 | O141: 0 | P141: 0 | Q141: 19.19229903 | R141: 0 | S141: 0 | T141: 0 | U141: 0 | V141: 0 | W141: 0 | X141: 0 | Y141: 0 | Z141: 0 | AN141: 2.847410304 | BZ141: 54.64835
A142: 13 | B142: 13.13240428 | D142: 2.855836182 | F142: 0 | G142: 0 | H142: 0 | I142: 0 | J142: 0 | K142: 0 | L142: 0 | M142: 0 | N142: 0 | O142: 0 | P142: 0 | Q142: 0 | R142: 17.38897147 | S142: 0 | T142: 0 | U142: 0 | V142: 0 | W142: 0 | X142: 0 | Y142: 0 | Z142: 0 | AN142: 2.611050733 | BZ142: 45.40348671
A143: 14 | B143: 12.14616676 | D143: 2.869961423 | F143: 0 | G143: 0 | H143: 0 | I143: 0 | J143: 0 | K143: 0 | L143: 0 | M143: 0 | N143: 0 | O143: 0 | P143: 0 | Q143: 0 | R143: 0 | S143: 17.63633783 | T143: 0 | U143: 0 | V143: 0 | W143: 0 | X143: 0 | Y143: 0 | Z143: 0 | AN143: 2.558662608 | BZ143: 45.12543815
A144: 15 | B144: 28.60151927 | D144: 2.82133774 | F144: 0 | G144: 0 | H144: 0 | I144: 0 | J144: 0 | K144: 0 | L144: 0 | M144: 0 | N144: 0 | O144: 0 | P144: 0 | Q144: 0 | R144: 0 | S144: 0 | T144: 16.79930875 | U144: 0 | V144: 0 | W144: 0 | X144: 0 | Y144: 0 | Z144: 0 | AN144: 3.523879177 | BZ144: 59.19873431
A145: 16 | B145: 13.5288454 | D145: 3.375908336 | F145: 0 | G145: 0 | H145: 0 | I145: 0 | J145: 0 | K145: 0 | L145: 0 | M145: 0 | N145: 0 | O145: 0 | P145: 0 | Q145: 0 | R145: 0 | S145: 0 | T145: 0 | U145: 29.2508413 | V145: 0 | W145: 0 | X145: 0 | Y145: 0 | Z145: 0 | AN145: 2.838419662 | BZ145: 83.02616306
A146: 17 | B146: 33.81422652 | D146: 3.277235411 | F146: 0 | G146: 0 | H146: 0 | I146: 0 | J146: 0 | K146: 0 | L146: 0 | M146: 0 | N146: 0 | O146: 0 | P146: 0 | Q146: 0 | R146: 0 | S146: 0 | T146: 0 | U146: 0 | V146: 26.50240308 | W146: 0 | X146: 0 | Y146: 0 | Z146: 0 | AN146: 3.553128258 | BZ146: 94.16643731
A147: 18 | B147: 35.28958479 | D147: 3.291360652 | F147: 0 | G147: 0 | H147: 0 | I147: 0 | J147: 0 | K147: 0 | L147: 0 | M147: 0 | N147: 0 | O147: 0 | P147: 0 | Q147: 0 | R147: 0 | S147: 0 | T147: 0 | U147: 0 | V147: 0 | W147: 26.87941232 | X147: 0 | Y147: 0 | Z147: 0 | AN147: 3.604245933 | BZ147: 96.88001254
A148: 19 | B148: 13.74010634 | D148: 2.729011551 | F148: 0 | G148: 0 | H148: 0 | I148: 0 | J148: 0 | K148: 0 | L148: 0 | M148: 0 | N148: 0 | O148: 0 | P148: 0 | Q148: 0 | R148: 0 | S148: 0 | T148: 0 | U148: 0 | V148: 0 | W148: 0 | X148: 15.31773873 | Y148: 0 | Z148: 0 | AN148: 2.626017733 | BZ148: 40.22465353
A149: 20 | B149: 15.45610111 | D149: 2.630338626 | F149: 0 | G149: 0 | H149: 0 | I149: 0 | J149: 0 | K149: 0 | L149: 0 | M149: 0 | N149: 0 | O149: 0 | P149: 0 | Q149: 0 | R149: 0 | S149: 0 | T149: 0 | U149: 0 | V149: 0 | W149: 0 | X149: 0 | Y149: 13.87846872 | Z149: 0 | AN149: 2.744013443 | BZ149: 38.08270474
A150: 21 | B150: 6.802143791 | D150: 1.917237826 | F150: 0 | G150: 0 | H150: 0 | I150: 0 | J150: 0 | K150: 0 | L150: 0 | M150: 0 | N150: 0 | O150: 0 | P150: 0 | Q150: 0 | R150: 0 | S150: 0 | T150: 0 | U150: 0 | V150: 0 | W150: 0 | X150: 0 | Y150: 0 | Z150: 6.802143791 | AN150: 1.917237826 | BZ150: 13.04132737
